Workbook

Sheet CAPA
B1: SPARTA | C1: Ver. | R1: DF | S1: Sudeste/Centro Oeste
B2: Helenístico LX | C2: 0.93 | M2: =C23 -> 115 | N2: =C22 -> 32
C3: Macro Ver.
C4: 4.02
B6: CELTINS | L6: CodigoSamp | M6: Empresa | N6: Nome Completo | O6: IdSgtAg | P6: CodigoSamp | Q6: Supridora/suprida | R6: Financeiro 243 (TUSD) | S6: Databse Fin. 243
B7: =VLOOKUP(B6,TabEmpresas[],2,FALSE) -> CELTINS - Companhia de Energia Elétrica do Estado do Tocantins | C7: Reajuste | G7: Últ. Atualização | L7: 396 | M7: AES SUL | N7: AES-SUL - AES SUL Distribuidora Gaúcha de Energia S/A. | O7: 101 | P7: 396 | Q7: NÃO SUPRIDA
B8: CÓDIGO DA EMPRESA | C8: ="D" & TEXT(C23-100,"00") -> D15 | F8: Info iniciais | G8: 2022-06-23T18:14:07 | L8: 7019 | M8: AME | N8: Amazonas Distribuidora de Energia S/A | O8: 102 | P8: 7019 | Q8: NÃO SUPRIDA
B9: Data do Reajuste/Revisão Anterior | C9: 44381 | F9: Energia do ano anterior (CM compra, MWh Mercado, R$ Mercado) | L9: 383 | M9: AMPLA | N9: AMPLA - Ampla Energia e Serviços S/A | O9: 103 | P9: 383 | Q9: NÃO SUPRIDA
B10: Data de Reajuste/Revisão em Processamento | C10: 44746 | F10: Perda de RB /Perdas Regulatórias /TUSDgONS-RB | L10: 391 | M10: BANDEIRANTE | N10: BANDEIRANTE - Bandeirante Energia S/A. | O10: 104 | P10: 391 | Q10: NÃO SUPRIDA
F11: Financeiros ano anterior (CVA 5º dia útil, RTE restante) | L11: 370 | M11: BOAVISTA | N11: Boa Vista - Boa Vista Energia S/A | O11: 105 | P11: 370 | Q11: NÃO SUPRIDA
F12: Encargos ano anterior (não RTE) | L12: 386 | M12: BRAGANTINA | N12: BRAGANTINA- Empresa Elétrica Bragantina S/A. | O12: 142 | P12: 386 | Q12: NÃO SUPRIDA
F13: Dados da Revisão, Fator X e DecFec | L13: 5216 | M13: CAIUA | N13: CAIUÁ-D - Caiuá Distribuição de Energia S/A | O13: 106 | P13: 5216 | Q13: NÃO SUPRIDA
F14: Previsão de Subsidios dos Processos Anteriores | L14: 31 | M14: CEA | N14: CEA - Companhia de Eletricidade do Amapá | O14: 107 | P14: 31 | Q14: NÃO SUPRIDA
B15: Período de Referencia final | C15: =DATE(YEAR($C$10),MONTH($C$10)-1,1) -> 44713 | F15: Conexão ano anterior | L15: 44 | M15: CEAL | N15: CEAL - Companhia Energética de Alagoas | O15: 108 | P15: 44 | Q15: NÃO SUPRIDA
B16: Período de Referencia inicial | C16: =DATE(YEAR($C$10)-1,MONTH($C$10),1) -> 44378 | F16: Energia (CCEAR, Bil., Itaipu) | G16: 2022-06-22T14:56:45 | L16: 5160 | M16: CEB | N16: CEB-DIS - CEB Distribuição S/A | O16: 109 | P16: 5160 | Q16: NÃO SUPRIDA
B17: Índice IGPM na data Revisão/Reajuste | C17: =VLOOKUP(C15,Índices!$B$7:$F$500,2,FALSE) -> 1191.417824 | F17: CCEAR | L17: 5707 | M17: CEEE | N17: CEEE-D - Companhia Estadual de Distribuição de Energia Elétrica | O17: 110 | P17: 5707 | Q17: NÃO SUPRIDA
B18: Índice IPCA na data Revisão/Reajuste | C18: =VLOOKUP(C15,Índices!$B$7:$F$500,3,FALSE) -> 6440.012895 | L18: 5697 | M18: CELESC | N18: CELESC-DIS - Celesc Distribuição S.A. | O18: 111 | P18: 5697 | Q18: NÃO SUPRIDA
B19: IGPM para o período de Referência | C19: =VLOOKUP(DATE(YEAR($C$10),MONTH($C$10)-1,1),Índices!$B$7:$F$500,2,FALSE)/VLOOKUP(DATE(YEAR($C$9),MONTH($C$9)-1,1),Índices!$B$7:$F$500,2,FALSE)-1 -> 0.1075404619 | F19: Itaipu (Energia, Transporte, MUST) | L19: 6072 | M19: CELG | N19: CELG-D - Celg Distribuição S.A. | O19: 112 | P19: 6072 | Q19: NÃO SUPRIDA
B20: IPCA para o período de Referência | C20: =VLOOKUP(DATE(YEAR(C10),MONTH(C10)-1,1),Índices!$B$7:$F$500,3,FALSE)/VLOOKUP(DATE(YEAR($C$9),MONTH($C$9)-1,1),Índices!$B$7:$F$500,3,FALSE)-1 -> 0.1161239546 | F20: Cotas Lei/Angra | L20: 371 | M20: CELPA | N20: CELPA - Centrais Elétricas do Pará S/A. | O20: 113 | P20: 371 | Q20: NÃO SUPRIDA
B21: Dados Gerenciais | F21: Encargos DRP | G21: 2022-05-09T15:25:16 | L21: 43 | M21: CELPE | N21: CELPE - Companhia Energética de Pernambuco | O21: 114 | P21: 43 | Q21: NÃO SUPRIDA
B22: IdAgente | C22: =VLOOKUP(B6,TabEmpresas[],4,FALSE) -> 32 | F22: Indicadores Econômicos / Dólar | G22: 2022-06-23T18:09:09 | L22: 32 | M22: CELTINS | N22: CELTINS - Companhia de Energia Elétrica do Estado do Tocantins | O22: 115 | P22: 32 | Q22: NÃO SUPRIDA
B23: ID Concessão | C23: =VLOOKUP(B6,TabEmpresas[],3,FALSE) -> 115 | F23: Tudo de Mercado | G23: 2022-06-10T15:27:43 | L23: 37 | M23: CEMAR | N23: CEMAR - Companhia Energética do Maranhão | O23: 116 | P23: 37 | Q23: NÃO SUPRIDA
F24: Rede Básica e Conexão | G24: 2022-06-23T17:12:07 | L24: 405 | M24: CEMAT | N24: CEMAT - Centrais Elétricas Matogrossenses S/A. | O24: 117 | P24: 405 | Q24: NÃO SUPRIDA
B25: Quadro para vínculos | F25: Histórico de Tarifas B1 Residencial | G25: 2022-05-09T15:39:27 | L25: 4950 | M25: CEMIG | N25: CEMIG-D - CEMIG Distribuição S/A | O25: 118 | P25: 4950 | Q25: NÃO SUPRIDA
B26: Descrição | C26: valor | F26: CVA | G26: 2022-06-22T16:17:24 | L26: 38 | M26: CEPISA | N26: CEPISA - Companhia Energética do Piauí | O26: 119 | P26: 38 | Q26: NÃO SUPRIDA
B27: (Exemplo) Efeito Consumidor Geral | C27: =LnkTxtEfeito -> 0.1477887476 | F27: CUSD | G27: 2022-05-30T16:32:19 | L27: 369 | M27: CERON | N27: CERON - Centrais Elétricas de Rondônia S/A. | O27: 120 | P27: 369 | Q27: NÃO SUPRIDA
B28: Contrato de concessão | C28: 052/1999 | L28: 28 | M28: CERR | N28: CERR - Companhia Energética de Roraima | O28: 121 | P28: 28 | Q28: NÃO SUPRIDA
C29: 052/1999 | L29: 103 | M29: CHESP | N29: CHESP - Companhia Hidroelétrica São Patrício | O29: 123 | P29: 103 | Q29: SUPRIDA
B30: Período de Referencia | C30: =TEXT(C16,"mmmm/aaaa")& " a "&TEXT(C15,"mmmm/aaaa") -> julho/2021 a junho/2022 | L30: 75 | M30: CNEE | N30: CNEE - Companhia Nacional de Energia Elétrica | O30: 127 | P30: 75 | Q30: NÃO SUPRIDA
B31: Neutralidade Total | L31: 82 | M31: COCEL | N31: COCEL - Companhia Campolarguense de Energia | O31: 128 | P31: 82 | Q31: SUPRIDA
B32: CVA Saldo a Compensar | C32: =SUM(Financeiros!D27:D43) -> 1694924.983 | L32: 47 | M32: COELBA | N32: COELBA - Companhia de Eletricidade do Estado da Bahia | O32: 129 | P32: 47 | Q32: NÃO SUPRIDA
B33: Reversão CDE | L33: 39 | M33: COELCE | N33: COELCE - Companhia Energética do Ceará | O33: 130 | P33: 39 | Q33: NÃO SUPRIDA
B34: Diretor Relator Sorteado | L34: 2904 | M34: COOPERALIANÇA | N34: COOPERALIANÇA - Cooperativa Aliança | O34: 131 | P34: 2904 | Q34: SUPRIDA
L35: 2866 | M35: COPEL | N35: COPEL-DIS - Copel Distribuição S/A | O35: 132 | P35: 2866 | Q35: NÃO SUPRIDA
L36: 40 | M36: COSERN | N36: COSERN - Companhia Energética do Rio Grande do Norte | O36: 133 | P36: 40 | Q36: NÃO SUPRIDA
L37: 69 | M37: CPFL Jaguari | N37: CPFL Jaguari - Companhia Jaguari de Energia | O37: 124 | P37: 69 | Q37: NÃO SUPRIDA
L38: 71 | M38: CPFL Leste Paulista | N38: =TabEmpresas[[#This Row],[Empresa]]&" - Companhia Leste Paulista de Energia " -> CPFL Leste Paulista - Companhia Leste Paulista de Energia | O38: 134 | P38: 71 | Q38: NÃO SUPRIDA
L39: 70 | M39: CPFL Mococa | N39: =TabEmpresas[[#This Row],[Empresa]]&" - Companhia Luz e Força de Mococa " -> CPFL Mococa - Companhia Luz e Força de Mococa | O39: 125 | P39: 70 | Q39: NÃO SUPRIDA
L40: 72 | M40: CPFL Santa Cruz | N40: =TabEmpresas[[#This Row],[Empresa]]&" - Companhia Luz e Força Santa Cruz " -> CPFL Santa Cruz - Companhia Luz e Força Santa Cruz | O40: 126 | P40: 72 | Q40: NÃO SUPRIDA
L41: 73 | M41: CPFL Sul Paulista | N41: =TabEmpresas[[#This Row],[Empresa]]&" - Companhia Sul Paulista de Energia " -> CPFL Sul Paulista - Companhia Sul Paulista de Energia | O41: 137 | P41: 73 | Q41: NÃO SUPRIDA
L42: 63 | M42: CPFL Paulista | N42: CPFL-Paulista - Companhia Paulista de Força e Luz | O42: 136 | P42: 63 | Q42: NÃO SUPRIDA
L43: 2937 | M43: CPFL Piratininga | N43: CPFL- Piratininga - Companhia Piratininga de Força e Luz | O43: 135 | P43: 2937 | Q43: NÃO SUPRIDA
L44: 95 | M44: DEMEI | N44: DEMEI - Departamento Municipal de Energia de Ijuí | O44: 138 | P44: 95 | Q44: SUPRIDA
L45: 51 | M45: DMED | N45: =TabEmpresas[[#This Row],[Empresa]]&" - DME Distribuição S.A" -> DMED - DME Distribuição S.A | O45: 139 | P45: 51 | Q45: NÃO SUPRIDA
L46: 6611 | M46: EBO | N46: EBO - Energisa Borborema – Distribuidora de Energia S.A. | O46: 140 | P46: 6611 | Q46: NÃO SUPRIDA
B47: Deslocar mercado | C47: Não | L47: 5217 | M47: EDEVP | N47: EDEVP - Empresa de Distribuição de Energia Vale Paranapanema S/A | O47: 141 | P47: 5217 | Q47: NÃO SUPRIDA
B48: Data de processamento em simulação | L48: 385 | M48: ELEKTRO | N48: ELEKTRO - Elektro Eletricidade e Serviços S/A. | O48: 145 | P48: 385 | Q48: NÃO SUPRIDA
L49: 26 | M49: ELETROACRE | N49: ELETROACRE - Companhia de Eletricidade do Acre | O49: 146 | P49: 26 | Q49: NÃO SUPRIDA
L50: 398 | M50: ELETROCAR | N50: ELETROCAR - Centrais Elétricas de Carazinho S/A. | O50: 147 | P50: 398 | Q50: SUPRIDA
L51: 390 | M51: ELETROPAULO | N51: ELETROPAULO - Eletropaulo Metropolitana Eletricidade de São Paulo S/A | O51: 148 | P51: 390 | Q51: NÃO SUPRIDA
L52: 6585 | M52: EMG | N52: EMG - Energisa Minas Gerais - Distribuidora de Energia S.A. | O52: 150 | P52: 6585 | Q52: NÃO SUPRIDA
L53: 404 | M53: ENERSUL | N53: ENERSUL - Empresa Energética de Mato Grosso do Sul S/A. | O53: 151 | P53: 404 | Q53: NÃO SUPRIDA
L54: 6612 | M54: ENF | N54: ENF - Energisa Nova Friburgo - Distribuidora de Energia S.A. | O54: 152 | P54: 6612 | Q54: SUPRIDA
L55: 6600 | M55: EPB | N55: EPB - Energisa Paraíba - Distribuidora de Energia | O55: 153 | P55: 6600 | Q55: NÃO SUPRIDA
L56: 380 | M56: ESCELSA | N56: ESCELSA - Espírito Santo Centrais Elétricas S/A. | O56: 154 | P56: 380 | Q56: NÃO SUPRIDA
L57: 6587 | M57: ESE | N57: ESE - Energisa Sergipe - Distribuidora de Energia S.A. | O57: 155 | P57: 6587 | Q57: NÃO SUPRIDA
L58: 83 | M58: FORCEL | N58: FORCEL - Força e Luz Coronel Vivida Ltda | O58: 156 | P58: 83 | Q58: SUPRIDA
L59: 399 | M59: HIDROPAN | N59: HIDROPAN - Hidroelétrica Panambi S/A. | O59: 157 | P59: 399 | Q59: SUPRIDA
L60: 87 | M60: IENERGIA | N60: IENERGIA - Iguaçu Distribuidora de Energia Elétrica Ltda | O60: 158 | P60: 87 | Q60: NÃO SUPRIDA
L61: 213 | M61: JARI | N61: JARI - Jari Celulose S/A | O61: 159 | P61: 213 | Q61: NÃO SUPRIDA
L62: 88 | M62: JOÃO CESA | N62: JOÃO CESA - Empresa Força e Luz João Cesa Ltda | O62: 143 | P62: 88 | Q62: SUPRIDA
L63: 382 | M63: LIGHT | N63: LIGHT - Light Serviços de Eletricidade S/A. | O63: 160 | P63: 382 | Q63: NÃO SUPRIDA
L64: 401 | M64: MUX Energia | N64: MUX Energia - Muxfeldt Marin & Cia. Ltda | O64: 161 | P64: 401 | Q64: SUPRIDA
L65: 84 | M65: OESTE | N65: CFLO - Companhia Força e Luz do Oeste | O65: 122 | P65: 84 | Q65: SUPRIDA
L66: 397 | M66: RGE | N66: RGE - Rio Grande Energia S/A. | O66: 162 | P66: 397 | Q66: NÃO SUPRIDA
L67: 381 | M67: SANTA MARIA | N67: SANTA MARIA - Empresa Luz e Força Santa Maria S/A. | O67: 149 | P67: 381 | Q67: SUPRIDA
L68: 46 | M68: SULGIPE | N68: SULGIPE - Companhia Sul Sergipana de Eletricidade | O68: 163 | P68: 46 | Q68: SUPRIDA
L69: 400 | M69: UHENPAL | N69: UHENPAL - Usina Hidroelétrica Nova Palma Ltda. | O69: 164 | P69: 400 | Q69: SUPRIDA
L70: 86 | M70: URUSSANGA | N70: URUSSANGA - Empresa Força e Luz Urussanga Ltda | O70: 144 | P70: 86 | Q70: SUPRIDA
L71: 1000040 | M71: ENERGISA Sul Sudeste | N71: ENERGISA SUL SUDESTE | O71: 165 | P71: 1000040 | Q71: NÃO SUPRIDA
L72: 1000041 | M72: NOVA SANTA CRUZ | N72: NOVA SANTA CRUZ | O72: 166 | P72: 1000041 | Q72: NÃO SUPRIDA
Q73: NÃO SUPRIDA
Q74: NÃO SUPRIDA

Sheet BD
B1: Banco de Dados | M1: Anexo II | N1: =Resultado!$D$6 -> 0.1497496184
B2: =CAPA!B6 -> CELTINS | M2: Anexo I | N2: =Resultado!$D$8 -> 0.1143793988
B5: Informações do ano anterior | G5: Dados de abertura (Neutralidade e CVA saldo a compensar) | L5: Dados de Energia | S5: Dados para Revisão
B7: Encargos | G7: Encargo | H7: Valor | I7: Norma | L7: Cotas | M7: Valor da "Cota" | N7: Ano | O7: Custo Médio da Cota | P7: Energia MWh | S7: item | T7: Descrição | U7: Detalhe | V7: Valor
B8: CDE Covid TE | C8: =D8 -> 10199333.76 | D8: =H18*H17 -> 10199333.76 | G8: CCC | L8: Angra | M8: 0.006366461341 | N8: 2022 | O8: 349.15 | P8: 85171.26858 | S8: 201 | T8: Financeiro de RTP | U8: Conselho de Consumidor | V8: 0.003
B9: CDE Covid TUSD | C9: =D9 -> 4188626.322 | D9: =H19*H17 -> 4188626.322 | G9: CDE | H9: 79267294.51 | I9: REH 3.034/2022 | S9: 202 | T9: Financeiro de RTP | U9: Conselho de Consumidor | V9: 0.238
B10: TFSEE | C10: 2850350.395 | G10: CFURH | S10: 203 | T10: Financeiro de RTP | U10: Conselho de Consumidor | V10: 0.759
B11: CDE | C11: 47595688.07 | G11: ESS/EER | H11: 51462609.32 | I11: DSP 1.051/2022 | L11: Ano | M11: Cota Itaipu
G12: PROINFA | H12: 31991303.25 | I12: ReH 2.995/2021
B13: ESS/ERR | C13: 24285449.84 | G13: ONS | H13: 65759.46429 | I13: Contribuição 2021
B14: PROINFA | C14: 20448695.86 | G14: TFSEE
B15: P&D | C15: 13764195.99 | G15: EER | H15: 50562087.24 | I15: DSP 1.051/2022
B16: ONS | C16: 0 | G16: TFSEE Fator de Carga | H16: 0.8468812857
G17: CDE Covid | H17: 14387960.08 | I17: Previsão-2022
B18: Pmix | C18: 213.0961677 | F18: =Encargos!H24 -> 0.7088797648 | G18: CDE Covid TE% | H18: =F18 -> 0.7088797648
B19: PN2021 | C19: 0.0371 | F19: =Encargos!H23 -> 0.2911202352 | G19: CDE Covid TUSD% | H19: =F19 -> 0.2911202352
B20: PN2022 | C20: 0.0371
B21: PT2020 | C21: 0.1149 | G21: Informações de Postergação
B22: Perda RB total | C22: 0.01552663349 | L22: Mês | M22: Potência | N22: Tarifa | O22: Perdas | P22: Energia
G23: Tipo | H23: Valor
B24: CVA RB | C24: 5443630.404 | G24: Data Postergada | H24: 44746
B25: CVA CCC | C25: 0 | G25: Data Anterior | H25: 44746
B26: CVA CDE | C26: 6283270.486 | G26: Diferença de Dias | H26: 0
B27: CVA CFURH | G27: MesesAdin | H27: 0
B28: CVA ESS\ERR | C28: 9794900.471 | G28: Reversão Subvenção CDE
B29: CVA PROINFA | C29: 2075119.511 | G29: Data 4CRT | H29: 42555
B30: CVA TRANS. ITAIPU | C30: 0
B31: CVA ENERGIA | C31: 29104868.44
B32: CVA CDE E | C32: -1420182.6
G35: Nome | H35: Valor
G36: TUSDg Export DRP | H36: 0 | L36: Mês | M36: Potência | N36: Tarifa DRA | O36: Tarifa DRP | P36: Colunas1
G37: TUSDg ONS DRP | H37: 203709.43 | I37: <- Previsão SGT
G38: TUSDg ONS DRA | H38: 275600.52
B39: Rede Básica | G39: TUSDg Export DRA | H39: 0
C40: 3111469.967
G42: Fator X | H42: Valor
G43: fatorx_t | H43: -0.00901791
B44: Mercado | G44: fatorx_pd | H44: 0.01269896
C45: 2497510.553
C46: 1481045101 | G46: DecFec Processo Anterior | H46: Valor
G47: DEC A-2
B48: 2022 | C48: 50962.58073 | G48: DEC A-1
B49: Detalhamento de Encargos ESS e CDE | G49: FEC A-2
G50: FEC A-1 | L50: Dado | M50: Valor | N50: Início | O50: Fim
L51: MUST | M51: 7919 | N51: 44378 | O51: 44742
G52: Dados de dólar | H52: Valor | L52: MUST | M52: 7919 | N52: 44743 | O52: 45107
B53: Ciclo de Revisão | C53: 4 | G53: Dólar médio | H53: 4.878175 | L53: Potência Max | M53: 10935 | N53: 44197 | O53: 44561
G54: Data Inicial | H54: 44701 | L54: Potência Max | M54: 10775 | N54: 44562 | O54: 44926
G55: Data Final | H55: 44729
G56: Último Dado Diponível | H56: 44734 | L56: Dados de perda | M56: Valor | O56: Agente | P56: Ressarcimento P&D
B57: Subsídios Concedidos (sem ajuste) | L57: Perdas RB | M57: 41942.2343
B58: Mês de Início | C58: Carga Fonte | D58: Geração | E58: Distribuição | F58: Água, Esgoto e Saneamento | G58: Rural | H58: Irrigante/Aquicultor | L58: Perdas DITs | M58: 0
B59: 2021-07-01 | C59: 3750606.824 | D59: 720655.4092 | E59: 0 | F59: 117244.5617 | G59: 1314306.581 | H59: 446233.5292
L62: Informações de DR1
L63: fator PB1 | M63: 1.029611419
L64: Informações de RI
B65: Data | C65: Tipo | D65: Valor | E65: Valor IGPM | F65: Valor IPCA | G65: EixoRef | O65: Atualizado em 08/06/2022 Sparta específica
B66: =DATE(YEAR(CAPA!C10),MONTH(CAPA!C10),1) -> 2022-07-01 | C66: =IF(CAPA!C7="Revisão",1,0) -> 0 | D66: =Resultado!L11 -> 761.7396429 | E66: =IFERROR(VLOOKUP(EDATE($B66,-1),Índices!$B$6:$F$500,2,FALSE)/VLOOKUP(EDATE(MIN($B$67:$B$81),-1),Índices!$B$6:$F$500,2,FALSE)*VLOOKUP(MIN($B$67:$B$81),$B$67:$D$81,3,FALSE),0) -> 1026.707436 | F66: =IFERROR(VLOOKUP(EDATE($B66,-1),Índices!$B$6:$F$500,3,FALSE)/VLOOKUP(EDATE(MIN($B$67:$B$81),-1),Índices!$B$6:$F$500,3,FALSE)*VLOOKUP(MIN($B$67:$B$81),$B$67:$D$81,3,FALSE),0) -> 778.1706904 | G66: =IF(B66<>"",150+1,"") -> 151 | L66: Tipo | M66: % RI | O66: Data | P66: Fat Bandeiras | Q66: Coluna1
B67: 2021-07-01 | C67: Reajuste | D67: 667.99 | L67: PctRIResidencial | M67: 0.0067 | O67: 44378 | P67: 13619633.05
B68: 2020-07-01 | C68: Revisão | D68: 647.35 | L68: PctRIIndustrial | M68: 0.0035 | O68: 44409 | P68: 15968416.43
B69: 2019-07-01 | C69: Reajuste | D69: 600.08 | L69: PctRICOMERCIAL | M69: 0.0046 | O69: 44440 | P69: 21421848.02
B70: 2018-07-01 | C70: Reajuste | D70: 605.3 | L70: PctRIRURAL | M70: 0.0039 | O70: 44470 | P70: 24486314.26
B71: 2017-07-01 | C71: Reajuste | D71: 549.22 | L71: PctRILUMPUBLICA | M71: 0 | O71: 44501 | P71: 22376096.08
B72: 2017-04-01 | C72: RTE | D72: 520.75 | L72: PctRIPODERPUBLICO | M72: 0.0002 | O72: 44531 | P72: 21117335.69
B73: 2016-07-01 | C73: Revisão | D73: 525.74 | L73: PctRISERVPUBLICO | M73: 0 | O73: 44562 | P73: 19278085.47
B74: 2015-07-01 | C74: Revisão | D74: 462.03 | O74: 44593 | P74: 18780911.71
B75: 2015-03-01 | C75: RTE | D75: 437.28 | L75: Tipo | M75: % RI Anterior | O75: 44621 | P75: 21102507.49
B76: 2014-07-01 | C76: Reajuste | D76: 420.8 | L76: PctRIResidencial | M76: 0.00522 | O76: 44652 | P76: 17680378.75
B77: 2013-07-01 | C77: Reajuste | D77: 378.75 | L77: PctRIIndustrial | M77: 0.00433 | O77: 44682
B78: 2013-01-01 | C78: RTE | D78: 344.23 | L78: PctRICOMERCIAL | M78: 0.00382 | O78: 44713
B79: 2012-07-01 | C79: Revisão | D79: 420.83 | L79: PctRIRURAL | M79: 0.00186
L80: PctRILUMPUBLICA | M80: 1e-05
L81: PctRIPODERPUBLICO | M81: 0.00072
L82: PctRISERVPUBLICO | M82: 0
B84: Tabela de Resumo de Montante DRP ano anterior/ Montante Apurado pelo Mercado
B85: detalhe_grupo | C85: GrupoTarifa | D85: tipoBase | E85: tipofatura | F85: ValorCTAnterior_Sum | G85: ValorAnt_Sum | L85: Prcesso Anterior | N85: RTE
L86: MWh | M86: R$ | N86: MWh | O86: R$ | S86: DthEfetivaPagamento | T86: VlrGarantiaFinanceira
I87: BILATERAL | K87: valor | L87: 200604 | M87: 62497724.3 | S87: 44348 | T87: 37020.52
I88: CCEAR-DISP | J88: Alternativa | K88: valor | L88: 9293.504726 | M88: 2677946.562 | S88: 44378 | T88: 40002.83
I89: CCEAR-DISP | J89: Existente | K89: valor | L89: 21392.812 | M89: 6286346.596 | S89: 44409 | T89: 40002.83
I90: CCEAR-DISP | J90: Nova | K90: valor | L90: 887951.5958 | M90: 239677794.2 | S90: 44440 | T90: 40002.83
I91: CCEAR-QTD | J91: Belo Monte | K91: valor | L91: 85040.941 | M91: 11931026.64 | S91: 44470 | T91: 40002.83
I92: CCEAR-QTD | J92: Alternativa | K92: valor | L92: 1934.75 | M92: 564207.3589 | S92: 44501 | T92: 40002.83
I93: CCEAR-QTD | J93: Madeira | K93: valor | L93: 82295.514 | M93: 13289735.74 | S93: 44531 | T93: 40002.83
I94: CCEAR-QTD | J94: Nova | K94: valor | L94: 291653.8029 | M94: 66691047.1 | S94: 44562 | T94: 40002.83
I95: CCEN | K95: valor | L95: 79977.21932 | M95: 19965513.03 | S95: 44593 | T95: 40002.83
I96: CCGF | K96: valor | L96: 630454.7066 | M96: 74715187.28 | S96: 44621 | T96: 40002.83
I97: PROINFA | K97: valor | L97: 52829.06067 | S97: 44652 | T97: 41437.94
I98: SOBRA/EXPOSIÇÃO | K98: valor | L98: 242811.586 | M98: 52821195.92 | S98: 44682 | T98: 41437.94
V105: Empresa | W105: AT | X105: MT | Y105: BT
V106: 167 | W106: 0.02134 | X106: 0.35825 | Y106: 0.62041
V107: 102 | W107: 0.064 | X107: 0.32003 | Y107: 0.61596
V108: 103 | W108: 0.02996 | X108: 0.27106 | Y108: 0.69898
V109: 104 | W109: 0.07171 | X109: 0.2909 | Y109: 0.63739
V110: 105 | W110: 0.00823 | X110: 0.24677 | Y110: 0.745
I111: Agente | J111: idagente | K111: indexador | L111: database | M111: RAP do ciclo | N111: Colunas1 | O111: RAP atualizada | V111: 165 | W111: 0.00795 | X111: 0.22554 | Y111: 0.76651
O112: =M112*VLOOKUP(CAPA!C15,Índices!$B$6:$F$626,IF(BD!K112="IPCA",3,2),FALSE)/VLOOKUP(L112,Índices!$B$6:$F$626,IF(BD!K112="IPCA",3,2),FALSE) ->  | V112: 108 | W112: 0.06098 | X112: 0.1711 | Y112: 0.76792
O113: =M113*VLOOKUP(CAPA!C16,Índices!$B$6:$F$626,IF(BD!K113="IPCA",3,2),FALSE)/VLOOKUP(L113,Índices!$B$6:$F$626,IF(BD!K113="IPCA",3,2),FALSE) ->  | V113: 109 | W113: 0.01034 | X113: 0.24366 | Y113: 0.746
O114: =M114*VLOOKUP(CAPA!C17,Índices!$B$6:$F$626,IF(BD!K114="IPCA",3,2),FALSE)/VLOOKUP(L114,Índices!$B$6:$F$626,IF(BD!K114="IPCA",3,2),FALSE) ->  | V114: 110 | W114: 0.01165 | X114: 0.24322 | Y114: 0.74513
O115: =M115*VLOOKUP(CAPA!C18,Índices!$B$6:$F$626,IF(BD!K115="IPCA",3,2),FALSE)/VLOOKUP(L115,Índices!$B$6:$F$626,IF(BD!K115="IPCA",3,2),FALSE) ->  | V115: 111 | W115: 0.03791 | X115: 0.37961 | Y115: 0.58248
O116: =M116*VLOOKUP(CAPA!C19,Índices!$B$6:$F$626,IF(BD!K116="IPCA",3,2),FALSE)/VLOOKUP(L116,Índices!$B$6:$F$626,IF(BD!K116="IPCA",3,2),FALSE) ->  | V116: 112 | W116: 0.02273 | X116: 0.26361 | Y116: 0.71367
O117: =M117*VLOOKUP(CAPA!C20,Índices!$B$6:$F$626,IF(BD!K117="IPCA",3,2),FALSE)/VLOOKUP(L117,Índices!$B$6:$F$626,IF(BD!K117="IPCA",3,2),FALSE) ->  | V117: 113 | W117: 0.01263 | X117: 0.23345 | Y117: 0.75392
O118: =M118*VLOOKUP(CAPA!C21,Índices!$B$6:$F$626,IF(BD!K118="IPCA",3,2),FALSE)/VLOOKUP(L118,Índices!$B$6:$F$626,IF(BD!K118="IPCA",3,2),FALSE) ->  | V118: 114 | W118: 0.01726 | X118: 0.23794 | Y118: 0.7448
O119: =M119*VLOOKUP(CAPA!C22,Índices!$B$6:$F$626,IF(BD!K119="IPCA",3,2),FALSE)/VLOOKUP(L119,Índices!$B$6:$F$626,IF(BD!K119="IPCA",3,2),FALSE) ->  | V119: 115 | W119: 0.00993 | X119: 0.23087 | Y119: 0.7592
O120: =M120*VLOOKUP(CAPA!C23,Índices!$B$6:$F$626,IF(BD!K120="IPCA",3,2),FALSE)/VLOOKUP(L120,Índices!$B$6:$F$626,IF(BD!K120="IPCA",3,2),FALSE) ->  | S120: iddet1 | T120: valor | V120: 116 | W120: 0.00806 | X120: 0.16835 | Y120: 0.82359
O121: =M121*VLOOKUP(CAPA!C24,Índices!$B$6:$F$626,IF(BD!K121="IPCA",3,2),FALSE)/VLOOKUP(L121,Índices!$B$6:$F$626,IF(BD!K121="IPCA",3,2),FALSE) ->  | S121: 56 | T121: 44722 | V121: 117 | W121: 0.03028 | X121: 0.29131 | Y121: 0.67841
O122: =M122*VLOOKUP(CAPA!C25,Índices!$B$6:$F$626,IF(BD!K122="IPCA",3,2),FALSE)/VLOOKUP(L122,Índices!$B$6:$F$626,IF(BD!K122="IPCA",3,2),FALSE) ->  | S122: 57 | T122: 44697 | V122: 118 | W122: 0.04215 | X122: 0.2081 | Y122: 0.74975
O123: =M123*VLOOKUP(CAPA!C26,Índices!$B$6:$F$626,IF(BD!K123="IPCA",3,2),FALSE)/VLOOKUP(L123,Índices!$B$6:$F$626,IF(BD!K123="IPCA",3,2),FALSE) ->  | S123: 58 | T123: 44652 | V123: 119 | W123: 0.01807 | X123: 0.11713 | Y123: 0.8648
O124: =M124*VLOOKUP(CAPA!C27,Índices!$B$6:$F$626,IF(BD!K124="IPCA",3,2),FALSE)/VLOOKUP(L124,Índices!$B$6:$F$626,IF(BD!K124="IPCA",3,2),FALSE) ->  | V124: 120 | W124: - | X124: 0.17688 | Y124: 0.82312
O125: =M125*VLOOKUP(CAPA!C28,Índices!$B$6:$F$626,IF(BD!K125="IPCA",3,2),FALSE)/VLOOKUP(L125,Índices!$B$6:$F$626,IF(BD!K125="IPCA",3,2),FALSE) ->  | V125: 123 | W125: - | X125: 0.13612 | Y125: 0.86388
O126: =M126*VLOOKUP(CAPA!C29,Índices!$B$6:$F$626,IF(BD!K126="IPCA",3,2),FALSE)/VLOOKUP(L126,Índices!$B$6:$F$626,IF(BD!K126="IPCA",3,2),FALSE) ->  | V126: 166 | W126: 0.04257 | X126: 0.29652 | Y126: 0.66092
O127: =M127*VLOOKUP(CAPA!C30,Índices!$B$6:$F$626,IF(BD!K127="IPCA",3,2),FALSE)/VLOOKUP(L127,Índices!$B$6:$F$626,IF(BD!K127="IPCA",3,2),FALSE) ->  | V127: 128 | W127: - | X127: 0.40427 | Y127: 0.59573
O128: =M128*VLOOKUP(CAPA!C31,Índices!$B$6:$F$626,IF(BD!K128="IPCA",3,2),FALSE)/VLOOKUP(L128,Índices!$B$6:$F$626,IF(BD!K128="IPCA",3,2),FALSE) ->  | V128: 129 | W128: 0.02905 | X128: 0.24895 | Y128: 0.722
O129: =M129*VLOOKUP(CAPA!C32,Índices!$B$6:$F$626,IF(BD!K129="IPCA",3,2),FALSE)/VLOOKUP(L129,Índices!$B$6:$F$626,IF(BD!K129="IPCA",3,2),FALSE) ->  | V129: 130 | W129: 0.0175 | X129: 0.14397 | Y129: 0.83853
O130: =M130*VLOOKUP(CAPA!C33,Índices!$B$6:$F$626,IF(BD!K130="IPCA",3,2),FALSE)/VLOOKUP(L130,Índices!$B$6:$F$626,IF(BD!K130="IPCA",3,2),FALSE) ->  | S130: Nível | T130: Mercado Faturado A-6 | V130: 131 | W130: - | X130: 0.30099 | Y130: 0.69901
O131: =M131*VLOOKUP(CAPA!C34,Índices!$B$6:$F$626,IF(BD!K131="IPCA",3,2),FALSE)/VLOOKUP(L131,Índices!$B$6:$F$626,IF(BD!K131="IPCA",3,2),FALSE) ->  | S131: AT | T131: 71208.916 | V131: 132 | W131: 0.02757 | X131: 0.26424 | Y131: 0.70819
O132: =M132*VLOOKUP(CAPA!C35,Índices!$B$6:$F$626,IF(BD!K132="IPCA",3,2),FALSE)/VLOOKUP(L132,Índices!$B$6:$F$626,IF(BD!K132="IPCA",3,2),FALSE) ->  | S132: MT | T132: 536987.346 | V132: 133 | W132: 0.01856 | X132: 0.19536 | Y132: 0.78608
S133: BT | T133: 1572653.647 | V133: 135 | W133: 0.04788 | X133: 0.27054 | Y133: 0.68158
V134: 136 | W134: 0.06732 | X134: 0.35547 | Y134: 0.57721
V135: 138 | W135: - | X135: 0.07651 | Y135: 0.92349
V136: 139 | W136: - | X136: 0.35483 | Y136: 0.64517
V137: 140 | W137: 0.01004 | X137: 0.21058 | Y137: 0.77938
V138: 143 | W138: - | X138: 0.20409 | Y138: 0.79591
V139: 144 | W139: - | X139: 0.48131 | Y139: 0.51869
A140: NumBar | B140: Nome Conexão | C140: Tensão | D140: Posto Tarifário | E140: Tarifas RB - DRA | F140: Tarifa RB - DRP | G140: Tarifas Fronteira - DRA | H140: Tarifa Fronteira - DRP | I140: M01 | J140: M02 | K140: M03 | L140: M04 | M140: M05 | N140: M06 | O140: M07 | P140: M08 | Q140: M09 | R140: M10 | S140: M11 | T140: M12 | V140: 145 | W140: 0.03725 | X140: 0.29306 | Y140: 0.66969
B141: MIRACEMA - 13,8 kV (A) | C141: 13,8 | D141: Ponta | E141: 5065.728 | F141: 5698 | G141: 2110.464 | H141: 2904 | I141: 0.21 | J141: 0.21 | K141: 0.21 | L141: 0.21 | M141: 0.21 | N141: 0.21 | O141: 0.21 | P141: 0.21 | Q141: 0.21 | R141: 0.21 | S141: 0.21 | T141: 0.21 | W141: - | X141: 0.14124 | Y141: 0.85876
B142: COLINAS138kVA | C142: 138 | D142: Ponta | E142: 0 | F142: 5742 | G142: 0 | H142: 1890 | I142: 31.70322581 | J142: 109.2 | K142: 109.2 | L142: 109.2 | M142: 109.2 | N142: 109.2 | O142: 105.56 | P142: 105.56 | Q142: 105.56 | R142: 105.56 | S142: 105.56 | T142: 105.56 | V142: 147 | W142: - | X142: 0.20977 | Y142: 0.79023
B143: MIRACEMA - 138 kV (A) | C143: 138 | D143: Ponta | E143: 5063.68 | F143: 5694 | G143: 2110.464 | H143: 2904 | I143: 99.847 | J143: 99.847 | K143: 99.847 | L143: 99.847 | M143: 99.847 | N143: 99.847 | O143: 101.01 | P143: 101.01 | Q143: 101.01 | R143: 101.01 | S143: 101.01 | T143: 101.01 | V143: 148 | W143: 0.03455 | X143: 0.23757 | Y143: 0.72788
B144: PALMAS138kVA | C144: 138 | D144: Ponta | E144: 5042.176 | F144: 5665 | G144: 1868.8 | H144: 2021 | I144: 142.2 | J144: 142.2 | K144: 142.2 | L144: 142.2 | M144: 142.2 | N144: 142.2 | O144: 148.5 | P144: 148.5 | Q144: 148.5 | R144: 148.5 | S144: 148.5 | T144: 148.5 | V144: 149 | W144: - | X144: 0.17399 | Y144: 0.82601
B145: PORTO FRANCO - 138 kV (A) | C145: 138 | D145: Ponta | E145: 6166.528 | F145: 6317 | G145: 1510.4 | H145: 1694 | I145: 92 | J145: 92 | K145: 92 | L145: 92 | M145: 92 | N145: 92 | O145: 94.64 | P145: 94.64 | Q145: 94.64 | R145: 94.64 | S145: 94.64 | T145: 94.64 | V145: 150 | W145: 0.03635 | X145: 0.17413 | Y145: 0.78952
B146: SANT. ARAGUAIA138kVA | C146: 138 | D146: Ponta | E146: 0 | F146: 7534 | G146: 0 | H146: 3917 | I146: 0 | J146: 0 | K146: 0 | L146: 0 | M146: 0 | N146: 0 | O146: 7.7 | P146: 7.7 | Q146: 7.7 | R146: 7.7 | S146: 7.7 | T146: 7.7 | V146: 151 | W146: 0.02735 | X146: 0.28351 | Y146: 0.68915
B147: PEIXE 2 - 500 kV (A) | C147: 500 | D147: Ponta | E147: 4957.184 | F147: 5561 | G147: 0 | H147: 0 | I147: 70 | J147: 70 | K147: 70 | L147: 70 | M147: 70 | N147: 70 | O147: 70 | P147: 70 | Q147: 70 | R147: 70 | S147: 70 | T147: 70 | V147: 152 | W147: 0.00215 | X147: 0.1412 | Y147: 0.85665
B148: IMPERATRIZ - 69 kV (A) | C148: 69 | D148: Ponta | E148: 5387.264 | F148: 6049 | G148: 842.752 | H148: 875 | I148: 23 | J148: 23 | K148: 23 | L148: 23 | M148: 23 | N148: 23 | O148: 23.4 | P148: 23.4 | Q148: 23.4 | R148: 23.4 | S148: 23.4 | T148: 23.4 | V148: 153 | W148: 0.03606 | X148: 0.17601 | Y148: 0.78793
B149: MIRACEMA - 13,8 kV (A) | C149: 13,8 | D149: Fora Ponta | E149: 4805.632 | F149: 5443 | G149: 2110.464 | H149: 2904 | I149: 0.23 | J149: 0.23 | K149: 0.23 | L149: 0.23 | M149: 0.23 | N149: 0.23 | O149: 0.23 | P149: 0.23 | Q149: 0.23 | R149: 0.23 | S149: 0.23 | T149: 0.23 | V149: 154 | W149: 0.12913 | X149: 0.26626 | Y149: 0.60462
B150: COLINAS138kVA | C150: 138 | D150: Fora Ponta | E150: 0 | F150: 5482 | G150: 0 | H150: 1890 | I150: 37.51548387 | J150: 129.22 | K150: 129.22 | L150: 129.22 | M150: 129.22 | N150: 129.22 | O150: 124.67 | P150: 124.67 | Q150: 124.67 | R150: 124.67 | S150: 124.67 | T150: 124.67 | V150: 155 | W150: 0.04008 | X150: 0.23225 | Y150: 0.72768
B151: MIRACEMA - 138 kV (A) | C151: 138 | D151: Fora Ponta | E151: 4801.536 | F151: 5438 | G151: 2110.464 | H151: 2904 | I151: 120 | J151: 120 | K151: 120 | L151: 120 | M151: 120 | N151: 120 | O151: 121.94 | P151: 121.94 | Q151: 121.94 | R151: 121.94 | S151: 121.94 | T151: 121.94 | V151: 156 | W151: - | X151: 0.35985 | Y151: 0.64015
B152: PALMAS138kVA | C152: 138 | D152: Fora Ponta | E152: 4784.128 | F152: 5443 | G152: 1868.8 | H152: 2021 | I152: 170 | J152: 170 | K152: 170 | L152: 170 | M152: 170 | N152: 170 | O152: 170 | P152: 170 | Q152: 170 | R152: 170 | S152: 170 | T152: 170 | V152: 157 | W152: - | X152: 0.15963 | Y152: 0.84037
B153: PORTO FRANCO - 138 kV (A) | C153: 138 | D153: Fora Ponta | E153: 6158.336 | F153: 6184 | G153: 1510.4 | H153: 1694 | I153: 102 | J153: 102 | K153: 102 | L153: 102 | M153: 102 | N153: 102 | O153: 106.47 | P153: 106.47 | Q153: 106.47 | R153: 106.47 | S153: 106.47 | T153: 106.47 | V153: 158 | W153: - | X153: 0.33049 | Y153: 0.66951
B154: SANT. ARAGUAIA138kVA | C154: 138 | D154: Fora Ponta | E154: 0 | F154: 7442 | G154: 0 | H154: 3917 | I154: 0 | J154: 0 | K154: 0 | L154: 0 | M154: 0 | N154: 0 | O154: 8 | P154: 8 | Q154: 8 | R154: 8 | S154: 8 | T154: 8 | V154: 160 | W154: 0.1013 | X154: 0.22818 | Y154: 0.67051
B155: PEIXE 2 - 500 kV (A) | C155: 500 | D155: Fora Ponta | E155: 4683.776 | F155: 5271 | G155: 0 | H155: 0 | I155: 85 | J155: 85 | K155: 85 | L155: 85 | M155: 85 | N155: 85 | O155: 85 | P155: 85 | Q155: 85 | R155: 85 | S155: 85 | T155: 85 | V155: 161 | W155: - | X155: 0.28355 | Y155: 0.71645
B156: IMPERATRIZ - 69 kV (A) | C156: 69 | D156: Fora Ponta | E156: 5169.152 | F156: 5832 | G156: 842.752 | H156: 875 | I156: 23.5 | J156: 23.5 | K156: 23.5 | L156: 23.5 | M156: 23.5 | N156: 23.5 | O156: 25.3 | P156: 25.3 | Q156: 25.3 | R156: 25.3 | S156: 25.3 | T156: 25.3 | V156: 163 | W156: 0.03507 | X156: 0.1664 | Y156: 0.79853
V157: 164 | W157: - | X157: 0.12897 | Y157: 0.87103
B441: Transmissora | C441: Indice de atualização | D441: ENCARGO DE CONEXÃO repassável | E441: Instalações com Estabelecimento de RAP que entraram em operação | F441: PA para repasse a tarifa | G441: PA Qualidade DIT | H441: ENCARGO DE CONEXÃO ou PA não rapassável a tarifa (REN 67/2004 ou 68/2004) | I441: PA Empreendimento Autorizado sem estabelecimento prévio de RAP | J441: Contrato | K441: Estimativa Total do Encargo de Conexão
B442: COLINAS | C442: IPCA | D442: 1905541.981 | E442: 0 | F442: 0 | G442: 0 | H442: 64456.8203 | I442: 0 | J442: 022/2018
B443: ELETRONORTE | C443: IPCA | D443: 869633.43 | E443: 0 | F443: 21814.57 | G443: 0 | H443: 0 | I443: 0 | J443: 058/2001
B444: ENERGISA PARÁ I | C444: IPCA | D444: 0 | E444: 0 | F444: 0 | G444: 0 | H444: 870948.4566 | I444: 0 | J444: 043/2017
B445: MIRACEMA | C445: IPCA | D445: 2500581.34 | E445: 0 | F445: 0 | G445: 0 | H445: 0 | I445: 0 | J445: 017/2016
B457: Tabela de Financeiros para o cálculo da Neutralidade | G457: Tabela de Financeiros para o cálculo da Neutralidade de RB | M457: Tabela de Financeiros para o cálculo da Neutralidade CVA processamento
B458: Grupo Tarifa | C458: Detalhe Grupo | D458: Valor | E458: Percentual | G458: Tipo | H458: Detalhe | I458: Posto | J458: Unidade | K458: Valor | M458: Grupo Tarifa | N458: Detalhe Grupo | O458: Valor | P458: Percentual
B459: ENCARGO | C459: CDE | D459: -6382613.742 | G459: CUSTO | H459: CONEXÃO D | J459: R$ | K459: 0 | M459: ENCARGO | N459: CDE | O459: 6219960.054
B460: ENCARGO | C460: CDE Energia | D460: -2254.503295 | G460: CUSTO | H460: CONEXÃO T | J460: R$ | K460: 3111469.967 | M460: ENCARGO | N460: CDE Energia | O460: -1446070.249
B461: ENCARGO | C461: ESS/ERR | D461: 23500708.76 | G461: CUSTO | H461: EUSD | J461: R$ | K461: 1908560.873 | M461: ENCARGO | N461: ESS/ERR | O461: 3286014.6
B462: ENCARGO | C462: PROINFA | D462: 595560.5655 | G462: CUSTO | H462: EUST - FR | J462: R$ | K462: 19124197.59 | M462: ENCARGO | N462: PROINFA | O462: 2328091.229
B463: ENCARGO | C463: TFSEE | D463: -108142.1498 | G463: CUSTO | H463: EUST - ITAIPU | J463: R$ | K463: 0 | M463: ENERGIA | N463: ENERGIA REQUERIDA SEM PERDAS | O463: 16199582.62
B464: ENERGIA | C464: ENERGIA REQUERIDA SEM PERDAS | D464: -58723551.22 | G464: CUSTO | H464: EUST - RB | J464: R$ | K464: 64647584.8 | M464: ENERGIA | N464: PERDAS NA RB (sobre as perdas na D) | O464: 46804.18017
B465: ENERGIA | C465: PERDAS NA RB (sobre as perdas na D) | D465: -169665.3387 | G465: CUSTO | H465: TRANSPORTE ITAIPU | J465: R$ | K465: 0 | M465: ENERGIA | N465: PERDAS NA RB (sobre o mercado cativo) | O465: 251524.982
B466: ENERGIA | C466: PERDAS NA RB (sobre o mercado cativo) | D466: -911779.0569 | G466: CUSTO | H466: TUSDg ONS (A2) | J466: R$ | K466: 275600.52 | M466: ENERGIA | N466: PERDAS NÃO TÉCNICAS | O466: 503033.0536
B467: ENERGIA | C467: PERDAS NÃO TÉCNICAS | D467: -1823496.813 | G467: CUSTO | H467: TUSDg T (A2) | J467: R$ | K467: 0 | M467: ENERGIA | N467: PERDAS TÉCNICAS | O467: 2511411.785
B468: ENERGIA | C468: PERDAS TÉCNICAS | D468: -9103877.675 | G468: PARÂMETRO | I468: FORA PONTA | J468: MW | K468: 6733.464 | M468: TRANSPORTE TERCEIROS | N468: EUST - RB | O468: 10934177.35
B469: ENERGIA | C469: reservado para energia | D469: -1035212.752 | G469: PARÂMETRO | I469: PONTA | J469: MW | K469: 5758.32
B470: Receita Irrecuperável | D470: -34871.47085 | G470: PARÂMETRO | H470: EUST - FR | I470: FORA PONTA | J470: R$ | K470: =L470*$K$462/$H$483 -> 10305553.65 | L470: 10314899.42
B471: TRANSPORTE TERCEIROS | C471: CONEXÃO T | D471: 502680.5678 | G471: PARÂMETRO | H471: EUST - FR | I471: PONTA | J471: R$ | K471: =L471*$K$462/$H$483 -> 8801316.535 | L471: 8809298.166
B472: TRANSPORTE TERCEIROS | C472: EUSD | D472: 985440.5006 | G472: PARÂMETRO | H472: EUST - RB | I472: FORA PONTA | J472: R$ | K472: 34207938.71
B473: TRANSPORTE TERCEIROS | C473: EUST - FR | D473: 869652.0138 | G473: PARÂMETRO | H473: EUST - RB | I473: PONTA | J473: R$ | K473: 30439646.09
B474: TRANSPORTE TERCEIROS | C474: EUST - RB | D474: -660550.6297
B475: TRANSPORTE TERCEIROS | C475: TUSDg ONS (A2) | D475: 16131.27565
B476: Parcela B | D476: -5856321.909
B477: Não se Aplica | C477: Créditos de Pis/Cofins | D477: -12981001.99
G479: Tabela CUSTOS_BE_FR_ONS_T
G480: Nome | H480: Valor
G481: BE_TUSDG_ONS | H481: 258257.4
G482: BE_TUSDG_T | H482: 0
G483: BE_TUSD_FR | H483: 19141540.71
G484: Evento | H484: 0
B552: Empresa | C552: idsgtag | D552: dtConv | E552: VlrMontante | F552: VlrTarOutros | G552: VlrTarB4a | H552: VlrTarB4b
B559: Grupo Tarifa | C559: Detalhe Grupo | D559: Det3 | E559: Valor | G559: Grupo Tarifa | H559: Detalhe Grupo | I559: Det3 | J559: Valor
B560: ENCARGO | C560: CDE | D560: Covid CVA Saldo a Compensar | E560: -5026184.833 | G560: ENCARGO | H560: CDE | I560: Covid CVA | J560: -177844.3645
B561: ENCARGO | C561: CDE | D561: Covid Neutralidade | E561: -402418.3882 | G561: ENCARGO | H561: ESS/ERR | I561: Covid CVA | J561: -6687431.181
B562: ENCARGO | C562: CDE Energia | D562: Covid Neutralidade | E562: -0.005335268425 | G562: ENCARGO | H562: PROINFA | I562: Covid CVA | J562: 215145.6212
B563: ENCARGO | C563: ESS/ERR | D563: Covid CVA Saldo a Compensar | E563: 23341893.85 | G563: ENERGIA | H563: ENERGIA REQUERIDA SEM PERDAS | I563: Covid CVA | J563: -8404373.54
B564: ENCARGO | C564: ESS/ERR | D564: Covid Neutralidade | E564: 61659.65707 | G564: ENERGIA | H564: PERDAS NA RB (sobre as perdas na D) | I564: Covid CVA | J564: -24282.09557
B565: ENCARGO | C565: PROINFA | D565: Covid CVA Saldo a Compensar | E565: 1041533.484 | G565: ENERGIA | H565: PERDAS NA RB (sobre o mercado cativo) | I565: Covid CVA | J565: -130491.6276
B566: ENCARGO | C566: PROINFA | D566: Covid Neutralidade | E566: -168250.8346 | G566: ENERGIA | H566: PERDAS NÃO TÉCNICAS | I566: Covid CVA | J566: -260974.4821
B567: ENCARGO | C567: TFSEE | D567: Covid Neutralidade | E567: -38234.97305 | G567: ENERGIA | H567: PERDAS TÉCNICAS | I567: Covid CVA | J567: -1302925.096
B568: ENERGIA | C568: ENERGIA REQUERIDA SEM PERDAS | D568: Covid CVA Saldo a Compensar | E568: -30059085.4 | G568: TRANSPORTE TERCEIROS | H568: EUST - RB | I568: Covid CVA | J568: 5391318.309
B569: ENERGIA | C569: ENERGIA REQUERIDA SEM PERDAS | D569: Covid Demais Componentes | E569: -3996696.203
B570: ENERGIA | C570: PERDAS NA RB (sobre as perdas na D) | D570: Covid CVA Saldo a Compensar | E570: -86847.35166
B571: ENERGIA | C571: PERDAS NA RB (sobre as perdas na D) | D571: Covid Demais Componentes | E571: -11547.34005
B572: ENERGIA | C572: PERDAS NA RB (sobre o mercado cativo) | D572: Covid CVA Saldo a Compensar | E572: -466716.4019
B573: ENERGIA | C573: PERDAS NA RB (sobre o mercado cativo) | D573: Covid Demais Componentes | E573: -62055.2371
B574: ENERGIA | C574: PERDAS NÃO TÉCNICAS | D574: Covid CVA Saldo a Compensar | E574: -933401.4257
B575: ENERGIA | C575: PERDAS NÃO TÉCNICAS | D575: Covid Demais Componentes | E575: -124106.3021
B576: ENERGIA | C576: PERDAS TÉCNICAS | D576: Covid CVA Saldo a Compensar | E576: -4660042.364
B577: ENERGIA | C577: PERDAS TÉCNICAS | D577: Covid Demais Componentes | E577: -619605.4663
B578: TRANSPORTE TERCEIROS | C578: EUST - RB | D578: Covid CVA Saldo a Compensar | E578: -3654544.366

Sheet Resultado
B1: =LnkTxtNomeCompleto -> CELTINS - Companhia de Energia Elétrica do Estado do Tocantins
B2: Resultado | F2: Parâmetros a serem considerados para os Reajustes subsequentes
B4: RA1 | D4: =D40+D45 -> 1699875086 | E4: 1675267997 | F4: FATOR X | H4: =D4-E4 -> 24607089.36 | K4: Última versão enviada: | L4: 19
B5: RA0 | D5: =Mercado!D24 -> 1478474147 | E5: 1478474147 | F5: Componente T do Fator X | G5: ='VPB e Fator X'!C36 ->  | H5: =D5-E5 -> 0 | K5: Data de envio | L5: 2022-06-24T15:26:10
B6: Índice de Reposição/Reajuste (Anexo II) | D6: =D4/D5-1 -> 0.1497496184 | E6: 0.1331060475 | F6: Componente Pd do Fator X | G6: ='VPB e Fator X'!C33 -> 0.01027451063 | H6: 0.01664357095
B7: Componentes Financeiros | D7: =Financeiros!E8 -> -0.03537021961 | E7: -0.03537021961 | H7: 0 | K7: Efeito Consumidor
B8: Índice de Reposição/Reajuste com Financeiros (Anexo I) | D8: =D6+D7 -> 0.1143793988 | E8: 0.09773582787 | F8: PERDAS | H8: 0.01664357095 | K8: Efeito Grupo A - Alta tensão | L8: 0.1584999656
F9: Perdas Não Técnicas | G9: =Entrada!G33 -> 0 | K9: Efeito Grupo B - Baixa tensão | L9: 0.145303122
C10: DRA | D10: DRP | E10: DRP | F10: Perdas Técnicas | G10: =Entrada!G34 -> 0 | K10: Efeito tarifário médio AT+BT | L10: 0.1477887476
B11: TOTAL (Parcela A + Parcela B) | C11: =C45+C40 -> 1478474147 | D11: =D45+D40 -> 1699875086 | E11: 1675267997 | H11: 24607089.36 | K11: Tarifa B1 - Residencial (R$) | L11: 761.7396429
B12: Financeiros | D12: =Financeiros!D8 -> -52293955.25 | E12: -52293955.25 | H12: 0
B13: Total com Financeirors | D13: =D11+D12 -> 1647581131 | E13: 1622974041 | H13: 24607089.36 | K13: Subvenção da CDE para descontos tarifários (Valores anuais)
K14: Subsídio Carga Fonte Incentivada | L14: 58106134.28
K15: Subsídio Geração Fonte Incentivada | L15: 8764946.44
B16: Parcela A | F16: Formação da Parcela B e Reposicionamento (Resumo) | K16: Subsídio Distribuição | L16: 0
K17: Subsídio Água, Esgoto e Saneamento | L17: 716665.4676
C18: Processo Anterior | D18: Processo Atual | E18: Processo Atual | K18: Subsídio Rural | L18: 7942060.553
B19: ENCARGOS | C19: =SUM(C20:C28) -> 122652883.5 | D19: =SUM(D20:D28) -> 161706810.7 | E19: 137262085.4 | F19: Custo de Administração, Operação e Manutenção (CAOM) | G19: =SUM(G20:G20) ->  | H19: 24444725.26 | K19: Subsídio Irrigante/Aquicultor | L19: 6648781.159
B20: Reserva Global de Reversão – RGR | D20: =Encargos!C16 -> 0 | E20: 0 | F20: Custos Operacionais (CO) | G20: ='VPB e Fator X'!C121+Encargos!C14 ->  | H20: 0
B21: Conta de Consumo de Combustíveis – CCC | D21: =Encargos!C9 -> 0 | E21: 0 | F21: Custo Anual dos Ativos (CAA) | G21: =SUM(G22:G24) ->  | H21: 0 | K21: Versão de Mercado
B22: Taxa de Fisc. de Serviços de E.E. – TFSEE | C22: ='Votos e NTs'!BM270 -> 2870335.22 | D22: =Encargos!C17 -> 3226043.2 | E22: 3226043.2 | F22: Remuneração do Capital (RC) | G22: ='VPB e Fator X'!C95 ->  | H22: 0 | K22: Status de Sincronização de BDL | L22: Sincronizado
B23: Conta de Desenvolvimento Energético – CDE | C23: ='Votos e NTs'!BM271+'Votos e NTs'!BM272+'Votos e NTs'!BM273 -> 61919280.24 | D23: =Encargos!C10 -> 59430254.59 | E23: 59430254.59 | F23: Quota de Reintegração Regulatória (QRR) | G23: ='VPB e Fator X'!C77 ->  | H23: 0 | K23: Última Sincronização | L23: 2022-06-10T15:27:40
B24: Compensação financeira - CFURH | C24: ='Votos e NTs'!BM274 -> 0 | D24: =Encargos!C11 -> 0 | E24: 0 | F24: Custo anual das instalações móveis e imóveis (CAIMI) | G24: ='VPB e Fator X'!C67 ->  | H24: 0
B25: Encargos Serv. Sist. - ESS e Energ. Reserv. - EER | C25: ='Votos e NTs'!BM275 -> 23690770.47 | D25: =Encargos!C12 -> 51462609.32 | E25: 27261518.61 | F25: Parcela B (VPB) | G25: =SUM(G21,G19) ->  | H25: 24201090.71
B26: PROINFA | C26: ='Votos e NTs'!BM276 -> 20509487.66 | D26: =Encargos!C13 -> 31991303.25 | E26: 31991303.25 | F26: Índice de Produtividade da Parcela B | G26: ='VPB e Fator X'!C33 -> 0.01027451063 | H26: 0
B27: P&D e Eficiência Energética | C27: ='Votos e NTs'!BM277 -> 13663009.9 | D27: =Encargos!C15 -> 15596600.32 | E27: 15352965.77 | F27: Mecanismo de Incentivo à Qualidade | G27: ='VPB1'!F42 -> -0.01092329757 | H27: 243634.5481
F28: Parcela B com ajustes | G28: =(1-G26-G27)*G25 ->  | H28: 0
B29: TRANSPORTE | C29: =SUM(C30:C37) -> 91427593.06 | D29: =SUM(D30:D37) -> 111797805.1 | E29: 111797805.1 | F29: Outras Receitas (OR) | G29: =UDEROR!C2 -> 17795361.12 | H29: 0
B30: Rede Básica | C30: ='Votos e NTs'!BM280 -> 66554311.33 | D30: ='RB e Conexão'!E6 -> 79525940.43 | E30: 79525940.43 | F30: Ultrapassagem de Demanda (UD) | G30: =UDEROR!C6+'VPB e Fator X'!D179 -> 5085828.668 | H30: 0
B31: Rede Básica Fronteira | C31: ='Votos e NTs'!BM281 -> 19485330.7 | D31: ='RB e Conexão'!E7 -> 25257876.25 | E31: 25257876.25 | F31: Excedente de Reativos (ER) | G31: =UDEROR!C7+'VPB e Fator X'!D180 -> 4290576.144 | H31: 0
B32: Rede Básica ONS (A2) | C32: ='Votos e NTs'!BM282 -> 227057.9803 | D32: =VLOOKUP("TUSDg ONS DRP",TUSDG[],2,FALSE) -> 203709.43 | E32: 203709.43 | F32: Parcela B deduzidas as outras receitas | G32: =G28-SUM(G29:G31) ->  | H32: 0
B33: Rede Básica Export. (A2) | C33: ='Votos e NTs'!BM283 -> 0 | D33: =VLOOKUP("TUSDg Export DRP",TUSDG[],2,FALSE) -> 0 | E33: 0 | H33: 0
B34: MUST Itaipu | C34: ='Votos e NTs'!BM284 -> 0 | D34: ='RB e Conexão'!E8 -> 0 | E34: 0 | F34: 1. Receita Requerida (RR) | G34: =G28+D40 ->  | H34: 0
B35: Transporte de Itaipu | C35: ='Votos e NTs'!BM285 -> 0 | D35: =SUMPRODUCT(itaiputransporte[Potência],itaiputransporte[Tarifa DRP]) -> 0 | E35: 0 | F35: 2. Outras Receitas (OR) | G35: =G29 -> 17795361.12 | H35: 0
B36: Conexão | C36: ='Votos e NTs'!BM286 -> 3201469.211 | D36: ='RB e Conexão'!E9 -> 5319985.345 | E36: 5319985.345 | F36: 3. Receita Verificada (RV) | G36: =Mercado!D24 -> 1478474147 | H36: 0
B37: Uso do sistema de distribuição e CCD | C37: ='Votos e NTs'!BM287 -> 1959423.843 | D37: =CUSD!D14+CUSD!E14 -> 1490293.621 | E37: 1490293.621 | H37: 0
B38: ENERGIA | C38: ='Votos e NTs'!BM288 -> 540196489.8 | D38: =Energia!D15 -> 611220082.4 | E38: 611220082.4 | H38: 0
B39: RECEITA IRRECUPERÁVEL | C39: ='Votos e NTs'!BM289 -> 8003965.282 | D39: =Mercado!H38 -> 12163325.52 | E39: 12000961.42 | H39: 162364.1005
B40: VPA (ENCARGO + TRANSPORTE + ENERGIA+RI) | C40: =C19+C29+C38+C39 -> 762280931.6 | D40: =D19+D29+D38+D39 -> 896888023.7 | E40: 872280934.4 | H40: 24607089.36
B42: Parcela B
D44: VPB1 | E44: VPB1
B45: ="Parcela B "&IF(CAPA!C7="Revisão","(menos Outras Receitas)",) -> Parcela B | C45: ='Votos e NTs'!BM290 -> 716193215 | D45: =IF(CAPA!$C$7="Revisão",Resultado!$G$32,'VPB1'!$C$43) -> 802987062.2 | E45: 802987062.2 | H45: 0

Sheet Entrada
B1: Entrada de parâmetros para cálculo tarifário
B4: Energia | D4: Últ. Atualização | F4: Parâmetros para Revisão | P4: ="Caso de OR para a empresa é: " &IF(BD!C53=4,"caso 1","caso 3") -> Caso de OR para a empresa é: caso 1
D6: 44690 | F6: CAPEX - Ativos de Distribuição | J6: Custo Operacional Real do(s) último(s) ano(s) | P6: Outras Receitas - Caso 1 e 2
B7: Montante de Geração Própria | D7: 44690 | F7: (1) Ativo Imobilizado em Serviço (Valor Novo de Reposição) | G7: =G71*VLOOKUP(DATE(YEAR(CAPA!$C$10),MONTH(CAPA!$C$10)-1,1),Índices!$B$135:$D$638,3,0)/VLOOKUP(DATE(YEAR($G$70),MONTH($G$70)-1,1),Índices!$B$135:$D$638,3,0) ->  | J7: Ano do Custo Operacional | P7: Tipo de Receita | Q7: =UDEROR!G12 -> 2022-06-01 | R7: =UDEROR!H12 -> 2022-05-01 | S7: =UDEROR!I12 -> 2022-04-01 | T7: =UDEROR!J12 -> 2022-03-01 | U7: =UDEROR!K12 -> 2022-02-01 | V7: =UDEROR!L12 -> 2022-01-01 | W7: =UDEROR!M12 -> 2021-12-01 | X7: =UDEROR!N12 -> 2021-11-01 | Y7: =UDEROR!O12 -> 2021-10-01 | Z7: =UDEROR!P12 -> 2021-09-01 | AA7: =UDEROR!Q12 -> 2021-08-01 | AB7: =UDEROR!R12 -> 2021-07-01 | AC7: =UDEROR!S12 -> 00:00:00 | AD7: =UDEROR!T12 -> 00:00:00 | AE7: =UDEROR!U12 -> 00:00:00 | AF7: =UDEROR!V12 -> 00:00:00 | AG7: =UDEROR!W12 -> 00:00:00 | AH7: =UDEROR!X12 -> 00:00:00 | AI7: =UDEROR!Y12 -> 00:00:00 | AJ7: =UDEROR!Z12 -> 00:00:00 | AK7: =UDEROR!AA12 -> 00:00:00 | AL7: =UDEROR!AB12 -> 00:00:00 | AM7: =UDEROR!AC12 -> 00:00:00 | AN7: =UDEROR!AD12 -> 00:00:00 | AO7: =UDEROR!AE12 -> 00:00:00 | AP7: =UDEROR!AF12 -> 00:00:00 | AQ7: =UDEROR!AG12 -> 00:00:00 | AR7: =UDEROR!AH12 -> 00:00:00 | AS7: =UDEROR!AI12 -> 00:00:00 | AT7: =UDEROR!AJ12 -> 00:00:00 | AU7: =UDEROR!AK12 -> 00:00:00 | AV7: =UDEROR!AL12 -> 00:00:00 | AW7: =UDEROR!AM12 -> 00:00:00 | AX7: =UDEROR!AN12 -> 00:00:00 | AY7: =UDEROR!AO12 -> 00:00:00 | AZ7: =UDEROR!AP12 -> 00:00:00 | BA7: =UDEROR!AQ12 -> 00:00:00 | BB7: =UDEROR!AR12 -> 00:00:00 | BC7: =UDEROR!AS12 -> 00:00:00 | BD7: =UDEROR!AT12 -> 00:00:00
B8: Custo médio da Geração Própria | D8: 44690 | F8: (2) Índice de Aproveitamento Integral | G8: =G72*VLOOKUP(DATE(YEAR(CAPA!$C$10),MONTH(CAPA!$C$10)-1,1),Índices!$B$135:$D$638,3,0)/VLOOKUP(DATE(YEAR($G$70),MONTH($G$70)-1,1),Índices!$B$135:$D$638,3,0) ->  | J8: CONTA PESSOAL | P8: Serviços Cobráveis | Q8: 115752.93 | R8: 115752.93 | S8: 115752.93 | T8: 125597.7 | U8: 122240.01 | V8: 133560.97 | W8: 142859.96 | X8: 120096.22 | Y8: 105990.85 | Z8: 133499.88 | AA8: 152652.4 | AB8: 161813.91
D9: 44690 | F9: (3) Obrigações Especiais Bruta | G9: =G73*VLOOKUP(DATE(YEAR(CAPA!$C$10),MONTH(CAPA!$C$10)-1,1),Índices!$B$135:$D$638,3,0)/VLOOKUP(DATE(YEAR($G$70),MONTH($G$70)-1,1),Índices!$B$135:$D$638,3,0) ->  | J9: BMP - 610530501; 610550501; 610532501; 610552501 | K9: Remuneração | P9: Arrecadação de convênios ou valores pela fatura | Q9: 521807.46 | R9: 521807.46 | S9: 521807.46 | T9: 591269.99 | U9: 467142.48 | V9: 523078.37 | W9: 544896.88 | X9: 507368.48 | Y9: 486460.34 | Z9: 506735.03 | AA9: 479319.9 | AB9: 459223.99
D10: 44690 | F10: (4) Bens Totalmente Depreciados | G10: =G74*VLOOKUP(DATE(YEAR(CAPA!$C$10),MONTH(CAPA!$C$10)-1,1),Índices!$B$135:$D$638,3,0)/VLOOKUP(DATE(YEAR($G$70),MONTH($G$70)-1,1),Índices!$B$135:$D$638,3,0) ->  | J10: BMP - 610530502; 610550502; 610532502; 610552502 | K10: Encargos | P10: Arrecadação de faturas de terceiros por estrutura própria
F11: (5) Base de Remuneração Bruta = (1)-(2)-(3)-(4) | G11: =G7-G8-G9-G10 ->  | J11: BMP - 610530503; 610550503; 610532503; 610552503 | K11: Previdência Privada - Corrente | P11: Veiculação de publicidade
F12: (6) Depreciação Acumulada | G12: =G76*VLOOKUP(DATE(YEAR(CAPA!$C$10),MONTH(CAPA!$C$10)-1,1),Índices!$B$135:$D$638,3,0)/VLOOKUP(DATE(YEAR($G$70),MONTH($G$70)-1,1),Índices!$B$135:$D$638,3,0) ->  | J12: BMP - 610530508; 610550508; 610532508; 610552508 | K12: Outros Benefícios | P12: Aluguel ou cessão onerosa de imóveis e espaços físicos
F13: (7) AIS Líquido (Valor de Mercado em Uso) | G13: =G7-G12 ->  | J13: BMP - 610530506; 610550506; 610532506; 610552506 | K13: Despesas Rescisórias | P13: Compartilhamento de infraestrutura | Q13: 1991657.7 | R13: 1991657.7 | S13: 1991657.7 | T13: 1949110.57 | U13: 1912276.67 | V13: 1610623.78 | W13: 1588385.46 | X13: 1524000.37 | Y13: 1714772.44 | Z13: 1579513.71 | AA13: 1262860.9 | AB13: 1328987.82
F14: (8) Índice de Aproveitamento Depreciado | G14: =G78*VLOOKUP(DATE(YEAR(CAPA!$C$10),MONTH(CAPA!$C$10)-1,1),Índices!$B$135:$D$638,3,0)/VLOOKUP(DATE(YEAR($G$70),MONTH($G$70)-1,1),Índices!$B$135:$D$638,3,0) ->  | J14: BMP - 610530507; 610550507; 610532507; 610552507 | K14: Participação nos Lucros e Resultados - PLR | P14: Serviços de avaliação técnica e aferição de medidores.
F15: (9) Valor da Base de Remuneração (VBR) | G15: =G13-G14 ->  | J15: BMP - 610530599; 610550599; 610532599; 610552599 | K15: Outros | P15: Operacionalização de serviço de créditos tributários
F16: (10) Almoxarifado em Operação | G16: =G80*VLOOKUP(DATE(YEAR(CAPA!$C$10),MONTH(CAPA!$C$10)-1,1),Índices!$B$135:$D$638,3,0)/VLOOKUP(DATE(YEAR($G$70),MONTH($G$70)-1,1),Índices!$B$135:$D$638,3,0) ->  | J16: BMP - 610530510; 610550510; 610532510; 610552510 | K16: (-) Créditos de Tributos Recuperáveis | P16: Elaboração de projeto, construção, operação, manutenção ou reforma de:
F17: (11) Ativo Diferido | G17: =G81*VLOOKUP(DATE(YEAR(CAPA!$C$10),MONTH(CAPA!$C$10)-1,1),Índices!$B$135:$D$638,3,0)/VLOOKUP(DATE(YEAR($G$70),MONTH($G$70)-1,1),Índices!$B$135:$D$638,3,0) ->  | J17: BMP - 6105306; 6105506; 6105326; 6105526 | K17: Administradores | P17: (1) redes de distribuição de energia elétrica destinadas à regularização fundiária de interesse específico e ao atendimento dos empreendimentos de múltiplas unidades consumidoras;
F18: (12) Obrigações Especiais Líquida | G18: =G82*VLOOKUP(DATE(YEAR(CAPA!$C$10),MONTH(CAPA!$C$10)-1,1),Índices!$B$135:$D$638,3,0)/VLOOKUP(DATE(YEAR($G$70),MONTH($G$70)-1,1),Índices!$B$135:$D$638,3,0) ->  | K18: Subtotal | L18: =SUM(L9:L17) -> 0 | M18: =SUM(M9:M17) -> 0 | P18: (2) redes de energia elétrica destinadas ao acesso dos sistemas de distribuição ou transmissão;
F19: (13) Terrenos e Servidões | G19: =G83*VLOOKUP(DATE(YEAR(CAPA!$C$10),MONTH(CAPA!$C$10)-1,1),Índices!$B$135:$D$638,3,0)/VLOOKUP(DATE(YEAR($G$70),MONTH($G$70)-1,1),Índices!$B$135:$D$638,3,0) ->  | J19: CONTA MATERIAIS | P19: (3) subestações de energia;
F20: (14) Base de Rem. Líquida Total = (1)-(6)-(8)+(10)+(11)-(12)+(13) | G20: =G15+G16+G17-G18+G19 ->  | J20: BMP - 610530701; 610550701; 610532701; 610552701 | K20: Materiais | P20: (4) instalações elétricas internas de unidades consumidoras;
F21: (15) Saldo RGR PLPT | G21: =G85*VLOOKUP(DATE(YEAR(CAPA!$C$10),MONTH(CAPA!$C$10)-1,1),Índices!$B$135:$D$638,3,0)/VLOOKUP(DATE(YEAR($G$70),MONTH($G$70)-1,1),Índices!$B$135:$D$638,3,0) ->  | J21: BMP - 610530799; 610550799; 610532799; 610552799 | K21: Outros | P21: (5) banco de capacitores:
F22: (16) Saldo RGR Demais Investimentos | G22: =G86*VLOOKUP(DATE(YEAR(CAPA!$C$10),MONTH(CAPA!$C$10)-1,1),Índices!$B$135:$D$638,3,0)/VLOOKUP(DATE(YEAR($G$70),MONTH($G$70)-1,1),Índices!$B$135:$D$638,3,0) ->  | J22: BMP - 610530710; 610550710; 610532710; 610552710 | K22: (-) Créditos de Tributos Recuperáveis | P22: (6) padrões de entrada de unidades consumidoras atendidas em baixa tensão;
F23: (17) Taxa de Depreciação | G23: =G87 -> 0 | K23: Subtotal | L23: =SUM(L20:L22) -> 0 | M23: =SUM(M20:M22) -> 0 | P23: (7) sistemas de medição de energia elétrica;
F24: (18) Quota de Reintegração Regulatória = (5) * (17) | G24: =G23*G11 ->  | J24: CONTA TERCEIROS | P24: (8) geradores, incluindo-se unidades de microgeração e minigeração distribuída;
J25: RIT - RP 800 - Célula F20 | K25: Manut. e Conserv. Bens e Instalações vinculadas ao Serviço Concedido | P25: (9) sistemas de iluminação pública.
F26: Gasto do Conselho de Consumidores | J26: RIT - RP 800 - Célula F21 | K26: Auditoria e Consultoria | P26: Eficientização do consumo de energia elétrica e instalação de cogeração qualificada, desde que não enquadráveis nos projetos de Pesquisa e Desenvolvimento (P&D) ou de Eficiência Energética estabelecidos em lei
F27: =Indexador!D132 -> Despesa 2021 | H27: 44690 | J27: RIT - RP 800 - Célula F22 | K27: Serviços Jurídicos | P27: Serviços de comunicação de dados
F28: =Indexador!E132 -> Despesa 2020 | H28: 44690 | J28: RIT - RP 800 - Célula F23 | K28: Serviços de Informática | P28: Serviços de consultoria
F29: =Indexador!F132 -> Despesa 2019 | H29: 44690 | J29: RIT - RP 800 - Célula F26 | K29: Viagens (Passagens Aéreas, etc) | P29: Receita proveniente da comercialização de resultados de projetos de P&D
F30: =Indexador!G132 -> Despesa 2018 | H30: 44690 | J30: RIT - RP 800 - Célula F27 | K30: Transportes (inclui Fretes)
F31: =Indexador!H132 -> Despesa 2017 | H31: 44690 | J31: RIT - RP 800 - Célula F28 | K31: Propaganda e Publicidade (exceto Publicações Oficiais) | P31: Outras Receitas - Caso 3
F32: Perdas Regulatórias | H32: 44287 | J32: RIT - RP 800 - Célula F29 | K32: Publicações Oficiais | P32: Alíquota ISS
F33: Perdas Não Técnicas | H33: 44318 | J33: RIT - RP 800 - Célula F30 | K33: Serviço de Engenharia e Supervisão de Obras
F34: Perdas Técnicas | H34: 44318 | J34: RIT - RP 800 - Célula F31 | K34: Gestão Comercial | P34: Tipo de Receita | Q34: =Q7 -> 2022-06-01 | R34: 2022-05-01 | S34: 2022-04-01 | T34: 2022-03-01 | U34: 2022-02-01 | V34: 2022-01-01 | W34: 2021-12-01 | X34: 2021-11-01 | Y34: 2021-10-01 | Z34: 2021-09-01 | AA34: 2021-08-01 | AB34: 2021-07-01
H35: 44287 | J35: RIT - RP 800 - Célula F32 | K35: Outros Serviços Terceirizados | P35: Serviços Cobráveis
F36: Dados da Revisão Anterior - Componente Pd | H36: 44287 | J36: RIT - RP 800 - Célula F33 | K36: (-) Créditos de Tributos Recuperáveis | P36: Encargos de Conexão
F37: Data Base Ativos e Consumidores | H37: 44287 | J37: RIT - RP 800 - Célula F34 | K37: Transferências da Administração Central | P37: Compartilhamento de Infraestrutura
F38: Mercado AT (MWh) | H38: 44287 | K38: Subtotal | L38: =SUM(L25:L37) -> 0 | M38: =SUM(M25:M37) -> 0 | P38: Sistemas de Comunicação (PLC)
F39: Mercado MT (MWh) | H39: 44287 | J39: CONTA SEGUROS | P39: Serviços de Consultoria
F40: Mercado BT (MWh) | H40: 44287 | J40: BMP - 610531001; 610551001; 610533001; 610553001 | K40: Seguros | P40: Serviços de O&M
F41: Número de unidades consumidoras | H41: 44287 | J41: BMP - 610531099; 610551099; 610533099; 610553099 | K41: Outros | P41: Serviços de Comunicação
H42: 44287 | J42: BMP - 610531010; 610551010; 610533010; 610553010 | K42: (-) Créditos de Tributos Recuperáveis | P42: Serviços de Engenharia
F43: OPEX | K43: Subtotal | L43: =SUM(L40:L42) -> 0 | M43: =SUM(M40:M42) -> 0 | P43: Convênios
F44: Extensão de redes subterrâneas (Km) | H44: 44309 | J44: CONTA TRIBUTOS
F45: Extensão de rede de distribuição aérea (Km) | H45: 44309 | J45: BMP - 6105316; 6105516; 6105336; 6105536 | K45: Tributos | Q45: =Q34 -> 2022-06-01 | R45: =R34 -> 2022-05-01 | S45: 2022-04-01 | T45: 2022-03-01 | U45: 2022-02-01 | V45: 2022-01-01 | W45: 2021-12-01 | X45: 2021-11-01 | Y45: 2021-10-01 | Z45: 2021-09-01 | AA45: 2021-08-01 | AB45: 2021-07-01
F46: Extensão de rede de alta tensão (Km) | H46: 44309 | K46: (+) Créditos de Tributos Recuperáveis | L46: =L45 -> 0 | M46: =M45 -> 0 | P46: Ultrapassagem de Demanda | Q46: 1002427.221 | R46: 1002427.221 | S46: 1002427.221 | T46: 930807.2432 | U46: 733910.5314 | V46: 597980.3873 | W46: 608619.0492 | X46: 842379.3241 | Y46: 916027.0488 | Z46: 1057719.979 | AA46: 907702.7397 | AB46: 653934.438 | AC46: =SUM(Q46:AB46) -> 10256362.4
F47: ="% PNT / BT Real de "&IF(MONTH(LnkTxtDRPData)>6,YEAR(LnkTxtDRPData)-1,YEAR(LnkTxtDRPData)-2) & " (Medido)" -> % PNT / BT Real de 2021 (Medido) | H47: 44319 | J47: CONTA OUTROS | P47: Excedente Reativo | Q47: 778814.9386 | R47: 778814.9386 | S47: 778814.9386 | T47: 774282.5468 | U47: 617483.0386 | V47: 789396.9227 | W47: 568982.3608 | X47: 681755.0659 | Y47: 663794.3712 | Z47: 719922.0214 | AA47: 792424.9903 | AB47: 694923.032 | AC47: =SUM(Q47:AB47) -> 8639409.165
F48: ="% PNT / BT Real de "&IF(MONTH(LnkTxtDRPData)>6,YEAR(LnkTxtDRPData)-1,YEAR(LnkTxtDRPData)-2)-1 & " (Medido)" -> % PNT / BT Real de 2020 (Medido) | H48: 44319 | J48: BMP - 610531901; 610551901; 610533901; 610553901 | K48: Indenização por Perdas e Danos
F49: ="% PNT / BT Real de "&IF(MONTH(LnkTxtDRPData)>6,YEAR(LnkTxtDRPData)-1,YEAR(LnkTxtDRPData)-2)-2 & " (Medido)" -> % PNT / BT Real de 2019 (Medido) | H49: 44319 | J49: BMP - 610531902; 610551902; 610533902; 610553902 | K49: Consumo Próprio de Energia
F50: ="DEC Apurado "&IF(MONTH(LnkTxtDRPData)>3,YEAR(LnkTxtDRPData)-1,YEAR(LnkTxtDRPData)-2) -> DEC Apurado 2021 | H50: 44319 | J50: BMP - 610531905 | K50: Despesas com Conselho de Consumidores | P50: UDER "Limbo"
F51: ="DEC Apurado "&IF(MONTH(LnkTxtDRPData)>3,YEAR(LnkTxtDRPData)-1,YEAR(LnkTxtDRPData)-2)-1 -> DEC Apurado 2020 | H51: 44319 | J51: BMP - 610531903; 610551903; 610533903; 610553903 | K51: Taxa de Arrecadação
F52: ="DEC Apurado "&IF(MONTH(LnkTxtDRPData)>3,YEAR(LnkTxtDRPData)-1,YEAR(LnkTxtDRPData)-2)-2 -> DEC Apurado 2019 | H52: 44319 | J52: BMP - 610531904; 610551904; 610533904; 610553904 | K52: Taxas Bancárias | P52: Preenchimento necessário apenas para cálculos de concessionárias que passaram por alteração contratual, conforme parágrafo 38 do Proret 2.1A.
F53: Meta de % PNT / BT (Medido) | H53: 44319 | J53: BMP - 610531910; 610551910; 610533910; 610553910 | K53: (-) Créditos de Tributos Recuperáveis | P53: Mês correspondente à Data de Referência de Alteração Contratual - DRAC
F54: DEC 8 anos (Limite V8) | H54: 44319 | K54: Subtotal | L54: =SUM(L48:L53) -> 0 | M54: =SUM(M48:M53) -> 0 | P54: Sexto mês anterior à data da última RTP
J55: Demais
K56: Condenações Trabalhistas | P56: Preenchimento necessário apenas para cálculos de concessionárias que passaram por alteração contratual, conforme parágrafo 38 do Proret 2.1A.
F57: Dados da última Revisão Tarifária | K57: Gastos com CCEE | Q57: =Q53 -> 00:00:00 | R57: =DATE(YEAR(Q57),MONTH(Q57)-1,1) ->  | X57: =DATE(YEAR(W57),MONTH(W57)-1,1) ->  | Y57: =DATE(YEAR(X57),MONTH(X57)-1,1) ->  | Z57: =DATE(YEAR(Y57),MONTH(Y57)-1,1) ->  | AA57: =DATE(YEAR(Z57),MONTH(Z57)-1,1) ->  | AB57: =DATE(YEAR(AA57),MONTH(AA57)-1,1) ->  | AC57: =DATE(YEAR(AB57),MONTH(AB57)-1,1) ->  | AD57: =DATE(YEAR(AC57),MONTH(AC57)-1,1) ->  | AE57: =DATE(YEAR(AD57),MONTH(AD57)-1,1) ->  | AF57: =DATE(YEAR(AE57),MONTH(AE57)-1,1) ->  | AG57: =DATE(YEAR(AF57),MONTH(AF57)-1,1) ->  | AH57: =DATE(YEAR(AG57),MONTH(AG57)-1,1) ->  | AI57: =DATE(YEAR(AH57),MONTH(AH57)-1,1) -> 
F58: Custos Operacionais (CO3) | J58: BMP - 611511401 | K58: Perdas na Alienação e Desativação | P58: Ultrapassagem de Demanda (valores brutos)
F59: Receitas Irrecuperáveis - Encargos Setoriais (Vi) | J59: BMP - 611112103 | K59: Ganhos na Alienação de Materiais | P59: Excedente Reativo (valores brutos)
F60: Demais Receitas Irrecuperáveis (Vse)
F61: Remuneração do Capital (RC)
F62: Quota de Reintegração Regulatória (QRR)
F63: Custo anual das instalações móveis e imóveis (CAIMI)
F64: Ajuste em função dos investimentos realizados (valor negativo)
F65: Índice de Produtividade + Mecanismo de Qualidade
F66: Outras Receitas (OR) (inserir o valor positivo)
F67: Componente T - Última Revisão
F70: Base de Ativios - SFF
F71: (1) Ativo Imobilizado em Serviço (Valor Novo de Reposição)
F72: (2) Índice de Aproveitamento Integral
F73: (3) Obrigações Especiais Bruta
F74: (4) Bens Totalmente Depreciados
F75: (5) Base de Remuneração Bruta = (1)-(2)-(3)-(4) | G75: =G71-G72-G73-G74 -> 0
F76: (6) Depreciação Acumulada
F77: (7) AIS Líquido (Valor de Mercado em Uso) | G77: =G71-G76 -> 0
F78: (8) Índice de Aproveitamento Depreciado
F79: (9) Valor da Base de Remuneração (VBR) | G79: =G77-G78 -> 0
F80: (10) Almoxarifado em Operação
F81: (11) Ativo Diferido | G81: =G102*I81 -> 0
F82: (12) Obrigações Especiais Líquida
F83: (13) Terrenos e Servidões
F84: (14) Base de Rem. Líquida Total = (9)+(10)+(11)-(12)+(13) | G84: =G79+G80+G81-G82+G83 -> 0
F85: (15) Saldo RGR PLPT | G85: 0
F86: (16) Saldo RGR Demais Investimentos
F87: (17) Taxa de Depreciação
F88: (18) Quota de Reintegração Regulatória = (5) * (17) | G88: =G87*G75 -> 0
F91: Base de Ativios - Ciclo anterior
F92: (1) Ativo Imobilizado em Serviço (Valor Novo de Reposição)
F93: (2) Índice de Aproveitamento Integral
F94: (3) Obrigações Especiais Bruta
F95: (4) Bens Totalmente Depreciados
F96: (5) Base de Remuneração Bruta = (1)-(2)-(3)-(4)
F97: (6) Depreciação Acumulada
F98: (7) AIS Líquido (Valor de Mercado em Uso)
F99: (8) Índice de Aproveitamento Depreciado
F100: (9) Valor da Base de Remuneração (VBR)
F101: (10) Almoxarifado em Operação
F102: (11) Ativo Diferido
F103: (12) Obrigações Especiais Líquida
F104: (13) Terrenos e Servidões
F105: (14) Base de Rem. Líquida Total = (1)-(6)-(8)+(10)+(11)-(12)+(13)
F106: (15) Saldo RGR PLPT
F107: (16) Saldo RGR Demais Investimentos
F109: (17) Taxa de Depreciação
F110: (18) Quota de Reintegração Regulatória = (5) * (17)
F111: Base de Anuidade Regulatória (BAR)
F113: Dados do último Reajuste Anual - Contrato Novo
F114: Parcela B sem desconto UDEROR | G114: =SUM(G115:G118) -> 0
F115: Outras Receitas (OR)
F116: Excedente de Reativos (ER)
F117: Ultrapassagem de Demanda (UD)
F118: Parcela B
F119: Fator PB | G119: =G114/G118 -> 
F121: Dados do último Ciclo - Contrato Novo
F122: Número de processos até o primeiro reajuste contrato novo
F123: Número de processos no contrato novo antes da atual revisão
F125: Participação dos componentes da Parcela B no Ano Teste
F126: Descrição | G126: Valor
F127: Custos Operacionais | G127: =(G58*(1-G65)-(SUM(G58:G63)*(1-G65)-G66)*(1-(1-G67)^G122)-((SUM(G58:G63)*(1-G65)-G66)*(1-G67)^G122+G66-SUM(G59:G60)*(1-G65))*(1-(1-G67)^G123))/((((SUM(G58:G63)*(1-G65)-G66)*(1-G67)^G122)+G66-SUM(G59:G60)*(1-G65))*(1-G67)^G123) -> 
F128: Anuidades | G128: =(G63*(1-G65)/((((SUM(G58:G63)*(1-G65)-G66)*(1-G67)^G122)+G66-SUM(G59:G60)*(1-G65))*(1-G67)^G123)) -> 
F129: Remuneração | G129: =(G61*(1-G65)/((((SUM(G58:G63)*(1-G65)-G66)*(1-G67)^G122)+G66-SUM(G59:G60)*(1-G65))*(1-G67)^G123)) -> 
F130: Depreciação | G130: =(G62*(1-G65)/((((SUM(G58:G63)*(1-G65)-G66)*(1-G67)^G122)+G66-SUM(G59:G60)*(1-G65))*(1-G67)^G123)) -> 

Sheet Votos e NTs
B2: Tabelas | D2: Gráficos
B4: Consumidores | D4: Análise de Impacto da RTA na Tarfia | K4: Composição da Receita | P4: Composição da Receita com Tributos | U4: Composição da Receita com detalhamento de Encargos | Z4: Evolução da Tarifa B1 Residencial
B5: Mercado
B6: Encargos
B7: Custo do Transporte de Energia
B8: Perdas
B9: Energia Requerida
B10: Energia na DRA
B11: Contratos
B12: Fator X
B13: Parcela B
B14: CVA em Processamento
B15: Financeiros
B16: Subsídios
B17: Efeito Médio AT + BT
B18: Avaliação RTA
B19: Variação do Custo de Energia
B20: Dados dos Gráficos
E23: Impacto da RTA na Tarifa | K23: Composição da Receita | P23: Composição da Receita com Tributos | U23: Composição da Receita com detalhamento de Encargos | Z23: Data | AA23: Tipo | AC23: B1 - Residencial | AD23: IGPM | AE23: IPCA | AF23: Data
E24: Encargos Setoriais | H24: =IF(CAPA!C7="Reajuste",BP269,'NT Revisao'!AT195) -> 0.02641502206 | K24: Custo de Distribuição | M24: =Resultado!D45 -> 802987062.2 | P24: Custo de Distribuição | R24: =M24/$R$32 -> 0.3489497555 | U24: Custo de Distribuição | W24: =Resultado!D45 -> 802987062.2 | Z24: =YEAR(BD!B79) -> 2012 | AA24: =(BD!C79) -> Revisão | AB24: =CONCATENATE(AA24," ",Z24) -> Revisão 2012 | AC24: =BD!D79 -> 420.83 | AD24: =AC24 -> 420.83 | AE24: =AD24 -> 420.83 | AF24: =DATE(YEAR(BD!B79),MONTH(BD!B79)-1,1) -> 2012-06-01
E25: Custo de Transporte | H25: =IF(CAPA!C7="Reajuste",BP279,'NT Revisao'!AT205) -> 0.01377786149 | K25: Custo de Energia | M25: =Resultado!D38 -> 611220082.4 | P25: Custo de Energia | R25: =M25/$R$32 -> 0.2656146137 | U25: Custo de Energia | W25: =Resultado!D38 -> 611220082.4 | Z25: =YEAR(BD!B78) -> 2013 | AA25: =(BD!C78) -> RTE | AB25: RTE 2013 | AC25: =BD!D78 -> 344.23 | AD25: =AD24*VLOOKUP(AF25,Índices!$B$135:$F$627,2,0)/VLOOKUP(AF24,Índices!$B$135:$F$627,2,0) -> 439.711 | AE25: =AE24*VLOOKUP(AF25,Índices!$B$135:$F$627,3,0)/VLOOKUP(AF24,Índices!$B$135:$F$627,3,0) -> 435.2986292 | AF25: =DATE(YEAR(BD!B78),MONTH(BD!B78)-1,1) -> 2012-12-01
E26: Custo de Energia | H26: =IF(CAPA!C7="Reajuste",BP288,'NT Revisao'!AT214) -> 0.04803844074 | K26: Custo de Transporte | M26: =Resultado!D29 -> 111797805.1 | P26: Custo de Transmissão | R26: =M26/$R$32 -> 0.048583369 | U26: Custo de Transmissão | W26: =Resultado!D29 -> 111797805.1 | Z26: =YEAR(BD!B77) -> 2013 | AA26: =(BD!C77) -> Reajuste | AB26: Reajuste 2013 | AC26: =BD!D77 -> 378.75 | AD26: =AD25*VLOOKUP(AF26,Índices!$B$135:$F$627,2,0)/VLOOKUP(AF25,Índices!$B$135:$F$627,2,0) -> 447.3814601 | AE26: =AE25*VLOOKUP(AF26,Índices!$B$135:$F$627,3,0)/VLOOKUP(AF25,Índices!$B$135:$F$627,3,0) -> 449.0084226 | AF26: =DATE(YEAR(BD!B77),MONTH(BD!B77)-1,1) -> 2013-06-01
E27: Receitas Irrecuperáveis | H27: =IF(CAPA!C7="Reajuste",BP289,'NT Revisao'!AT215) -> 0.002813278979 | K27: Encargos Setoriais | M27: =Resultado!D19 -> 161706810.7 | P27: Encargos Setoriais | R27: =M27/$R$32 -> 0.0702720563 | U27: Receitas Irrecuperáveis | W27: =Resultado!D39 -> 12163325.52 | Z27: =YEAR(BD!B76) -> 2014 | AA27: =(BD!C76) -> Reajuste | AB27: Reajuste 2014 | AC27: =BD!D76 -> 420.8 | AD27: =AD26*VLOOKUP(AF27,Índices!$B$135:$F$627,2,0)/VLOOKUP(AF26,Índices!$B$135:$F$627,2,0) -> 475.3031069 | AE27: =AE26*VLOOKUP(AF27,Índices!$B$135:$F$627,3,0)/VLOOKUP(AF26,Índices!$B$135:$F$627,3,0) -> 478.2985154 | AF27: =DATE(YEAR(BD!B76),MONTH(BD!B76)-1,1) -> 2014-06-01
E28: Distribuição | H28: =IF(CAPA!C7="Reajuste",BP290,'NT Revisao'!AT216) -> 0.05870501516 | K28: Receitas Irrecuperáveis | M28: =Resultado!D39 -> 12163325.52 | P28: Receitas Irrecuperáveis | R28: =M28/R32 -> 0.005285750749 | U28: PROINFA | W28: =Resultado!D26 -> 31991303.25 | Z28: =YEAR(BD!B75) -> 2015 | AA28: =(BD!C75) -> RTE | AB28: RTE 2015 | AC28: =BD!D75 -> 437.28 | AD28: =AD27*VLOOKUP(AF28,Índices!$B$135:$F$627,2,0)/VLOOKUP(AF27,Índices!$B$135:$F$627,2,0) -> 486.0319271 | AE28: =AE27*VLOOKUP(AF28,Índices!$B$135:$F$627,3,0)/VLOOKUP(AF27,Índices!$B$135:$F$627,3,0) -> 502.7093428 | AF28: =DATE(YEAR(BD!B75),MONTH(BD!B75)-1,1) -> 2015-02-01
E29: Componentes Financeiros | H29: =IF(CAPA!C7="Reajuste",BP293,'NT Revisao'!AT225) -> -0.03537021961 | P29: ICMS | R29: =Mercado!G9 -> 0.2286357361 | U29: CDE | W29: =Resultado!D23 -> 59430254.59 | Z29: =YEAR(BD!B74) -> 2015 | AA29: =(BD!C74) -> Revisão | AB29: Revisão 2015 | AC29: =BD!D74 -> 462.03 | AD29: =AD28*VLOOKUP(AF29,Índices!$B$135:$F$627,2,0)/VLOOKUP(AF28,Índices!$B$135:$F$627,2,0) -> 501.8855901 | AE29: =AE28*VLOOKUP(AF29,Índices!$B$135:$F$627,3,0)/VLOOKUP(AF28,Índices!$B$135:$F$627,3,0) -> 520.8404419 | AF29: =DATE(YEAR(BD!B74),MONTH(BD!B74)-1,1) -> 2015-06-01
E30: Retirada dos Financeiros Anteriores | H30: =IF(CAPA!C7="Reajuste",BP345,'NT Revisao'!AT277) -> 0.03340934879 | P30: PIS/COFINS | R30: =Mercado!$G$10 -> 0.03265871872 | U30: ESS/EER | W30: =Resultado!D25 -> 51462609.32 | Z30: =YEAR(BD!B73) -> 2016 | AA30: =(BD!C73) -> Revisão | AB30: Revisão 2016 | AC30: =BD!D73 -> 525.74 | AD30: =AD29*VLOOKUP(AF30,Índices!$B$135:$F$627,2,0)/VLOOKUP(AF29,Índices!$B$135:$F$627,2,0) -> 563.1518929 | AE30: =AE29*VLOOKUP(AF30,Índices!$B$135:$F$627,3,0)/VLOOKUP(AF29,Índices!$B$135:$F$627,3,0) -> 566.9022545 | AF30: =DATE(YEAR(BD!B73),MONTH(BD!B73)-1,1) -> 2016-06-01
E31: Efeito Médio Consumidor | H31: =BP346 -> 0.1477887476 | P31: Tributos por dentro | R31: =LnkTxtPisCofins+LnkTxtICMS -> 0.2612944548 | U31: Outros | W31: =Resultado!D27+Resultado!D28+Resultado!D24+Resultado!D22 -> 18822643.52 | Z31: =YEAR(BD!B72) -> 2017 | AA31: =(BD!C72) -> RTE | AB31: RTE 2017 | AC31: =BD!D72 -> 520.75 | AD31: =AD30*VLOOKUP(AF31,Índices!$B$135:$F$627,2,0)/VLOOKUP(AF30,Índices!$B$135:$F$627,2,0) -> 574.097013 | AE31: =AE30*VLOOKUP(AF31,Índices!$B$135:$F$627,3,0)/VLOOKUP(AF30,Índices!$B$135:$F$627,3,0) -> 582.6227209 | AF31: =DATE(YEAR(BD!B72),MONTH(BD!B72)-1,1) -> 2017-03-01
P32: Receita com Tributos | R32: =SUM(W24:W31)/(1-R29-R30) -> 2301153818 | Z32: =YEAR(BD!B71) -> 2017 | AA32: =(BD!C71) -> Reajuste | AB32: Reajuste 2017 | AC32: =BD!D71 -> 549.22 | AD32: =AD31*VLOOKUP(AF32,Índices!$B$135:$F$627,2,0)/VLOOKUP(AF31,Índices!$B$135:$F$627,2,0) -> 558.7681573 | AE32: =AE31*VLOOKUP(AF32,Índices!$B$135:$F$627,3,0)/VLOOKUP(AF31,Índices!$B$135:$F$627,3,0) -> 583.9011417 | AF32: =DATE(YEAR(BD!B71),MONTH(BD!B71)-1,1) -> 2017-06-01
P33: Tributos Totais por Fora | R33: =(R29+R30)/(1-R29-R30) -> 0.3537193629 | Z33: =YEAR(BD!B70) -> 2018 | AA33: =(BD!C70) -> Reajuste | AB33: Reajuste 2018 | AC33: =BD!D70 -> 605.3 | AD33: =AD32*VLOOKUP(AF33,Índices!$B$135:$F$627,2,0)/VLOOKUP(AF32,Índices!$B$135:$F$627,2,0) -> 597.4418916 | AE33: =AE32*VLOOKUP(AF33,Índices!$B$135:$F$627,3,0)/VLOOKUP(AF32,Índices!$B$135:$F$627,3,0) -> 609.5408479 | AF33: =DATE(YEAR(BD!B70),MONTH(BD!B70)-1,1) -> 2018-06-01
Z34: =YEAR(BD!B69) -> 2019 | AA34: =(BD!C69) -> Reajuste | AB34: Reajuste 2019 | AC34: =BD!D69 -> 600.08 | AD34: =AD33*VLOOKUP(AF34,Índices!$B$135:$F$627,2,0)/VLOOKUP(AF33,Índices!$B$135:$F$627,2,0) -> 636.3362345 | AE34: =AE33*VLOOKUP(AF34,Índices!$B$135:$F$627,3,0)/VLOOKUP(AF33,Índices!$B$135:$F$627,3,0) -> 630.0596212 | AF34: =DATE(YEAR(BD!B69),MONTH(BD!B69)-1,1) -> 2019-06-01
Z35: =YEAR(BD!B68) -> 2020 | AA35: =(BD!C68) -> Revisão | AB35: Revisão 2020 | AC35: =BD!D68 -> 647.35 | AD35: =AD34*VLOOKUP(AF35,Índices!$B$135:$F$627,2,0)/VLOOKUP(AF34,Índices!$B$135:$F$627,2,0) -> 682.8777702 | AE35: =AE34*VLOOKUP(AF35,Índices!$B$135:$F$627,3,0)/VLOOKUP(AF34,Índices!$B$135:$F$627,3,0) -> 643.4951221 | AF35: =DATE(YEAR(BD!B68),MONTH(BD!B68)-1,1) -> 2020-06-01
Z36: =YEAR(BD!B67) -> 2021 | AA36: =(BD!C67) -> Reajuste | AB36: Reajuste 2021 | AC36: =BD!D67 -> 667.99 | AD36: =AD35*VLOOKUP(AF36,Índices!$B$135:$F$627,2,0)/VLOOKUP(AF35,Índices!$B$135:$F$627,2,0) -> 927.0157357 | AE36: =AE35*VLOOKUP(AF36,Índices!$B$135:$F$627,3,0)/VLOOKUP(AF35,Índices!$B$135:$F$627,3,0) -> 697.2081257 | AF36: =DATE(YEAR(BD!B67),MONTH(BD!B67)-1,1) -> 2021-06-01
Z37: =YEAR(BD!B66) -> 2022 | AA37: =(BD!C66) -> 0 | AB37: =CONCATENATE(IF(AA37=1,"Revisão","Reajuste")," ",Z37) -> Reajuste 2022 | AC37: =BD!D66 -> 761.7396429 | AD37: =AD36*VLOOKUP(AF37,Índices!$B$135:$F$627,2,0)/VLOOKUP(AF36,Índices!$B$135:$F$627,2,0) -> 1026.707436 | AE37: =AE36*VLOOKUP(AF37,Índices!$B$135:$F$627,3,0)/VLOOKUP(AF36,Índices!$B$135:$F$627,3,0) -> 778.1706904 | AF37: =DATE(YEAR(BD!B66),MONTH(BD!B66)-1,1) -> 2022-06-01
AC38: =AC37/AC24-1 -> 0.8100887364 | AD38: =AD37/AD24-1 -> 1.439720163 | AE38: 0.8491331187
B40: TabCons | E40: Voltar
B41: Classe de Consumo | C41: Nº de Unidades Consumidoras* | D41: Consumo de Energia (MWh) | E41: Participação no Consumo (%)
B42: Residencial | C42: =Mercado!E30 -> 546267 | D42: =Mercado!F30 -> 91958.527 | E42: =D42/$D$50 -> 0.4365317359
B43: Industrial | C43: =Mercado!E31 -> 1562 | D43: =Mercado!F31 -> 42681.109 | E43: 0.2026093633
B44: Comercial | C44: =Mercado!E32 -> 34119 | D44: =Mercado!F32 -> 31763.398 | E44: 0.150782442
B45: Rural | C45: =Mercado!E33 -> 46440 | D45: =Mercado!F33 -> 17026.635 | E45: 0.08082628958
B46: Iluminação Pública | C46: =Mercado!E34 -> 1261 | D46: =Mercado!F34 -> 9112.293 | E46: 0.0432565115
B47: Poder Público | C47: =Mercado!E35 -> 6949 | D47: =Mercado!F35 -> 13712.462 | E47: 0.06509374427
B48: Serviço Público | C48: =Mercado!E36 -> 1091 | D48: =Mercado!F36 -> 2787.397 | E48: 0.01323191324
B49: Demais classes | C49: =Mercado!E37 -> 234 | D49: =Mercado!F37 -> 1615.319 | E49: 0.00766800024
B50: Total | C50: =SUM(C42:C49) -> 637923 | D50: =SUM(D42:D49) -> 210657.14 | E50: =SUM(E42:E49) -> 1
B51: * Nota: dados do último mês informado pela empresa
G53: TabMercado | I53: Voltar
G54: Subgrupos | H54: Mercado (MWh) | I54: Receita (R$) | J54: Colunas1
G55: Fornecimento | H55: =SUM(H56:H62) -> 2091285.22 | I55: =SUM(I56:I62) -> 1349254879 | J55: =IF(ABS(H55)+ABS(I55)>0,1,0) -> 1
G56: A1 (230 kV ou mais) | H56: =Mercado!C10 -> 0 | I56: =Mercado!D10 -> 0 | J56: 0
G57: A2 (88 a 138 kV) | H57: =Mercado!C11 -> 9728.006 | I57: =Mercado!D11 -> 3677800.585 | J57: 1
G58: A3 (69 kV) | H58: =Mercado!C12 -> 6.861 | I58: =Mercado!D12 -> 38480.20042 | J58: 1
G59: A3a (30 kV a 44 kV) | H59: =Mercado!C13 -> 97134.392 | I59: =Mercado!D13 -> 54860050.76 | J59: 1
G60: A4 (2,3 kV a 25 kV) | H60: =Mercado!C14 -> 222620.31 | I60: =Mercado!D14 -> 130886259.6 | J60: 1
G61: As | H61: =Mercado!C15 -> 0 | I61: =Mercado!D15 -> 0 | J61: 0
G62: BT (menor que 2,3 kV) | H62: =Mercado!C16 -> 1761795.651 | I62: =Mercado!D16 -> 1159792288 | J62: 1
G63: Suprimento | H63: =Mercado!C17 -> 0 | I63: =Mercado!D17 -> 0 | J63: 0
G64: Livres A1 | H64: =Mercado!C18 -> 0 | I64: =Mercado!D18 -> 0 | J64: 0
G65: Demais Livres | H65: =Mercado!C19 -> 425062.803 | I65: =Mercado!D19 -> 104542082.9 | J65: 1
G66: Distribuição | H66: =Mercado!C20 -> 10264.547 | I66: =Mercado!D20 -> 2641383.095 | J66: 1
G67: Geração | H67: =Mercado!C21 -> 0 | I67: =Mercado!D21 -> 22035801.45 | J67: 1
G68: Total | H68: =SUM(H56:H67) -> 2526612.57 | I68: =SUM(I56:I67) -> 1478474147
K70: TabEnc | N70: Voltar
K71: Encargos Setoriais | L71: Processo Anterior (R$) | M71: Processo Atual (R$) | N71: Dispositivo Legal | O71: Colunas1
K72: Taxa de Fisc. de Serviços de E.E. – TFSEE | L72: =Resultado!C22 -> 2870335.22 | M72: =Resultado!D22 -> 3226043.2 | N72: =Encargos!D17 -> Conforme módulo 5.5 do PRORET | O72: =IF(ABS(L72)+ABS(M72)>0,1,0) -> 1
K73: Conta de Desenvolvimento Energético – CDE USO | L73: =BM271 -> 47638486.89 | M73: =BN271 -> 79267294.51 | N73: =VLOOKUP("CDE",EncargoDRP[],3,FALSE) -> REH 3.034/2022 | O73: 1
K74: Conta de Desenvolvimento Energético – CDE Covid | L74: =BM272+BM273 -> 14280793.35 | M74: =BN272+BN273 -> 14387960.08 | N74: =VLOOKUP("CDE Covid",EncargoDRP[],3,FALSE) -> Previsão-2022 | O74: =IF(ABS(L74)+ABS(M74)>0,1,0) -> 1
K75: Conta de Desenvolvimento Energético – CDE Eletrobrás | L75: =BM274 -> 0 | M75: =BN274 -> -34225000 | N75: Previsão SGT | O75: =IF(ABS(L75)+ABS(M75)>0,1,0) -> 1
K76: Compensação financeira - CFURH | L76: 0 | M76: 0 | N76: 0 | O76: 0
K77: Encargos Serv. Sist. - ESS e Energ. Reserv. - EER | L77: =Resultado!C25 -> 23690770.47 | M77: =Resultado!D25 -> 51462609.32 | N77: =Encargos!D12 -> DSP 1.051/2022 | O77: 1
K78: PROINFA | L78: =Resultado!C26 -> 20509487.66 | M78: =Resultado!D26 -> 31991303.25 | N78: =Encargos!$D$13 -> ReH 2.995/2021 | O78: 1
K79: P&D e Eficiência Energética | L79: =Resultado!C27 -> 13663009.9 | M79: =Resultado!D27 -> 15596600.32 | N79: Res. Normativa nº 316/2008 | O79: 1
K80: Contribuição ONS | L80: 0 | M80: 0 | N80: 0 | O80: 0
K81: Total de Encargos Tarifários | L81: =SUM(L72:L80) -> 122652883.5 | M81: =SUM(M72:M80) -> 161706810.7
P83: TabTrans | R83: Voltar
P84: Componente | Q84: Processo Anterior (R$) | R84: Processo Atual (R$) | S84: Colunas1
P85: Rede Básica | Q85: =+Resultado!C30 -> 66554311.33 | R85: =+Resultado!D30 -> 79525940.43 | S85: =IF(ABS(Q85)+ABS(R85)>0,1,0) -> 1
P86: Rede Básica Fronteira | Q86: =+Resultado!C31 -> 19485330.7 | R86: =+Resultado!D31 -> 25257876.25 | S86: 1
P87: Rede Básica ONS (A2) | Q87: =+Resultado!C32 -> 227057.9803 | R87: =+Resultado!D32 -> 203709.43 | S87: 1
P88: Rede Básica Export. (A2) | Q88: =+Resultado!C33 -> 0 | R88: =+Resultado!D33 -> 0 | S88: 0
P89: MUST Itaipu | Q89: =+Resultado!C34 -> 0 | R89: =+Resultado!D34 -> 0 | S89: 0
P90: Transporte de Itaipu | Q90: =+Resultado!C35 -> 0 | R90: =+Resultado!D35 -> 0 | S90: 0
P91: Conexão | Q91: =+Resultado!C36 -> 3201469.211 | R91: =+Resultado!D36 -> 5319985.345 | S91: 1
P92: Uso do sistema de distribuição | Q92: =+Resultado!C37 -> 1959423.843 | R92: =+Resultado!D37 -> 1490293.621 | S92: 1
P93: Total dos Custos de Transporte | Q93: =SUM(Q85:Q92) -> 91427593.06 | R93: =SUM(R85:R92) -> 111797805.1
T95: TabPerdas | W95: Voltar
T96: Perdas | U96: DRA | V96: DRP | W96: Referência
T97: Não Técnica (s/ Baixa Tensão) | U97: =Neutralidade!H14 -> 0.0371 | V97: =Energia!H13 -> 0.0371 | W97: REH 2.720/2020
T98: Técnica (s/ merc. injetado) | U98: =Neutralidade!H15 -> 0.1149 | V98: =Energia!H14 -> 0.1149 | W98: =W97 -> REH 2.720/2020
T99: Rede Básica (s/ merc. Injetado) | U99: =Neutralidade!H16 -> 0.01682314205 | V99: =Energia!H15 -> 0.01682314205 | W99: CCEE (últimos 12 meses)
T100: Mercado Baixa Tensão (MWh) | U100: =Mercado!$C$16 -> 1761795.651 | V100: =Mercado!$C$16 -> 1761795.651 | W100: SAMP
Y102: TabEnergia | AA102: Voltar
Y103: Descrição | Z103: Processo Anterior (MWh) | AA103: Processo Atual (MWh)
Y104: Mercado Total | Z104: =AA104 -> 2091285.22 | AA104: =Z105+Z106 -> 2091285.22 | AB104: Colunas1
Y105: Fornecimento | Z105: =Energia!H5 -> 2091285.22 | AA105: =Z105 -> 2091285.22 | AB105: =IF(Z105<>0,1,0) -> 1
Y106: Suprimento | Z106: 0 | AA106: =Z106 -> 0 | AB106: =IF(Z106<>0,1,0) -> 0
Y107: Consumidores Livres | Z107: =Energia!H7 -> 435327.35 | AA107: =Z107 -> 435327.35 | AB107: =IF(Z107<>0,1,0) -> 1
Y108: Consumidores Rede B. | Z108: 0 | AA108: =Z108 -> 0 | AB108: =IF(Z108<>0,1,0) -> 0
Y109: Perdas Totais | Z109: =Z110+Z111 -> 443784.2894 | AA109: =AA110+AA111 -> 443784.2894 | AB109: =IF(Z109<>0,1,0) -> 1
Y110: Perdas Rede Básica | Z110: =SUM(Neutralidade!H19:H20) -> 41942.2343 | AA110: =SUM(Energia!H18:H19) -> 41942.2343 | AB110: 1
Y111: Perdas na Distribuição | Z111: =SUM(Z112:Z113) -> 401842.0551 | AA111: =SUM(AA112:AA113) -> 401842.0551 | AB111: 1
Y112: Perda Não Técnica | Z112: =Neutralidade!H17 -> 65362.61865 | AA112: =Energia!H16 -> 65362.61865 | AB112: 1
Y113: Perda Técnica | Z113: =Neutralidade!H18 -> 336479.4364 | AA113: =Energia!H17 -> 336479.4364 | AB113: 1
Y114: Energia Requerida | Z114: =Z104+Z109 -> 2535069.509 | AA114: =AA104+AA109 -> 2535069.509
AC116: TabEDRA | AE116: Voltar
AC117: Energia Requerida (MWh) | AD117: Tarifa Média (R$/MWh) | AE117: Energia Requerida (R$)
AC118: ='Votos e NTs'!Z114 -> 2535069.509 | AD118: =Energia!C14 -> 213.0961677 | AE118: =AD118*AC118 -> 540213597.3
AG120: TabContratos | AK120: Voltar
AG121: Contratos | AH121: Montante Contratado (MWh) | AI121: Montante Considerado (MWh) | AJ121: Tarifa (R$/MWh) | AK121: Despesa (R$) | AL121: Colunas1
AG122: AMBIENTE REGULADO - CCEAR | AH122: =SUM(AH123:AH127) -> 1472878.125 | AI122: =SUM(AI123:AI127) -> 1525413.082 | AJ122: =AK122/AI122 -> 273.0399919 | AK122: =SUM(AK123:AK127) -> 416498775.5 | AL122: =IF(AH122=0,0,1) -> 1
AG123: Existente - CCEAR-DSP | AH123: =SUMPRODUCT((Energia!$J$49:$J$140),(Energia!$T$49:$T$140=18)*(INT(Energia!$S$49:$S$140/10000)=2)) -> 0 | AI123: =SUMPRODUCT((Energia!$K$49:$K$140),(Energia!$T$49:$T$140=18)*(INT(Energia!$S$49:$S$140/10000)=2)) -> 0 | AJ123: =IFERROR(AK123/AI123,"") ->  | AK123: =(SUMPRODUCT((Energia!$L$49:$L$140),(Energia!$T$49:$T$140=18)*(INT(Energia!$S$49:$S$140/10000)=2))) -> 0 | AL123: 0
AG124: Existente - CCEAR-QTD | AH124: =SUMPRODUCT((Energia!$J$49:$J$140),(Energia!$T$49:$T$140=1)*(INT(Energia!$S$49:$S$140/10000)=2)) -> 1921.761257 | AI124: =SUMPRODUCT((Energia!$K$49:$K$140),(Energia!$T$49:$T$140=1)*(INT(Energia!$S$49:$S$140/10000)=2)) -> 1990.307081 | AJ124: =IFERROR(AK124/AI124,"") -> 245.9389838 | AK124: =(SUMPRODUCT((Energia!$L$49:$L$140),(Energia!$T$49:$T$140=1)*(INT(Energia!$S$49:$S$140/10000)=2))) -> 489494.1009 | AL124: 1
AG125: Nova e Alternativa- CCEAR-DSP | AH125: =SUMPRODUCT((Energia!$J$49:$J$140),(Energia!$T$49:$T$140=18)*(INT(Energia!$S$49:$S$140/10000)=1))+SUMPRODUCT((Energia!$J$49:$J$140),(Energia!$T$49:$T$140=18)*(INT(Energia!$S$49:$S$140/10000)=3)) -> 1003933.404 | AI125: =SUMPRODUCT((Energia!$K$49:$K$140),(Energia!$T$49:$T$140=18)*(INT(Energia!$S$49:$S$140/10000)=1))+SUMPRODUCT((Energia!$K$49:$K$140),(Energia!$T$49:$T$140=18)*(INT(Energia!$S$49:$S$140/10000)=3)) -> 1039741.933 | AJ125: 296.1127397 | AK125: =(SUMPRODUCT((Energia!$L$49:$L$140),(Energia!$T$49:$T$140=18)*(INT(Energia!$S$49:$S$140/10000)=1))+SUMPRODUCT((Energia!$L$49:$L$140),(Energia!$T$49:$T$140=18)*(INT(Energia!$S$49:$S$140/10000)=3))) -> 307880832.2 | AL125: 1
AG126: Nova e Alternativa- CCEAR-QTD | AH126: =SUMPRODUCT((Energia!$J$49:$J$140),(Energia!$T$49:$T$140=1)*(INT(Energia!$S$49:$S$140/10000)=1))+SUMPRODUCT((Energia!$J$49:$J$140),(Energia!$T$49:$T$140=1)*(INT(Energia!$S$49:$S$140/10000)=3)) -> 299686.5043 | AI126: =SUMPRODUCT((Energia!$K$49:$K$140),(Energia!$T$49:$T$140=1)*(INT(Energia!$S$49:$S$140/10000)=1))+SUMPRODUCT((Energia!$K$49:$K$140),(Energia!$T$49:$T$140=1)*(INT(Energia!$S$49:$S$140/10000)=3)) -> 310375.7918 | AJ126: 255.0374033 | AK126: =(SUMPRODUCT((Energia!$L$49:$L$140),(Energia!$T$49:$T$140=1)*(INT(Energia!$S$49:$S$140/10000)=1))+SUMPRODUCT((Energia!$L$49:$L$140),(Energia!$T$49:$T$140=1)*(INT(Energia!$S$49:$S$140/10000)=3))) -> 79157436 | AL126: 1
AG127: Madeira e Belo Monte | AH127: =SUMPRODUCT((Energia!$J$49:$J$140)*(INT(Energia!$S$49:$S$140/10000)=5)) -> 167336.455 | AI127: =SUMPRODUCT((Energia!$K$49:$K$140)*(INT(Energia!$S$49:$S$140/10000)=5)) -> 173305.0503 | AJ127: 167.1677376 | AK127: =(SUMPRODUCT((Energia!L49:L140)*(INT(Energia!S49:S140/10000)=5))) -> 28971013.18 | AL127: 1
AG128: Bilaterais | AH128: =SUM(Energia!H145:H199) -> 200604 | AI128: =SUM(AI129:AI144) -> 207759.1898 | AJ128: =AK128/AI128 -> 351.7373362 | AK128: =SUM(Energia!N145:N191) -> 73076664 | AL128: 1
AG129: =Energia!B145 -> REDE LAJEADO ENERGIA S.A. | AH129: =Energia!H145 -> 200604 | AI129: =Energia!M145 -> 207759.1898 | AJ129: =Energia!L145 -> 351.7373362 | AK129: =AJ129*AI129 -> 73076664 | AL129: 1
AG130: =Energia!B146 -> 0 | AH130: =Energia!H146 -> 0 | AI130: =Energia!M146 -> 0 | AJ130: =Energia!L146 -> 0 | AK130: =AJ130*AI130 -> 0 | AL130: 0
AG131: =Energia!B147 -> 0 | AH131: =Energia!H147 -> 0 | AI131: =Energia!M147 -> 0 | AJ131: =Energia!L147 -> 0 | AK131: 0 | AL131: 0
AG132: =Energia!B148 -> 0 | AH132: =Energia!H148 -> 0 | AI132: =Energia!M148 -> 0 | AJ132: =Energia!L148 -> 0 | AK132: 0 | AL132: 0
AG133: =Energia!B149 -> 0 | AH133: =Energia!H149 -> 0 | AI133: =Energia!M149 -> 0 | AJ133: =Energia!L149 -> 0 | AK133: 0 | AL133: 0
AG134: =Energia!B150 -> 0 | AH134: =Energia!H150 -> 0 | AI134: =Energia!M150 -> 0 | AJ134: =Energia!L150 -> 0 | AK134: 0 | AL134: 0
AG135: =Energia!B151 -> 0 | AH135: =Energia!H151 -> 0 | AI135: =Energia!M151 -> 0 | AJ135: =Energia!L151 -> 0 | AK135: 0 | AL135: 0
AG136: =Energia!B152 -> 0 | AH136: =Energia!H152 -> 0 | AI136: =Energia!M152 -> 0 | AJ136: =Energia!L152 -> 0 | AK136: 0 | AL136: 0
AG137: =Energia!B153 -> 0 | AH137: =Energia!H153 -> 0 | AI137: =Energia!M153 -> 0 | AJ137: =Energia!L153 -> 0 | AK137: 0 | AL137: 0
AG138: =Energia!B154 -> 0 | AH138: =Energia!H154 -> 0 | AI138: =Energia!M154 -> 0 | AJ138: =Energia!L154 -> 0 | AK138: 0 | AL138: 0
AG139: =Energia!B155 -> 0 | AH139: =Energia!H155 -> 0 | AI139: =Energia!M155 -> 0 | AJ139: =Energia!L155 -> 0 | AK139: 0 | AL139: 0
AG140: =Energia!B156 -> 0 | AH140: =Energia!H156 -> 0 | AI140: =Energia!M156 -> 0 | AJ140: =Energia!L156 -> 0 | AK140: 0 | AL140: 0
AG141: =Energia!B157 -> 0 | AH141: =Energia!H157 -> 0 | AI141: =Energia!M157 -> 0 | AJ141: =Energia!L157 -> 0 | AK141: 0 | AL141: 0
AG142: =Energia!B158 -> 0 | AH142: =Energia!H158 -> 0 | AI142: =Energia!M158 -> 0 | AJ142: =Energia!L158 -> 0 | AK142: 0 | AL142: 0
AG143: 0 | AH143: =Energia!H159 -> 0 | AI143: =Energia!M159 -> 0 | AJ143: =Energia!L159 -> 0 | AK143: 0 | AL143: 0
AG144: 0 | AH144: 0 | AI144: 0 | AJ144: 0 | AK144: 0 | AL144: 0
AG145: =Energia!B20 -> Energia Base | AH145: =SUM(AH146:AH150) -> 776035.1806 | AI145: =SUM(AI146:AI150) -> 801897.2377 | AJ145: =AK145/AI145 -> 151.6960494 | AK145: =SUM(AK146:AK150) -> 121644643 | AL145: 1
AG146: Geração Própria | AH146: =Energia!H33 -> 0 | AI146: =Energia!C21 -> 0 | AJ146: =Energia!D21 -> 0 | AK146: =AJ146*AI146 -> 0 | AL146: 0
AG147: =Energia!B22 -> Cota Angra I/Angra II | AH147: =Energia!H34 -> 85171.26858 | AI147: =Energia!C22 -> 88209.17707 | AJ147: =Energia!D22 -> 349.15 | AK147: =AJ147*AI147 -> 30798234.17 | AL147: 1
AG148: =Energia!B23 -> Cotas Lei n º 12783/2013 | AH148: =Energia!H35 -> 639901.3313 | AI148: =Energia!C23 -> 662725.4799 | AJ148: =Energia!D23 -> 137.08 | AK148: =AJ148*AI148 -> 90846408.78 | AL148: 1
AG149: =Energia!B24 -> Itaipu (tirando as perdas) | AH149: =Energia!H36 -> 0 | AI149: =Energia!C24 -> 0 | AJ149: =Energia!D24 -> 0 | AK149: =AJ149*AI149 -> 0 | AL149: 0
AG150: =Energia!B25 -> PROINFA | AH150: =Energia!C25 -> 50962.58073 | AI150: =Energia!C25 -> 50962.58073 | AJ150: =Energia!D25 -> 0 | AK150: =AJ150*AI150 -> 0 | AL150: 1
AG151: Total | AH151: =AH122+AH128+AH145 -> 2449517.305 | AI151: =AI122+AI128+AI145 -> 2535069.509 | AJ151: =AK151/AI151 -> 241.1058475 | AK151: =AK122+AK128+AK145 -> 611220082.4
AM153: TabFatorX | AN153: Voltar
AM154: Componentes | AN154: Valor
AM155: Componente Pd do Fator X | AN155: ='VPB1'!F40 -> 0.01027451063
AM156: Componente T do Fator X | AN156: ='VPB1'!F41 -> -0.00901791
AM157: Componente Q do Fator X | AN157: ='VPB1'!F42 -> -0.01092329757
AM158: Fator X | AN158: ='VPB1'!F43 -> -0.009666696938
AP160: TabParcelaB | AR160: Voltar
AP161: Descrição | AQ161: Valores | AR161: Referência
AP162: (1) Parcela B Ano Anterior | AQ162: =+'VPB1'!C37 -> 716193215 | AR162: TUSD aplicada ao Mercado
AP163: (2) Fator DR1/Fator PB | AQ163: =+'VPB1'!C38 -> 1.029611419 | AR163: SGT/ANEEL
AP164: (3) Parcela B econômica = (1)*(2) | AQ164: =+'VPB1'!C39 -> 737400712.2 | AR164: SGT/ANEEL
AP165: (4) IPCA | AQ165: =+LnkTxtIPCA -> 0.1161239546 | AR165: Indicador econômico oficial
AP166: (5) Fator X | AQ166: =+AQ167+AQ168+AQ169 -> -0.009666696938
AP167: (5.1) Componente Pd do Fator X | AQ167: =+LnkTxtFatorPd -> 0.01027451063 | AR167: Pd Ex-Post | AS167: <-cuidado para verificar se é Reajuste depois de revisão. Se for reajuste pós revisão, deve se aplicar o Pd Expost.
AP168: (5.2) Componente T do Fator X | AQ168: =+LnkTxtFatorT -> -0.00901791 | AR168: REH 2.720/2020
AP169: (5.3) Componente Q do Fator X | AQ169: =+LnkTxtFatorQ -> -0.01092329757 | AR169: PRORET 2.5 A
AP170: (6) UDEROR | AQ170: =SUM(AQ171:AQ173) -> 27171765.93
AP171: (6.1) Outras Receitas (OR) | AQ171: =+'VPB1'!C40 -> 17795361.12 | AR171: Valores fiscalizados - SFF
AP172: (6.2) Excedente de Reativos (ER) | AQ172: =+'VPB1'!C41 -> 4290576.144 | AR172: Valores fiscalizados - SFF
AP173: (6.3) Ultrapassagem de Demanda (UD) | AQ173: =+'VPB1'!C42 -> 5085828.668 | AR173: Valores fiscalizados - SFF
AP174: (5) ONS | AQ174: 0 | AR174: REA 6.981/2018
AP175: Parcela B - DRP (R$) = (3)*[{1)+(4)-(5)]-(6) | AQ175: =Resultado!D45 -> 802987062.2
AT177: TabCVA | AW177: Voltar
AT178: Descrição | AU178: Delta (R$) | AV178: 5° Dia Útil Anterior (R$) | AW178: 12 Meses Subseqüentes (R$) | AX178: Colunas1
AT179: CVA CCC | AU179: 0 | AV179: 0 | AW179: 0 | AX179: =IF(AU179<>0,1,0) -> 0
AT180: ="CVA "&CVA!B10 -> CVA CDE | AU180: =CVA!C10 -> 11988597.79 | AV180: =CVA!D10 -> 12328337.98 | AW180: =CVA!E10 -> 13142278.33 | AX180: 1
AT181: ="CVA "&CVA!B11 -> CVA CDE Covid | AU181: =CVA!C11 -> 116031.9031 | AV181: =CVA!D11 -> 125324.0846 | AW181: =CVA!E11 -> 133598.2193 | AX181: 1
AT182: ="CVA "&CVA!B12 -> CVA Rede Básica | AU182: =CVA!C12 -> 8824600.676 | AV182: =CVA!D12 -> 9281341.983 | AW182: =CVA!E12 -> 9894113.853 | AX182: 1
AT183: ="CVA "&CVA!B13 -> CVA Compra Energia | AU183: =CVA!C13 -> 38161794.04 | AV183: =CVA!D13 -> 41969485.97 | AW183: =CVA!E13 -> 44740391.34 | AX183: 1
AT184: CVA CFURH | AU184: 0 | AV184: 0 | AW184: 0 | AX184: 0
AT185: ="CVA "&CVA!B15 -> CVA Transporte Itaipu | AU185: =CVA!C15 -> 0 | AV185: =CVA!D15 -> 0 | AW185: =CVA!E15 -> 0 | AX185: 0
AT186: ="CVA "&CVA!B16 -> CVA Proinfa | AU186: =CVA!C16 -> 5804890.187 | AV186: =CVA!D16 -> 6020181.45 | AW186: =CVA!E16 -> 6417645.292 | AX186: 1
AT187: ="CVA "&CVA!B17 -> CVA ESS/ERR | AU187: =CVA!C17 -> 19234032.41 | AV187: =CVA!D17 -> 21616793.59 | AW187: =CVA!E17 -> 23043975.46 | AX187: 1
AT188: Total | AU188: =SUM(AU179:AU187) -> 84129947.01 | AV188: =SUM(AV179:AV187) -> 91341465.05 | AW188: =SUM(AW179:AW187) -> 97372002.5
AY190: TabFin | BA190: Voltar
AY191: Componentes Financeiros | AZ191: Valor (R$) | BA191: Participação | BB191: Colunas1 | BC191: Coluna1
AY192: CVA em processamento - Energia | AZ192: =SUMIFS(Financeiros[Valor],Financeiros[idDet1],19,Financeiros[id_Grupo_TARIFA],2,Financeiros[idDet2],60,Financeiros[idDet3],999) -> 44740391.34 | BA192: =AZ192/Financeiros!$D$5 -> 0.0302611929 | BB192: =IF(AZ192<>0,1,0) -> 1
AY193: CVA em processamento - Transporte | AZ193: =SUMIFS(Financeiros[Valor],Financeiros[idDet1],19,Financeiros[id_Grupo_TARIFA],1,Financeiros[idDet2],60, Financeiros[idDet3],999) -> 9894113.853 | BA193: =AZ193/Financeiros!$D$5 -> 0.006692111509 | BB193: 1
AY194: CVA em processamento - Encargos Setoriais | AZ194: =SUMIFS(Financeiros[Valor],Financeiros[idDet1],19,Financeiros[id_Grupo_TARIFA],3,Financeiros[idDet2],60,Financeiros[idDet3],999)+SUMIFS(Financeiros[Valor],Financeiros[idDet1],19,Financeiros[id_Grupo_TARIFA],3,Financeiros[idDet2],60,Financeiros[idDet3],73)+SUMIFS(Financeiros[Valor],Financeiros[idDet1],19,Financeiros[id_Grupo_TARIFA],3,Financeiros[idDet2],60,Financeiros[idDet3],74) -> 42737497.3 | BA194: =AZ194/Financeiros!$D$5 -> 0.02890648944 | BB194: 1
AY195: Saldo a Compensar CVA-Ano Anterior + Ajustes | AZ195: =SUMIFS(Financeiros[Valor],Financeiros[idDet1],19,Financeiros[idDet2],64, Financeiros[idDet3],999)+SUMIFS(Financeiros[Valor],Financeiros[idDet1],19,Financeiros[idDet2],64, Financeiros[idDet3],73)+SUMIFS(Financeiros[Valor],Financeiros[idDet1],19,Financeiros[idDet2],64, Financeiros[idDet3],74) -> 1694924.983 | BA195: =AZ195/Financeiros!$D$5 -> 0.001146401502 | BB195: 1
AY196: Neutralidade de Parcela A- Energia | AZ196: =Financeiros!D44+Financeiros!D45+Financeiros!D46+Financeiros!D47+Financeiros!D48 -> -1683164.638 | BA196: =AZ196/Financeiros!$D$5 -> -0.001138447123 | BB196: 1
AY197: Neutralidade de Parcela A - Transporte | AZ197: =SUMIFS(Financeiros[Valor],Financeiros[idDet1],20,Financeiros[id_Grupo_TARIFA],1,Financeiros[idDet2],60, Financeiros[idDet3],999) -> 7761223.617 | BA197: =AZ197/Financeiros!$D$5 -> 0.005249482133 | BB197: 1
AY198: Neutralidade de Parcela A - Encargos Setoriais | AZ198: =SUMIFS(Financeiros[Valor],Financeiros[idDet1],20,Financeiros[id_Grupo_TARIFA],3,Financeiros[idDet2],60,Financeiros[idDet3],999)+SUMIFS(Financeiros[Valor],Financeiros[idDet1],20,Financeiros[idDet2],60,Financeiros[idDet3],73)+SUMIFS(Financeiros[Valor],Financeiros[idDet1],20,Financeiros[idDet2],60,Financeiros[idDet3],74) -> 1039485.713 | BA198: =AZ198/Financeiros!$D$5 -> 0.0007030800746 | BB198: 1
AY199: Neutralidade de Parcela A - Receita Irrecuperável | AZ199: =SUMIFS(Financeiros[Valor],Financeiros[idDet1],20,Financeiros[id_Grupo_TARIFA],5,Financeiros[idDet2],60, Financeiros[idDet3],999) -> 822775.4176 | BA199: =AZ199/Financeiros!$D$5 -> 0.0005565030809 | BB199: 1
AY200: Neutralidade de Fin. Parcela B - Conta Covid | AZ200: =SUMIFS(Financeiros[Valor],Financeiros[idDet1],20,Financeiros[id_Grupo_TARIFA],4,Financeiros[idDet2],60, Financeiros[idDet3],999) -> 0 | BA200: =AZ200/Financeiros!$D$5 -> 0 | BB200: 0
AY201: Sobrecontratação/exposição de energia | AZ201: =SUMIFS(Financeiros[Valor],Financeiros[idDet1],22,Financeiros[id_Grupo_TARIFA],2,Financeiros[idDet2],60, Financeiros[idDet3],106)+SUMIFS(Financeiros[Valor],Financeiros[idDet1],22,Financeiros[id_Grupo_TARIFA],2,Financeiros[idDet2],60, Financeiros[idDet3],101) -> 11268152.37 | BA201: =AZ201/Financeiros!$D$5 -> 0.007621474071 | BB201: 1
AY202: Garantias financeiras na contratação regulada de energia (CCEAR) | AZ202: =SUMIFS(Financeiros[Valor],Financeiros[idDet1],22,Financeiros[id_Grupo_TARIFA],2,Financeiros[idDet2],60, Financeiros[idDet3],102) -> 509014.0365 | BA202: =AZ202/Financeiros!$D$5 -> 0.000344283353 | BB202: 1
AY203: Previsão de Risco Hidrológico | AZ203: =SUMIFS(Financeiros[Valor],Financeiros[idDet1],22,Financeiros[id_Grupo_TARIFA],2,Financeiros[idDet2],60, Financeiros[idDet3],220) -> 33687501.7 | BA203: =AZ203/Financeiros!$D$5 -> 0.02278531673 | BB203: 1
AY204: Ajuste Liminar Abrace | AZ204: =SUMIFS(Financeiros[Valor],Financeiros[idDet1],22,Financeiros[id_Grupo_TARIFA],3,Financeiros[idDet2],85, Financeiros[idDet3],85) -> 0 | BA204: =AZ204/Financeiros!$D$5 -> 0 | BB204: 0
AY205: Ajuste ref. equilíbrio econômico-financeiro TUSDg (A3a) | AZ205: =SUMIFS(Financeiros[Valor],Financeiros[idDet1],22,Financeiros[id_Grupo_TARIFA],4,Financeiros[idDet2],60, Financeiros[idDet3],137) -> 0 | BA205: =AZ205/Financeiros!$D$5 -> 0 | BB205: 0
AY206: Repasse de ultrapassagem de Supridas/Permissionárias de Energia | AZ206: =SUMIFS(Financeiros[Valor],Financeiros[idDet1],22,Financeiros[id_Grupo_TARIFA],2,Financeiros[idDet2],60, Financeiros[idDet3],187) -> 0 | BA206: =AZ206/Financeiros!$D$5 -> 0 | BB206: 0
AY207: Reversão do Financeiro de Reperfilamento dos custos de RBSE | AZ207: =SUMIFS(Financeiros[Valor],Financeiros[idDet1],22,Financeiros[idDet2],60, Financeiros[idDet3],999,Financeiros[id_Grupo_TARIFA],1) -> 0 | BA207: =AZ207/Financeiros!$D$5 -> 0 | BB207: 0
AY208: Ajuste CUSD | AZ208: =SUMIFS(Financeiros[Valor],Financeiros[idDet1],22,Financeiros[id_Grupo_TARIFA],1,Financeiros[idDet2],60, Financeiros[idDet3],119) -> -396078.6655 | BA208: =AZ208/Financeiros!$D$5 -> -0.0002678969168 | BB208: 1
AY209: Repasse de compensação DIC/FIC | AZ209: =Financeiros!D128 -> 0 | BA209: =AZ209/Financeiros!$D$5 -> 0 | BB209: 0
AY210: Compensação ref. acordos bilaterais de CCEAR | AZ210: =SUMIFS(Financeiros[Valor],Financeiros[idDet1],22,Financeiros[id_Grupo_TARIFA],2,Financeiros[idDet2],60, Financeiros[idDet3],230) -> -84846.79313 | BA210: =AZ210/Financeiros!$D$5 -> -5.738808036e-05 | BB210: 1
AY211: Reversão do Risco Hidrológico | AZ211: =SUMIFS(Financeiros[Valor],Financeiros[idDet1],22,Financeiros[id_Grupo_TARIFA],2,Financeiros[idDet2],62, Financeiros[idDet3],220) -> -44177117.66 | BA211: =AZ211/Financeiros!$D$5 -> -0.02988020978 | BB211: 1
AY212: Ressarcimento de P&D | AZ212: =SUMIFS(Financeiros[Valor],Financeiros[idDet1],22,Financeiros[id_Grupo_TARIFA],3,Financeiros[idDet2],60, Financeiros[idDet3],231) -> 0 | BA212: =AZ212/Financeiros!$D$5 -> 0 | BB212: 0
AY213: Reversão Conta-Covid - CVA em processamento - Energia | AZ213: =SUMIFS(Financeiros[Valor],Financeiros[idDet1],19,Financeiros[id_Grupo_TARIFA],2,Financeiros[idDet2],60,Financeiros[idDet3],233) -> 0 | BA213: =AZ213/Financeiros!$D$5 -> 0 | BB213: 0
AY214: Reversão Conta-Covid - CVA em processamento -Transporte | AZ214: =SUMIFS(Financeiros[Valor],Financeiros[idDet1],19,Financeiros[id_Grupo_TARIFA],1,Financeiros[idDet2],60,Financeiros[idDet3],233) -> 0 | BA214: =AZ214/Financeiros!$D$5 -> 0 | BB214: 0
AY215: Reversão Conta-Covid - CVA em processamento - Encargos Setoriais | AZ215: =SUMIFS(Financeiros[Valor],Financeiros[idDet1],19,Financeiros[id_Grupo_TARIFA],3,Financeiros[idDet2],60,Financeiros[idDet3],233) -> 0 | BA215: =AZ215/Financeiros!$D$5 -> 0 | BB215: 0
AY216: Reversão Conta-Covid - Saldo a Compensar CVA-Ano Anterior + Ajustes | AZ216: =SUMIFS(Financeiros[Valor],Financeiros[idDet1],19,Financeiros[idDet2],64, Financeiros[idDet3],236) -> 0 | BA216: =AZ216/Financeiros!$D$5 -> 0 | BB216: 0
... 193 more rows

Sheet NT Revisao (hidden)
B2: Tabelas
B4: Custo Operacional
B5: Receitas Irrecuperáveis
B6: Remuneração do Capital e Quota de Reintegração
B7: CAIMI
B8: Parcela B Ajustada
B9: Outras Receitas
B10: Cálculo das Perdas
B11: Energia Requerida
B12: Transmissão
B13: Encargos Setoriais
B16: Custo Operacional | E16: Voltar
B17: Descrição | C17: Limite Inferior | D17: Centro | E17: Limite Superior
B18: 1. Eficiência | C18: ='VPB e Fator X'!C133 ->  | D18: ='VPB e Fator X'!C131 ->  | E18: ='VPB e Fator X'!C132 -> 
B19: 2. OPEX Benchmarking (Atualizado) - R$ | C19: ='VPB e Fator X'!C136 ->  | D19: =(E19+C19)/2 ->  | E19: ='VPB e Fator X'!C135 -> 
B21: Comparação com intervalo de CO eficientes
B22: Descrição | C22: Valor
B23: 3. OPEX nas tarifas - R$ | C23: ='VPB e Fator X'!C111 -> 
B24: 4. Meta estudo de eficiência - R$ | C24: ='VPB e Fator X'!C114 -> 
B25: 5. Variação Anual (%) | C25: ='VPB e Fator X'!C115 -> 
B26: 6. Meta do estudo de eficiência aplicado o limite de 5% a.a. | C26: ='VPB e Fator X'!C117 -> 
B28: Avaliação do prêmio de eficiência
B29: Descrição | C29: Reais
B30: 7. OPEX Real - R$ | C30: ='VPB e Fator X'!C118 -> 
B31: 8. Meta OPEX | C31: ='VPB e Fator X'!C114 -> 
B32: 9. Relação OPEX Real / Meta OPEX | C32: ='VPB e Fator X'!C119 -> 
B33: 10. Meta OPEX aplicada a regra de compartilhamento | C33: ='VPB e Fator X'!C120 -> 
B35: 11. Número de anos no ciclo | C35: 5
B36: 12. OPEX na revisão [ = 3. + (10. - 3.) / 11.] | C36: ='VPB e Fator X'!C121 -> 
G38: Receitas Irrecuperáveis | H38: Voltar
G39: Descrição | H39: Valor
G40: Receita Base (R$) | H40: =H42/H41 -> 
G41: % RI | H41: ='VPB e Fator X'!D213 -> 
G42: Receita Irrecuperáveis - RI (R$) | H42: =Resultado!D39 -> 12163325.52
J44: Remuneração do Capital e Quota de Reintegração | K44: Voltar
J45: Descrição | L45: Colunas1
J46: (1) Ativo Imobilizado em Serviço (Valor Novo de Reposição) | K46: =Entrada!G7 ->  | L46: =IF(K46=0,0,1) -> 
J47: (2) Índice de Aproveitamento Integral | K47: =Entrada!G8 -> 
J48: (3) Obrigações Especiais Bruta | K48: =Entrada!G9 -> 
J49: (4) Bens Totalmente Depreciados | K49: =Entrada!G10 -> 
J50: (5) Base de Remuneração Bruta = (1)-(2)-(3)-(4) | K50: =Entrada!G11 -> 
J51: (6) Depreciação Acumulada | K51: =Entrada!G12 -> 
J52: (7) AIS Líquido (Valor de Mercado em Uso) | K52: =Entrada!G13 -> 
J53: (8) Índice de Aproveitamento Depreciado | K53: =Entrada!G14 -> 
J54: (9) Valor da Base de Remuneração (VBR) = (1)-(6)-(8) | K54: =Entrada!G15 -> 
J55: (10) Almoxarifado em Operação | K55: =Entrada!G16 -> 
J56: (11) Ativo Diferido | K56: =Entrada!G17 -> 
J57: (12) Obrigações Especiais Líquida | K57: =Entrada!G18 -> 
J58: (13) Terrenos e Servidões | K58: =Entrada!G19 -> 
J59: (14) Base de Remuneração Líquida Total = (9)+(10)+(11)-(12)+(13) | K59: =Entrada!G20 -> 
J60: (15) Base de Remuneração Ativos Concessionária | K60: =K59-K66-K69 ->  | L60: =IF(K60=0,0,1) -> 
J61: (16) WACC antes de impostos | K61: ='VPB e Fator X'!F81 -> 0.1082749759 | L61: 1
J62: (17) Remuneração Ativos Concessionária | K62: =K60*K61 -> 
J63: (18) Base Obrigações Especiais | K63: ='VPB e Fator X'!G91 ->  | L63: =IF(K63=0,0,1) -> 
J64: (19) Taxa de Remuneração das Obrigações Especiais | K64: =K65/K63 ->  | L64: =IF(K63=0,0,1) -> 
J65: (20) Remuneração de Obrigações Especiais | K65: ='VPB e Fator X'!G95 ->  | L65: =IF(K65=0,0,1) -> 
J66: (21) Saldo RGR/PLPT | K66: ='VPB e Fator X'!C91 -> 
J67: (22) Taxa RGR/PLPT | K67: ='VPB e Fator X'!F82 -> 0.00677460118 | L67: =IF(K66=0,0,1) -> 
J68: (23) Remuneração RGR/PLPT | K68: =K66*K67 -> 
J69: (24) Saldo RGR/Demais Investimentos | K69: ='VPB e Fator X'!C92 ->  | L69: =IF(K69=0,0,1) -> 
J70: (25) Saldo RGR/Demais Investimentos | K70: ='VPB e Fator X'!F83 -> 0.00677460118 | L70: =IF(K69=0,0,1) -> 
J71: (23) Remuneração RGR Demais Investimentos | K71: =K69*K70 -> 
J72: (24) Remuneração do Capital = (17)+(20)+(23) | K72: =K62+K65+K68+K71 ->  | L72: =IF(K72=0,0,1) -> 
J73: (25) Taxa de Depreciação | K73: ='VPB e Fator X'!C76 -> 0 | L73: 0
J74: (29) Quota de Reintegração Regulatória = (5) * (25) | K74: =K50*K73 ->  | L74: =IF(K74=0,0,1) -> 
M76: CAIMI | N76: Voltar
M77: Descrição | N77: Valores (R$)
M78: ='VPB e Fator X'!B60 -> (1) Base de Anuidade Regulatória (BAR) | N78: ='VPB e Fator X'!C60 -> 
M79: ='VPB e Fator X'!B61 -> (2) Base de Anuidade - Infraestrutura de imóveis e móveis administrativos (BARA) | N79: ='VPB e Fator X'!C61 -> 
M80: ='VPB e Fator X'!B62 -> (3) Base de Anuidade - Veículos (BARV) | N80: ='VPB e Fator X'!C62 -> 
M81: ='VPB e Fator X'!B63 -> (4) Base de Anuidade - Sistemas de Informática (BARI) | N81: ='VPB e Fator X'!C63 -> 
M82: ='VPB e Fator X'!B64 -> (5) Anuidade - Infraestrutura de imóveis e móveis administrativos (CAL) | N82: ='VPB e Fator X'!C64 -> 
M83: ='VPB e Fator X'!B65 -> (6) Anuidade - Veículos (CAV) | N83: ='VPB e Fator X'!C65 -> 
M84: ='VPB e Fator X'!B66 -> (7) Anuidade - Sistemas de Informática (CAI) | N84: ='VPB e Fator X'!C66 -> 
M85: ='VPB e Fator X'!B67 -> (8) CAIMI = (5)+(6)+(7) | N85: ='VPB e Fator X'!C67 -> 
P87: Parcela B ajustada | Q87: Voltar
P88: Descrição | Q88: Valores
P89: Custo de Administração, Operação e Manutenção (CAOM) | Q89: =Resultado!G19 -> 
P90: Custos Operacionais (CO) | Q90: =Resultado!G20 -> 
P91: Custo Anual dos Ativos (CAA) | Q91: =Resultado!G21 -> 
P92: Remuneração do Capital (RC) | Q92: =Resultado!G22 -> 
P93: Quota de Reintegração Regulatória (QRR) | Q93: =Resultado!G23 -> 
P94: Custo anual das instalações móveis e imóveis (CAIMI) | Q94: =Resultado!G24 -> 
P95: Parcela B (VPB) | Q95: =Resultado!G25 -> 
P96: Índice de Produtividade da Parcela B | Q96: =Resultado!G26 -> 0.01027451063
P97: Mecanismo de Incentivo à Qualidade | Q97: =Resultado!G27 -> -0.01092329757
P98: Parcela B com ajustes | Q98: =Resultado!G28 -> 
P99: Outras Receitas (OR) | Q99: =Resultado!G29 -> 17795361.12
P100: Excedente de Reativos (ER) | Q100: =Resultado!G30 -> 5085828.668
P101: Ultrapassagem de Demanda (UD) | Q101: =Resultado!G31 -> 4290576.144
P102: Parcela B deduzido UDEROR | Q102: =Q98-SUM(Q99:Q101) -> 
S104: Outras Receitas | U104: Voltar
S105: Descrição das atividades | T105: Compartilhamento | U105: Receita Regulatória | V105: Colunas1
S106: Serviços Cobráveis | T106: 0.6 | U106: =UDEROR!D14 -> 984074.2652 | V106: =IF(U106=0,0,1) -> 1
S107: =UDEROR!B15 -> Arrecadação de convênios ou valores pela fatura e arredação por terceiros | T107: 0.6 | U107: =UDEROR!D15 -> 3887928.116 | V107: 1
S108: =UDEROR!B16 -> Receita proveniente da comercialização de resultados de projetos de P&D | T108: 0.5 | U108: =UDEROR!D16 -> 0 | V108: 0
S109: =UDEROR!B17 -> Veiculação de publicidade | T109: 0.6 | U109: =UDEROR!D17 -> 0 | V109: 0
S110: =UDEROR!B18 -> Aluguel ou cessão onerosa de imóveis e espaços físicos | T110: 0.6 | U110: =UDEROR!D18 -> 0 | V110: 0
S111: =UDEROR!B19 -> Compartilhamento de infraestrutura (Média 12 meses) | T111: 0.6 | U111: =UDEROR!D19 -> 12923358.74 | V111: 1
S112: =UDEROR!B20 -> Serviços de avaliação técnica e aferição de medidores. | T112: 0.6 | U112: =UDEROR!D20 -> 0 | V112: 0
S113: =UDEROR!B21 -> Operacionalização de serviço de créditos tributários | T113: 0.6 | U113: =UDEROR!D21 -> 0 | V113: 0
S114: Elaboração de projeto, construção, operação, manutenção ou reforma de: | V114: 0
S115: (1) redes de distribuição de energia elétrica destinadas à regularização fundiária de interesse específico e ao atendimento dos empreendimentos de múltiplas unidades consumidoras; | T115: 0.6 | U115: =UDEROR!D23 -> 0 | V115: 0
S116: (2) redes de energia elétrica destinadas ao acesso dos sistemas de distribuição ou transmissão; | T116: 0.6 | U116: =UDEROR!D24 -> 0 | V116: 0
S117: (3) subestações de energia; | T117: 0.6 | U117: =UDEROR!D25 -> 0 | V117: 0
S118: (4) instalações elétricas internas de unidades consumidoras; | T118: 0.6 | U118: =UDEROR!D26 -> 0 | V118: 0
S119: (5) banco de capacitores: | T119: 0.6 | U119: =UDEROR!D27 -> 0 | V119: 0
S120: (6) padrões de entrada de unidades consumidoras atendidas em baixa tensão; | T120: 0.6 | U120: =UDEROR!D28 -> 0 | V120: 0
S121: (7) sistemas de medição de energia elétrica; | T121: 0.6 | U121: =UDEROR!D29 -> 0 | V121: 0
S122: (8) geradores, incluindo-se unidades de microgeração e minigeração distribuída; | T122: 0.3 | U122: =UDEROR!D30 -> 0 | V122: 0
S123: (9) sistemas de iluminação pública. | T123: 0.6 | U123: =UDEROR!D31 -> 0 | V123: 0
S124: Eficientização do consumo de energia elétrica e instalação de cogeração qualificada, desde que não enquadráveis nos projetos de Pesquisa e Desenvolvimento (P&D) ou de Eficiência Energética estabelecidos em lei | T124: 0.3 | U124: =UDEROR!D32 -> 0 | V124: 0
S125: Serviços de comunicação de dados | T125: 0.3 | U125: =UDEROR!D33 -> 0 | V125: 0
S126: Serviços de consultoria | T126: 0.6 | U126: =UDEROR!D34 -> 0 | V126: 0
S127: Total | U127: =SUM(U106:U126) -> 17795361.12 | V127: 1
W129: Calculo das Perdas | X129: Voltar
W130: Cálculo do Ponto de Partida
W131: Descrição | X131: PNT
W132: a. Meta Ciclo Anterior Faturada | X132: 0.013
W133: b. Diferença entre Medido e Faturado | X133: 0.009223126897
W134: c. Meta Ciclo Anterior Medida [b + c] | X134: 0.0222231269
W135: d. Média Histórico Medida | X135: 0.04749172703
W136: =IF(AND(Q130="P",X135>2.5%),"e. Ponto de Partida [ = máximo (2,5% & mínimo ( c & d )) ]",IF(AND(Q130="P",X135<=2.5),"e. Ponto de Partida [ = Média Histórica ]",IF(AND(Q130="G",X135>7.5%),"e. Ponto de Partida [ = máximo (7,5% & mínimo ( c & d )) ]","e. Ponto de Partida [ = Média Histórica ]"))) -> e. Ponto de Partida [ = Média Histórica ] | X136: 0.025
W137: f. Ponto de Partida Faturado [e - b] | X137: 0.0157768731
W139: Cálculo do Ponto de Chegada
W140: Descrição | X140: Modelo C | Y140: Modelo G | Z140: Modelo K
W141: g. Empresa Benchmark | X141: UHENPAL | Y141: UHENPAL | Z141: UHENPAL
W142: h. Perda Benchmark (PNT/BT) | X142: 0 | Y142: 0 | Z142: 0
X143: 0.002562180881 | Y143: 0.002562180881 | Z143: 0.002562180881
W144: j. Probabilidade de Comparação | X144: 0.4523378651 | Y144: 0.5143975427 | Z144: 0.1598724855
W145: k. Meta baseada em cada Benchmark [ h x j + (1 - j) x i ] | X145: 0.001403209451 | Y145: 0.001244201332 | Z145: 0.002152558655
W146: l. Meta média dos Benchmarks [ média ( k ) ] | Y146: 0.001599989812
W147: m. Ponto de Partida (PNT/BT) | Y147: 0.025
W148: =IF(AND(Q130="P",X135>2.5%),"n. Meta = [ mínimo (l e m ) ] ",IF(AND(Q130="P",X135<=2.5),"n. Ponto de Chegada [ = Ponto de Partida ]",IF(AND(Q130="G",X135>7.5%),"n. Meta = [ mínimo (l e m) ] ","n. Meta [ = Ponto de Partida ]"))) -> n. Meta [ = Ponto de Partida ] | Y148: 0.001599989812
W149: o. Meta Faturado [ n + b ] | Y149: 0
W151: Descrição | X151: Ponto Partida | Y151: 2021 | Z151: 2022 | AA151: 2023 | AB151: 2024 | AC151: 2025
W152: Trajetória PNT/BT | X152: 0.025 | Y152: 0.02031999796 | Z152: 0.01563999592 | AA152: 0.01095999389 | AB152: 0.00627999185 | AC152: 0.001599989812
W153: Velocidade de Redução (a.a) | Y153: -0.004680002038 | Z153: -0.004680002038 | AA153: -0.004680002038 | AB153: -0.004680002038 | AC153: -0.004680002038
W154: Limite de Redução (a.a) | Y154: 0 | Z154: 0 | AA154: 0 | AB154: 0 | AC154: 0
W155: PNT/BT Medido Regulatório | X155: 0.025 | Y155: 0.025 | Z155: 0.025 | AA155: 0.025 | AB155: 0.025 | AC155: 0.025
W156: Diferença entre Medido e Faturado | X156: 0.009223126897 | Y156: 0.009223126897 | Z156: 0.009223126897 | AA156: 0.009223126897 | AB156: 0.009223126897 | AC156: 0.009223126897
W157: PNT/BT Faturado Regulatório | X157: 0.0157768731 | Y157: 0.0157768731 | Z157: 0.0157768731 | AA157: 0.0157768731 | AB157: 0.0157768731 | AC157: 0.0157768731
W158: PT/ Einjetada Regulatório | X158: 0.04504 | Y158: 0.04504 | Z158: 0.04504 | AA158: 0.04504 | AB158: 0.04504 | AC158: 0.04504
AE160: Energia Requerida | AF160: Voltar
AE161: Descrição | AF161: Energia (MWh)
AE162: Perdas na Rede Básica | AF162: =Energia!H18+Energia!H19 -> 41942.2343
AE163: Perdas na Distribuição | AF163: =AF164+AF165 -> 401842.0551
AE164: Perdas Técnicas | AF164: =Energia!H17 -> 336479.4364
AE165: Perdas Não Técnicas | AF165: =Energia!H16 -> 65362.61865
AE166: Energia Vendida | AF166: =Energia!D6 -> 2091285.22
AE167: Energia Requerida | AF167: =SUM(AF162:AF163,AF166) -> 2535069.509
AH169: Transmissão | AI169: Voltar
AH170: Descrição | AI170: Valor (R$) | AJ170: Colunas1
AH171: Rede Básica | AI171: =Resultado!D30 -> 79525940.43 | AJ171: =IF(AI171=0,0,1) -> 1
AH172: Rede Básica Fronteira | AI172: =Resultado!D31 -> 25257876.25 | AJ172: =IF(AI172=0,0,1) -> 1
AH173: Rede Básica ONS (A2) | AI173: =Resultado!D32 -> 203709.43 | AJ173: 1
AH174: Rede Básica Export. (A2) | AI174: =Resultado!D33 -> 0 | AJ174: 0
AH175: MUST Itaipu | AI175: =Resultado!D34 -> 0 | AJ175: 0
AH176: Transporte de Itaipu | AI176: =Resultado!D35 -> 0 | AJ176: 0
AH177: Conexão | AI177: =Resultado!D36 -> 5319985.345 | AJ177: 1
AH178: Uso do sistema de distribuição | AI178: =Resultado!D37 -> 1490293.621 | AJ178: 1
AH179: Total | AI179: =SUM(AI171:AI178) -> 111797805.1
AK181: Encargos Setoriais | AL181: Voltar
AK182: Descrição | AL182: Valor (R$) | AM182: Dispositivo Legal | AN182: Colunas1
AK183: Taxa de Fisc. de Serviços de E.E. – TFSEE | AL183: =Resultado!D22 -> 3226043.2 | AM183: =Encargos!D17 -> Conforme módulo 5.5 do PRORET | AN183: =IF(AL183=0,0,1) -> 1
AK184: Conta de Desenvolvimento Energético – CDE | AL184: =Resultado!D23 -> 59430254.59 | AM184: =Encargos!D10 -> REH 3.034/2022 e Previsão-2022 | AN184: 1
AK185: Compensação financeira - CFURH | AL185: =Resultado!D24 -> 0 | AM185: =Encargos!D11 -> 0 | AN185: 0
AK186: Encargos Serv. Sist. - ESS e Energ. Reserv. - EER | AL186: =Resultado!D25 -> 51462609.32 | AM186: =Encargos!D12 -> DSP 1.051/2022 | AN186: 1
AK187: PROINFA | AL187: =Resultado!D26 -> 31991303.25 | AM187: =Encargos!D13 -> ReH 2.995/2021 | AN187: 1
AK188: P&D, Efic.Energ e Ressarc.ICMS Sist.Isol. | AL188: =Resultado!D27 -> 15596600.32 | AM188: Res. Normativa nº 316/2008 | AN188: 1
AK189: ONS | AL189: =Resultado!D28 -> 0 | AM189: =Encargos!D14 -> 0 | AN189: 0
AK190: Total | AL190: =SUM(AL183:AL189) -> 161706810.7
AO192: TabRevAvalRTE
AP193: Receita Verificada (R$) | AQ193: Receita Verificada (R$) | AR193: Receita Requerida (R$) | AS193: Variação | AT193: Participação na Revisão | AU193: Participação na Receita
AO194: PARCELA A [Encargos+Transmissão+Energia+RI] | AP194: =AP195+AP205+AP214+AP215 -> 762282168.3 | AQ194: =AQ195+AQ205+AQ214+AQ215 ->  | AR194: =AR195+AR205+AR214+AR215 -> 931113023.7 | AS194: =IFERROR(AR194/AQ194-1,0) -> 0 | AT194: =IFERROR((AR194-AQ194)/$AQ$223,0) -> 0 | AU194: =IFERROR(AR194/$AR$223,0) -> 0
AO195: Encargos Setoriais | AP195: =SUM(AP196:AP204) -> 122653082.5 | AQ195: =SUM(AQ196:AQ204) ->  | AR195: =SUM(AR196:AR204) -> 195931810.7 | AS195: =IFERROR(AR195/AQ195-1,0) -> 0 | AT195: 0 | AU195: 0 | AV195: Colunas1 | AW195: Colunas2
AO196: Taxa de Fisc. de Serviços de E.E. – TFSEE | AP196: =SUM(DADOS_MercadoBase[TFSEE]) -> 2870339.876 | AQ196: =AP196+AP196*($AQ$223-$AP$223)/$AP$194 ->  | AR196: =Resultado!D22 -> 3226043.2 | AS196: 0 | AT196: 0 | AU196: 0 | AV196: =IF(SUM(AP196:AR196)<>0,1,0) -> 
AO197: Conta de Desenvolvimento Energético – CDE (USO) | AP197: =SUM(DADOS_MercadoBase[CDE],DADOS_MercadoBase[RTE_CDE_E]) -> 47638564.18 | AR197: =Encargos!G22 -> 79267294.51 | AS197: 0 | AT197: 0 | AU197: 0 | AV197: =IF(SUM(AP197:AR197)<>0,1,0) -> 
AO198: Conta de Desenvolvimento Energético – CDE (Covid TUSD) | AP198: =SUM(DADOS_MercadoBase[covidTusdEco]) -> 9665575.593 | AR198: =Encargos!G23 -> 4188626.322 | AS198: 0 | AT198: 0 | AU198: 0
AO199: Conta de Desenvolvimento Energético – CDE (Covid TE) | AP199: =SUM(DADOS_MercadoBase[covidTeEco],DADOS_MercadoBase[RTE_CDE_E_ACR]) -> 4615240.925 | AR199: =Encargos!G24 -> 10199333.76 | AS199: 0 | AT199: 0 | AU199: 0
AO200: Compensação financeira - CFURH | AP200: =SUM(DADOS_MercadoBase[CFURH]) -> 0 | AR200: =Resultado!D24 -> 0 | AS200: 0 | AT200: 0 | AU200: 0
AO201: Encargos Serv. Sist. - ESS e Energ. Reserv. - EER | AP201: =SUM(DADOS_MercadoBase[ESSERR]) -> 23690808.91 | AR201: =Resultado!D25 -> 51462609.32 | AS201: 0 | AT201: 0 | AU201: 0
AO202: PROINFA | AP202: =SUM(DADOS_MercadoBase[PROINFA]) -> 20509520.93 | AR202: =Resultado!D26 -> 31991303.25 | AS202: 0 | AT202: 0 | AU202: 0 | AV202: =IF(SUM(AP202:AR202)<>0,1,0) -> 
AO203: P&D, Efic.Energ e Ressarc.ICMS Sist.Isol. | AP203: =SUM(DADOS_MercadoBase[PeD],DADOS_MercadoBase[RTE_PeD]) -> 13663032.07 | AR203: =Resultado!D27 -> 15596600.32 | AS203: 0 | AT203: 0 | AU203: 0
AO204: ONS | AP204: =Resultado!C28 -> 0 | AR204: =Resultado!D28 -> 0 | AS204: 0 | AT204: 0 | AU204: 0 | AV204: =IF(SUM(AP204:AR204)<>0,1,0) -> 
AO205: Custos de Transmissão | AP205: =SUM(AP206:AP213) -> 91427741.4 | AQ205: =SUM(AQ206:AQ213) ->  | AR205: =SUM(AR206:AR213) -> 111797805.1 | AS205: 0 | AT205: 0 | AU205: 0
AO206: Rede Básica | AP206: =SUM(DADOS_MercadoBase[TUST_RB]) -> 66554419.31 | AQ206: =AP206+AP206*($AQ$223-$AP$223)/$AP$194 ->  | AR206: =Resultado!D30 -> 79525940.43 | AS206: 0 | AT206: 0 | AU206: 0
AO207: Rede Básica Fronteira | AP207: =SUM(DADOS_MercadoBase[TUST_FR]) -> 19485362.31 | AR207: =Resultado!D31 -> 25257876.25 | AS207: 0 | AT207: 0 | AU207: 0
AO208: Rede Básica ONS (A2) | AP208: =SUM(DADOS_MercadoBase[TUSDG_ONS]) -> 227058.3487 | AR208: =Resultado!D32 -> 203709.43 | AS208: 0 | AT208: 0 | AU208: 0
AO209: Rede Básica Export. (A2) | AP209: =SUM(DADOS_MercadoBase[TUSDG_T]) -> 0 | AR209: =Resultado!D33 -> 0 | AS209: 0 | AT209: 0 | AU209: 0
AO210: MUST Itaipu | AP210: =SUM(DADOS_MercadoBase[TUST_ITAIPU]) -> 0 | AR210: =Resultado!D34 -> 0 | AS210: 0 | AT210: 0 | AU210: 0
AO211: Transporte de Itaipu | AP211: =SUM(DADOS_MercadoBase[ITAIPU]) -> 0 | AR211: =Resultado!D35 -> 0 | AS211: 0 | AT211: 0 | AU211: 0
AO212: Conexão | AP212: =SUM(DADOS_MercadoBase[Conexao_T]) -> 3201474.405 | AR212: =Resultado!D36 -> 5319985.345 | AS212: 0 | AT212: 0 | AU212: 0
AO213: Uso do sistema de distribuição | AP213: =SUM(DADOS_MercadoBase[CUSD],DADOS_MercadoBase[RTE_CUSD]) -> 1959427.022 | AR213: =Resultado!D37 -> 1490293.621 | AS213: 0 | AT213: 0 | AU213: 0
AO214: Custos de Aquisição de Energia | AP214: =SUM(DADOS_MercadoBase[RTE_Energia],DADOS_MercadoBase[EnergiaRevenda],DADOS_MercadoBase[perdasnt],DADOS_MercadoBase[perdasrb_d],DADOS_MercadoBase[perdasrb_c],DADOS_MercadoBase[perdastec]) -> 540197366.2 | AR214: =Resultado!D38 -> 611220082.4 | AS214: 0 | AT214: 0 | AU214: 0
AO215: Receitas Irrecuperáveis | AP215: =SUM(DADOS_MercadoBase[RI]) -> 8003978.268 | AR215: =Resultado!D39 -> 12163325.52 | AS215: 0 | AT215: 0 | AU215: 0 | AV215: =IF(SUM(AP215:AR215)<>0,1,0) -> 
AO216: PARCELA B | AP216: =SUM(AP217:AP222) ->  | AQ216: =AP216 ->  | AR216: =SUM(AR217:AR222) ->  | AS216: 0 | AT216: 0 | AU216: 0
AO217: Custos Operacionais | AP217: ='VPB e Fator X'!C107 ->  | AQ217: =AP217 ->  | AR217: =Resultado!G20*(1-Resultado!$G$26-Resultado!$G$27) ->  | AS217: 0 | AT217: 0 | AU217: 0
AO218: Anuidades | AP218: =Entrada!G63*('VPB e Fator X'!$C$102-'VPB e Fator X'!$C$107)/SUM(Entrada!$G$61:$G$63) ->  | AR218: =Resultado!G24*(1-Resultado!$G$26-Resultado!$G$27) ->  | AS218: 0 | AT218: 0 | AU218: 0
AO219: Remuneração | AP219: =Entrada!G61*('VPB e Fator X'!$C$102-'VPB e Fator X'!$C$107)/SUM(Entrada!$G$61:$G$63) ->  | AR219: =Resultado!G22*(1-Resultado!$G$26-Resultado!$G$27) ->  | AS219: 0 | AT219: 0 | AU219: 0
... 69 more rows

Sheet Mercado
B2: DADOS DE MERCADO DE ENERGIA E RECEITA VERIFICADA | G2: Anexo II | H2: =Resultado!$D$6 -> 0.1497496184
G3: Anexo I | H3: =Resultado!$D$8 -> 0.1143793988
M5: TipoMercado | R5: AnoMes
B6: Dados de Mercado | M6: Regular | R6: =DATE(YEAR(R8),MONTH(R8)-1,1) -> 44378
R7: AnoMes
B8: Descrição | C8: MERCADO (MWh) | D8: RECEITA (R$) | F8: DESCRIÇÃO | G8: POR DENTRO | J8: Critérios | L8: Para º de consumidores | R8: =DATE(YEAR(R10),MONTH(R10)-1,1) -> 44409
B9: FORNECIMENTO | C9: =SUM(C10:C16) -> 2091285.22 | D9: =SUM(D10:D16) -> 1349254879 | F9: ICMS | G9: =SUM(INDIRECT("DADOS_MercadoBase[ICMS]"))/(SUM(INDIRECT("DADOS_MercadoBase[ICMS]"),INDIRECT("DADOS_MercadoBase[PisPasep]"),INDIRECT("DADOS_MercadoBase[Cofins]"),INDIRECT("DADOS_MercadoBase[FinTotAj]"))+G20) -> 0.2286357361 | J9: Subgrupo | K9: OPÇÃO | M9: AnoMes | N9: Subgrupo | O9: OPÇÃO | R9: AnoMes
B10: A1 | C10: =DSUM(Mercado_Receita!A:AAA,"TUSD_E",J9:K10) -> 0 | D10: =DSUM(Mercado_Receita!A:AAA,"total",J9:K10) -> 0 | F10: PIS/COFINS | G10: =SUM(INDIRECT("DADOS_MercadoBase[Cofins]"),INDIRECT("DADOS_MercadoBase[PisPasep]"))/(SUM(INDIRECT("DADOS_MercadoBase[ICMS]"),INDIRECT("DADOS_MercadoBase[PisPasep]"),INDIRECT("DADOS_MercadoBase[Cofins]"),INDIRECT("DADOS_MercadoBase[FinTotAj]"))+G20) -> 0.03265871872 | J10: A1 | K10: Cativo | M10: =DMAX(MercadoBase,"AnoMes",M5:M6) -> 44652 | N10: A1 | O10: Suprimento | R10: =DATE(YEAR(R12),MONTH(R12)-1,1) -> 44440
B11: A2 | C11: =DSUM(Mercado_Receita!A:AAA,"TUSD_E",J11:K12) -> 9728.006 | D11: =DSUM(Mercado_Receita!A:AAA,"total",J11:K12) -> 3677800.585 | J11: Subgrupo | K11: OPÇÃO | M11: AnoMes | N11: Subgrupo | O11: OPÇÃO | P11: Subgrupo | R11: AnoMes
B12: A3 | C12: =DSUM(Mercado_Receita!A:AAA,"TUSD_E",J13:K14) -> 6.861 | D12: =DSUM(Mercado_Receita!A:AAA,"total",J13:K14) -> 38480.20042 | F12: MWh Ano Anterior | G12: =BD!C45 -> 2497510.553 | J12: A2 | K12: Cativo | M12: =$M$10 -> 44652 | N12: A2 | O12: Livre | P12: A1 | R12: =DATE(YEAR(R14),MONTH(R14)-1,1) -> 44470
B13: A3a | C13: =DSUM(Mercado_Receita!A:AAA,"TUSD_E",J15:K16) -> 97134.392 | D13: =DSUM(Mercado_Receita!A:AAA,"total",J15:K16) -> 54860050.76 | F13: Variação | G13: =C24/G12-1 -> 0.01165241002 | J13: Subgrupo | K13: OPÇÃO | M13: AnoMes | N13: Subgrupo | O13: OPÇÃO | R13: AnoMes
B14: A4 | C14: =DSUM(Mercado_Receita!A:AAA,"TUSD_E",J17:K18) -> 222620.31 | D14: =DSUM(Mercado_Receita!A:AAA,"total",J17:K18) -> 130886259.6 | F14: R$ Ano Anterior | G14: =BD!C46 -> 1481045101 | J14: ="=A3" -> =A3 | K14: Cativo | M14: =$M$10 -> 44652 | N14: ="=A3" -> =A3 | O14: Distribuição | R14: =DATE(YEAR(R16),MONTH(R16)-1,1) -> 44501
B15: As | C15: =DSUM(Mercado_Receita!A:AAA,"TUSD_E",J19:K20) -> 0 | D15: =DSUM(Mercado_Receita!A:AAA,"total",J19:K20) -> 0 | F15: Variação | G15: =D24/G14-1 -> -0.001735905501 | J15: Subgrupo | K15: OPÇÃO | M15: AnoMes | N15: Subgrupo | O15: OPÇÃO | R15: AnoMes
B16: BT | C16: =DSUM(Mercado_Receita!A:AAA,"TUSD_E",J21:K22) -> 1761795.651 | D16: =DSUM(Mercado_Receita!A:AAA,"total",J21:K22) -> 1159792288 | J16: ="=A3a" -> =A3a | K16: Cativo | M16: =$M$10 -> 44652 | N16: ="=A3a" -> =A3a | O16: Geração | R16: =DATE(YEAR(R18),MONTH(R18)-1,1) -> 44531
B17: SUPRIMENTO (Mercado TE) | C17: =DSUM(Mercado_Receita!A:AAA,"TE_E",O9:P10) -> 0 | D17: =DSUM(Mercado_Receita!A:AAA,"total",O9:P10) -> 0 | F17: Parâmetros de cálculo de RI | J17: Subgrupo | K17: OPÇÃO | M17: AnoMes | N17: Subgrupo | O17: OPÇÃO | R17: AnoMes
B18: LIVRES A1 | C18: =DSUM(Mercado_Receita!A:AAA,"TUSD_E",O11:P12) -> 0 | D18: =DSUM(Mercado_Receita!A:AAA,"total",O11:P12) -> 0 | F18: RR sem RI | G18: =SUM(Resultado!D19,Resultado!D29,Resultado!D38,Resultado!D45) -> 1687711760 | J18: A4 | K18: Cativo | M18: =$M$10 -> 44652 | N18: A4 | O18: Livre | R18: =DATE(YEAR(R20),MONTH(R20)-1,1) -> 44562
B19: DEMAIS LIVRES | C19: =DSUM(Mercado_Receita!A:AAA,"TUSD_E",O19:P20)+DSUM(Mercado_Receita!A:AAA,"TUSD_E",O17:P18)-C18 -> 425062.803 | D19: =DSUM(Mercado_Receita!A:AAA,"total",O19:P20)+DSUM(Mercado_Receita!A:AAA,"TOTAL",O17:P18)-D18 -> 104542082.9 | F19: Financeiros | G19: =Financeiros!D8 -> -52293955.25 | J19: Subgrupo | K19: OPÇÃO | M19: AnoMes | N19: Subgrupo | O19: OPÇÃO | R19: AnoMes
B20: DISTRIBUIÇÃO | C20: =DSUM(Mercado_Receita!A:AAA,"TUSD_E",O13:P14) -> 10264.547 | D20: =DSUM(Mercado_Receita!A:AAA,"total",O13:P14) -> 2641383.095 | F20: Receita Bandeiras | G20: =SUM(TabBand[Fat Bandeiras]) -> 195831527 | J20: AS | K20: Cativo | M20: =$M$10 -> 44652 | N20: AS | O20: erc | R20: =DATE(YEAR(R22),MONTH(R22)-1,1) -> 44593
B21: GERADOR | D21: =DSUM(Mercado_Receita!A:AAA,"total",O15:P16) -> 22035801.45 | J21: Subgrupo | K21: OPÇÃO | M21: AnoMes | N21: Subgrupo | R21: AnoMes
B22: CDE Baixa Renda | J22: ="=B*" -> =B* | K22: Cativo | M22: =$M$10 -> 44652 | N22: ="=B*" -> =B* | R22: =DATE(YEAR(R24),MONTH(R24)-1,1) -> 44621
B23: AJUSTE ECONÔMICO - BOLHA | J23: Subclasse | K23: OPÇÃO | R23: AnoMes
B24: TOTAL | C24: =SUM(C10:C23) -> 2526612.57 | D24: =SUM(D10:D23) -> 1478474147 | J24: ="=Residencial baixa renda*" -> =Residencial baixa renda* | K24: Cativo | R24: =DATE(YEAR(R26),MONTH(R26)-1,1) -> 44652 | T24: 119414.803
B25: ENERGIA DESTINADA APE/PIE | J25: Classe | L25: AnoMes | R25: AnoMes
B26: MERCADO TOTAL BAIXA RENDA | C26: =DSUM(Mercado_Receita!A:AAA,"TUSD_E",J23:K24) -> 261933.068 | J26: Residencial | L26: =$M$10 -> 44652 | R26: =DATE(YEAR(R28),MONTH(R28)-1,1) -> 44682
J27: Classe | L27: AnoMes | R27: AnoMes
B28: ="Fonte: SAMP - "&TEXT(L26,"mmmm/aa") -> Fonte: SAMP - abril/22 | J28: Industrial | L28: =$M$10 -> 44652 | R28: =B65 -> 44713
B29: DESCRIÇÃO - Tipo | C29: RECEITA (R$) | D29: % Total | E29: nº de consumidores | F29: MWh mensal | G29: Percentual RI | H29: Reais RI (c/tributos) | J29: Classe | L29: AnoMes
B30: Residencial | C30: =DSUM(Mercado_Receita!A:AAA,"total",J25:K26) -> 750995154.9 | D30: =IFERROR(C30/$C$38,0) -> 0.507952849 | E30: =DSUM(Mercado_Receita!$A:$AAA,"UC",$J$25:$L$26) -> 546267 | F30: =DSUM(Mercado_Receita!$A:$AAA,"TUSD_E",$J$25:$L$26) -> 91958.527 | G30: =BD!M67 -> 0.0067 | H30: =G30*C30/$D$24*SUM($G$18:$G$20)/(1-SUM($G$9:$G$10)) -> 8436733.356 | J30: Comercial | L30: =$M$10 -> 44652
B31: Industrial | C31: =DSUM(Mercado_Receita!A:AAA,"total",J27:K28) -> 150852477.8 | D31: 0.1020325436 | E31: =DSUM(Mercado_Receita!$A:$AAA,"UC",$J$27:$L$28) -> 1562 | F31: =DSUM(Mercado_Receita!$A:$AAA,"TUSD_E",$J$27:$L$28) -> 42681.109 | G31: =BD!M68 -> 0.0035 | H31: =G31*C31/$D$24*SUM($G$18:$G$20)/(1-SUM($G$9:$G$10)) -> 885284.5356 | J31: Classe | L31: AnoMes
B32: Comercial | C32: =DSUM(Mercado_Receita!A:AAA,"total",J29:K30) -> 239112992.8 | D32: 0.1617295733 | E32: =DSUM(Mercado_Receita!$A:$AAA,"UC",$J$29:$L$30) -> 34119 | F32: =DSUM(Mercado_Receita!$A:$AAA,"TUSD_E",$J$29:$L$30) -> 31763.398 | G32: =BD!M69 -> 0.0046 | H32: 1844265.289 | J32: Rural | L32: =$M$10 -> 44652
B33: Rural | C33: =DSUM(Mercado_Receita!A:AAA,"total",J31:K32) -> 147372357.7 | D33: 0.0996786843 | E33: =DSUM(Mercado_Receita!$A:$AAA,"UC",$J$31:$L$32) -> 46440 | F33: =DSUM(Mercado_Receita!$A:$AAA,"TUSD_E",$J$31:$L$32) -> 17026.635 | G33: =BD!M70 -> 0.0039 | H33: 963702.5854 | J33: Classe | L33: AnoMes
B34: Iluminação Pública | C34: =DSUM(Mercado_Receita!A:AAA,"total",J33:K34) -> 42182246.34 | D34: 0.02853093268 | E34: =DSUM(Mercado_Receita!$A:$AAA,"UC",$J$33:$L$34) -> 1261 | F34: =DSUM(Mercado_Receita!$A:$AAA,"TUSD_E",$J$33:$L$34) -> 9112.293 | G34: =BD!M71 -> 0 | H34: 0 | J34: Iluminação Pública | L34: =$M$10 -> 44652
B35: Poder Público | C35: =DSUM(Mercado_Receita!A:AAA,"total",J35:K36) -> 99419138.88 | D35: 0.06724442163 | E35: =DSUM(Mercado_Receita!$A:$AAA,"UC",$J$35:$L$36) -> 6949 | F35: =DSUM(Mercado_Receita!$A:$AAA,"TUSD_E",$J$35:$L$36) -> 13712.462 | G35: =BD!M72 -> 0.0002 | H35: 33339.75303 | J35: Classe | L35: AnoMes
B36: Serviço Público | C36: =DSUM(Mercado_Receita!A:AAA,"total",J37:K38) -> 21255428.65 | D36: 0.01437659813 | E36: =DSUM(Mercado_Receita!$A:$AAA,"UC",$J$37:$L$38) -> 1091 | F36: =DSUM(Mercado_Receita!$A:$AAA,"TUSD_E",$J$37:$L$38) -> 2787.397 | G36: =BD!M73 -> 0 | H36: 0 | J36: Poder Público | L36: =$M$10 -> 44652
B37: Demais | C37: =D24-SUM(C30:C36) -> 27284349.48 | D37: 0.01845439742 | E37: =DSUM(Mercado_Receita!A:AAA,"UC",$J$39:$L$40)-SUM(E$30:E$36) -> 234 | F37: =DSUM(Mercado_Receita!B:AAB,"TUSD_E",$J$39:$L$40)-SUM(F$30:F$36) -> 1615.319 | G37: =BD!M74 -> 0 | H37: 0 | J37: Classe | L37: AnoMes
B38: TOTAL | C38: =SUM(C30:C37) -> 1478474147 | D38: =SUM(D30:D37) -> 1 | E38: =SUM(E30:E37) -> 637923 | F38: =SUM(F30:F37) -> 210657.14 | H38: =SUM(H30:H37) -> 12163325.52 | J38: Serviço público | L38: =$M$10 -> 44652
E39: 638 | J39: Classe | L39: AnoMes
B40: nº de consumidores | J40: * | L40: =$M$10 -> 44652
B41: A1 | C41: =DSUM(Mercado_Receita!A:AAA,"UC",L9:N10) -> 0
B42: A2 | C42: =DSUM(Mercado_Receita!A:AAA,"UC",L11:N12) -> 8
B43: A3 | C43: =DSUM(Mercado_Receita!A:AAA,"UC",L13:N14) -> 1
B44: A3a | C44: =DSUM(Mercado_Receita!A:AAA,"UC",L15:N16) -> 469
B45: A4 | C45: =DSUM(Mercado_Receita!A:AAA,"UC",L17:N18) -> 915
B46: As | C46: =DSUM(Mercado_Receita!A:AAA,"UC",L19:N20) -> 0
B47: BT | C47: =DSUM(Mercado_Receita!A:AAA,"UC",L21:N22) -> 636530 | D47: =C47/E38 -> 0.9978163509
B52: Arrecadação dos Encargos
B53: Competência | D53: PeD | E53: ONS | F53: ESSERR | G53: PROINFA | H53: CDE | I53: TFSEE | J53: CFURH | K53: CVA_Energia | L53: CVA_RB | M53: CVA_CDE | N53: CVA_CFURH | O53: CVA_TranItaipu | P53: CVA_ESSERR | Q53: CVA_PROINFA | R53: Fator Selic | S53: RTE_Energia | T53: RTE_CDE_USO | U53: RTE_CDE_E | V53: RTE_CUSD | W53: RTE_PeD | X53: CVA_CovidTe_ou_CVA_CDE_E | Y53: CVA_CCC | Z53: DISTRIBUICAO | AA53: cDE_E_ACR | AB53: CDE_E_Dec
B54: =DATE(YEAR(B55),MONTH(B55)-1,1) -> 44378 | D54: =DSUM(MercadoBase,D$53,INDIRECT("r"&5+2*(ROW()-54)&":r"&6+2*(ROW()-54))) -> 1144152.545 | E54: 0 | F54: 2031416.61 | G54: 1755034.291 | H54: 4069732.453 | I54: 241936.8968 | J54: 0 | K54: 1632755.182 | L54: 917098.9014 | M54: 531845.9364 | N54: 0 | O54: 0 | P54: 274866.831 | Q54: 199811.2725 | R54: =VLOOKUP(CAPA!$C$15,Índices!B:F,5,FALSE)/VLOOKUP(DATE(YEAR(B54),MONTH(B54),1),Índices!B:F,5,FALSE) -> 1.083059398 | S54: =DSUM(MercadoBase,S$53,INDIRECT("r"&5+2*(ROW()-54)&":r"&6+2*(ROW()-54))) -> 0 | T54: 0 | U54: 0 | V54: 0 | W54: 0 | X54: -120960.128 | Y54: 0 | Z54: =DSUM(MercadoBase,Z$53,INDIRECT("r"&5+2*(ROW()-54)&":r"&6+2*(ROW()-54))) -> 59097543.77 | AA54: =DSUM(MercadoBase,AA$53,INDIRECT("r"&5+2*(ROW()-54)&":r"&6+2*(ROW()-54))) -> 0 | AB54: 0
B55: 44409 | D55: 1162865.203 | E55: 0 | F55: 2063571.406 | G55: 1832784.871 | H55: 4223229.578 | I55: 246629.9999 | J55: 0 | K55: 1659005.389 | L55: 936674.932 | M55: 551905.4423 | N55: 0 | O55: 0 | P55: 279217.6308 | Q55: 208663.2034 | R55: =VLOOKUP(CAPA!$C$15,Índices!B:F,5,FALSE)/VLOOKUP(DATE(YEAR(B55),MONTH(B55),1),Índices!B:F,5,FALSE) -> 1.07844417 | S55: 0 | T55: 0 | U55: 0 | V55: 0 | W55: 0 | X55: -122874.7763 | Y55: 0 | Z55: 60041557.5 | AA55: 0 | AB55: 0
B56: 44440 | D56: 1255261.243 | E56: 0 | F56: 2198557.545 | G56: 1931242.494 | H56: 4474188.451 | I56: 262706.7721 | J56: 0 | K56: 1772100.723 | L56: 997348.4518 | M56: 584701.5679 | N56: 0 | O56: 0 | P56: 297482.3296 | Q56: 219872.6385 | R56: =VLOOKUP(CAPA!$C$15,Índices!B:F,5,FALSE)/VLOOKUP(DATE(YEAR(B56),MONTH(B56),1),Índices!B:F,5,FALSE) -> 1.07369843 | S56: 0 | T56: 0 | U56: 0 | V56: 0 | W56: 0 | X56: -130912.4878 | Y56: 0 | Z56: 64936098.05 | AA56: 0 | AB56: 0
B57: 44470 | D57: 1227481.751 | E57: 0 | F57: 2121675.502 | G57: 1845996.401 | H57: 4292596.525 | I57: 255897.5632 | J57: 0 | K57: 1714110.158 | L57: 978468.4974 | M57: 560970.5417 | N57: 0 | O57: 0 | P57: 287079.5773 | Q57: 210167.3408 | R57: =VLOOKUP(CAPA!$C$15,Índices!B:F,5,FALSE)/VLOOKUP(DATE(YEAR(B57),MONTH(B57),1),Índices!B:F,5,FALSE) -> 1.068505534 | S57: 0 | T57: 0 | U57: 0 | V57: 0 | W57: 0 | X57: -126334.5682 | Y57: 0 | Z57: 63800706.27 | AA57: 0 | AB57: 0
B58: 44501 | D58: 1159626.567 | E58: 0 | F58: 1976515.396 | G58: 1767103.486 | H58: 4098230.256 | I58: 244583.9604 | J58: 0 | K58: 1602938.821 | L58: 957845.905 | M58: 535570.1225 | N58: 0 | O58: 0 | P58: 267438.26 | Q58: 201185.3545 | R58: =VLOOKUP(CAPA!$C$15,Índices!B:F,5,FALSE)/VLOOKUP(DATE(YEAR(B58),MONTH(B58),1),Índices!B:F,5,FALSE) -> 1.062272659 | S58: 0 | T58: 0 | U58: 0 | V58: 0 | W58: 0 | X58: -117691.0508 | Y58: 0 | Z58: 60897448.27 | AA58: 0 | AB58: 0
B59: 44531 | D59: 1131380.565 | E59: 0 | F59: 1926443.486 | G59: 1694273.177 | H59: 3934068.277 | I59: 236974.3376 | J59: 0 | K59: 1561099.117 | L59: 933823.3707 | M59: 514116.8986 | N59: 0 | O59: 0 | P59: 260663.1321 | Q59: 192893.5983 | R59: =VLOOKUP(CAPA!$C$15,Índices!B:F,5,FALSE)/VLOOKUP(DATE(YEAR(B59),MONTH(B59),1),Índices!B:F,5,FALSE) -> 1.054165253 | S59: 0 | T59: 0 | U59: 0 | V59: 0 | W59: 0 | X59: -114709.533 | Y59: 0 | Z59: 59464038.27 | AA59: 0 | AB59: 0
B60: 44562 | D60: 1037751.523 | E60: 0 | F60: 1765965.168 | G60: 1557414.333 | H60: 3604599.325 | I60: 218463.9029 | J60: 0 | K60: 1430353.902 | L60: 835505.1544 | M60: 471060.8192 | N60: 0 | O60: 0 | P60: 238949.1388 | Q60: 177312.1706 | R60: =VLOOKUP(CAPA!$C$15,Índices!B:F,5,FALSE)/VLOOKUP(DATE(YEAR(B60),MONTH(B60),1),Índices!B:F,5,FALSE) -> 1.046502029 | S60: 0 | T60: 0 | U60: 0 | V60: 0 | W60: 0 | X60: -105153.8969 | Y60: 0 | Z60: 54713866.97 | AA60: 0 | AB60: 0
B61: 44593 | D61: 1006124.086 | E61: 0 | F61: 1732153.553 | G61: 1500333.936 | H61: 3472380.589 | I61: 211588.2118 | J61: 0 | K61: 1398978.504 | L61: 842112.3737 | M61: 453782.0428 | N61: 0 | O61: 0 | P61: 234374.1582 | Q61: 170813.5473 | R61: =VLOOKUP(CAPA!$C$15,Índices!B:F,5,FALSE)/VLOOKUP(DATE(YEAR(B61),MONTH(B61),1),Índices!B:F,5,FALSE) -> 1.038659722 | S61: 0 | T61: 0 | U61: 0 | V61: 0 | W61: 0 | X61: -103140.5938 | Y61: 0 | Z61: 53384990.07 | AA61: 0 | AB61: 0
B62: 44621 | D62: 1124519.776 | E62: 0 | F62: 1953695.282 | G62: 1625206.622 | H62: 3791137.646 | I62: 233816.7353 | J62: 0 | K62: 1575201.207 | L62: 929304.3743 | M62: 495438.2566 | N62: 0 | O62: 0 | P62: 264350.5169 | Q62: 185030.3466 | R62: =VLOOKUP(CAPA!$C$15,Índices!B:F,5,FALSE)/VLOOKUP(DATE(YEAR(B62),MONTH(B62),1),Índices!B:F,5,FALSE) -> 1.029119233 | S62: 0 | T62: 0 | U62: 0 | V62: 0 | W62: 0 | X62: -116332.2335 | Y62: 0 | Z62: =DSUM(MercadoBase,Z$53,INDIRECT("r"&5+2*(ROW()-54)&":r"&6+2*(ROW()-54))) -> 59232040.48 | AA62: 0 | AB62: 0
B63: 44652 | D63: 1137956.271 | E63: 0 | F63: 1973604.986 | G63: 1666710.441 | H63: 3892800.361 | I63: 239247.1655 | J63: 0 | K63: =DSUM(MercadoBase,K$53,INDIRECT("r"&5+2*(ROW()-54)&":r"&6+2*(ROW()-54)))*IF(VLOOKUP("MesesAdin",TabPostergacao[#All],2,FALSE)>2,0,1) -> 1593059.22 | L63: =DSUM(MercadoBase,L$53,INDIRECT("r"&5+2*(ROW()-54)&":r"&6+2*(ROW()-54)))*IF(VLOOKUP("MesesAdin",TabPostergacao[#All],2,FALSE)>2,0,1) -> 965738.7732 | M63: =DSUM(MercadoBase,M$53,INDIRECT("r"&5+2*(ROW()-54)&":r"&6+2*(ROW()-54)))*IF(VLOOKUP("MesesAdin",TabPostergacao[#All],2,FALSE)>2,0,1) -> 508723.8725 | N63: =DSUM(MercadoBase,N$53,INDIRECT("r"&5+2*(ROW()-54)&":r"&6+2*(ROW()-54)))*IF(VLOOKUP("MesesAdin",TabPostergacao[#All],2,FALSE)>2,0,1) -> 0 | O63: =DSUM(MercadoBase,O$53,INDIRECT("r"&5+2*(ROW()-54)&":r"&6+2*(ROW()-54)))*IF(VLOOKUP("MesesAdin",TabPostergacao[#All],2,FALSE)>2,0,1) -> 0 | P63: =DSUM(MercadoBase,P$53,INDIRECT("r"&5+2*(ROW()-54)&":r"&6+2*(ROW()-54)))*IF(VLOOKUP("MesesAdin",TabPostergacao[#All],2,FALSE)>2,0,1) -> 267044.4583 | Q63: =DSUM(MercadoBase,Q$53,INDIRECT("r"&5+2*(ROW()-54)&":r"&6+2*(ROW()-54)))*IF(VLOOKUP("MesesAdin",TabPostergacao[#All],2,FALSE)>2,0,1) -> 189755.571 | R63: =VLOOKUP(CAPA!$C$15,Índices!B:F,5,FALSE)/VLOOKUP(DATE(YEAR(B63),MONTH(B63),1),Índices!B:F,5,FALSE) -> 1.020604123 | S63: 0 | T63: 0 | U63: 0 | V63: 0 | W63: 0 | X63: -117517.7512 | Y63: 0 | Z63: 60208308.45 | AA63: 0 | AB63: 0
B64: 44682 | D64: =DSUM(MercadoBase,D$53,INDIRECT("r"&5+2*(ROW()-54)&":r"&6+2*(ROW()-54))) -> 1137956.271 | E64: 0 | F64: 1973604.986 | G64: 1666710.441 | H64: 3892800.361 | I64: 239247.1655 | J64: 0 | K64: =DSUM(MercadoBase,K$53,INDIRECT("r"&5+2*(ROW()-54)&":r"&6+2*(ROW()-54)))*IF(VLOOKUP("MesesAdin",TabPostergacao[#All],2,FALSE)>1,0,1) -> 1593059.22 | L64: =DSUM(MercadoBase,L$53,INDIRECT("r"&5+2*(ROW()-54)&":r"&6+2*(ROW()-54)))*IF(VLOOKUP("MesesAdin",TabPostergacao[#All],2,FALSE)>1,0,1) -> 965738.7732 | M64: =DSUM(MercadoBase,M$53,INDIRECT("r"&5+2*(ROW()-54)&":r"&6+2*(ROW()-54)))*IF(VLOOKUP("MesesAdin",TabPostergacao[#All],2,FALSE)>1,0,1) -> 508723.8725 | N64: =DSUM(MercadoBase,N$53,INDIRECT("r"&5+2*(ROW()-54)&":r"&6+2*(ROW()-54)))*IF(VLOOKUP("MesesAdin",TabPostergacao[#All],2,FALSE)>1,0,1) -> 0 | O64: =DSUM(MercadoBase,O$53,INDIRECT("r"&5+2*(ROW()-54)&":r"&6+2*(ROW()-54)))*IF(VLOOKUP("MesesAdin",TabPostergacao[#All],2,FALSE)>1,0,1) -> 0 | P64: =DSUM(MercadoBase,P$53,INDIRECT("r"&5+2*(ROW()-54)&":r"&6+2*(ROW()-54)))*IF(VLOOKUP("MesesAdin",TabPostergacao[#All],2,FALSE)>1,0,1) -> 267044.4583 | Q64: =DSUM(MercadoBase,Q$53,INDIRECT("r"&5+2*(ROW()-54)&":r"&6+2*(ROW()-54)))*IF(VLOOKUP("MesesAdin",TabPostergacao[#All],2,FALSE)>1,0,1) -> 189755.571 | R64: =VLOOKUP(CAPA!$C$15,Índices!B:F,5,FALSE)/VLOOKUP(DATE(YEAR(B64),MONTH(B64),1),Índices!B:F,5,FALSE) -> 1.010153156 | S64: =DSUM(MercadoBase,S$53,INDIRECT("r"&5+2*(ROW()-54)&":r"&6+2*(ROW()-54))) -> 0 | T64: 0 | U64: 0 | V64: 0 | W64: 0 | X64: -117517.7512 | Y64: 0 | Z64: =DSUM(MercadoBase,Z$53,INDIRECT("r"&5+2*(ROW()-54)&":r"&6+2*(ROW()-54))) -> 60208308.45 | AA64: =DSUM(MercadoBase,AA$53,INDIRECT("r"&5+2*(ROW()-54)&":r"&6+2*(ROW()-54))) -> 0 | AB64: 0
B65: =DATE(YEAR(CAPA!$C$10),MONTH(CAPA!$C$10)-1,1) -> 44713 | D65: 1137956.271 | E65: 0 | F65: 1973604.986 | G65: 1666710.441 | H65: 3892800.361 | I65: 239247.1655 | J65: 0 | K65: =DSUM(MercadoBase,K$53,INDIRECT("r"&5+2*(ROW()-54)&":r"&6+2*(ROW()-54)))*IF(VLOOKUP("MesesAdin",TabPostergacao[#All],2,FALSE)>0,0,1) -> 1593059.22 | L65: =DSUM(MercadoBase,L$53,INDIRECT("r"&5+2*(ROW()-54)&":r"&6+2*(ROW()-54)))*IF(VLOOKUP("MesesAdin",TabPostergacao[#All],2,FALSE)>0,0,1) -> 965738.7732 | M65: =DSUM(MercadoBase,M$53,INDIRECT("r"&5+2*(ROW()-54)&":r"&6+2*(ROW()-54)))*IF(VLOOKUP("MesesAdin",TabPostergacao[#All],2,FALSE)>0,0,1) -> 508723.8725 | N65: =DSUM(MercadoBase,N$53,INDIRECT("r"&5+2*(ROW()-54)&":r"&6+2*(ROW()-54)))*IF(VLOOKUP("MesesAdin",TabPostergacao[#All],2,FALSE)>0,0,1) -> 0 | O65: =DSUM(MercadoBase,O$53,INDIRECT("r"&5+2*(ROW()-54)&":r"&6+2*(ROW()-54)))*IF(VLOOKUP("MesesAdin",TabPostergacao[#All],2,FALSE)>0,0,1) -> 0 | P65: =DSUM(MercadoBase,P$53,INDIRECT("r"&5+2*(ROW()-54)&":r"&6+2*(ROW()-54)))*IF(VLOOKUP("MesesAdin",TabPostergacao[#All],2,FALSE)>0,0,1) -> 267044.4583 | Q65: =DSUM(MercadoBase,Q$53,INDIRECT("r"&5+2*(ROW()-54)&":r"&6+2*(ROW()-54)))*IF(VLOOKUP("MesesAdin",TabPostergacao[#All],2,FALSE)>0,0,1) -> 189755.571 | R65: =VLOOKUP(CAPA!$C$15,Índices!B:F,5,FALSE)/VLOOKUP(DATE(YEAR(B65),MONTH(B65),1),Índices!B:F,5,FALSE) -> 1 | S65: 0 | T65: 0 | U65: 0 | V65: 0 | W65: 0 | X65: -117517.7512 | Y65: 0 | Z65: 60208308.45 | AA65: 0 | AB65: 0
B66: Total Bruto | D66: =SUM(D54:D65) -> 13663032.07 | E66: =SUM(E54:E65) -> 0 | F66: 23690808.91 | G66: =SUM(G54:G65) -> 20509520.93 | H66: 47638564.18 | I66: 2870339.876 | J66: 0 | K66: 19125720.66 | L66: 11225398.28 | M66: 6225563.245 | N66: 0 | O66: 0 | P66: 3205554.95 | Q66: 2335016.185 | S66: =SUM(S54:S65) -> 0 | T66: 0 | U66: 0 | V66: 0 | W66: 0 | X66: -1410662.522 | Y66: 0 | Z66: 716193215 | AA66: 0 | AB66: 0
B67: Total Atualizado pelo SELIC | D67: =SUMPRODUCT(D54:D65,$R$54:$R$65) -> 14314278.93 | E67: 0 | F67: 24822896.58 | G67: 21498681.46 | H67: 49931975.64 | I67: 3007245.951 | J67: 0 | K67: 20039344.58 | L67: 11753983.2 | M67: 6525273.749 | N67: 0 | O67: 0 | P67: 3358735.419 | Q67: 2447632.459 | R67: 13.16538855 | S67: 0 | T67: 0 | U67: 0 | V67: 0 | W67: 0 | X67: -1478072.362 | Y67: 0 | Z67: 750166042.2 | AA67: 0 | AB67: 0

Sheet Apresentação
B2: Efeito Médio | L2: Efeito Médio CP x Final | U2: Composição Tarifária - Tributos | Z2: Composição Tarifária - ICMS & PIS/COFINS | AD2: Composição Tarifária - sem Tributos
BX7: Área de Concessão | BY7: Estado do Tocantins
BX8: Faturamento Anual | BY8: R$ 1,4 bilhões
BX9: Unidades consumidoras | BY9: 637 mil
BX10: Baixa Tensão | BY10: =Mercado!D47 -> 0.9978163509
U19: =Z19 -> Custo de Distribuição | W19: =AB19 -> 0.3489497555 | Z19: Custo de Distribuição | AB19: =AF19/$AB$26 -> 0.3489497555 | AD19: Custo de Distribuição | AF19: ='Votos e NTs'!W24 -> 802987062.2
U20: =Z20 -> Custo de Energia | W20: =AB20 -> 0.2656146137 | Z20: Custo de Energia | AB20: =AF20/$AB$26 -> 0.2656146137 | AD20: Custo de Energia | AF20: ='Votos e NTs'!W25 -> 611220082.4 | AP20: Custos Operacionais | AS20: ='NT Revisao'!AT217 -> 0
U21: =Z21 -> Custo de Transporte | W21: =AB21 -> 0.048583369 | Z21: Custo de Transporte | AB21: =AF21/$AB$26 -> 0.048583369 | AD21: Custo de Transporte | AF21: ='Votos e NTs'!W26 -> 111797805.1 | AP21: Anuidades | AS21: ='NT Revisao'!AT218 -> 0
U22: =Z22 -> Encargos Setoriais | W22: =AB22 -> 0.0702720563 | Z22: Encargos Setoriais | AB22: =SUM(AF23:AF26/$AB$26) -> 0.0702720563 | AD22: Receitas Irrecuperáveis | AF22: ='Votos e NTs'!W27 -> 12163325.52 | AP22: Remuneração | AS22: ='NT Revisao'!AT219 -> 0
C23: Impacto da RTA na Tarifa | M23: Impacto da RTA na Tarifa | P23: CP | Q23: Final | U23: =Z23 -> Receitas Irrecuperáveis | W23: =AB23 -> 0.005285750749 | Z23: Receitas Irrecuperáveis | AB23: =AF22/$AB$26 -> 0.005285750749 | AD23: PROINFA | AF23: ='Votos e NTs'!W28 -> 31991303.25 | AP23: Depreciação | AS23: ='NT Revisao'!AT220 -> 0
C24: Encargos Setoriais | F24: =IF(CAPA!C7="Reajuste",'Votos e NTs'!BP269,'NT Revisao'!AT195) -> 0.02641502206 | M24: Encargos Setoriais | P24: ='AP x Final'!I4 ->  | Q24: =F24 -> 0.02641502206 | U24: Tributos | W24: =AB24+AB25 -> 0.2612944548 | Z24: ICMS | AB24: ='Votos e NTs'!R29 -> 0.2286357361 | AD24: CDE | AF24: ='Votos e NTs'!W29 -> 59430254.59 | AP24: UDEROR | AS24: ='NT Revisao'!AT221 -> 0
C25: Transporte | F25: =IF(CAPA!C7="Reajuste",'Votos e NTs'!BP279,'NT Revisao'!AT205) -> 0.01377786149 | M25: Custos de Transporte | P25: ='AP x Final'!I14 ->  | Q25: 0.01377786149 | Z25: PIS/COFINS | AB25: ='Votos e NTs'!R30 -> 0.03265871872 | AD25: ESS/EER | AF25: ='Votos e NTs'!W30 -> 51462609.32 | AP25: Parcela B | AS25: =SUM(AS20:AS24) -> 0
C26: Compra de Energia | F26: =IF(CAPA!C7="Reajuste",'Votos e NTs'!BP288,'NT Revisao'!AT214) -> 0.04803844074 | M26: Custos de Compra de Energia | P26: ='AP x Final'!I23 ->  | Q26: 0.04803844074 | Z26: TOTAL com tributos | AB26: =AF27/(1-AB24-AB25) -> 2301153818 | AD26: Outros | AF26: ='Votos e NTs'!W31 -> 18822643.52
C27: Receitas Irrecuperáveis | F27: =IF(CAPA!C7="Reajuste",'Votos e NTs'!BP288,'NT Revisao'!AT215) -> 0.04803844074 | M27: Receitas Irrecuperáveis | P27: ='AP x Final'!I24 ->  | Q27: 0.04803844074 | AD27: TOTAL | AF27: =SUM(AF19:AF26) -> 1699875086
C28: Distribuição | F28: =IF(CAPA!C7="Reajuste",'Votos e NTs'!BP289,'NT Revisao'!AT216) -> 0.002813278979 | M28: Distribuição | P28: ='AP x Final'!I25 ->  | Q28: 0.002813278979
C29: Componentes Financeiros | F29: =IF(CAPA!C7="Reajuste",'Votos e NTs'!BP293,'NT Revisao'!AT225)+F14 -> -0.03537021961 | M29: Componentes Financeiros | P29: ='AP x Final'!I33 ->  | Q29: -0.03537021961
C30: Retirada dos Financeiros Anteriores | F30: =IF(CAPA!C7="Reajuste",'Votos e NTs'!BP345,'NT Revisao'!AT277) -> 0.03340934879 | M30: Efeito da Retirada dos Financeiros Anteriores | P30: =P31-SUM(P24:P29) ->  | Q30: =F30 -> 0.03340934879
C31: Efeito Médio Consumidor | F31: =IF(CAPA!C7="Reajuste",'Votos e NTs'!BP346,'NT Revisao'!AT278) -> 0.1477887476 | M31: Efeito Médio Consumidor | P31: ='AP x Final'!I71 -> 0 | Q31: =F31 -> 0.1477887476
C34: Efeito Subgrupo
C35: SUBGRUPO | D35: EFEITO
C36: Grupo A | D36: =Resultado!L8 -> 0.1584999656
C37: Grupo B | D37: =Resultado!L9 -> 0.145303122
C38: Grupos A+B | D38: =Resultado!L10 -> 0.1477887476
F40: Compra de Energia
F41: Contratos | G41: Montantes (MWh) | J41: Preço (R$/MWh) | M41: Impacto Processo
G42: Processo Anterior | H42: Processo Atual | I42: Variação | J42: Processo Anterior | K42: Processo Atual | L42: Variação | N42: Colunas1
F43: CCEAR | G43: =(SUM('Votos e NTs'!BT352:BT355)+'Votos e NTs'!BT$365*SUM('Votos e NTs'!BT352:BT355)/SUM('Votos e NTs'!BT$352:BT$363)) -> 1313646.678 | H43: =(SUM('Votos e NTs'!BU352:BU355)+'Votos e NTs'!BU$365*SUM('Votos e NTs'!BU352:BU355)/SUM('Votos e NTs'!BU$352:BU$363)) -> 1352108.032 | I43: =IFERROR(H43/G43-1,"") -> 0.02927830904 | J43: =IFERROR(SUM('Votos e NTs'!BZ352:BZ355)/SUM('Votos e NTs'!BT352:BT355),"") -> 260.5926787 | K43: =IFERROR(SUM('Votos e NTs'!CA352:CA355)/SUM('Votos e NTs'!BU352:BU355),"") -> 286.6100587 | L43: =IFERROR(K43/J43-1,"") -> 0.09983925931 | M43: =SUM('Votos e NTs'!CG372:CG375) -> 0.02663118279 | N43: =IF(G43+H43=0,0,1) -> 1
F44: Ajuste - CCEAR | G44: =('Votos e NTs'!BT356+'Votos e NTs'!BT$365*'Votos e NTs'!BT356/SUM('Votos e NTs'!$BT$352:$BT$363)) -> 0 | H44: =('Votos e NTs'!BU356+'Votos e NTs'!BU$365*'Votos e NTs'!BU356/SUM('Votos e NTs'!$BU$352:$BU$363)) -> 0 | J44: =IFERROR('Votos e NTs'!BZ356/'Votos e NTs'!BT356,"") ->  | K44: =IFERROR('Votos e NTs'!CA356/'Votos e NTs'!BU356,"") ->  | L44: =IFERROR(K44/J44-1,"") ->  | M44: ='Votos e NTs'!CG376 -> 0 | N44: 0
F45: Madeira e Belo Monte | G45: =('Votos e NTs'!BT357+'Votos e NTs'!BT$365*'Votos e NTs'!BT357/SUM('Votos e NTs'!$BT$352:$BT$363)) -> 181336.5609 | H45: =('Votos e NTs'!BU357+'Votos e NTs'!BU$365*'Votos e NTs'!BU357/SUM('Votos e NTs'!$BU$352:$BU$363)) -> 173305.0503 | I45: -0.04429063005 | J45: =IFERROR('Votos e NTs'!BZ357/'Votos e NTs'!BT357,"") -> 150.7188758 | K45: =IFERROR('Votos e NTs'!CA357/'Votos e NTs'!BU357,"") -> 167.1677376 | L45: =IFERROR(K45/J45-1,"") -> 0.1091360433 | M45: ='Votos e NTs'!CG377 -> 0.001908933214 | N45: 1
F46: Cota Angra I e Angra II | G46: =('Votos e NTs'!BT358+'Votos e NTs'!BT$365*'Votos e NTs'!BT358/SUM('Votos e NTs'!$BT$352:$BT$363)) -> 86668.46623 | H46: =('Votos e NTs'!BU358+'Votos e NTs'!BU$365*'Votos e NTs'!BU358/SUM('Votos e NTs'!$BU$352:$BU$363)) -> 88209.17707 | I46: 0.01777706362 | J46: =IFERROR('Votos e NTs'!BZ358/'Votos e NTs'!BT358,"") -> 249.64 | K46: =IFERROR('Votos e NTs'!CA358/'Votos e NTs'!BU358,"") -> 349.15 | L46: =IFERROR(K46/J46-1,"") -> 0.3986140042 | M46: ='Votos e NTs'!CG378 -> 0.006009589919 | N46: 1
F47: Cotas Lei n º 12.783/2013 | G47: =('Votos e NTs'!BT359+'Votos e NTs'!BT$365*'Votos e NTs'!BT359/SUM('Votos e NTs'!$BT$352:$BT$363)) -> 683201.328 | H47: =('Votos e NTs'!BU359+'Votos e NTs'!BU$365*'Votos e NTs'!BU359/SUM('Votos e NTs'!$BU$352:$BU$363)) -> 662725.4799 | I47: -0.02997044552 | J47: =IFERROR('Votos e NTs'!BZ359/'Votos e NTs'!BT359,"") -> 118.51 | K47: =IFERROR('Votos e NTs'!CA359/'Votos e NTs'!BU359,"") -> 137.08 | L47: =IFERROR(K47/J47-1,"") -> 0.1566956375 | M47: ='Votos e NTs'!CG379 -> 0.007621539505 | N47: 1
F48: Itaipu | G48: =('Votos e NTs'!BT360+'Votos e NTs'!BT$365*'Votos e NTs'!BT360/SUM('Votos e NTs'!$BT$352:$BT$363)) -> 0 | H48: =('Votos e NTs'!BU360+'Votos e NTs'!BU$365*'Votos e NTs'!BU360/SUM('Votos e NTs'!$BU$352:$BU$363)) -> 0 | J48: =IFERROR('Votos e NTs'!BZ360/'Votos e NTs'!BT360,"") ->  | K48: =IFERROR('Votos e NTs'!CA360/'Votos e NTs'!BU360,"") ->  | M48: ='Votos e NTs'!CG380 -> 0 | N48: 0
F49: Bilateral | G49: =('Votos e NTs'!BT361+'Votos e NTs'!BT$365*'Votos e NTs'!BT361/SUM('Votos e NTs'!$BT$352:$BT$363)) -> 217387.4154 | H49: =('Votos e NTs'!BU361+'Votos e NTs'!BU$365*'Votos e NTs'!BU361/SUM('Votos e NTs'!$BU$352:$BU$363)) -> 207759.1898 | I49: -0.04429063005 | J49: =IFERROR('Votos e NTs'!BZ361/'Votos e NTs'!BT361,"") -> 311.5477473 | K49: =IFERROR('Votos e NTs'!CA361/'Votos e NTs'!BU361,"") -> 351.7373362 | L49: 0.1289997736 | M49: ='Votos e NTs'!CG381 -> 0.005591360208 | N49: 1
F50: Geração Própria | G50: =('Votos e NTs'!BT362+'Votos e NTs'!BT$365*'Votos e NTs'!BT362/SUM('Votos e NTs'!$BT$352:$BT$363)) -> 0 | H50: =('Votos e NTs'!BU362+'Votos e NTs'!BU$365*'Votos e NTs'!BU362/SUM('Votos e NTs'!$BU$352:$BU$363)) -> 0 | J50: =IFERROR('Votos e NTs'!BZ362/'Votos e NTs'!BT362,"") ->  | K50: =IFERROR('Votos e NTs'!CA362/'Votos e NTs'!BU362,"") ->  | M50: ='Votos e NTs'!CG382 -> 0 | N50: 0
F51: Montante de Reposição | G51: =('Votos e NTs'!BT363+'Votos e NTs'!BT$365*'Votos e NTs'!BT363/SUM('Votos e NTs'!$BT$352:$BT$363)) -> 0 | H51: =('Votos e NTs'!BU363+'Votos e NTs'!BU$365*'Votos e NTs'!BU363/SUM('Votos e NTs'!$BU$352:$BU$363)) -> 0 | J51: =IFERROR('Votos e NTs'!BZ363/'Votos e NTs'!BT363,"") ->  | K51: =IFERROR('Votos e NTs'!CA363/'Votos e NTs'!BU363,"") ->  | M51: ='Votos e NTs'!CG383 -> 0 | N51: 0
F52: Proinfa | G52: ='Votos e NTs'!BT364 -> 52829.06067 | H52: ='Votos e NTs'!BU364 -> 50962.58073 | I52: -0.03533055336 | J52: 0 | K52: 0 | M52: ='Votos e NTs'!CG384 -> 0.0002758351029 | N52: 1
F53: Total | G53: =SUM(G43:G52) -> 2535069.509 | H53: =SUM(H43:H52) -> 2535069.509 | I53: 4.440892099e-16 | J53: ='Votos e NTs'!BW366 -> 213.0894193 | K53: ='Votos e NTs'!BX366 -> 241.1058475 | L53: 0.131477331 | M53: =SUM(M43:M52) -> 0.04803844074
O55: Encargos Setoriais
O56: Encargos Setoriais | P56: Processo Anterior (mil R$) | Q56: Processo Atual (mil R$) | R56: Impacto Processo | S56: Colunas1
O57: TFSEE | P57: ='Votos e NTs'!BM270/1000 -> 2870.33522 | Q57: ='Votos e NTs'!BN270/1000 -> 3226.0432 | R57: ='Votos e NTs'!BP270 -> 0.0002405912752 | S57: =IF(P57+Q57=0,0,1) -> 1
O58: CDE (USO) | P58: ='Votos e NTs'!BM271/1000 -> 47638.48689 | Q58: ='Votos e NTs'!BN271/1000 -> 79267.29451 | R58: ='Votos e NTs'!BP271 -> 0.02139287163 | S58: 1
O59: CDE Conta Covid (TUSD) | P59: ='Votos e NTs'!BM272/1000 -> 9665.559911 | Q59: ='Votos e NTs'!BN272/1000 -> 4188.626322 | R59: ='Votos e NTs'!BP272 -> -0.003704450025 | S59: 1
O60: CDE Conta Covid (TE) | P60: =IF('Votos e NTs'!BM273/1000<1,0,'Votos e NTs'!BM273/1000) -> 4615.233437 | Q60: ='Votos e NTs'!BN273/1000 -> 10199.33376 | R60: ='Votos e NTs'!BP273 -> 0.003776934709 | S60: 1
O61: Compensação financeira - CFURH | P61: ='Votos e NTs'!BM274/1000 -> 0 | Q61: ='Votos e NTs'!BN274/1000 -> -34225 | R61: ='Votos e NTs'!BP274 -> -0.02314886606 | S61: 1
O62: ESS/EER | P62: ='Votos e NTs'!BM275/1000 -> 23690.77047 | Q62: ='Votos e NTs'!BN275/1000 -> 51462.60932 | R62: ='Votos e NTs'!BP275 -> 0.01878412207 | S62: 1
O63: PROINFA | P63: ='Votos e NTs'!BM276/1000 -> 20509.48766 | Q63: ='Votos e NTs'!BN276/1000 -> 31991.30325 | R63: ='Votos e NTs'!BP276 -> 0.007765990105 | S63: 1
O64: P&D | P64: ='Votos e NTs'!BM277/1000 -> 13663.0099 | Q64: ='Votos e NTs'!BN277/1000 -> 15596.60032 | R64: ='Votos e NTs'!BP277 -> 0.001307828358 | S64: 1
O65: ONS | P65: ='Votos e NTs'!BM278/1000 -> 0 | Q65: ='Votos e NTs'!BN278/1000 -> 0 | R65: ='Votos e NTs'!BP278 -> 0 | S65: 0
O66: Total de Encargos | P66: =SUM(P57:P65) -> 122652.8835 | Q66: =SUM(Q57:Q65) -> 161706.8107 | R66: =SUM(R57:R65) -> 0.02641502206
T68: Custos de Transporte
T69: Custos de Transporte | U69: Processo Anterior (mil R$) | V69: Processo Atual (mil R$) | W69: Impacto Processo | X69: Colunas1
T70: Rede Básica | U70: ='Votos e NTs'!BM280/1000 -> 66554.31133 | V70: ='Votos e NTs'!BN280/1000 -> 79525.94043 | W70: ='Votos e NTs'!BP280 -> 0.008773659744 | X70: =IF(U70+V70=0,0,1) -> 1
T71: Rede Básica Fronteira | U71: ='Votos e NTs'!BM281/1000 -> 19485.3307 | V71: ='Votos e NTs'!BN281/1000 -> 25257.87625 | W71: ='Votos e NTs'!BP281 -> 0.003904393976 | X71: 1
T72: Rede Básica ONS (A2) | U72: ='Votos e NTs'!BM282/1000 -> 227.0579803 | V72: ='Votos e NTs'!BN282/1000 -> 203.70943 | W72: ='Votos e NTs'!BP282 -> -1.579232911e-05 | X72: 1
T73: Rede Básica Export. (A2) | U73: ='Votos e NTs'!BM283/1000 -> 0 | V73: ='Votos e NTs'!BN283/1000 -> 0 | W73: ='Votos e NTs'!BP283 -> 0 | X73: 0
T74: MUST Itaipu | U74: ='Votos e NTs'!BM284/1000 -> 0 | V74: ='Votos e NTs'!BN284/1000 -> 0 | W74: ='Votos e NTs'!BP284 -> 0 | X74: 0
T75: Transporte de Itaipu | U75: ='Votos e NTs'!BM285/1000 -> 0 | V75: ='Votos e NTs'!BN285/1000 -> 0 | W75: ='Votos e NTs'!BP285 -> 0 | X75: 0
T76: Conexão | U76: ='Votos e NTs'!BM286/1000 -> 3201.469211 | V76: ='Votos e NTs'!BN286/1000 -> 5319.985345 | W76: ='Votos e NTs'!BP286 -> 0.001432907122 | X76: 1
T77: Uso do sistema de distribuição | U77: ='Votos e NTs'!BM287/1000 -> 1959.423843 | V77: ='Votos e NTs'!BN287/1000 -> 1490.293621 | W77: ='Votos e NTs'!BP287 -> -0.0003173070177 | X77: 1
T78: Total do Transporte | U78: =SUM(U70:U77) -> 91427.59306 | V78: =SUM(V70:V77) -> 111797.8051 | W78: =SUM(W70:W77) -> 0.01377786149
Y80: Parcela B - Reajuste
Y81: Descrição | AA81: Valor | AB81: Referência
Y82: (1) Parcela B Processo Anterior (mil R$) | AA82: ='Votos e NTs'!AQ162/1000 -> 716193.215 | AB82: TUSD fio B aplicada ao Mercado
Y83: (2) Fator DR1/Fator PB | AA83: ='VPB1'!C38 -> 1.029611419 | AB83: SGT/ANEEL
Y84: (3) Parcela B Processo Anterior sem UDEROR (mil R$) | AA84: =AA82*AA83 -> 737400.7122 | AB84: SGT/ANEEL
Y85: (4) IPCA | AA85: 0.04005113905 | AB85: Indicador econômico oficial
Y86: (5) Fator X | AA86: =SUM(AA87:AA89) -> -0.009666696938 | AB86: Pd + T + Q
Y87: (5.1) Componente Pd do Fator X | AA87: ='VPB1'!F40 -> 0.01027451063 | AB87: PRORET 2.5 A
Y88: (5.2) Componente T do Fator X | AA88: ='VPB1'!F41 -> -0.00901791 | AB88: REH nº 2.377/2018
Y89: (5.3) Componente Q do Fator X | AA89: ='VPB1'!F42 -> -0.01092329757 | AB89: PRORET 2.5 A
Y90: (6) UDEROR | AA90: =SUM(AA91:AA93) -> 27171.76593 | AB90: UD + ER + OR
Y91: (6.1) Outras Receitas (OR) | AA91: ='Votos e NTs'!AQ171/1000 -> 17795.36112 | AB91: Valores fiscalizados - SFF
Y92: (6.2) Excedente de Reativos (ER) | AA92: ='Votos e NTs'!AQ172/1000 -> 4290.576144 | AB92: Valores fiscalizados - SFF
Y93: (6.3) Ultrapassagem de Demanda (UD) | AA93: ='Votos e NTs'!AQ173/1000 -> 5085.828668 | AB93: Valores fiscalizados - SFF
Y94: (7) ONS | AB94: 0
Y95: Parcela B Atual (mil R$) | AA95: =AA84*(1+AA85-AA86)-AA90 -> 746890.9139
AD97: Financeiros
AD98: Componentes Financeiros | AF98: Valor (mil R$) | AG98: Impacto Processo
AD99: CVA em processamento - Energia | AF99: =SUMIFS(Financeiros[Valor],Financeiros[idDet1],19,Financeiros[id_Grupo_TARIFA],2,Financeiros[idDet2],60,Financeiros[idDet3],999)/1000 -> 44740.39134 | AG99: =1000*AF99/Financeiros!$D$5 -> 0.0302611929
AD100: CVA em processamento -Transporte | AF100: =SUMIFS(Financeiros[Valor],Financeiros[idDet1],19,Financeiros[id_Grupo_TARIFA],1,Financeiros[idDet2],60,Financeiros[idDet3],999)/1000 -> 9894.113853 | AG100: =1000*AF100/Financeiros!$D$5 -> 0.006692111509
AD101: CVA em processamento - Encargos Setoriais | AF101: =SUMIFS(Financeiros[Valor],Financeiros[idDet1],19,Financeiros[id_Grupo_TARIFA],3,Financeiros[idDet2],60,Financeiros[idDet3],999)/1000 -> 42603.89908 | AG101: =1000*AF101/Financeiros!$D$5 -> 0.02881612721
AD102: Saldo a Compensar CVA-Ano Anterior + Ajustes | AF102: =SUMIFS(Financeiros[Valor],Financeiros[idDet1],19,Financeiros[idDet2],64, Financeiros[idDet3],999)/1000 -> 1694.924983 | AG102: =1000*AF102/Financeiros!$D$5 -> 0.001146401502
AD103: Neutralidade de Parcela A | AF103: =('Votos e NTs'!AZ196+'Votos e NTs'!AZ197+'Votos e NTs'!AZ198+'Votos e NTs'!AZ199)/1000 -> 7940.32011 | AG103: =1000*AF103/Financeiros!$D$5 -> 0.005370618166
AD104: Sobrecontratação/exposição de energia | AF104: =SUMIFS(Financeiros[Valor],Financeiros[idDet1],22,Financeiros[id_Grupo_TARIFA],2,Financeiros[idDet2],60, Financeiros[idDet3],106)/1000+SUMIFS(Financeiros[Valor],Financeiros[idDet1],22,Financeiros[id_Grupo_TARIFA],2,Financeiros[idDet2],60, Financeiros[idDet3],101)/1000 -> 11268.15237 | AG104: =1000*AF104/Financeiros!$D$5 -> 0.007621474071
AD105: Previsão de Risco Hidrológico | AF105: =SUMIFS(Financeiros[Valor],Financeiros[idDet1],22,Financeiros[id_Grupo_TARIFA],2,Financeiros[idDet2],60, Financeiros[idDet3],220)/1000 -> 33687.5017 | AG105: =1000*AF105/Financeiros!$D$5 -> 0.02278531673
AD106: Reversão do Risco Hidrológico | AF106: =SUMIFS(Financeiros[Valor],Financeiros[idDet1],22,Financeiros[id_Grupo_TARIFA],2,Financeiros[idDet2],62, Financeiros[idDet3],220)/1000 -> -44177.11766 | AG106: =1000*AF106/Financeiros!$D$5 -> -0.02988020978
AD107: Reversão Conta-Covid - CVA em processamento | AF107: =SUMIFS(Financeiros[Valor],Financeiros[idDet1],19,Financeiros[idDet2],60,Financeiros[idDet3],233)/1000 -> 0 | AG107: =1000*AF107/Financeiros!$D$5 -> 0
AD108: Reversão Conta-Covid - Saldo a Compensar | AF108: =SUMIFS(Financeiros[Valor],Financeiros[idDet1],19,Financeiros[idDet2],64,Financeiros[idDet3],236)/1000 -> 0 | AG108: =1000*AF108/Financeiros!$D$5 -> 0
AD109: Reversão Conta-Covid - Neutralidade de Parcela A | AF109: =SUMIFS(Financeiros[Valor],Financeiros[idDet1],20,Financeiros[idDet2],60, Financeiros[idDet3],234)/1000 -> 0 | AG109: =1000*AF109/Financeiros!$D$5 -> 0
AD110: Outro Financeiro Relevante | AF110: 0 | AG110: =1000*AF110/Financeiros!$D$5 -> 0
AD111: Diferimento (art 10 da ReH 2.706/2020) | AF111: ='Votos e NTs'!AZ222/1000 -> 0 | AG111: =1000*AF111/Financeiros!$D$5 -> 0
AD112: Outro Financeiro Relevante | AG112: =1000*AF112/Financeiros!$D$5 -> 0
AD113: Outros | AF113: =AF114-SUM(AF99:AF112) -> -159946.141 | AG113: =1000*AF113/Financeiros!$D$5 -> -0.1081832519
AD114: Total | AF114: ='Votos e NTs'!AZ248/1000 -> -52293.95525 | AG114: =SUM(AG99:AG113) -> -0.03537021961
AI116: B1 x Inflação
AJ117: Variação
AI118: IGP-M | AJ118: ='Votos e NTs'!AD38 -> 1.439720163
AI119: IPCA | AJ119: ='Votos e NTs'!AE38 -> 0.8491331187
AI120: Tarifa B1 | AJ120: ='Votos e NTs'!AC38 -> 0.8100887364
AL122: Financeiros
AL123: Resultado Bandeiras Tarifárias | AM123: Valor (mil R$) | AN123: Impacto Processo
AL124: Usinas com contrato por disponibilidade - CCEAR-D | AM124: -66519.46164 | AN124: -0.01144423021
AL125: Risco Hidrológico das usinas que repactuaram | AM125: 128197.3185 | AN125: 0.02205549458
AL126: Risco Hidrológico das usinas cotistas - CCGF | AM126: 103147.5557 | AN126: 0.01774584977
AL127: Risco Hidrológico da UHE ITAIPU | AM127: 87452.43744 | AN127: 0.01504560924
AL128: Encargos de Energia de Reserva - EER e de Serviço do Sistema - ESS | AM128: -102050.9453 | AN128: -0.01755718527
AL129: Resultado Mercado de Curto Prazo - MCP | AM129: 28529.54764 | AN129: 0.004908318602
AL130: Custo Total | AM130: 178756.4523 | AN130: 0.03075385671
AL131: Recolhimento pelas Bandeiras Tarifárias | AM131: -162443.7101 | AN131: -0.0279473581
AL132: Previsão do Risco Hidrológico no Processo Tarifário de 2018 | AM132: -162780.8718 | AN132: -0.02800536451
AL133: Receita Total | AM133: =AM131+AM132 -> -325224.5819 | AN133: =AN132+AN131 -> -0.05595272261
AL134: Custo não coberto antecipadamente | AM134: -146468.1296 | AN134: -0.0251988659
AP136: Remuneração do Capital
AP137: Descrição | AQ137: Ciclo Anterior | AR137: Ciclo Atual
AP138: Base Líquida (mil R$) | AQ138: ='Avaliação Parcela B'!J127/1000 ->  | AR138: ='Avaliação Parcela B'!K127/1000 -> 
AP139: Remuneração | AQ139: ='Avaliação Parcela B'!G128 ->  | AR139: ='Avaliação Parcela B'!H128 -> 
AT141: Quota de Reintegração
AT142: Descrição | AU142: Ciclo Anterior | AV142: Ciclo Atual
AT143: Base Bruta (mil R$) | AU143: ='Avaliação Parcela B'!J159/1000 ->  | AV143: ='Avaliação Parcela B'!K159/1000 -> 
AT144: Depreciação | AU144: ='Avaliação Parcela B'!G160 ->  | AV144: ='Avaliação Parcela B'!H160 -> 
AX146: Parcela B - Revisão
AX147: Descrição | AY147: Processo Anterior (mil R$) | AZ147: Processo Atual (mil R$) | BA147: Variação | BB147: Participação na Revisão
AX148: ='NT Revisao'!AO217 -> Custos Operacionais | AY148: ='NT Revisao'!AQ217/1000 ->  | AZ148: ='NT Revisao'!AR217/1000 ->  | BA148: ='NT Revisao'!AS217 -> 0 | BB148: ='NT Revisao'!AT217 -> 0
AX149: ='NT Revisao'!AO218 -> Anuidades | AY149: ='NT Revisao'!AQ218/1000 ->  | AZ149: ='NT Revisao'!AR218/1000 ->  | BA149: ='NT Revisao'!AS218 -> 0 | BB149: ='NT Revisao'!AT218 -> 0
AX150: ='NT Revisao'!AO219 -> Remuneração | AY150: ='NT Revisao'!AQ219/1000 ->  | AZ150: ='NT Revisao'!AR219/1000 ->  | BA150: ='NT Revisao'!AS219 -> 0 | BB150: ='NT Revisao'!AT219 -> 0
AX151: ='NT Revisao'!AO220 -> Depreciação | AY151: ='NT Revisao'!AQ220/1000 ->  | AZ151: ='NT Revisao'!AR220/1000 ->  | BA151: ='NT Revisao'!AS220 -> 0 | BB151: ='NT Revisao'!AT220 -> 0
AX152: ='NT Revisao'!AO221 -> UD+ER+OR | AY152: ='NT Revisao'!AQ221/1000 ->  | AZ152: ='NT Revisao'!AR221/1000 -> -27171.76593 | BA152: ='NT Revisao'!AS221 -> 0 | BB152: ='NT Revisao'!#REF! -> 
AX155: PARCELA B | AY155: =SUM(AY148:AY154) ->  | AZ155: =SUM(AZ148:AZ154) ->  | BA155: =IF(ISERROR(AZ155/AY155-1),0,AZ155/AY155-1) -> 0 | BB155: =IF(ISERROR((AZ155-AY155)/$AP$183),0,(AZ155-AY155)/$AP$183) -> 0
BD159: Enel RJ | BE159: 683.87 | BG159: 1 | BH159: Enel RJ | BJ159: 714.44
BD160: Celpa | BE160: 683.6 | BG160: 2 | BH160: Celpa | BJ160: 703.21
BD161: AmE | BE161: 664.84 | BG161: =BG160+1 -> 3 | BH161: EMS | BJ161: 700.36
BD162: Light | BE162: 663.1 | BG162: =BG161+1 -> 4 | BH162: Light | BJ162: 694.05
BD163: ENF | BE163: 649.89 | BG163: 5 | BH163: AmE | BJ163: 693.49
BD164: Eflul | BE164: 648.12 | BG164: 6 | BH164: EMT | BJ164: 690.12
BD165: EFLJC | BE165: 639.05 | BG165: 7 | BH165: ENF | BJ165: 662.44
BD166: Sulgipe | BE166: 636.31 | BG166: 8 | BH166: Forcel | BJ166: 654.63
BD167: Cemar | BE167: 630.18 | BG167: 9 | BH167: ETO | BJ167: 647.35
BD168: Cemig-D | BE168: 628.33 | BG168: 10 | BH168: Cemig | BJ168: 644.23
BD169: EMT | BE169: 626.84 | BG169: 11 | BH169: Eflul | BJ169: 641.69
BD170: Forcel | BE170: 619.01 | BG170: 12 | BH170: EFLJC | BJ170: 639.85
BD171: Roraima Energia | BE171: 617.77 | BG171: 13 | BH171: Celpe 2021 | BI171: Celpe 2021 | BJ171: 628.4189439
BD172: EMS | BE172: 608.65 | BG172: 14 | BH172: Cemar | BJ172: 628.21
BD173: Hidropan | BE173: 600.74 | BG173: 15 | BH173: EMG | BJ173: 627.73
BD174: ETO | BE174: 600.08 | BG174: 16 | BH174: Coelba | BJ174: 624.64
BD175: EMG | BE175: 595.83 | BG175: 17 | BH175: Sulgipe | BJ175: 619.22
BD176: Ceron | BE176: 576.82 | BG176: 18 | BH176: Hidropan | BJ176: 602.62
BD177: Chesp | BE177: 573.14 | BG177: 19 | BH177: CPFL Paulista | BJ177: 601.57
BD178: Uhenpal | BE178: 572.49 | BG178: 20 | BH178: Chesp | BJ178: 599.53
BD179: Eletroacre | BE179: 569.84 | BG179: 21 | BH179: Enel CE | BJ179: 594.36
BD180: Cepisa | BE180: 569.48 | BG180: 22 | BH180: ELFSM | BJ180: 593.39
BD181: RGE | BE181: 560.27 | BG181: 23 | BH181: RGE (agrupada) | BJ181: 589.57
BD182: Cocel | BE182: 557.12 | BG182: 24 | BH182: ESE | BJ182: 585.6
BD183: Coelba | BE183: 552.13 | BG183: 25 | BH183: Ceal | BJ183: 583.31
BD184: Celpe | BE184: 549.33 | BG184: 26 | BH184: Eletroacre | BJ184: 581.91
BD185: CPFL Santa Cruz | BE185: 547.69 | BG185: 27 | BH185: Cepisa | BJ185: 581.82
BD186: EPB | BE186: 545.4 | BG186: 28 | BH186: Roraima Energia | BJ186: 574.69
BD187: Eletrocar | BE187: 541.57 | BG187: 29 | BH187: Celpe 2020 | BI187: Celpe 2020 | BJ187: 574.34
BD188: CEA | BE188: 537.18 | BG188: 30 | BH188: Uhenpal | BJ188: 571.71
BD189: Ceal | BE189: 535.25 | BG189: 31 | BH189: CPFL Santa Cruz | BJ189: 564.97
BD190: Celg-D | BE190: 533.68 | BG190: 32 | BH190: Cosern | BJ190: 563.55
BD191: Elektro | BE191: 531.87 | BG191: 33 | BH191: EPB | BJ191: 562.11
BD192: ESE | BE192: 530.72 | BG192: 34 | BH192: Cocel | BJ192: 561.58
BD193: Enel CE | BE193: 529.49 | BG193: 35 | BH193: Eletrocar | BJ193: 561.45
BD194: EDP ES | BE194: 525.81 | BG194: 36 | BH194: EDP ES | BJ194: 557
BD195: EDP SP | BE195: 525.73 | BG195: 37 | BH195: Elektro | BJ195: 555.05
BD196: CPFL Paulista | BE196: 523.02 | BG196: 38 | BH196: CEEE-D | BJ196: 548.97
BD197: CEB-DIS | BE197: 518.01 | BG197: 39 | BH197: Enel GO | BJ197: 547.39
BD198: ELFSM | BE198: 517.96 | BG198: 40 | BH198: EDP SP | BJ198: 546.11
BD199: Copel-DIS | BE199: 517.61 | BG199: 41 | BH199: Demei | BJ199: 537.88
BD200: Eletropaulo | BE200: 515.59 | BG200: 42 | BH200: Enel SP | BJ200: 534.19
BD201: CEEE-D | BE201: 515.07 | BG201: 43 | BH201: CPFL Piratininga | BJ201: 533.55
BD202: Ienergia | BE202: 510.62 | BG202: 44 | BH202: MuxEnergia | BJ202: 527.79
BD203: DMED | BE203: 507.42 | BG203: 45 | BH203: DMED | BJ203: 525.57
BD204: Demei | BE204: 507.03 | BG204: 46 | BH204: CEB-DIS | BJ204: 514.78
BD205: Cosern | BE205: 505.53 | BG205: 47 | BH205: Ceron | BJ205: 514.38
BD206: EBO | BE206: 497.66 | BG206: =BG205+1 -> 48 | BH206: ESS (agrupada) | BJ206: 513.89
BD207: Sul Sudeste | BE207: 497.35 | BG207: 49 | BH207: Copel-DIS | BJ207: 512.77
BD208: CPFL Piratininga | BE208: 490.18 | BG208: 50 | BH208: Ienergia | BJ208: 512.48
BD209: MuxEnergia | BE209: 485.22 | BG209: 51 | BH209: Cooperaliança | BJ209: 512
BD210: Celesc-DIS | BE210: 469.78 | BG210: 52 | BH210: Celesc-DIS | BJ210: 505.99
BD211: Cooperaliança | BE211: 467.6 | BG211: 53 | BH211: CEA | BJ211: 505.25
BG212: 54 | BH212: EBO | BJ212: 497.66
CE215: DEC | CV215: FEC
CG216: =CH216-1 -> 2012 | CH216: 2013 | CI216: 2014 | CJ216: 2015 | CK216: 2016 | CL216: 2017 | CM216: 2018 | CN216: 2019 | CO216: =CP216-1 -> 2020 | CP216: 2021 | CQ216: =CP216+1 -> 2022 | CR216: =CQ216+1 -> 2023 | CS216: 2024 | CT216: 2025 | CX216: =CY216-1 -> 2012 | CY216: 2013 | CZ216: 2014 | DA216: 2015 | DB216: 2016 | DC216: 2017 | DD216: 2018 | DE216: 2019 | DF216: =DG216-1 -> 2020 | DG216: 2021 | DH216: =DG216+1 -> 2022 | DI216: =DH216+1 -> 2023 | DJ216: 2024 | DK216: 2025
CE217: DEC Apurado | CH217: 23.76 | CI217: 25.51 | CJ217: 19.31 | CK217: 15.8 | CL217: 16.98 | CM217: 12.51 | CN217: 11.96 | CO217: 12.41 | CV217: FEC Apurado | CY217: 8.87 | CZ217: 8.84 | DA217: 8.12 | DB217: 7.13 | DC217: 7.56 | DD217: 8.97 | DE217: 5.69 | DF217: 5.56
CE218: DEC Limite | CH218: 16.39 | CI218: 16.39 | CJ218: 15.48 | CK218: 14.71 | CL218: 13.91 | CM218: 13.82 | CN218: 13.67 | CO218: 13.35 | CP218: 13.22 | CV218: FEC Limite | CY218: 12.48 | CZ218: 12.05 | DA218: 11.04 | DB218: 10.19 | DC218: 9.35 | DD218: 9.26 | DE218: 8.7 | DF218: 8.33 | DG218: 8.1
CE219: DEC Limite Proposto | CQ219: 12.92 | CR219: 12.33 | CS219: 11.86 | CT219: 11.48 | CV219: FEC Limite Proposto | DH219: 8.05 | DI219: 7.25 | DJ219: 7.05 | DK219: 6.68
DM239: Parcela B / Mercado
DM241: Grandes
DM242: Reg | DN242: Distribuidora | DO242: PB/Mcdo | DP242: Média | DQ242: Parcela B | DR242: Mercado | DS242: Proc.Tar
DM243: N | DN243: ETO | DO243: =DQ243/DR243 -> 265.4071894 | DP243: =$DP$280 -> 157.3788987 | DQ243: 639963261.2 | DR243: 2411250.662 | DS243: 2020
DM244: N | DN244: Eletroacre | DO244: =DQ244/DR244 -> 262.1465373 | DP244: 157.3788987 | DQ244: 287816729.4 | DR244: 1097923.064 | DS244: 2020
DM245: CO | DN245: EMT | DO245: =DQ245/DR245 -> 246.7591507 | DP245: 157.3788987 | DQ245: 2384063093 | DR245: 9661498.209 | DS245: 2021
DM246: N | DN246: Equatorial PA | DO246: 238.5668194 | DP246: 157.3788987 | DQ246: 2059159218 | DR246: 8631373.062 | DS246: 2020
DM247: N | DN247: Cemar | DO247: 234.2860346 | DP247: 157.3788987 | DQ247: 1473020968 | DR247: 6287276.026 | DS247: 2020
DM248: CO | DN248: EMS | DO248: =DQ248/DR248 -> 233.1547235 | DP248: 157.3788987 | DQ248: 1338673092 | DR248: 5741565.396 | DS248: 2021
DM249: NE | DN249: Equatorial PI | DO249: =DQ249/DR249 -> 225.4201543 | DP249: 157.3788987 | DQ249: 847371044 | DR249: 3759074.012 | DS249: 2020
DM250: NE | DN250: Coelba | DO250: =DQ250/DR250 -> 223.125744 | DP250: 157.3788987 | DQ250: 4496925221 | DR250: 20154219.5 | DS250: 2021
DM251: N | DN251: CEA | DO251: =DQ251/DR251 -> 202.1486891 | DP251: 157.3788987 | DQ251: 208334410.9 | DR251: 1030599.861 | DS251: 2020
DM252: N | DN252: Roraima Energia | DO252: 196.414686 | DP252: 157.3788987 | DQ252: 190096815.7 | DR252: 967834.023 | DS252: 2020
... 49 more rows

Sheet AP x Final (hidden)
C1: Prencher valores conforme CP | F1: Prencher valores conforme CP
B2: Descrição | C2: CP XX/2021 Receita Verificada (R$) | D2: Final Receita Verificada (R$) | E2: Variação Receita Verificada Final/CP | F2: CP XX/2021 Receita Requerida (R$) | G2: Final Receita Requerida (R$) | H2: Variação Receita Requerida Final/CP | I2: CP Participação na Revisão % | J2: Final Participação na Revisão % | K2: Variação Total | M2: Variação de Custos | N2: Variação de Receita Verificada | O2: Simulação sem var. mercado
B3: PARCELA A [Encargos+Transmissão+Energia] | C3: =C4+C14+C23+C24 -> 0 | D3: =D4+D14+D23+D24 ->  | E3: =IF(ISERROR(D3/C3-1),"-",D3/C3-1) -> - | F3: =F4+F14+F23+F24 -> 0 | G3: =G4+G14+G23+G24 -> 931113023.7 | H3: =IF(ISERROR(G3/F3-1),"-",G3/F3-1) -> - | I3: =IFERROR((F3-C3)/$C$31,"") ->  | J3: =IFERROR((G3-D3)/$D$31,"") ->  | K3: =J3-I3 ->  | L3: =IF(G3+D3<>0,1,0) ->  | M3: =(G3-C3)/$C$31-I3 ->  | N3: =K3-M3 ->  | O3: =(G3-C3)/$C$31 -> 
B4: Encargos Setoriais | C4: =SUM(C5:C13) -> 0 | D4: =SUM(D5:D13) ->  | E4: =IF(ISERROR(D4/C4-1),"-",D4/C4-1) -> - | F4: =SUM(F5:F13) -> 0 | G4: =SUM(G5:G13) -> 195931810.7 | H4: =IF(ISERROR(G4/F4-1),"-",G4/F4-1) -> - | I4: =IFERROR((F4-C4)/$C$31,"") ->  | K4: =J4-I4 ->  | N4: =K4-M4 ->  | O4: =(G4-C4)/$C$31 -> 
B5: Taxa de Fisc. de Serviços de E.E. – TFSEE | D5: ='NT Revisao'!AQ196 ->  | E5: =IF(ISERROR(D5/C5-1),"-",D5/C5-1) -> - | G5: ='NT Revisao'!AR196 -> 3226043.2 | H5: =IF(ISERROR(G5/F5-1),"-",G5/F5-1) -> - | N5: =K5-M5 -> 
B6: Conta de Desenvolvimento Energético – CDE (USO) | D6: ='NT Revisao'!AQ197 ->  | E6: =IF(ISERROR(D6/C6-1),"-",D6/C6-1) -> - | G6: ='NT Revisao'!AR197 -> 79267294.51 | H6: =IF(ISERROR(G6/F6-1),"-",G6/F6-1) -> -
B7: Conta de Desenvolvimento Energético – CDE Conta-Covid (TUSD) | D7: ='NT Revisao'!AQ198 ->  | E7: - | G7: ='NT Revisao'!AR198 -> 4188626.322 | H7: =IF(ISERROR(G7/F7-1),"-",G7/F7-1) -> -
B8: Conta de Desenvolvimento Energético – CDE Conta-Covid (TE) | D8: ='NT Revisao'!AQ199 ->  | G8: ='NT Revisao'!AR199 -> 10199333.76 | H8: =IF(ISERROR(G8/F8-1),"-",G8/F8-1) -> -
B9: Compensação financeira - CFURH | D9: ='NT Revisao'!AQ200 ->  | E9: - | G9: ='NT Revisao'!AR200 -> 0 | H9: =IF(ISERROR(G9/F9-1),"-",G9/F9-1) -> -
B10: Encargos Serv. Sist. - ESS e Energ. Reserv. - EER | D10: ='NT Revisao'!AQ201 ->  | E10: - | G10: ='NT Revisao'!AR201 -> 51462609.32 | H10: - | K10: =J10-I10 -> 
B11: PROINFA | D11: ='NT Revisao'!AQ202 ->  | E11: - | G11: ='NT Revisao'!AR202 -> 31991303.25 | H11: - | K11: =J11-I11 -> 
B12: P&D, Efic.Energ | D12: ='NT Revisao'!AQ203 ->  | E12: - | G12: ='NT Revisao'!AR203 -> 15596600.32 | H12: - | K12: =J12-I12 -> 
B13: ONS | D13: ='NT Revisao'!AQ204 ->  | E13: - | G13: ='NT Revisao'!AR204 -> 0 | H13: -
B14: Custos de Transmissão | C14: =SUM(C15:C22) -> 0 | D14: =SUM(D15:D22) ->  | E14: - | F14: =SUM(F15:F22) -> 0 | G14: =SUM(G15:G22) -> 111797805.1 | H14: - | K14: =J14-I14 -> 
B15: Rede Básica | D15: ='NT Revisao'!AQ206 ->  | E15: =IF(ISERROR(D15/C15-1),"-",D15/C15-1) -> - | G15: ='NT Revisao'!AR206 -> 79525940.43 | H15: - | K15: =J15-I15 -> 
B16: Rede Básica Fronteira | D16: ='NT Revisao'!AQ207 ->  | E16: - | G16: ='NT Revisao'!AR207 -> 25257876.25 | H16: - | K16: =J16-I16 -> 
B17: Rede Básica ONS (A2) | D17: ='NT Revisao'!AQ208 ->  | E17: - | G17: ='NT Revisao'!AR208 -> 203709.43 | H17: -
B18: Rede Básica Export. (A2) | D18: ='NT Revisao'!AQ209 ->  | E18: - | G18: ='NT Revisao'!AR209 -> 0 | H18: -
B19: MUST Itaipu | D19: ='NT Revisao'!AQ210 ->  | E19: - | G19: ='NT Revisao'!AR210 -> 0 | H19: - | K19: =J19-I19 -> 
B20: Transporte de Itaipu | D20: ='NT Revisao'!AQ211 ->  | E20: - | G20: ='NT Revisao'!AR211 -> 0 | H20: - | K20: =J20-I20 -> 
B21: Conexão | D21: ='NT Revisao'!AQ212 ->  | E21: - | G21: ='NT Revisao'!AR212 -> 5319985.345 | H21: - | K21: =J21-I21 -> 
B22: Uso do sistema de distribuição | D22: ='NT Revisao'!AQ213 ->  | E22: - | G22: ='NT Revisao'!AR213 -> 1490293.621 | H22: =IF(ISERROR(G22/F22-1),"-",G22/F22-1) -> - | K22: =J22-I22 -> 
B23: Custo de Aquisição de Energia | D23: ='NT Revisao'!AQ214 ->  | E23: - | G23: ='NT Revisao'!AR214 -> 611220082.4 | H23: -
B24: Receitas Irrecuperáveis | D24: ='NT Revisao'!AQ215 ->  | E24: - | G24: ='NT Revisao'!AR215 -> 12163325.52 | H24: -
B25: PARCELA B | C25: =SUM(C26:C30) -> 0 | D25: =SUM(D26:D30) ->  | E25: - | F25: =SUM(F26:F30) -> 0 | G25: =SUM(G26:G30) ->  | H25: =IF(ISERROR(G25/F25-1),"-",G25/F25-1) -> -
B26: Custos Operacionais | D26: ='NT Revisao'!AQ217 ->  | E26: - | G26: ='NT Revisao'!AR217 ->  | H26: -
B27: Anuidades | D27: ='NT Revisao'!AQ218 ->  | E27: - | G27: ='NT Revisao'!AR218 ->  | H27: -
B28: Remuneração | D28: ='NT Revisao'!AQ219 ->  | E28: - | G28: ='NT Revisao'!AR219 ->  | H28: - | K28: =J28-I28 -> 
B29: Depreciação | D29: ='NT Revisao'!AQ220 ->  | E29: - | G29: ='NT Revisao'!AR220 ->  | H29: -
B30: OR, UD e ER | D30: ='NT Revisao'!AQ221 ->  | E30: =IF(ISERROR(D30/C30-1),"-",D30/C30-1) -> - | G30: ='NT Revisao'!AR221+'NT Revisao'!AR222 -> -27171765.93 | H30: -
B31: Reposicionamento Tarifário | C31: =C25+C3 -> 0 | D31: =D25+D3 ->  | E31: =IF(ISERROR(D31/C31-1),"-",D31/C31-1) -> - | F31: =F25+F3 -> 0 | G31: =G25+G3 ->  | H31: - | K31: =J31-I31 ->  | M31: =(G31-C31)/$C$31-I31 -> 
L32: 0
B33: Componentes Financeiros do Processo Atual | F33: =SUM(F34:F69) -> 0 | G33: =SUM(G34:G69) -> 7157667.058 | I33: =SUM(I34:I69) ->  | J33: =SUM(J34:J69) -> 0.00484125277 | K33: =J33-I33 ->  | L33: 1 | M33: =G33/$C$31-I33 ->  | N33: =K33-M33 ->  | O33: =(G33-C33)/$C$31 -> 
B34: ='NT Revisao'!AO226 -> CVA em processamento - Energia | G34: ='NT Revisao'!AR226 -> 44740391.34 | I34: =F34/$C$31 ->  | J34: ='NT Revisao'!AT226 -> 0.0302611929 | K34: =J34-I34 ->  | L34: 1 | M34: =G34/$C$31-I34 ->  | N34: =K34-M34 ->  | O34: =K34-N34 -> 
B35: ='NT Revisao'!AO227 -> CVA em processamento - Transporte | G35: ='NT Revisao'!AR227 -> 9894113.853 | I35: =F35/$C$31 ->  | J35: ='NT Revisao'!AT227 -> 0.006692111509 | K35: =J35-I35 ->  | L35: 1
B36: ='NT Revisao'!AO228 -> CVA em processamento - Encargos Setoriais | G36: ='NT Revisao'!AR228 -> 42737497.3 | J36: ='NT Revisao'!AT228 -> 0.02890648944 | L36: 1
B37: ='NT Revisao'!AO229 -> Saldo a Compensar CVA-Ano Anterior + Ajustes | G37: ='NT Revisao'!AR229 -> 1694924.983 | J37: ='NT Revisao'!AT229 -> 0.001146401502 | L37: 1
B38: ='NT Revisao'!AO230 -> Neutralidade de Parcela A- Energia | G38: ='NT Revisao'!AR230 -> -1683164.638 | J38: ='NT Revisao'!AT230 -> -0.001138447123 | L38: 1
B39: ='NT Revisao'!AO231 -> Neutralidade de Parcela A - Transporte | G39: ='NT Revisao'!AR231 -> 7761223.617 | J39: ='NT Revisao'!AT231 -> 0.005249482133 | L39: 1
B40: ='NT Revisao'!AO232 -> Neutralidade de Parcela A - Encargos Setoriais | G40: ='NT Revisao'!AR232 -> 1039485.713 | J40: ='NT Revisao'!AT232 -> 0.0007030800746 | L40: 1
B41: ='NT Revisao'!AO233 -> Neutralidade de Parcela A - Receita Irrecuperável | G41: ='NT Revisao'!AR233 -> 822775.4176 | J41: ='NT Revisao'!AT233 -> 0.0005565030809 | L41: 1
B42: ='NT Revisao'!AO234 -> Neutralidade de Fin. Parcela B - Conta Covid | G42: ='NT Revisao'!AR234 -> 0 | J42: ='NT Revisao'!AT234 -> 0 | L42: 0
B43: ='NT Revisao'!AO235 -> Sobrecontratação/exposição de energia | G43: ='NT Revisao'!AR235 -> 11268152.37 | J43: ='NT Revisao'!AT235 -> 0.007621474071 | L43: 1
B44: ='NT Revisao'!AO236 -> Garantias financeiras na contratação regulada de energia (CCEAR) | G44: ='NT Revisao'!AR236 -> 509014.0365 | J44: ='NT Revisao'!AT236 -> 0.000344283353 | L44: 1
B45: ='NT Revisao'!AO237 -> Previsão de Risco Hidrológico | G45: ='NT Revisao'!AR237 -> 33687501.7 | J45: ='NT Revisao'!AT237 -> 0.02278531673 | L45: 1
B46: ='NT Revisao'!AO238 -> Ajuste Liminar Abrace | G46: ='NT Revisao'!AR238 -> 0 | J46: ='NT Revisao'!AT238 -> 0 | L46: 0
B47: ='NT Revisao'!AO239 -> Ajuste ref. equilíbrio econômico-financeiro TUSDg (A3a) | G47: ='NT Revisao'!AR239 -> 0 | J47: ='NT Revisao'!AT239 -> 0 | L47: 0
B48: ='NT Revisao'!AO240 -> Repasse de ultrapassagem de Supridas/Permissionárias de Energia | G48: ='NT Revisao'!AR240 -> 0 | J48: ='NT Revisao'!AT240 -> 0 | L48: 0
B49: ='NT Revisao'!AO241 -> Reversão do Financeiro de Reperfilamento dos custos de RBSE | G49: ='NT Revisao'!AR241 -> 0 | J49: ='NT Revisao'!AT241 -> 0 | L49: 0
B50: ='NT Revisao'!AO242 -> Ajuste CUSD | G50: ='NT Revisao'!AR242 -> -396078.6655 | J50: ='NT Revisao'!AT242 -> -0.0002678969168 | L50: 1
B51: ='NT Revisao'!AO243 -> Repasse de compensação DIC/FIC | G51: ='NT Revisao'!AR243 -> 0 | J51: ='NT Revisao'!AT243 -> 0 | L51: 0
B52: ='NT Revisao'!AO244 -> Compensação ref. acordos bilaterais de CCEAR | G52: ='NT Revisao'!AR244 -> -84846.79313 | J52: ='NT Revisao'!AT244 -> -5.738808036e-05 | L52: 1
B53: Ressarcimento de P&D | F53: 0 | G53: 0 | I53: 0 | J53: 0 | K53: 0
B54: ='NT Revisao'!AO246 -> Ressarcimento de P&D | G54: ='NT Revisao'!AR246 -> 0 | I54: =F54/$C$31 ->  | J54: ='NT Revisao'!AT246 -> 0 | L54: 0
B55: ='NT Revisao'!AO247 -> Reversão Conta-Covid - CVA em processamento - Energia | G55: ='NT Revisao'!AR247 -> 0 | J55: ='NT Revisao'!AT247 -> 0 | L55: 0
B56: ='NT Revisao'!AO248 -> Reversão Conta-Covid - CVA em processamento -Transporte | G56: ='NT Revisao'!AR248 -> 0 | J56: ='NT Revisao'!AT248 -> 0 | L56: 0
B57: ='NT Revisao'!AO249 -> Reversão Conta-Covid - CVA em processamento - Encargos Setoriais | G57: ='NT Revisao'!AR249 -> 0 | J57: ='NT Revisao'!AT249 -> 0 | K57: =J57-I57 ->  | L57: 0
B58: ='NT Revisao'!AO250 -> Reversão Conta-Covid - Saldo a Compensar CVA-Ano Anterior + Ajustes | G58: ='NT Revisao'!AR250 -> 0 | J58: ='NT Revisao'!AT250 -> 0 | L58: 0
B59: ='NT Revisao'!AO251 -> Reversão Conta-Covid - Neutralidade de Parcela A | G59: ='NT Revisao'!AR251 -> 0 | J59: ='NT Revisao'!AT251 -> 0 | L59: 1
B60: ='NT Revisao'!AO252 -> Reversão Conta-Covid - Sobrecontratação | G60: ='NT Revisao'!AR252 -> 0 | J60: ='NT Revisao'!AT252 -> 0 | L60: 1
B61: ='NT Revisao'!AO253 -> Reversão Conta Covid - Parcela B | G61: ='NT Revisao'!AR253 -> 0 | J61: ='NT Revisao'!AT253 -> 0 | L61: 1
B62: ='NT Revisao'!AO254 -> Reversão Conta Covid - Diferimento | G62: ='NT Revisao'!AR254 -> 0 | J62: ='NT Revisao'!AT254 -> 0 | L62: 1
B63: ='NT Revisao'!AO255 -> Reversão Conta Covid - Postergação | G63: ='NT Revisao'!AR255 -> 0 | J63: ='NT Revisao'!AT255 -> 0 | L63: 1
B64: ='NT Revisao'!AO256 -> Conselho de Consumidores | G64: ='NT Revisao'!AR256 -> 0 | J64: ='NT Revisao'!AT256 -> 0 | L64: 1
B65: ='NT Revisao'!AO257 -> 0 | G65: ='NT Revisao'!AR257 -> 0 | J65: ='NT Revisao'!AT257 -> 0 | L65: 1
B66: ='NT Revisao'!AO258 -> Custo Distribuidora - Spread Conta Covid - Art. 4º, REN 952/2021 | G66: ='NT Revisao'!AR258 -> -427858.3878 | J66: ='NT Revisao'!AT258 -> -0.0002893918631 | L66: 1
B67: ='NT Revisao'!AO259 -> Arrecadação de encargo CDE Covid dos consumidores migrantes (Ofício Circular 20/2021) | G67: ='NT Revisao'!AR259 -> -77252.55015 | J67: ='NT Revisao'!AT259 -> -5.225153942e-05 | L67: 1
B68: ='NT Revisao'!AO260 -> Crédito de PIS/COFINS | G68: ='NT Revisao'!AR260 -> -144293166.3 | J68: ='NT Revisao'!AT260 -> -0.09759600236 | L68: 1
B69: ='NT Revisao'!AO261 -> Neutralidade Crédito de Pis/COFINS | G69: ='NT Revisao'!AR261 -> -35045.93696 | J69: ='NT Revisao'!AT261 -> -2.370412567e-05 | L69: 1
B70: Efeito da retirada dos Componentes Financeiros do Processo Anterior | I70: =I71-I31-I33 ->  | J70: =J71-J31-J33 ->  | K70: =J70-I70 ->  | L70: 1 | O70: =J70-I70 -> 
B71: Efeito Médio a ser percebido pelos Consumidores | J71: ='NT Revisao'!AT278 -> 0.1477887476 | K71: =J71-I71 -> 0.1477887476 | L71: 1 | M71: =((G31+G33)/C31-1)-((F31+F33)/C31-1) ->  | N71: =K71-M71 ->  | O71: =K71-N71 -> 

Sheet Mercado_Receita
A1: Código | B1: TipoMercado | C1: Modalidade | D1: Subgrupo | E1: Classe | F1: Subclasse | G1: Detalhe | H1: Agente | I1: Posto | J1: OPÇÃO | K1: AnoMes | L1: D | M1: Daj | N1: TUSD_E | O1: TUSD_Eaj | P1: TE_E | Q1: TE_Eaj | R1: TUSD/KW | S1: TUSD/MWh | T1: TE | U1: ReceitaD | V1: ReceitaE | W1: Total | X1: Total com Tar de aplicação | Y1: CCC | Z1: CDE | AA1: CFURH | AB1: Conexao_D | AC1: Conexao_T | AD1: CUSD | AE1: DISTRIBUICAO | AF1: EnergiaRevenda | AG1: ESSERR | AH1: ITAIPU | AI1: ONS | AJ1: OUTROS | AK1: PeD | AL1: PROINFA | AM1: RGR | AN1: TFSEE | AO1: TUST_FR | AP1: TUST_RB | AQ1: TUSDG_ONS | AR1: TUSDG_T | AS1: TUST_CI | AT1: TUST_ITAIPU | AU1: CVA_CCC | AV1: CVA_CDE | AW1: CVA_PROINFA | AX1: CVA_TranItaipu | AY1: CVA_ESSERR | AZ1: CVA_CFURH | BA1: CVA_CDE_E | BB1: CVA_Energia | BC1: CVA_RB | BD1: perdasnt | BE1: perdasrb_d | BF1: perdasrb_c | BG1: perdastec | BH1: RI | BI1: PisPasep | BJ1: Cofins | BK1: ICMS | BL1: UC | BM1: total_dummy | BN1: Subs_CarFI | BO1: Subs_GerFI | BP1: Subs_Dist | BQ1: Subs_AguaEsgoto | BR1: Subs_Rural | BS1: Subs_Irrigante | BT1: Subs_BaixaRenda | BU1: CDE_E | BV1: DespesaEnergia | BW1: RTE_CUSD | BX1: RTE_Energia | BY1: RTE_CDE_USO | BZ1: RTE_CDE_E | CA1: RTE_PeD | CB1: Dif_Subs_Car | CC1: Dif_Subs_Ger | CD1: Dif_Subs_D | CE1: Dif_Subs_Agua | CF1: Dif_Subs_Ru | CG1: Dif_Subs_Irr | CH1: dif_subs_baixa | CI1: FinTotAj | CJ1: FinAj | CK1: RTE_CDE_E_Dec | CL1: RTE_CDE_E_ACR | CM1: CDE_E_Dec | CN1: CDE_E_ACR | CO1: FinPostTUSD | CP1: FinPostTE | CQ1: FinPostQtddias | CR1: FinCT_Geral | CS1: finCT_TUST_FR | CT1: finCT_TUST_RB | CU1: FINCT_TUSDG_ONS | CV1: FINCT_TUSDG_T | CW1: FINCT_TUST_CI | CX1: FINCT_TUST_ITAIPU | CY1: FinCT_Itaipu | CZ1: FinCT_CUSD | DA1: FinCT_Conexao_D | DB1: FinCT_Conexao_T | DC1: FinCT_EnergiaRevenda | DD1: FINCT_perdasrb_c | DE1: FINCT_perdasrb_d | DF1: FinCT_perdasnt | DG1: FinCT_perdastec | DH1: FinCT_CCC | DI1: FinCT_CDE | DJ1: FinCT_CDE_E | DK1: FinCT_CFURH | DL1: FinCT_ONS | DM1: FinCT_ESSERR | DN1: FinCT_Ped | DO1: finCT_PROINFA | DP1: finCT_TFSEE | DQ1: FINCT_Liminar | DR1: FinCT_Subsidio | DS1: FINCT_RGR | DT1: Tipo_ato | DU1: DIST_D | DV1: DIST_E | DW1: FIN_RI | DX1: FINCT_RI | DY1: Fin_TUSD | DZ1: Fin_TE | EA1: CVA_TUSD | EB1: CVA_TE | EC1: FinCT_ParcelaB | ED1: CVA_EnergiaRevenda | EE1: CVA_perdasnt | EF1: CVA_perdasrb_d | EG1: CVA_perdasrb_c | EH1: CVA_perdastec | EI1: CVA_TUST_RB | EJ1: CVA_TUST_FR | EK1: CVA_TUSDG_ONS | EL1: CVA_TUSDG_T | EM1: CVA_TUST_CI | EN1: CVA_TUST_ITAIPU | EO1: CVA_liminar | EP1: covidTusdEco | EQ1: covidTeEco | ER1: CVA_CovidTusd | ES1: CVA_CovidTe_ou_CVA_CDE_E | ET1: FinCT_CDECOVIDTUSD | EU1: FinCT_CDECOVIDTE_ou_FinCT_CDE_E | EV1: idsreag | EW1: FinCTAn3En | EX1: An3En | EY1: CVA_An3En | EZ1: Fin_An3En | FA1: FIN_CFURH | FB1: TEAngra | FC1: TUSDAngra | FD1: teCheia | FE1: tusdcheia | FF1: AngraIII_TE | FG1: AngraIII_TUSD | FH1: AngraIII_Desc_TE | FI1: AngraIII_Desc_TUSD | FJ1: Coluna1
A2: 1 | B2: Regular | C2: Convencional | D2: B1 | E2: Residencial | F2: Residencial | G2: Não se aplica | H2: Não se aplica | I2: Não se aplica | J2: CATIVO | K2: 2021-07-01 | L2: 0 | M2: 0 | N2: 68657.802 | O2: 68657.802 | P2: 68657.802 | Q2: 68657.802 | S2: 444.24 | T2: 239.26 | V2: 46927607.67 | W2: 46927607.67 | X2: 45862725.16 | Y2: 0 | Z2: 1579688.875 | AA2: 0 | AB2: 0 | AC2: 83299.51053 | AD2: 57850.37021 | AE2: 22131850.49 | AF2: 15081409.11 | AG2: 797026.4528 | AH2: 0 | AI2: 0 | AJ2: 0 | AK2: 458368.7313 | AL2: 646394.8783 | AN2: 84249.45137 | AO2: 489626.2298 | AP2: 1726890.134 | AQ2: 0 | AR2: 0 | AS2: 0 | AT2: 0 | AU2: 0 | AV2: 206438.9045 | AW2: 73592.28467 | AX2: 0 | AY2: 107844.0209 | AZ2: 0 | BB2: 642520.0132 | BC2: 288300.8552 | BD2: 443956.9693 | BE2: 41238.75791 | BF2: 233153.7279 | BG2: 2347929.823 | BH2: 248515.4064 | BI2: 348269.22 | BJ2: 1610685.83 | BK2: 17465699.58 | BL2: 362386 | BV2: 18147688.39 | CI2: 45862723.82 | CJ2: -1064883.875 | CO2: -300034.5947 | CP2: -764847.9143 | CQ2: 31 | CR2: -2151877.867 | CS2: 22245.04512 | CT2: -17644.8721 | CU2: 0 | CV2: 0 | CW2: 0 | CX2: 0 | CY2: 0 | CZ2: 29869.67751 | DA2: 0 | DB2: 13457.64082 | DC2: -1963929.356 | DD2: -30361.71535 | DE2: -5370.188333 | DF2: -57812.90848 | DG2: -305751.8213 | DH2: 0 | DI2: -211837.3394 | DK2: 0 | DL2: 0 | DM2: 771271.9616 | DN2: 0 | DO2: 18826.00739 | DP2: -3196.419924 | DQ2: 0 | DR2: -411569.5884 | DV2: 22131850.49 | DW2: 247425.7742 | DX2: -1089.632297 | DY2: -968761.5862 | DZ2: -1367663.416 | EA2: 668726.9915 | EB2: 602815.5016 | EC2: -182660.5393 | ED2: 533958.2085 | EE2: 15718.32355 | EF2: 1460.060736 | EG2: 8254.821941 | EH2: 83128.59843 | EI2: 224660.4516 | EJ2: 63640.40361 | EK2: 0 | EL2: 0 | EM2: 0 | EN2: 0 | EO2: 0 | EP2: 320509.287 | EQ2: 155269.882 | ER2: 0 | ES2: -47458.71492 | ET2: 0 | EU2: -73.9907548 | EV2: 115 | EW2: 0 | EX2: 0 | EY2: 0 | FA2: 0 | FB2: -46.77881411 | FD2: -46.77881411 | FF2: 0 | FG2: 0 | FH2: 0 | FI2: 0
A3: 2 | B3: Refaturamento - Regular | C3: Convencional | D3: B1 | E3: Residencial | F3: Residencial | G3: Não se aplica | H3: Não se aplica | I3: Não se aplica | J3: CATIVO | K3: 2021-07-01 | L3: 0 | M3: 0 | N3: -90.827 | O3: -90.827 | P3: -90.827 | Q3: -90.827 | S3: 444.24 | T3: 239.26 | V3: -62080.2545 | W3: -62080.2545 | X3: -60671.52773 | Y3: 0 | Z3: -2089.761066 | AA3: 0 | AB3: 0 | AC3: -110.1964296 | AD3: -76.52991244 | AE3: -29278.09406 | AF3: -19951.10687 | AG3: -1054.381578 | AH3: 0 | AI3: 0 | AJ3: 0 | AK3: -606.3732823 | AL3: -855.1119596 | AN3: -111.4531007 | AO3: -647.7236421 | AP3: -2284.49274 | AQ3: 0 | AR3: 0 | AS3: 0 | AT3: 0 | AU3: 0 | AV3: -273.0968052 | AW3: -97.35479792 | AX3: 0 | AY3: -142.6662171 | AZ3: 0 | BB3: -849.9859234 | BC3: -381.3914954 | BD3: -587.3080477 | BE3: -54.55450882 | BF3: -308.437687 | BG3: -3106.062469 | BH3: -328.7595607 | BI3: -702.91 | BJ3: -3237.61 | BK3: -19796.34 | BL3: -19 | BV3: -24007.46959 | CI3: -60673.5317 | CJ3: 1406.6928 | CO3: 396.91399 | CP3: 1011.81278 | CQ3: 31 | CR3: 2846.706498 | CS3: -29.42783856 | CT3: 23.3422969 | CU3: 0 | CV3: 0 | CW3: 0 | CX3: 0 | CY3: 0 | CZ3: -39.51441963 | DA3: 0 | DB3: -17.80303341 | DC3: 2598.070524 | DD3: 40.16533358 | DE3: 7.104190369 | DF3: 76.48035453 | DG3: 404.4772752 | DH3: 0 | DI3: 280.2383627 | DK3: 0 | DL3: 0 | DM3: -1020.311114 | DN3: 0 | DO3: -24.90481377 | DP3: 4.228525003 | DQ3: 0 | DR3: 544.4629731 | DV3: -29278.09406 | DW3: -327.3180925 | DX3: 1.441468117 | DY3: 1281.56897 | DZ3: 1809.27384 | EA3: -884.65498 | EB3: -797.46106 | EC3: 241.6405466 | ED3: -706.3701545 | EE3: -20.79367721 | EF3: -1.931505709 | EG3: -10.9202551 | EH3: -109.970331 | EI3: -297.201982 | EJ3: -84.18951336 | EK3: 0 | EL3: 0 | EM3: 0 | EN3: 0 | EO3: 0 | EP3: -423.9998392 | EQ3: -205.4056081 | ER3: 0 | ES3: 62.78285314 | ET3: 0 | EU3: 0.0978819317 | EV3: 115 | EW3: 0 | EX3: 0 | EY3: 0 | FA3: 0 | FB3: -46.77881411 | FD3: -46.77881411 | FF3: 0 | FG3: 0 | FH3: 0 | FI3: 0
A4: 3 | B4: Sistema de Compensação | C4: Convencional | D4: B1 | E4: Residencial | F4: Residencial | G4: Não se aplica | H4: Não se aplica | I4: Não se aplica | J4: CATIVO | K4: 2021-07-01 | L4: 0 | M4: 0 | N4: 1536.392 | O4: 1536.392 | P4: 1536.392 | Q4: 1536.392 | S4: 444.24 | T4: 239.26 | V4: 1050123.932 | W4: 1050123.932 | X4: 1026294.492 | Y4: 0 | Z4: 35349.53465 | AA4: 0 | AB4: 0 | AC4: 1864.037267 | AD4: 1294.548375 | AE4: 495256.1406 | AF4: 337484.6796 | AG4: 17835.48308 | AH4: 0 | AI4: 0 | AJ4: 0 | AK4: 10257.15987 | AL4: 14464.72055 | AN4: 1885.294596 | AO4: 10956.62547 | AP4: 38643.53518 | AQ4: 0 | AR4: 0 | AS4: 0 | AT4: 0 | AU4: 0 | AV4: 4619.592706 | AW4: 1646.813532 | AX4: 0 | AY4: 2413.282776 | AZ4: 0 | BB4: 14378.01065 | BC4: 6451.460936 | BD4: 9934.660244 | BE4: 922.8215279 | BF4: 5217.404458 | BG4: 52540.86923 | BH4: 5561.160876 | BI4: 7794.13 | BJ4: 36056.26 | BK4: 907070.94 | BL4: 9452 | BV4: 406100.435 | CI4: 1026293.156 | CJ4: -23830.8059 | CO4: -6714.03304 | CP4: -17115.40688 | CQ4: 31 | CR4: -48153.71078 | CS4: 497.7891568 | CT4: -394.8486487 | CU4: 0 | CV4: 0 | CW4: 0 | CX4: 0 | CY4: 0 | CZ4: 668.409594 | DA4: 0 | DB4: 301.1487565 | DC4: -43947.88739 | DD4: -679.4201855 | DE4: -120.1715486 | DF4: -1293.710074 | DG4: -6841.970448 | DH4: 0 | DI4: -4740.396342 | DK4: 0 | DL4: 0 | DM4: 17259.16119 | DN4: 0 | DO4: 421.2795385 | DP4: -71.52798162 | DQ4: 0 | DR4: -9209.910667 | DV4: 495256.1406 | DW4: 5536.777597 | DX4: -24.38327902 | DY4: -21678.49112 | DZ4: -30604.92864 | EA4: 14964.45808 | EB4: 13489.52176 | EC4: -4087.491635 | ED4: 11948.66564 | EE4: 351.7372512 | EF4: 32.67255242 | EG4: 184.7225227 | EH4: 1860.212676 | EI4: 5027.345917 | EJ4: 1424.115019 | EK4: 0 | EL4: 0 | EM4: 0 | EN4: 0 | EO4: 0 | EP4: 7172.206072 | EQ4: 3474.556388 | ER4: 0 | ES4: -1062.0088 | ET4: 0 | EU4: -1.655730309 | EV4: 115 | EW4: 0 | EX4: 0 | EY4: 0 | FA4: 0 | FB4: -46.77881411 | FD4: -46.77881411 | FF4: 0 | FG4: 0 | FH4: 0 | FI4: 0
A5: 4 | B5: Sistema de Compensação | C5: Convencional | D5: B1 | E5: Residencial | F5: Residencial | G5: Não se aplica | H5: Não se aplica | I5: Não se aplica | J5: CATIVO | K5: 2021-07-01 | L5: 0 | M5: 0 | N5: -4.216 | O5: -4.216 | P5: -4.216 | Q5: -4.216 | S5: 444.24 | T5: 239.26 | V5: -2881.636 | W5: -2881.636 | X5: -2816.24584 | Y5: 0 | Z5: -97.00235231 | AA5: 0 | AB5: 0 | AC5: -5.115088543 | AD5: -3.552358999 | AE5: -1359.028092 | AF5: -926.0887906 | AG5: -48.94219487 | AH5: 0 | AI5: 0 | AJ5: 0 | AK5: -28.14658371 | AL5: -39.69251458 | AN5: -5.173420597 | AO5: -30.06598121 | AP5: -106.0413907 | AQ5: 0 | AR5: 0 | AS5: 0 | AT5: 0 | AU5: 0 | AV5: -12.67658439 | AW5: -4.519006772 | AX5: 0 | AY5: -6.622268394 | AZ5: 0 | BB5: -39.45457467 | BC5: -17.70339816 | BD5: -27.26161526 | BE5: -2.532306574 | BF5: -14.31703445 | BG5: -144.1769449 | BH5: -15.26033347 | BI5: -27.24 | BJ5: -125.39 | BK5: -878.19 | BL5: 0 | BV5: -1114.376692 | CI5: -2818.9178 | CJ5: 62.6882 | CO5: 18.42392 | CP5: 46.96624 | CQ5: 31 | CR5: 132.1381813 | CS5: -1.36597892 | CT5: 1.083500762 | CU5: 0 | CV5: 0 | CW5: 0 | CX5: 0 | CY5: 0 | CZ5: -1.834176986 | DA5: 0 | DB5: -0.8263796984 | DC5: 120.5970177 | DD5: 1.864391055 | DE5: 0.3297617074 | DF5: 3.550058625 | DG5: 18.77499193 | DH5: 0 | DI5: 13.00808061 | DK5: 0 | DL5: 0 | DM5: -47.36071496 | DN5: 0 | DO5: -1.156029538 | DP5: 0.1962793158 | DQ5: 0 | DR5: 25.27283621 | DV5: -1359.028092 | DW5: -15.19342352 | DX5: 0.06690994509 | DY5: 59.48776 | DZ5: 83.98272 | EA5: -41.06384 | EB5: -37.01648 | EC5: 11.21645045 | ED5: -32.78823005 | EE5: -0.9651991492 | EF5: -0.08965646854 | EG5: -0.5068954771 | EH5: -5.104593517 | EI5: -13.79549645 | EJ5: -3.907901707 | EK5: 0 | EL5: 0 | EM5: 0 | EN5: 0 | EO5: 0 | EP5: -19.68118866 | EQ5: -9.534500136 | ER5: 0 | ES5: 2.914249164 | ET5: 0 | EU5: 0.004543475223 | EV5: 115 | EW5: 0 | EX5: 0 | EY5: 0 | FA5: 0 | FB5: -46.77881411 | FD5: -46.77881411 | FF5: 0 | FG5: 0 | FH5: 0 | FI5: 0
A6: 5 | B6: Regular | C6: Convencional | D6: B1 | E6: Residencial | F6: Residencial baixa renda – faixa 01 | G6: Não se aplica | H6: Não se aplica | I6: Não se aplica | J6: CATIVO | K6: 2021-07-01 | L6: 0 | M6: 0 | N6: 4552.544 | O6: 4552.544 | P6: 4552.544 | Q6: 4552.544 | S6: 407.14 | T6: 239.26 | V6: 2942764.442 | W6: 2942764.442 | X6: 2867875.093 | Y6: 0 | Z6: 0 | AA6: 0 | AB6: 0 | AC6: 5523.40267 | AD6: 3835.927573 | AE6: 1467513.09 | AF6: 1000014.224 | AG6: 52849.02648 | AH6: 0 | AI6: 0 | AJ6: 0 | AK6: 30344.44749 | AL6: 0 | AN6: 5586.391105 | AO6: 32466.011 | AP6: 114506.19 | AQ6: 0 | AR6: 0 | AS6: 0 | AT6: 0 | AU6: 0 | AV6: 0 | AW6: 0 | AX6: 0 | AY6: 7150.893795 | AZ6: 0 | BB6: 42604.05293 | BC6: 19116.57948 | BD6: 29437.78533 | BE6: 2734.449027 | BF6: 15459.89784 | BG6: 155685.931 | BH6: 16478.4961 | BI6: 7086.46 | BJ6: 35987.69 | BK6: 39997.14 | BL6: 10246 | BT6: 1864130.192 | BV6: 1203332.287 | CI6: 1003744.019 | CJ6: -26223.56536 | CO6: -24174.00864 | CP6: -50715.34016 | CQ6: 31 | CR6: -128406.1252 | CS6: 1475.018771 | CT6: -1169.991673 | CU6: 0 | CV6: 0 | CW6: 0 | CX6: 0 | CY6: 0 | CZ6: 1980.590947 | DA6: 0 | DB6: 892.3458106 | DC6: -130223.7261 | DD6: -2013.216867 | DE6: -356.0850764 | DF6: -3833.44357 | DG6: -20273.71368 | DH6: 0 | DI6: 0 | DK6: 0 | DL6: 0 | DM6: 51141.30425 | DN6: 0 | DO6: 0 | DP6: -211.947396 | DQ6: 0 | DR6: -25808.35441 | DV6: 1467513.09 | DW6: 16406.24504 | DX6: -72.25106003 | DY6: -49941.40768 | DZ6: -90686.67648 | EA6: 25767.39904 | EB6: 39971.33632 | EC6: -12111.80839 | ED6: 35405.56452 | EE6: 1042.246583 | EF6: 96.81333441 | EG6: 547.358625 | EH6: 5512.069874 | EI6: 14896.72785 | EJ6: 4219.851629 | EK6: 0 | EL6: 0 | EM6: 0 | EN6: 0 | EO6: 0 | EP6: 0 | EQ6: 10295.59568 | ER6: 0 | ES6: -3146.880348 | ET6: 0 | EU6: -4.906160072 | EV6: 115 | EW6: 0 | EX6: 0 | EY6: 0 | FA6: 0 | FB6: -46.77881411 | FD6: -46.77881411 | FF6: 0 | FG6: 0 | FH6: 0 | FI6: 0
A7: 6 | B7: Refaturamento - Regular | C7: Convencional | D7: B1 | E7: Residencial | F7: Residencial baixa renda – faixa 01 | G7: Não se aplica | H7: Não se aplica | I7: Não se aplica | J7: CATIVO | K7: 2021-07-01 | L7: 0 | M7: 0 | N7: 0.642 | O7: 0.642 | P7: 0.642 | Q7: 0.642 | S7: 407.14 | T7: 239.26 | V7: 414.9888 | W7: 414.9888 | X7: 404.4279 | Y7: 0 | Z7: 0 | AA7: 0 | AB7: 0 | AC7: 0.7789105419 | AD7: 0.5409427129 | AE7: 206.948775 | AF7: 141.0220597 | AG7: 7.452772559 | AH7: 0 | AI7: 0 | AJ7: 0 | AK7: 4.279175619 | AL7: 0 | AN7: 0.7877931744 | AO7: 4.578358619 | AP7: 16.14766908 | AQ7: 0 | AR7: 0 | AS7: 0 | AT7: 0 | AU7: 0 | AV7: 0 | AW7: 0 | AX7: 0 | AY7: 1.008419428 | AZ7: 0 | BB7: 6.008025839 | BC7: 2.695821067 | BD7: 4.151318073 | BE7: 0.3856121491 | BF7: 2.180155626 | BG7: 21.95483838 | BH7: 2.323798407 | BI7: 6 | BJ7: 27.61 | BK7: 96.72 | BL7: 9 | BT7: 262.87974 | BV7: 169.6939839 | CI7: 141.1072 | CJ7: -4.16888 | CO7: -3.40902 | CP7: -7.15188 | CQ7: 31 | CR7: -18.10783869 | CS7: 0.2080072264 | CT7: -0.1649922887 | CU7: 0 | CV7: 0 | CW7: 0 | CX7: 0 | CY7: 0 | CZ7: 0.279303042 | DA7: 0 | DB7: 0.1258386543 | DC7: -18.36415687 | DD7: -0.283903951 | DE7: -0.05021513665 | DF7: -0.5405924186 | DG7: -2.859000195 | DH7: 0 | DI7: 0 | DK7: 0 | DL7: 0 | DM7: 7.211949479 | DN7: 0 | DO7: 0 | DP7: -0.02988883319 | DQ7: 0 | DR7: -3.639495528 | DV7: 206.948775 | DW7: 2.313609559 | DX7: -0.01018884838 | DY7: -7.04274 | DZ7: -12.78864 | EA7: 3.63372 | EB7: 5.63676 | EC7: -1.708007872 | ED7: 4.992894615 | EE7: 0.1469776693 | EF7: 0.01365262163 | EG7: 0.07718854277 | EH7: 0.7773123904 | EI7: 2.100737363 | EJ7: 0.595083704 | EK7: 0 | EL7: 0 | EM7: 0 | EN7: 0 | EO7: 0 | EP7: 0 | EQ7: 1.451885457 | ER7: 0 | ES7: -0.4437732361 | ET7: 0 | EU7: -0.0006918669575 | EV7: 115 | EW7: 0 | EX7: 0 | EY7: 0 | FA7: 0 | FB7: -46.77881411 | FD7: -46.77881411 | FF7: 0 | FG7: 0 | FH7: 0 | FI7: 0
A8: 7 | B8: Sistema de Compensação | C8: Convencional | D8: B1 | E8: Residencial | F8: Residencial baixa renda – faixa 01 | G8: Não se aplica | H8: Não se aplica | I8: Não se aplica | J8: CATIVO | K8: 2021-07-01 | L8: 0 | M8: 0 | N8: 12.78 | O8: 12.78 | P8: 12.78 | Q8: 12.78 | S8: 407.14 | T8: 239.26 | V8: 8260.992 | W8: 8260.992 | X8: 8050.761 | Y8: 0 | Z8: 0 | AA8: 0 | AB8: 0 | AC8: 15.50541546 | AD8: 10.76829886 | AE8: 4119.634493 | AF8: 2807.261562 | AG8: 148.3589304 | AH8: 0 | AI8: 0 | AJ8: 0 | AK8: 85.18358942 | AL8: 0 | AN8: 15.68223796 | AO8: 91.13928839 | AP8: 321.4442536 | AQ8: 0 | AR8: 0 | AS8: 0 | AT8: 0 | AU8: 0 | AV8: 0 | AW8: 0 | AX8: 0 | AY8: 20.07414375 | AZ8: 0 | BB8: 119.599019 | BC8: 53.66447545 | BD8: 82.6383878 | BE8: 7.676204462 | BF8: 43.39935965 | BG8: 437.0449135 | BH8: 46.25879073 | BI8: 19.51 | BJ8: 99.05 | BK8: 334.59 | BL8: 21 | BT8: 5233.0266 | BV8: 3378.020427 | CI8: 2817.7344 | CJ8: -73.6428 | CO8: -67.8618 | CP8: -142.3692 | CQ8: 31 | CR8: -360.4644524 | CS8: 4.140704601 | CT8: -3.284425934 | CU8: 0 | CV8: 0 | CW8: 0 | CX8: 0 | CY8: 0 | CZ8: 5.559957753 | DA8: 0 | DB8: 2.505012463 | DC8: -365.5668611 | DD8: -5.651545941 | DE8: -0.9996097296 | DF8: -10.76132572 | DG8: -56.91280762 | DH8: 0 | DI8: 0 | DK8: 0 | DL8: 0 | DM8: 143.5649756 | DN8: 0 | DO8: 0 | DP8: -0.5949833149 | DQ8: 0 | DR8: -72.4497708 | DV8: 4119.634493 | DW8: 46.05596599 | DX8: -0.2028247387 | DY8: -140.1966 | DZ8: -254.5776 | EA8: 72.3348 | EB8: 112.2084 | EC8: -34.00053053 | ED8: 99.39126663 | EE8: 2.925817155 | EF8: 0.2717764867 | EG8: 1.536556973 | EH8: 15.47360179 | EI8: 41.81841667 | EJ8: 11.84605878 | EK8: 0 | EL8: 0 | EM8: 0 | EN8: 0 | EO8: 0 | EP8: 0 | EQ8: 28.90201891 | ER8: 0 | ES8: -8.833990588 | ET8: 0 | EU8: -0.01377267869 | EV8: 115 | EW8: 0 | EX8: 0 | EY8: 0 | FA8: 0 | FB8: -46.77881411 | FD8: -46.77881411 | FF8: 0 | FG8: 0 | FH8: 0 | FI8: 0
A9: 8 | B9: Regular | C9: Convencional | D9: B1 | E9: Residencial | F9: Residencial baixa renda – faixa 02 | G9: Não se aplica | H9: Não se aplica | I9: Não se aplica | J9: CATIVO | K9: 2021-07-01 | L9: 0 | M9: 0 | N9: 8591.099 | O9: 8591.099 | P9: 8591.099 | Q9: 8591.099 | S9: 407.14 | T9: 239.26 | V9: 5553286.394 | W9: 5553286.394 | X9: 5411962.815 | Y9: 0 | Z9: 0 | AA9: 0 | AB9: 0 | AC9: 10423.20495 | AD9: 7238.773208 | AE9: 2769341.766 | AF9: 1887125.352 | AG9: 99731.31913 | AH9: 0 | AI9: 0 | AJ9: 0 | AK9: 57262.96165 | AL9: 0 | AN9: 10542.07033 | AO9: 61266.56098 | AP9: 216084.4605 | AQ9: 0 | AR9: 0 | AS9: 0 | AT9: 0 | AU9: 0 | AV9: 0 | AW9: 0 | AX9: 0 | AY9: 13494.44103 | AZ9: 0 | BB9: 80398.04482 | BC9: 36074.86865 | BD9: 55552.00085 | BE9: 5160.174686 | BF9: 29174.35018 | BG9: 293794.6885 | BH9: 31096.54544 | BI9: 31612.37 | BJ9: 145529.22 | BK9: 160466.4 | BL9: 47816 | BT9: 2164785.126 | BV9: 2270806.566 | CI9: 3247178.067 | CJ9: -84707.88817 | CO9: -45618.73569 | CP9: -95704.84286 | CQ9: 31 | CR9: -242315.0076 | CS9: 2783.505724 | CT9: -2207.889543 | CU9: 0 | CV9: 0 | CW9: 0 | CX9: 0 | CY9: 0 | CZ9: 3737.570226 | DA9: 0 | DB9: 1683.94445 | DC9: -245744.9996 | DD9: -3799.138551 | DE9: -671.9676173 | DF9: -7234.08565 | DG9: -38258.49488 | DH9: 0 | DI9: 0 | DK9: 0 | DL9: 0 | DM9: 96508.67906 | DN9: 0 | DO9: 0 | DP9: -399.9656152 | DQ9: 0 | DR9: -48702.90716 | DV9: 2769341.766 | DW9: 30960.20057 | DX9: -136.3448677 | DY9: -94244.35603 | DZ9: -171134.6921 | EA9: 48625.62034 | EB9: 75429.84922 | EC9: -22856.17557 | ED9: 66813.78805 | EE9: 1966.821975 | EF9: 182.6962991 | EG9: 1032.919646 | EH9: 10401.81885 | EI9: 28111.59293 | EJ9: 7963.275723 | EK9: 0 | EL9: 0 | EM9: 0 | EN9: 0 | EO9: 0 | EP9: 0 | EQ9: 19428.80327 | ER9: 0 | ES9: -5938.473216 | ET9: 0 | EU9: -9.258407363 | EV9: 115 | EW9: 0 | EX9: 0 | EY9: 0 | FA9: 0 | FB9: -46.77881411 | FD9: -46.77881411 | FF9: 0 | FG9: 0 | FH9: 0 | FI9: 0
A10: 9 | B10: Refaturamento - Regular | C10: Convencional | D10: B1 | E10: Residencial | F10: Residencial baixa renda – faixa 02 | G10: Não se aplica | H10: Não se aplica | I10: Não se aplica | J10: CATIVO | K10: 2021-07-01 | L10: 0 | M10: 0 | N10: -0.565 | O10: -0.565 | P10: -0.565 | Q10: -0.565 | S10: 407.14 | T10: 239.26 | V10: -365.216 | W10: -365.216 | X10: -355.92175 | Y10: 0 | Z10: 0 | AA10: 0 | AB10: 0 | AC10: -0.6854898071 | AD10: -0.4760632909 | AE10: -182.127816 | AF10: -124.1081989 | AG10: -6.558904199 | AH10: 0 | AI10: 0 | AJ10: 0 | AK10: -3.76594116 | AL10: 0 | AN10: -0.6933070771 | AO10: -4.02924084 | AP10: -14.21095487 | AQ10: 0 | AR10: 0 | AS10: 0 | AT10: 0 | AU10: 0 | AV10: 0 | AW10: 0 | AX10: 0 | AY10: -0.8874719266 | AZ10: 0 | BB10: -5.28743707 | BC10: -2.372490503 | BD10: -3.653418553 | BE10: -0.3393627168 | BF10: -1.918672786 | BG10: -19.32162567 | BH10: -2.045087383 | BI10: -2.11 | BJ10: -9.68 | BK10: -54.24 | BL10: -1 | BT10: -142.3687 | BV10: -149.3412787 | CI10: -215.4429 | CJ10: 3.65105 | CO10: 3.00015 | CP10: 6.2941 | CQ10: 31 | CR10: 15.93602626 | CS10: -0.1830593192 | CT10: 0.145203494 | CU10: 0 | CV10: 0 | CW10: 0 | CX10: 0 | CY10: 0 | CZ10: -0.2458040791 | DA10: 0 | DB10: -0.1107458562 | DC10: 16.16160223 | DD10: 0.2498531656 | DE10: 0.04419244892 | DF10: 0.4757550102 | DG10: 2.516098302 | DH10: 0 | DI10: 0 | DK10: 0 | DL10: 0 | DM10: -6.346964884 | DN10: 0 | DO10: 0 | DP10: 0.02630403544 | DQ10: 0 | DR10: 3.202982825 | DV10: -182.127816 | DW10: -2.036120562 | DX10: 0.008966821389 | DY10: 6.19805 | DZ10: 11.2548 | EA10: -3.1979 | EB10: -4.9607 | EC10: 1.503153345 | ED10: -4.394058345 | EE10: -0.1293495065 | EF10: -0.01201515767 | EG10: -0.06793072689 | EH10: -0.6840833342 | EI10: -1.848779767 | EJ10: -0.5237107363 | EK10: 0 | EL10: 0 | EM10: 0 | EN10: 0 | EO10: 0 | EP10: 0 | EQ10: -1.277749662 | ER10: 0 | ES10: 0.3905480972 | ET10: 0 | EU10: 0.0006088860296 | EV10: 115 | EW10: 0 | EX10: 0 | EY10: 0 | FA10: 0 | FB10: -46.77881411 | FD10: -46.77881411 | FF10: 0 | FG10: 0 | FH10: 0 | FI10: 0
A11: 10 | B11: Sistema de Compensação | C11: Convencional | D11: B1 | E11: Residencial | F11: Residencial baixa renda – faixa 02 | G11: Não se aplica | H11: Não se aplica | I11: Não se aplica | J11: CATIVO | K11: 2021-07-01 | L11: 0 | M11: 0 | N11: 14.214 | O11: 14.214 | P11: 14.214 | Q11: 14.214 | S11: 407.14 | T11: 239.26 | V11: 9187.9296 | W11: 9187.9296 | X11: 8954.1093 | Y11: 0 | Z11: 0 | AA11: 0 | AB11: 0 | AC11: 17.24522499 | AD11: 11.97657277 | AE11: 4581.88456 | AF11: 3122.25476 | AG11: 165.0057775 | AH11: 0 | AI11: 0 | AJ11: 0 | AK11: 94.74174805 | AL11: 0 | AN11: 17.44188813 | AO11: 101.3657156 | AP11: 357.5124116 | AQ11: 0 | AR11: 0 | AS11: 0 | AT11: 0 | AU11: 0 | AV11: 0 | AW11: 0 | AX11: 0 | AY11: 22.32659463 | AZ11: 0 | BB11: 133.0188151 | BC11: 59.68598232 | BD11: 91.91095808 | BE11: 8.537525057 | BF11: 48.26905306 | BG11: 486.0842254 | BH11: 51.44933109 | BI11: 50.95 | BJ11: 232.34 | BK11: 1094.81 | BL11: 103 | BT11: 3581.64372 | BV11: 3757.056522 | CI11: 5370.9537 | CJ11: -141.69192 | CO11: -75.47634 | CP11: -158.34396 | CQ11: 31 | CR11: -400.9109332 | CS11: 4.605318873 | CT11: -3.652960112 | CU11: 0 | CV11: 0 | CW11: 0 | CX11: 0 | CY11: 0 | CZ11: 6.183821557 | DA11: 0 | DB11: 2.786091327 | DC11: -406.5858657 | DD11: -6.285686542 | DE11: -1.111772512 | DF11: -11.96881719 | DG11: -63.29879871 | DH11: 0 | DI11: 0 | DK11: 0 | DL11: 0 | DM11: 159.6739095 | DN11: 0 | DO11: 0 | DP11: -0.6617443535 | DQ11: 0 | DR11: -80.57911128 | DV11: 4581.88456 | DW11: 51.22374809 | DX11: -0.2255830075 | DY11: -155.92758 | DZ11: -283.14288 | EA11: 80.45124 | EB11: 124.79892 | EC11: -37.81561353 | ED11: 110.54362 | EE11: 3.254113071 | EF11: 0.3022715948 | EG11: 1.708968765 | EH11: 17.20984162 | EI11: 46.51071788 | EJ11: 13.17526444 | EK11: 0 | EL11: 0 | EM11: 0 | EN11: 0 | EO11: 0 | EP11: 0 | EQ11: 32.1450154 | ER11: 0 | ES11: -9.825222396 | ET11: 0 | EU11: -0.01531806376 | EV11: 115 | EW11: 0 | EX11: 0 | EY11: 0 | FA11: 0 | FB11: -46.77881411 | FD11: -46.77881411 | FF11: 0 | FG11: 0 | FH11: 0 | FI11: 0
A12: 11 | B12: Regular | C12: Convencional | D12: B1 | E12: Residencial | F12: Residencial baixa renda – faixa 03 | G12: Não se aplica | H12: Não se aplica | I12: Não se aplica | J12: CATIVO | K12: 2021-07-01 | L12: 0 | M12: 0 | N12: 5826.392 | O12: 5826.392 | P12: 5826.392 | Q12: 5826.392 | S12: 407.14 | T12: 239.26 | V12: 3766179.789 | W12: 3766179.789 | X12: 3670335.64 | Y12: 0 | Z12: 0 | AA12: 0 | AB12: 0 | AC12: 7068.906776 | AD12: 4909.259026 | AE12: 1878138.142 | AF12: 1279828.349 | AG12: 67636.72028 | AH12: 0 | AI12: 0 | AJ12: 0 | AK12: 38835.13176 | AL12: 0 | AN12: 7149.520014 | AO12: 41550.33026 | AP12: 146546.1837 | AQ12: 0 | AR12: 0 | AS12: 0 | AT12: 0 | AU12: 0 | AV12: 0 | AW12: 0 | AX12: 0 | AY12: 9151.78643 | AZ12: 0 | BB12: 54525.09919 | BC12: 24465.59236 | BD12: 37674.77634 | BE12: 3499.575608 | BF12: 19785.73411 | BG12: 199248.4341 | BH12: 21089.3465 | BI12: 46172.43 | BJ12: 212106.49 | BK12: 414446.4 | BL12: 76330 | BT12: 367062.696 | BV12: 1540036.869 | CI12: 3303271.81 | CJ12: -86231.7655 | CO12: -30938.14152 | CP12: -64906.00688 | CQ12: 31 | CR12: -164335.4618 | CS12: 1887.743988 | CT12: -1497.367213 | CU12: 0 | CV12: 0 | CW12: 0 | CX12: 0 | CY12: 0 | CZ12: 2534.780389 | DA12: 0 | DB12: 1142.033222 | DC12: -166661.6459 | DD12: -2576.535372 | DE12: -455.7212936 | DF12: -4906.079974 | DG12: -25946.50446 | DH12: 0 | DI12: 0 | DK12: 0 | DL12: 0 | DM12: 65451.16004 | DN12: 0 | DO12: 0 | DP12: -271.2524277 | DQ12: 0 | DR12: -33029.79382 | DV12: 1878138.142 | DW12: 20996.87886 | DX12: -92.46763966 | DY12: -63915.52024 | DZ12: -116061.7286 | EA12: 32977.37872 | EB12: 51155.72176 | EC12: -15500.81526 | ED12: 45312.40068 | EE12: 1333.877752 | EF12: 123.9026876 | EG12: 700.5151216 | EH12: 7054.402949 | EI12: 19064.98344 | EJ12: 5400.608928 | EK12: 0 | EL12: 0 | EM12: 0 | EN12: 0 | EO12: 0 | EP12: 0 | EQ12: 13176.40781 | ER12: 0 | ES12: -4027.409397 | ET12: 0 | EU12: -6.278953437 | EV12: 115 | EW12: 0 | EX12: 0 | EY12: 0 | FA12: 0 | FB12: -46.77881411 | FD12: -46.77881411 | FF12: 0 | FG12: 0 | FH12: 0 | FI12: 0
A13: 12 | B13: Refaturamento - Regular | C13: Convencional | D13: B1 | E13: Residencial | F13: Residencial baixa renda – faixa 03 | G13: Não se aplica | H13: Não se aplica | I13: Não se aplica | J13: CATIVO | K13: 2021-07-01 | L13: 0 | M13: 0 | N13: -0.841 | O13: -0.841 | P13: -0.841 | Q13: -0.841 | S13: 407.14 | T13: 239.26 | V13: -543.6224 | W13: -543.6224 | X13: -529.78795 | Y13: 0 | Z13: 0 | AA13: 0 | AB13: 0 | AC13: -1.020348545 | AD13: -0.7086181021 | AE13: -271.0964482 | AF13: -184.7345049 | AG13: -9.762899879 | AH13: 0 | AI13: 0 | AJ13: 0 | AK13: -5.605586753 | AL13: 0 | AN13: -1.031984517 | AO13: -5.997507162 | AP13: -21.15294345 | AQ13: 0 | AR13: 0 | AS13: 0 | AT13: 0 | AU13: 0 | AV13: 0 | AW13: 0 | AX13: 0 | AY13: -1.320998036 | AZ13: 0 | BB13: -7.870326683 | BC13: -3.531441616 | BD13: -5.438097351 | BE13: -0.5051399024 | BF13: -2.855935952 | BG13: -28.76015432 | BH13: -3.044103521 | BI13: -4.86 | BJ13: -22.47 | BK13: -139.54 | BL13: -2 | BT13: -52.983 | BV13: -222.2938325 | CI13: -476.238 | CJ13: 12.98375 | CO13: 4.46571 | CP13: 9.36874 | CQ13: 31 | CR13: 23.72070458 | CS13: -0.2724829867 | CT13: 0.2161347583 | CU13: 0 | CV13: 0 | CW13: 0 | CX13: 0 | CY13: 0 | CZ13: -0.365878284 | DA13: 0 | DB13: -0.1648447169 | DC13: 24.05647341 | DD13: 0.3719053315 | DE13: 0.06578026468 | DF13: 0.7081592275 | DG13: 3.74520119 | DH13: 0 | DI13: 0 | DK13: 0 | DL13: 0 | DM13: -9.447429146 | DN13: 0 | DO13: 0 | DP13: 0.03915344036 | DQ13: 0 | DR13: 4.767625762 | DV13: -271.0964482 | DW13: -3.030756447 | DX13: 0.01334707396 | DY13: 9.22577 | DZ13: 16.75272 | EA13: -4.76006 | EB13: -7.38398 | EC13: 2.237437103 | ED13: -6.540536403 | EE13: -0.192536168 | EF13: -0.01788450902 | EG13: -0.1011145864 | EH13: -1.018255016 | EI13: -2.751900502 | EJ13: -0.7795411138 | EK13: 0 | EL13: 0 | EM13: 0 | EN13: 0 | EO13: 0 | EP13: 0 | EQ13: -1.901924719 | ER13: 0 | ES13: 0.5813291146 | ET13: 0 | EU13: 0.0009063241609 | EV13: 115 | EW13: 0 | EX13: 0 | EY13: 0 | FA13: 0 | FB13: -46.77881411 | FD13: -46.77881411 | FF13: 0 | FG13: 0 | FH13: 0 | FI13: 0
A14: 13 | B14: Sistema de Compensação | C14: Convencional | D14: B1 | E14: Residencial | F14: Residencial baixa renda – faixa 03 | G14: Não se aplica | H14: Não se aplica | I14: Não se aplica | J14: CATIVO | K14: 2021-07-01 | L14: 0 | M14: 0 | N14: 10.545 | O14: 10.545 | P14: 10.545 | Q14: 10.545 | S14: 407.14 | T14: 239.26 | V14: 6816.288 | W14: 6816.288 | X14: 6642.82275 | Y14: 0 | Z14: 0 | AA14: 0 | AB14: 0 | AC14: 12.79378764 | AD14: 8.885110448 | AE14: 3399.181982 | AF14: 2316.320279 | AG14: 122.4135306 | AH14: 0 | AI14: 0 | AJ14: 0 | AK14: 70.28645935 | AL14: 0 | AN14: 12.93968695 | AO14: 75.20061002 | AP14: 265.2292374 | AQ14: 0 | AR14: 0 | AS14: 0 | AT14: 0 | AU14: 0 | AV14: 0 | AW14: 0 | AX14: 0 | AY14: 16.56352472 | AZ14: 0 | BB14: 98.68322814 | BC14: 44.27949089 | BD14: 68.18636928 | BE14: 6.333769645 | BF14: 35.80956554 | BG14: 360.61335 | BH14: 38.16893178 | BI14: 76.51 | BJ14: 350.16 | BK14: 2642.46 | BL14: 154 | BT14: 664.335 | BV14: 2787.263333 | CI14: 5981.3225 | CJ14: -153.26125 | CO14: -55.99395 | CP14: -117.4713 | CQ14: 31 | CR14: -297.4254813 | CS14: 3.416567294 | CT14: -2.710036892 | CU14: 0 | CV14: 0 | CW14: 0 | CX14: 0 | CY14: 0 | CZ14: 4.587617723 | DA14: 0 | DB14: 2.066929298 | DC14: -301.6355673 | DD14: -4.663188728 | DE14: -0.824795352 | DF14: -8.879356783 | DG14: -46.95974619 | DH14: 0 | DI14: 0 | DK14: 0 | DL14: 0 | DM14: 118.4579552 | DN14: 0 | DO14: 0 | DP14: -0.4909310685 | DQ14: 0 | DR14: -59.7795644 | DV14: 3399.181982 | DW14: 38.00157757 | DX14: -0.1673542151 | DY14: -115.67865 | DZ14: -210.0564 | EA14: 59.6847 | EB14: 92.5851 | EC14: -28.05442836 | ED14: 82.00946061 | EE14: 2.414142559 | EF14: 0.2242475002 | EG14: 1.26783985 | EH14: 12.76753763 | EI14: 34.50510201 | EJ14: 9.774388876 | EK14: 0 | EL14: 0 | EM14: 0 | EN14: 0 | EO14: 0 | EP14: 0 | EQ14: 23.84755786 | ER14: 0 | ES14: -7.289079088 | ET14: 0 | EU14: -0.01136407643 | EV14: 115 | EW14: 0 | EX14: 0 | EY14: 0 | FA14: 0 | FB14: -46.77881411 | FD14: -46.77881411 | FF14: 0 | FG14: 0 | FH14: 0 | FI14: 0
A15: 14 | B15: Regular | C15: Convencional | D15: B1 | E15: Residencial | F15: Residencial baixa renda – faixa 04 | G15: Não se aplica | H15: Não se aplica | I15: Não se aplica | J15: CATIVO | K15: 2021-07-01 | L15: 0 | M15: 0 | N15: 1682.761 | O15: 1682.761 | P15: 1682.761 | Q15: 1682.761 | S15: 407.14 | T15: 239.26 | V15: 1087736.71 | W15: 1087736.71 | X15: 1060055.292 | Y15: 0 | Z15: 0 | AA15: 0 | AB15: 0 | AC15: 2041.620378 | AD15: 1417.877415 | AE15: 542438.2049 | AF15: 369636.1716 | AG15: 19534.63396 | AH15: 0 | AI15: 0 | AJ15: 0 | AK15: 11216.24586 | AL15: 0 | AN15: 2064.90285 | AO15: 12000.44132 | AP15: 42325.02766 | AQ15: 0 | AR15: 0 | AS15: 0 | AT15: 0 | AU15: 0 | AV15: 0 | AW15: 0 | AX15: 0 | AY15: 2643.19141 | AZ15: 0 | BB15: 15747.77503 | BC15: 7066.078745 | BD15: 10881.1155 | BE15: 1010.736893 | BF15: 5714.45617 | BG15: 57546.33299 | BH15: 6090.961576 | BI15: 14764.64 | BJ15: 68074.43 | BK15: 729595.81 | BL15: 18229 | BV15: 444788.8131 | CI15: 1060054.662 | CJ15: -27682.0784 | CO15: -8935.46091 | CP15: -18745.95754 | CQ15: 31 | CR15: -47462.87343 | CS15: 545.2125364 | CT15: -432.4650915 | CU15: 0 | CV15: 0 | CW15: 0 | CX15: 0 | CY15: 0 | CZ15: 732.0876423 | DA15: 0 | DB15: 329.8385976 | DC15: -48134.71493 | DD15: -744.1471908 | DE15: -131.6200523 | DF15: -1416.959251 | DG15: -7493.791319 | DH15: 0 | DI15: 0 | DK15: 0 | DL15: 0 | DM15: 18903.40704 | DN15: 0 | DO15: 0 | DP15: -78.3423097 | DQ15: 0 | DR15: -9539.565631 | DV15: 542438.2049 | DW15: 6064.255351 | DX15: -26.70622536 | DY15: -18459.88817 | DZ15: -33520.59912 | EA15: 9524.42726 | EB15: 14774.64158 | EC15: -4476.898807 | ED15: 13086.99118 | EE15: 385.2465573 | EF15: 35.78520129 | EG15: 202.3206689 | EH15: 2037.431426 | EI15: 5506.291131 | EJ15: 1559.787615 | EK15: 0 | EL15: 0 | EM15: 0 | EN15: 0 | EO15: 0 | EP15: 0 | EQ15: 3805.570442 | ER15: 0 | ES15: -1163.184259 | ET15: 0 | EU15: -1.813468432 | EV15: 115 | EW15: 0 | EX15: 0 | EY15: 0 | FA15: 0 | FB15: -46.77881411 | FD15: -46.77881411 | FF15: 0 | FG15: 0 | FH15: 0 | FI15: 0
A16: 15 | B16: Refaturamento - Regular | C16: Convencional | D16: B1 | E16: Residencial | F16: Residencial baixa renda – faixa 04 | G16: Não se aplica | H16: Não se aplica | I16: Não se aplica | J16: CATIVO | K16: 2021-07-01 | L16: 0 | M16: 0 | N16: -7.092 | O16: -7.092 | P16: -7.092 | Q16: -7.092 | S16: 407.14 | T16: 239.26 | V16: -4584.2688 | W16: -4584.2688 | X16: -4467.6054 | Y16: 0 | Z16: 0 | AA16: 0 | AB16: 0 | AC16: -8.60441365 | AD16: -5.975647539 | AE16: -2286.107028 | AF16: -1557.832472 | AG16: -82.32875855 | AH16: 0 | AI16: 0 | AJ16: 0 | AK16: -47.27089329 | AL16: 0 | AN16: -8.702537683 | AO16: -50.5758868 | AP16: -178.3789238 | AQ16: 0 | AR16: 0 | AS16: 0 | AT16: 0 | AU16: 0 | AV16: 0 | AW16: 0 | AX16: 0 | AY16: -11.13973611 | AZ16: 0 | BB16: -66.3690331 | BC16: -29.78000468 | BD16: -45.85848563 | BE16: -4.259752899 | BF16: -24.08358832 | BG16: -242.5291492 | BH16: -25.67037119 | BI16: -35.93 | BJ16: -165.44 | BK16: -1675.77 | BL16: -6 | BV16: -1874.563448 | CI16: -4466.3455 | CJ16: 117.8933 | CO16: 37.65852 | CP16: 79.00488 | CQ16: 31 | CR16: 200.0323863 | CS16: -2.297799455 | CT16: 1.822625096 | CU16: 0 | CV16: 0 | CW16: 0 | CX16: 0 | CY16: 0 | CZ16: -3.085385006 | DA16: 0 | DB16: -1.390105508 | DC16: 202.8638638 | DD16: 3.136210001 | DE16: 0.5547130049 | DF16: 5.971777933 | DG16: 31.58260028 | DH16: 0 | DI16: 0 | DK16: 0 | DL16: 0 | DM16: -79.66845125 | DN16: 0 | DO16: 0 | DP16: 0.3301738395 | DQ16: 0 | DR16: 40.2045207 | DV16: -2286.107028 | DW16: -25.55781774 | DX16: 0.1125534465 | DY16: 77.79924 | DZ16: 141.27264 | EA16: -40.14072 | EB16: -62.26776 | EC16: 18.86790004 | ED16: -55.15515359 | EE16: -1.623622478 | EF16: -0.1508168109 | EG16: -0.8526809117 | EH16: -8.586759303 | EI16: -23.20627629 | EJ16: -6.573728393 | EK16: 0 | EL16: 0 | EM16: 0 | EN16: 0 | EO16: 0 | EP16: 0 | EQ16: -16.03858514 | ER16: 0 | ES16: 4.902242664 | ET16: 0 | EU16: 0.007642866764 | EV16: 115 | EW16: 0 | EX16: 0 | EY16: 0 | FA16: 0 | FB16: -46.77881411 | FD16: -46.77881411 | FF16: 0 | FG16: 0 | FH16: 0 | FI16: 0
A17: 16 | B17: Sistema de Compensação | C17: Convencional | D17: B1 | E17: Residencial | F17: Residencial baixa renda – faixa 04 | G17: Não se aplica | H17: Não se aplica | I17: Não se aplica | J17: CATIVO | K17: 2021-07-01 | L17: 0 | M17: 0 | N17: 9.433 | O17: 9.433 | P17: 9.433 | Q17: 9.433 | S17: 407.14 | T17: 239.26 | V17: 6097.4912 | W17: 6097.4912 | X17: 5942.31835 | Y17: 0 | Z17: 0 | AA17: 0 | AB17: 0 | AC17: 11.44464664 | AD17: 7.948150484 | AE17: 3040.728652 | AF17: 2072.057771 | AG17: 109.5046784 | AH17: 0 | AI17: 0 | AJ17: 0 | AK17: 62.87455391 | AL17: 0 | AN17: 11.57516046 | AO17: 67.27049353 | AP17: 237.260066 | AQ17: 0 | AR17: 0 | AS17: 0 | AT17: 0 | AU17: 0 | AV17: 0 | AW17: 0 | AX17: 0 | AY17: 14.81685431 | AZ17: 0 | BB17: 88.27680333 | BC17: 39.61009365 | BD17: 60.99592427 | BE17: 5.665855766 | BF17: 32.03334582 | BG17: 322.5856548 | BH17: 34.14391024 | BI17: 63.25 | BJ17: 292.14 | BK17: 6295.12 | BL17: 148 | BV17: 2493.338551 | CI17: 5940.4285 | CJ17: -157.0927 | CO17: -50.08923 | CP17: -105.08362 | CQ17: 31 | CR17: -266.0611252 | CS17: 3.056280634 | CT17: -2.424255856 | CU17: 0 | CV17: 0 | CW17: 0 | CX17: 0 | CY17: 0 | CZ17: 4.103840492 | DA17: 0 | DB17: 1.848965772 | DC17: -269.8272458 | DD17: -4.171442321 | DE17: -0.7378183552 | DF17: -7.943003559 | DG17: -42.00770847 | DH17: 0 | DI17: 0 | DK17: 0 | DL17: 0 | DM17: 105.9662296 | DN17: 0 | DO17: 0 | DP17: -0.4391610023 | DQ17: 0 | DR17: -53.47564069 | DV17: 3040.728652 | DW17: 33.994204 | DX17: -0.149706241 | DY17: -103.48001 | DZ17: -187.90536 | EA17: 53.39078 | EB17: 82.82174 | EC17: -25.09600974 | ED17: 73.36133162 | EE17: 2.159564415 | EF17: 0.2005999686 | EG17: 1.134142561 | EH17: 11.42116476 | EI17: 30.86644166 | EJ17: 8.743651993 | EK17: 0 | EL17: 0 | EM17: 0 | EN17: 0 | EO17: 0 | EP17: 0 | EQ17: 21.3327656 | ER17: 0 | ES17: -6.520425134 | ET17: 0 | EU17: -0.01016570251 | EV17: 115 | EW17: 0 | EX17: 0 | EY17: 0 | FA17: 0 | FB17: -46.77881411 | FD17: -46.77881411 | FF17: 0 | FG17: 0 | FH17: 0 | FI17: 0
A18: 17 | B18: Regular | C18: Branca | D18: B1 | E18: Residencial | F18: Residencial | G18: Não se aplica | H18: Não se aplica | I18: Ponta | J18: CATIVO | K18: 2021-07-01 | L18: 0 | M18: 0 | N18: 7.608 | O18: 7.608 | P18: 7.608 | Q18: 7.608 | S18: 1236.68 | T18: 376.03 | V18: 12269.49768 | W18: 12269.49768 | X18: 12028.32408 | Y18: 0 | Z18: 175.0459906 | AA18: 0 | AB18: 0 | AC18: 29.53831604 | AD18: 20.51335656 | AE18: 7847.805678 | AF18: 2711.721665 | AG18: 88.31883743 | AH18: 0 | AI18: 0 | AJ18: 0 | AK18: 109.6052869 | AL18: 71.62728912 | AN18: 9.335717244 | AO18: 173.6188126 | AP18: 612.3420161 | AQ18: 0 | AR18: 0 | AS18: 0 | AT18: 0 | AU18: 0 | AV18: 22.87558208 | AW18: 8.154792106 | AX18: 0 | AY18: 11.95024145 | AZ18: 0 | BB18: 108.0384501 | BC18: 102.2294184 | BD18: 49.19505903 | BE18: 4.569684159 | BF18: 25.83586293 | BG18: 260.175094 | BH18: 27.53809701 | BI18: 0 | BJ18: 0 | BK18: 0 | BL18: 0 | BV18: 3051.497365 | CI18: 12031.4861 | CJ18: -238.04158 | CO18: -48.6912 | CP18: -192.4824 | CQ18: 31 | CR18: -424.2824841 | CS18: 7.88797267 | CT18: -6.256736513 | CU18: 0 | CV18: 0 | CW18: 0 | CX18: 0 | CY18: 0 | CZ18: 10.591589 | DA18: 0 | DB18: 4.772129455 | DC18: -353.1254767 | DD18: -3.364394485 | DE18: -0.5950728344 | DF18: -6.406272774 | DG18: -33.88048829 | DH18: 0 | DI18: -23.47378493 | DK18: 0 | DL18: 0 | DM18: 85.46497139 | DN18: 0 | DO18: 2.086117819 | DP18: -0.35419664 | DQ18: 0 | DR18: -107.6206423 | DV18: 7847.805678 | DW18: 27.4173544 | DX18: -0.1207426144 | DY18: -193.09104 | DZ18: -296.10336 | EA18: 144.39984 | EB18: 103.62096 | EC18: -64.77020158 | ED18: 96.00867077 | EE18: 1.741754062 | EF18: 0.1617899461 | EG18: 0.9147203012 | EH18: 9.211515056 | EI18: 79.66287556 | EJ18: 22.56654287 | EK18: 0 | EL18: 0 | EM18: 0 | EN18: 0 | EO18: 0 | EP18: 35.51576928 | EQ18: 17.20552112 | ER18: 0 | ES18: -5.258920219 | ET18: 0 | EU18: -0.008198946749 | EV18: 115 | EW18: 0 | EX18: 0 | EY18: 0 | FA18: 0 | FB18: -46.77881411 | FD18: -46.77881411 | FF18: 0 | FG18: 0 | FH18: 0 | FI18: 0
A19: 18 | B19: Refaturamento - Regular | C19: Branca | D19: B1 | E19: Residencial | F19: Residencial | G19: Não se aplica | H19: Não se aplica | I19: Ponta | J19: CATIVO | K19: 2021-07-01 | L19: 0 | M19: 0 | N19: -0.279 | O19: -0.279 | P19: -0.279 | Q19: -0.279 | S19: 1236.68 | T19: 376.03 | V19: -449.94609 | W19: -449.94609 | X19: -441.10179 | Y19: 0 | Z19: -6.419273315 | AA19: 0 | AB19: 0 | AC19: -1.08322689 | AD19: -0.7522642587 | AE19: -287.7941357 | AF19: -99.44405159 | AG19: -3.23882172 | AH19: 0 | AI19: 0 | AJ19: 0 | AK19: -4.019436783 | AL19: -2.626710524 | AN19: -0.342358716 | AO19: -6.36693595 | AP19: -22.45576005 | AQ19: 0 | AR19: 0 | AS19: 0 | AT19: 0 | AU19: 0 | AV19: -0.8388916143 | AW19: -0.2990519187 | AX19: 0 | AY19: -0.4382383496 | AZ19: 0 | BB19: -3.961977864 | BC19: -3.748949493 | BD19: -1.80407748 | BE19: -0.1675791115 | BF19: -0.9474508094 | BG19: -9.541121351 | BH19: -1.009875009 | BI19: 0 | BJ19: 0 | BK19: 0 | BL19: 0 | BV19: -111.9042803 | CI19: -442.6828 | CJ19: 7.23329 | CO19: 1.7856 | CP19: 7.0587 | CQ19: 31 | CR19: 15.55925513 | CS19: -0.2892671366 | CT19: 0.2294465677 | CU19: 0 | CV19: 0 | CW19: 0 | CX19: 0 | CY19: 0 | CZ19: -0.3884139501 | DA19: 0 | DB19: -0.1750031701 | DC19: 12.94979075 | DD19: 0.1233788198 | DE19: 0.02182246593 | DF19: 0.2349303502 | DG19: 1.242462702 | DH19: 0 | DI19: 0.8608288637 | DK19: 0 | DL19: 0 | DM19: -3.13416496 | DN19: 0 | DO19: -0.07650195474 | DP19: 0.01298907237 | DQ19: 0 | DR19: 3.946656046 | DV19: -287.7941357 | DW19: -1.005447145 | DX19: 0.004427864014 | DY19: 7.08102 | DZ19: 10.85868 | EA19: -5.29542 | EB19: -3.79998 | EC19: 2.375247929 | ED19: -3.520822706 | EE19: -0.06387347311 | EF19: -0.005933148653 | EG19: -0.03354455363 | EH19: -0.3378039827 | EI19: -2.921390941 | EJ19: -0.8275585517 | EK19: 0 | EL19: 0 | EM19: 0 | EN19: 0 | EO19: 0 | EP19: -1.302431602 | EQ19: -0.6309595678 | ER19: 0 | ES19: 0.1928547241 | ET19: 0 | EU19: 0.0003006711544 | EV19: 115 | EW19: 0 | EX19: 0 | EY19: 0 | FA19: 0 | FB19: -46.77881411 | FD19: -46.77881411 | FF19: 0 | FG19: 0 | FH19: 0 | FI19: 0
A20: 19 | B20: Sistema de Compensação | C20: Branca | D20: B1 | E20: Residencial | F20: Residencial | G20: Não se aplica | H20: Não se aplica | I20: Ponta | J20: CATIVO | K20: 2021-07-01 | L20: 0 | M20: 0 | N20: 13.885 | O20: 13.885 | P20: 13.885 | Q20: 13.885 | S20: 1236.68 | T20: 376.03 | V20: 22392.47835 | W20: 22392.47835 | X20: 21952.32385 | Y20: 0 | Z20: 319.4681361 | AA20: 0 | AB20: 0 | AC20: 53.90897979 | AD20: 37.43795424 | AE20: 14322.65797 | AF20: 4949.034611 | AG20: 161.1865218 | AH20: 0 | AI20: 0 | AJ20: 0 | AK20: 200.0354112 | AL20: 130.7235685 | AN20: 17.03817481 | AO20: 316.8634611 | AP20: 1117.556374 | AQ20: 0 | AR20: 0 | AS20: 0 | AT20: 0 | AU20: 0 | AV20: 41.74914002 | AW20: 14.88292434 | AX20: 0 | AY20: 21.80981894 | AZ20: 0 | BB20: 197.1758518 | BC20: 186.5740635 | BD20: 89.78356922 | BE20: 8.339913847 | BF20: 47.1518082 | BG20: 474.8332256 | BH20: 50.2584749 | BI20: 0 | BJ20: 0 | BK20: 0 | BL20: 0 | BV20: 5569.143128 | CI20: 21960.2289 | CJ20: -432.27945 | CO20: -88.864 | CP20: -351.2905 | CQ20: 31 | CR20: -774.3378407 | CS20: 14.39596484 | CT20: -11.41887309 | CU20: 0 | CV20: 0 | CW20: 0 | CX20: 0 | CY20: 0 | CZ20: 19.3302068 | DA20: 0 | DB20: 8.709387156 | DC20: -644.4725611 | DD20: -6.140196822 | DE20: -1.086039209 | DF20: -11.69178463 | DG20: -61.83367244 | DH20: 0 | DI20: -42.84089166 | DK20: 0 | DL20: 0 | DM20: 155.9780662 | DN20: 0 | DO20: 3.807274701 | DP20: -0.6464274904 | DQ20: 0 | DR20: -196.4133305 | DV20: 14322.65797 | DW20: 50.03811328 | DX20: -0.2203616195 | DY20: -352.4013 | DZ20: -540.4042 | EA20: 263.5373 | EB20: 189.1137 | EC20: -118.2090233 | ED20: 175.2208719 | EE20: 3.178792739 | EF20: 0.2952751579 | EG20: 1.669412642 | EH20: 16.81149928 | EI20: 145.3889363 | EJ20: 41.18512721 | EK20: 0 | EL20: 0 | EM20: 0 | EN20: 0 | EO20: 0 | EP20: 64.81814623 | EQ20: 31.40098064 | ER20: 0 | ES20: -9.597805893 | ET20: 0 | EU20: -0.01496350889 | EV20: 115 | EW20: 0 | EX20: 0 | EY20: 0 | FA20: 0 | FB20: -46.77881411 | FD20: -46.77881411 | FF20: 0 | FG20: 0 | FH20: 0 | FI20: 0
A21: 20 | B21: Regular | C21: Branca | D21: B1 | E21: Residencial | F21: Residencial | G21: Não se aplica | H21: Não se aplica | I21: Fora ponta | J21: CATIVO | K21: 2021-07-01 | L21: 0 | M21: 0 | N21: 91.534 | O21: 91.534 | P21: 91.534 | Q21: 91.534 | S21: 314.56 | T21: 226.82 | V21: 49554.67692 | W21: 49554.67692 | X21: 48285.10034 | Y21: 0 | Z21: 2106.027827 | AA21: 0 | AB21: 0 | AC21: 71.07936456 | AD21: 49.3581406 | AE21: 18883.83598 | AF21: 18968.30837 | AG21: 1062.588915 | AH21: 0 | AI21: 0 | AJ21: 0 | AK21: 495.304327 | AL21: 861.7681759 | AN21: 112.3206549 | AO21: 417.7695812 | AP21: 1473.452 | AQ21: 0 | AR21: 0 | AS21: 0 | AT21: 0 | AU21: 0 | AV21: 275.2225986 | AW21: 98.11261049 | AX21: 0 | AY21: 143.7767351 | AZ21: 0 | BB21: 816.3077917 | BC21: 245.9899724 | BD21: 591.8796705 | BE21: 54.9791627 | BF21: 310.8385749 | BG21: 3130.24015 | BH21: 331.3186346 | BI21: 0 | BJ21: 0 | BK21: 0 | BL21: 0 | BV21: 23056.24592 | CI21: 48282.9903 | CJ21: -1271.71662 | CO21: -368.88202 | CP21: -900.69456 | CQ21: 31 | CR21: -2629.551959 | CS21: 18.98040305 | CT21: -15.05531335 | CU21: 0 | CV21: 0 | CW21: 0 | CX21: 0 | CY21: 0 | CZ21: 25.48491456 | DA21: 0 | DB21: 11.4833875 | DC21: -2470.08866 | DD21: -40.4779817 | DE21: -7.159489592 | DF21: -77.07567983 | DG21: -407.6257381 | DH21: 0 | DI21: -282.4197463 | DK21: 0 | DL21: 0 | DM21: 1028.253245 | DN21: 0 | DO21: 25.09867357 | DP21: -4.261439965 | DQ21: 0 | DR21: -434.5898903 | DV21: 18883.83598 | DW21: 329.8659461 | DX21: -1.452688547 | DY21: -1122.20684 | DZ21: -1664.08812 | EA21: 753.32482 | EB21: 763.39356 | EC21: -155.8537397 | ED21: 671.5741134 | EE21: 20.9555358 | EF21: 1.946540605 | EG21: 11.00525868 | EH21: 110.8263432 | EI21: 191.6893179 | EJ21: 54.30065456 | EK21: 0 | EL21: 0 | EM21: 0 | EN21: 0 | EO21: 0 | EP21: 427.3002662 | EQ21: 207.0044913 | ER21: 0 | ES21: -63.27155669 | ET21: 0 | EU21: -0.09864384749 | EV21: 115 | EW21: 0 | EX21: 0 | EY21: 0 | FA21: 0 | FB21: -46.77881411 | FD21: -46.77881411 | FF21: 0 | FG21: 0 | FH21: 0 | FI21: 0
A22: 21 | B22: Refaturamento - Regular | C22: Branca | D22: B1 | E22: Residencial | F22: Residencial | G22: Não se aplica | H22: Não se aplica | I22: Fora ponta | J22: CATIVO | K22: 2021-07-01 | L22: 0 | M22: 0 | N22: -3.648 | O22: -3.648 | P22: -3.648 | Q22: -3.648 | S22: 314.56 | T22: 226.82 | V22: -1974.95424 | W22: -1974.95424 | X22: -1924.35648 | Y22: 0 | Z22: -83.9337242 | AA22: 0 | AB22: 0 | AC22: -2.832800073 | AD22: -1.967121473 | AE22: -752.597217 | AF22: -755.9637831 | AG22: -42.34846464 | AH22: 0 | AI22: 0 | AJ22: 0 | AK22: -19.7398801 | AL22: -34.3449462 | AN22: -4.476432243 | AO22: -16.64980698 | AP22: -58.72301984 | AQ22: 0 | AR22: 0 | AS22: 0 | AT22: 0 | AU22: 0 | AV22: -10.96873337 | AW22: -3.910184227 | AX22: 0 | AY22: -5.730084227 | AZ22: 0 | BB22: -32.53316608 | BC22: -9.803695014 | BD22: -23.58879802 | BE22: -2.191141931 | BF22: -12.38817402 | BG22: -124.7527265 | BH22: -13.20438721 | BI22: 0 | BJ22: 0 | BK22: 0 | BL22: 0 | BV22: -918.8846235 | CI22: -1925.4115 | CJ22: 49.51274 | CO22: 14.70144 | CP22: 35.89632 | CQ22: 31 | CR22: 104.7982777 | CS22: -0.756445805 | CT22: 0.6000151104 | CU22: 0 | CV22: 0 | CW22: 0 | CX22: 0 | CY22: 0 | CZ22: -1.015676888 | DA22: 0 | DB22: -0.4576594228 | DC22: 98.44302044 | DD22: 1.613211236 | DE22: 0.2853346083 | DF22: 3.071777482 | DG22: 16.24553382 | DH22: 0 | DI22: 11.2555688 | DK22: 0 | DL22: 0 | DM22: -40.98004938 | DN22: 0 | DO22: -1.000283623 | DP22: 0.1698356129 | DQ22: 0 | DR22: 17.32016431 | DV22: -752.597217 | DW22: -13.1464917 | DX22: 0.05789551226 | DY22: 44.72448 | DZ22: 66.32064 | EA22: -30.02304 | EB22: -30.42432 | EC22: 6.21140169 | ED22: -26.7649438 | EE22: -0.8351628312 | EF22: -0.07757751357 | EG22: -0.4386040561 | EH22: -4.416877882 | EI22: -7.639594375 | EJ22: -2.164100638 | EK22: 0 | EL22: 0 | EM22: 0 | EN22: 0 | EO22: 0 | EP22: -17.02964332 | EQ22: -8.249965962 | ER22: 0 | ES22: 2.52162736 | ET22: 0 | EU22: 0.00393135617 | EV22: 115 | EW22: 0 | EX22: 0 | EY22: 0 | FA22: 0 | FB22: -46.77881411 | FD22: -46.77881411 | FF22: 0 | FG22: 0 | FH22: 0 | FI22: 0
A23: 22 | B23: Sistema de Compensação | C23: Branca | D23: B1 | E23: Residencial | F23: Residencial | G23: Não se aplica | H23: Não se aplica | I23: Fora ponta | J23: CATIVO | K23: 2021-07-01 | L23: 0 | M23: 0 | N23: 2.836 | O23: 2.836 | P23: 2.836 | Q23: 2.836 | S23: 314.56 | T23: 226.82 | V23: 1535.35368 | W23: 1535.35368 | X23: 1496.01836 | Y23: 0 | Z23: 65.25110796 | AA23: 0 | AB23: 0 | AC23: 2.202253566 | AD23: 1.529264391 | AE23: 585.0783189 | AF23: 587.6955287 | AG23: 32.92221648 | AH23: 0 | AI23: 0 | AJ23: 0 | AK23: 15.34602521 | AL23: 26.70018296 | AN23: 3.480033399 | AO23: 12.94376442 | AP23: 45.65199678 | AQ23: 0 | AR23: 0 | AS23: 0 | AT23: 0 | AU23: 0 | AV23: 8.527228022 | AW23: 3.039825238 | AX23: 0 | AY23: 4.454637847 | AZ23: 0 | BB23: 25.29168284 | BC23: 7.6215129 | BD23: 18.33822127 | BE23: 1.703420646 | BF23: 9.630718621 | BG23: 96.98430162 | BH23: 10.26525278 | BI23: 0 | BJ23: 0 | BK23: 0 | BL23: 0 | BV23: 714.3521909 | CI23: 1498.1284 | CJ23: -37.25528 | CO23: -11.42908 | CP23: -27.90624 | CQ23: 31 | CR23: -81.47146805 | CS23: 0.5880702585 | CT23: -0.4664591155 | CU23: 0 | CV23: 0 | CW23: 0 | CX23: 0 | CY23: 0 | CZ23: 0.7895996863 | DA23: 0 | DB23: 0.3557900557 | DC23: -76.53081304 | DD23: -1.254130226 | DE23: -0.2218226286 | DF23: -2.388037538 | DG23: -12.6294775 | DH23: 0 | DI23: -8.75021741 | DK23: 0 | DL23: 0 | DM23: 31.85839365 | DN23: 0 | DO23: 0.7776327729 | DP23: -0.1320322912 | DQ23: 0 | DR23: -13.46490844 | DV23: 585.0783189 | DW23: 10.2202441 | DX23: -0.04500868223 | DY23: -34.76936 | DZ23: -51.55848 | EA23: 23.34028 | EB23: 23.65224 | EC23: -4.828819955 | ED23: 20.807396 | EE23: 0.6492658413 | EF23: 0.06030971176 | EG23: 0.3409761796 | EH23: 3.433735108 | EI23: 5.939114487 | EJ23: 1.682398413 | EK23: 0 | EL23: 0 | EM23: 0 | EN23: 0 | EO23: 0 | EP23: 13.23905385 | EQ23: 6.413624854 | ER23: 0 | ES23: -1.960344077 | ET23: 0 | EU23: -0.003056284566 | EV23: 115 | EW23: 0 | EX23: 0 | EY23: 0 | FA23: 0 | FB23: -46.77881411 | FD23: -46.77881411 | FF23: 0 | FG23: 0 | FH23: 0 | FI23: 0
A24: 23 | B24: Regular | C24: Branca | D24: B1 | E24: Residencial | F24: Residencial | G24: Não se aplica | H24: Não se aplica | I24: Não se aplica | J24: CATIVO | K24: 2021-07-01 | L24: 0 | M24: 0 | N24: 0 | O24: 0 | P24: 0 | Q24: 0 | AA24: 0 | AZ24: 0 | BI24: 509.09 | BJ24: 2349.12 | BK24: 25496.6 | BL24: 245 | CJ24: -0.03 | CO24: 0 | CP24: 0 | CQ24: 31 | DK24: 0 | EV24: 115 | FA24: 0 | FB24: -46.77881411 | FD24: -46.77881411 | FF24: 0 | FG24: 0 | FH24: 0 | FI24: 0
A25: 31 | B25: Regular | C25: Azul | D25: A2 | E25: Industrial | F25: Não se aplica | G25: Não se aplica | H25: Não se aplica | I25: Ponta | J25: CATIVO | K25: 2021-07-01 | L25: 1830 | M25: 1830 | N25: 78 | O25: 78 | P25: 78 | Q25: 78 | R25: 20.44 | S25: 39.06 | T25: 376.03 | U25: 37405.2 | V25: 32377.02 | W25: 69782.22 | X25: 68961.72 | Y25: 0 | Z25: 1202.405819 | AA25: 0 | AB25: 0 | AC25: 492.0349486 | AD25: 0 | AE25: 24794.10869 | AF25: 27801.56281 | AG25: 905.4770399 | AH25: 0 | AI25: 0 | AJ25: 0 | AK25: 198.6687945 | AL25: 734.3491786 | AN25: 7.197324529 | AO25: 2753.648104 | AP25: 9363.796131 | AQ25: 0 | AR25: 0 | AS25: 0 | AT25: 0 | AU25: 0 | AV25: 157.1343217 | AW25: 83.60591276 | AX25: 0 | AY25: 122.5182483 | AZ25: 0 | BB25: 1021.433686 | BC25: 1576.099097 | BD25: 104.7846939 | BE25: 11.71498885 | BF25: 264.8787209 | BG25: 666.9932143 | BH25: 58.65570896 | BI25: 0 | BJ25: 0 | BK25: 0 | BL25: 0 | BV25: 28849.93443 | CI25: 68961.72 | CJ25: -820.53 | CO25: 1152.9 | CP25: -1973.4 | CQ25: 31 | CR25: -3523.926591 | CS25: 125.1056879 | CT25: -95.67660494 | CU25: 0 | CV25: 0 | CW25: 0 | CX25: 0 | CY25: 0 | CZ25: 0 | DA25: 0 | DB25: 79.49181896 | DC25: -3620.371607 | DD25: -34.49300339 | DE25: -1.525547801 | DF25: -13.64525919 | DG25: -86.85710625 | DH25: 0 | DI25: -161.243428 | DK25: 0 | DL25: 0 | DM25: 876.218161 | DN25: 0 | DO25: 21.38764326 | DP25: -0.2730661286 | DQ25: 0 | DR25: -611.9602206 | DU25: 24794.10869 | DV25: 0 | DW25: 58.39852911 | DX25: -0.2571798496 | DY25: -689.22 | DZ25: -3035.76 | EA25: 1842.12 | EB25: 1062.36 | EC25: -204.6329234 | ED25: 984.3160252 | EE25: 3.70990847 | EF25: 0.414769894 | EG25: 9.378047252 | EH25: 23.61493539 | EI25: 1218.186743 | EJ25: 357.9123545 | EK25: 0 | EL25: 0 | EM25: 0 | EN25: 0 | EO25: 0 | EP25: 243.9608442 | EQ25: 176.3972985 | ER25: 0 | ES25: -53.91637448 | ET25: 0 | EU25: -0.08405860232 | EV25: 115 | EW25: 0 | EX25: 0 | EY25: 0 | FA25: 0 | FB25: -46.77881411 | FD25: -46.77881411 | FF25: 0 | FG25: 0 | FH25: 0 | FI25: 0
A26: 32 | B26: Regular | C26: Azul | D26: A2 | E26: Industrial | F26: Não se aplica | G26: Não se aplica | H26: Não se aplica | I26: Fora ponta | J26: CATIVO | K26: 2021-07-01 | L26: 2010 | M26: 2010 | N26: 690.006 | O26: 690.006 | P26: 690.006 | Q26: 690.006 | R26: 7.59 | S26: 39.06 | T26: 226.82 | U26: 15255.9 | V26: 183458.7953 | W26: 198714.6953 | X26: 193432.5362 | Y26: 0 | Z26: 10636.75935 | AA26: 0 | AB26: 0 | AC26: 446.8900663 | AD26: 0 | AE26: 2723.221713 | AF26: 142987.8142 | AG26: 8010.058851 | AH26: 0 | AI26: 0 | AJ26: 0 | AK26: 1757.470003 | AL26: 6496.222299 | AN26: 63.66919371 | AO26: 2748.595747 | AP26: 9329.076267 | AQ26: 0 | AR26: 0 | AS26: 0 | AT26: 0 | AU26: 0 | AV26: 1390.046472 | AW26: 739.5971979 | AX26: 0 | AY26: 1083.824698 | AZ26: 0 | BB26: 5390.843668 | BC26: 1570.92551 | BD26: 926.9495829 | BE26: 103.6334948 | BF26: 2343.178291 | BG26: 5900.375895 | BH26: 518.8819374 | BI26: 0 | BJ26: 0 | BK26: 0 | BL26: 0 | BV26: 152261.9514 | CI26: 193433.5604 | CJ26: -5281.16488 | CO26: 1507.5 | CP26: -6789.65904 | CQ26: 31 | CR26: -14957.23388 | CS26: 124.8761457 | CT26: -95.32184724 | CU26: 0 | CV26: 0 | CW26: 0 | CX26: 0 | CY26: 0 | CZ26: 0 | DA26: 0 | DB26: 72.1983354 | DC26: -18620.14111 | DD26: -305.133068 | DE26: -13.4953479 | DF26: -120.7091117 | DG26: -768.3580059 | DH26: 0 | DI26: -1426.396574 | DK26: 0 | DL26: 0 | DM26: 7751.228056 | DN26: 0 | DO26: 189.2000279 | DP26: -2.415605989 | DQ26: 0 | DR26: -1742.022179 | DU26: 2723.221713 | DV26: 0 | DW26: 516.6068651 | DX26: -2.275072299 | DY26: -2433.92064 | DZ26: -12544.30908 | EA26: 3941.42064 | EB26: 5754.65004 | EC26: -22.47553348 | ED26: 5062.492273 | EE26: 32.81870646 | EF26: 3.669150198 | EG26: 82.96037016 | EH26: 208.9031681 | EI26: 1213.669848 | EJ26: 357.2556617 | EK26: 0 | EL26: 0 | EM26: 0 | EN26: 0 | EO26: 0 | EP26: 2158.133926 | EQ26: 1560.45121 | ER26: 0 | ES26: -476.9566909 | ET26: 0 | EU26: -0.7436017942 | EV26: 115 | EW26: 0 | EX26: 0 | EY26: 0 | FA26: 0 | FB26: -46.77881411 | FD26: -46.77881411 | FF26: 0 | FG26: 0 | FH26: 0 | FI26: 0
A27: 33 | B27: Regular | C27: Azul | D27: A2 | E27: Industrial | F27: Não se aplica | G27: Não se aplica | H27: Não se aplica | I27: Não se aplica | J27: CATIVO | K27: 2021-07-01 | L27: 0 | M27: 0 | N27: 0 | O27: 0 | P27: 0 | Q27: 0 | AA27: 0 | AZ27: 0 | BI27: 2345.18 | BJ27: 10802.78 | BK27: 306.41 | BL27: 2 | CJ27: -0.03 | CO27: 0 | CP27: 0 | CQ27: 31 | DK27: 0 | EV27: 115 | FA27: 0 | FB27: -46.77881411 | FD27: -46.77881411 | FF27: 0 | FG27: 0 | FH27: 0 | FI27: 0
A28: 34 | B28: Regular | C28: Azul | D28: A3 | E28: Industrial | F28: Não se aplica | G28: Não se aplica | H28: Não se aplica | I28: Ponta | J28: CATIVO | K28: 2021-07-01 | L28: 43 | M28: 43 | N28: 0 | O28: 0 | P28: 0 | Q28: 0 | R28: 32.79 | U28: 1409.97 | W28: 1409.97 | X28: 1433.19 | Y28: 0 | Z28: 0 | AA28: 0 | AB28: 0 | AC28: 8.315111827 | AD28: 0 | AE28: 1067.490019 | AI28: 0 | AJ28: 0 | AK28: 0 | AL28: 0 | AN28: 0 | AO28: 53.54659336 | AP28: 280.6275558 | AQ28: 0 | AR28: 0 | AU28: 0 | AV28: 0 | AW28: 0 | AZ28: 0 | BB28: 0 | BC28: 43.46820578 | BD28: 0 | BE28: 0 | BG28: 0 | BH28: 0 | BI28: 0 | BJ28: 0 | BK28: 0 | BL28: 0 | BV28: 0 | CI28: 1433.19 | CJ28: 23.19 | CO28: 23.22 | CP28: 0 | CQ28: 31 | CR28: -11.46156083 | CS28: 2.432766696 | CT28: -2.867372528 | CU28: 0 | CV28: 0 | CZ28: 0 | DA28: 0 | DB28: 1.343366698 | DE28: 0 | DF28: 0 | DG28: 0 | DH28: 0 | DI28: 0 | DK28: 0 | DL28: 0 | DN28: 0 | DO28: 0 | DP28: 0 | DQ28: 0 | DR28: -12.3703217 | DU28: 1067.490019 | DW28: 0 | DX28: 0 | DY28: -20.21 | EA28: 43.43 | EC28: -8.810302723 | EE28: 0 | EF28: 0 | EH28: 0 | EI28: 36.50835231 | EJ28: 6.959853468 | EK28: 0 | EL28: 0 | EO28: 0 | EP28: 0 | ER28: 0 | ET28: 0 | EV28: 115 | FA28: 0 | FB28: -46.77881411 | FD28: -46.77881411 | FF28: 0 | FG28: 0 | FH28: 0 | FI28: 0
A29: 35 | B29: Regular | C29: Azul | D29: A3 | E29: Industrial | F29: Não se aplica | G29: Não se aplica | H29: Não se aplica | I29: Fora ponta | J29: CATIVO | K29: 2021-07-01 | L29: 43 | M29: 43 | N29: 0 | O29: 0 | P29: 0 | Q29: 0 | R29: 11.83 | U29: 508.69 | W29: 508.69 | X29: 534.49 | Y29: 0 | Z29: 0 | AA29: 0 | AB29: 0 | AC29: 6.021729675 | AD29: 0 | AE29: 258.8700483 | AI29: 0 | AJ29: 0 | AK29: 0 | AL29: 0 | AN29: 0 | AO29: 40.06378952 | AP29: 203.5848407 | AQ29: 0 | AR29: 0 | AU29: 0 | AV29: 0 | AW29: 0 | AZ29: 0 | BB29: 0 | BC29: 31.69284202 | BD29: 0 | BE29: 0 | BG29: 0 | BH29: 0 | BI29: 0 | BJ29: 0 | BK29: 0 | BL29: 0 | BV29: 0 | CI29: 534.49 | CJ29: 25.77 | CO29: 25.8 | CP29: 0 | CQ29: 31 | CR29: -3.748743247 | CS29: 1.820206417 | CT29: -2.080171984 | CU29: 0 | CV29: 0 | CZ29: 0 | DA29: 0 | DB29: 0.972854157 | DE29: 0 | DF29: 0 | DG29: 0 | DH29: 0 | DI29: 0 | DK29: 0 | DL29: 0 | DN29: 0 | DO29: 0 | DP29: 0 | DQ29: 0 | DR29: -4.461631837 | DU29: 258.8700483 | DW29: 0 | DX29: 0 | DY29: -6.02 | EA29: 31.82 | EC29: -2.136529101 | EE29: 0 | EF29: 0 | EH29: 0 | EI29: 26.48544997 | EJ29: 5.207392048 | EK29: 0 | EL29: 0 | EO29: 0 | EP29: 0 | ER29: 0 | ET29: 0 | EV29: 115 | FA29: 0 | FB29: -46.77881411 | FD29: -46.77881411 | FF29: 0 | FG29: 0 | FH29: 0 | FI29: 0
A30: 36 | B30: Regular | C30: Azul | D30: A3 | E30: Industrial | F30: Não se aplica | G30: Não se aplica | H30: Não se aplica | I30: Não se aplica | J30: CATIVO | K30: 2021-07-01 | L30: 0 | M30: 0 | N30: 0 | O30: 0 | P30: 0 | Q30: 0 | AA30: 0 | AZ30: 0 | BI30: 22.11 | BJ30: 101.85 | BK30: 684.79 | BL30: 1 | CJ30: -0.03 | CO30: 0 | CP30: 0 | CQ30: 31 | DK30: 0 | EV30: 115 | FA30: 0 | FB30: -46.77881411 | FD30: -46.77881411 | FF30: 0 | FG30: 0 | FH30: 0 | FI30: 0
A31: 40 | B31: Regular | C31: Verde | D31: A3a | E31: Industrial | F31: Não se aplica | G31: Não se aplica | H31: Não se aplica | I31: Ponta | J31: CATIVO | K31: 2021-07-01 | L31: 0 | M31: 0 | N31: 68.072 | O31: 68.072 | P31: 68.072 | Q31: 68.072 | S31: 1784.62 | T31: 376.03 | V31: 147079.7668 | W31: 147079.7668 | X31: 145267.0094 | Y31: 0 | Z31: 1362.603271 | AA31: 0 | AB31: 0 | AC31: 465.6883102 | AD31: 444.8383543 | AE31: 103451.5566 | AF31: 24262.92287 | AG31: 790.2260649 | AH31: 0 | AI31: 0 | AJ31: 0 | AK31: 1334.24838 | AL31: 640.8797088 | AN31: 53.89919113 | AO31: 2634.365515 | AP31: 9323.785105 | AQ31: 0 | AR31: 0 | AS31: 0 | AT31: 0 | AU31: 0 | AV31: 178.0694483 | AW31: 72.96438068 | AX31: 0 | AY31: 106.9238743 | AZ31: 0 | BB31: 919.4072822 | BC31: 1555.389792 | BD31: 319.1563044 | BE31: 19.93614328 | BF31: 231.164414 | BG31: 1135.06487 | BH31: 178.6552846 | BI31: 0 | BJ31: 0 | BK31: 0 | BL31: 0 | BV31: 25968.2446 | CI31: 145262.7414 | CJ31: -1817.0554 | CO31: -90.53576 | CP31: -1722.2216 | CQ31: 31 | CR31: -3743.951378 | CS31: 119.686357 | CT31: -95.26778366 | CU31: 0 | CV31: 0 | CW31: 0 | CX31: 0 | CY31: 0 | CZ31: 229.6818177 | DA31: 0 | DB31: 75.2353282 | DC31: -3159.563282 | DD31: -30.10266317 | DE31: -2.596121937 | DF31: -41.56113203 | DG31: -147.8102743 | DH31: 0 | DI31: -182.726014 | DK31: 0 | DL31: 0 | DM31: 764.6913161 | DN31: 0 | DO31: 18.66538015 | DP31: -2.044932585 | DQ31: 0 | DR31: -1290.166013 | DV31: 103451.5566 | DW31: 177.8719587 | DX31: -0.783325955 | DY31: -1948.90136 | DZ31: -2649.36224 | EA31: 1858.3656 | EB31: 927.14064 | EC31: -853.815506 | ED31: 859.0302624 | EE31: 11.2997484 | EF31: 0.7058403676 | EG31: 8.184390161 | EH31: 40.18704086 | EI31: 1212.981493 | EJ31: 342.4082993 | EK31: 0 | EL31: 0 | EM31: 0 | EN31: 0 | EO31: 0 | EP31: 276.4639351 | EQ31: 153.9450885 | ER31: 0 | ES31: -47.05378774 | ET31: 0 | EU31: -0.07335945098 | EV31: 115 | EW31: 0 | EX31: 0 | EY31: 0 | FA31: 0 | FB31: -46.77881411 | FD31: -46.77881411 | FF31: 0 | FG31: 0 | FH31: 0 | FI31: 0
A32: 41 | B32: Sistema de Compensação | C32: Verde | D32: A3a | E32: Industrial | F32: Não se aplica | G32: Não se aplica | H32: Não se aplica | I32: Ponta | J32: CATIVO | K32: 2021-07-01 | L32: 0 | M32: 0 | N32: 0.205 | O32: 0.205 | P32: 0.205 | Q32: 0.205 | S32: 1784.62 | T32: 376.03 | V32: 442.93325 | W32: 442.93325 | X32: 437.4741 | Y32: 0 | Z32: 4.10350321 | AA32: 0 | AB32: 0 | AC32: 1.402428364 | AD32: 1.339638363 | AE32: 311.5461439 | AF32: 73.06820995 | AG32: 2.3797794 | AH32: 0 | AI32: 0 | AJ32: 0 | AK32: 4.018111969 | AL32: 1.930020277 | AN32: 0.1623183421 | AO32: 7.933437105 | AP32: 28.07873937 | AQ32: 0 | AR32: 0 | AS32: 0 | AT32: 0 | AU32: 0 | AV32: 0.5362592094 | AW32: 0.2197334887 | AX32: 0 | AY32: 0.3220030884 | AZ32: 0 | BB32: 2.76881086 | BC32: 4.684083137 | BD32: 0.9611447057 | BE32: 0.06003803874 | BF32: 0.6961556126 | BG32: 3.418267397 | BH32: 0.5380234656 | BI32: 0 | BJ32: 0 | BK32: 0 | BL32: 0 | BV32: 78.20381571 | CI32: 448.1442 | CJ32: 5.18095 | CO32: -0.27265 | CP32: -5.1865 | CQ32: 31 | CR32: -11.27497403 | CS32: 0.3604375248 | CT32: -0.2869005707 | CU32: 0 | CV32: 0 | CW32: 0 | CX32: 0 | CY32: 0 | CZ32: 0.6916907484 | DA32: 0 | DB32: 0.2265724862 | DC32: -9.515079223 | DD32: -0.09065468841 | DE32: -0.007818265911 | DF32: -0.1251620647 | DG32: -0.445133186 | DH32: 0 | DI32: -0.5502825371 | DK32: 0 | DL32: 0 | DM32: 2.302881064 | DN32: 0 | DO32: 0.05621111369 | DP32: -0.006158349689 | DQ32: 0 | DR32: -3.885357162 | DV32: 311.5461439 | DW32: 0.535664466 | DX32: -0.0023589996 | DY32: -5.86915 | DZ32: -7.9786 | EA32: 5.5965 | EB32: 2.7921 | EC32: -2.571280096 | ED32: 2.586984425 | EE32: 0.03402938687 | EF32: 0.00212565042 | EG32: 0.02464743188 | EH32: 0.1210239655 | EI32: 3.652914649 | EJ32: 1.031168489 | EK32: 0 | EL32: 0 | EM32: 0 | EN32: 0 | EO32: 0 | EP32: 0.8325759006 | EQ32: 0.4636082846 | ER32: 0 | ES32: -0.1417032919 | ET32: 0 | EU32: -0.0002209232497 | EV32: 115 | EW32: 0 | EX32: 0 | EY32: 0 | FA32: 0 | FB32: -46.77881411 | FD32: -46.77881411 | FF32: 0 | FG32: 0 | FH32: 0 | FI32: 0
A33: 42 | B33: Regular | C33: Verde | D33: A3a | E33: Industrial | F33: Não se aplica | G33: Não se aplica | H33: Não se aplica | I33: Fora ponta | J33: CATIVO | K33: 2021-07-01 | L33: 0 | M33: 0 | N33: 2523.322 | O33: 2523.322 | P33: 2523.322 | Q33: 2523.322 | S33: 59.01 | T33: 226.82 | V33: 721241.1273 | W33: 721241.1273 | X33: 693055.6205 | Y33: 0 | Z33: 50509.56062 | AA33: 0 | AB33: 0 | AC33: 0 | AD33: 0 | AE33: 0 | AF33: 522900.2316 | AG33: 29292.43763 | AH33: 0 | AI33: 0 | AJ33: 0 | AK33: 7004.888323 | AL33: 23756.40305 | AN33: 1997.958261 | AO33: 0 | AP33: 0 | AQ33: 0 | AR33: 0 | AS33: 0 | AT33: 0 | AU33: 0 | AV33: 6600.754442 | AW33: 2704.674859 | AX33: 0 | AY33: 3963.499888 | AZ33: 0 | BB33: 20751.39574 | BC33: 0 | BD33: 11830.62235 | BE33: 739.0014829 | BF33: 8568.90133 | BG33: 42075.06988 | BH33: 6622.470475 | BI33: 0 | BJ33: 0 | BK33: 0 | BL33: 0 | BV33: 586113.8267 | CI33: 693055.0712 | CJ33: -28186.08606 | CO33: -3356.01826 | CP33: -24829.48848 | CQ33: 31 | CR33: -60461.81592 | CS33: 0 | CT33: 0 | CU33: 0 | CV33: 0 | CW33: 0 | CX33: 0 | CY33: 0 | CZ33: 0 | DA33: 0 | DB33: 0 | DC33: -68093.04803 | DD33: -1115.858389 | DE33: -96.23415792 | DF33: -1540.605812 | DG33: -5479.094444 | DH33: 0 | DI33: -6773.36601 | DK33: 0 | DL33: 0 | DM33: 28345.90465 | DN33: 0 | DO33: 691.8962919 | DP33: -75.80243538 | DQ33: 0 | DR33: -6322.888254 | DV33: 0 | DW33: 6593.433813 | DX33: -29.03666141 | DY33: -14584.80116 | DZ33: -45873.99396 | EA33: 11228.7829 | EB33: 21044.50548 | EC33: 0 | ED33: 18513.31456 | EE33: 418.863905 | EF33: 26.16439253 | EG33: 303.3824737 | EH33: 1489.670413 | EI33: 0 | EJ33: 0 | EK33: 0 | EL33: 0 | EM33: 0 | EN33: 0 | EO33: 0 | EP33: 10248.08335 | EQ33: 5706.50236 | ER33: 0 | ES33: -1744.209922 | ET33: 0 | EU33: -2.719319494 | EV33: 115 | EW33: 0 | EX33: 0 | EY33: 0 | FA33: 0 | FB33: -46.77881411 | FD33: -46.77881411 | FF33: 0 | FG33: 0 | FH33: 0 | FI33: 0
A34: 43 | B34: Sistema de Compensação | C34: Verde | D34: A3a | E34: Industrial | F34: Não se aplica | G34: Não se aplica | H34: Não se aplica | I34: Fora ponta | J34: CATIVO | K34: 2021-07-01 | L34: 0 | M34: 0 | N34: 9.234 | O34: 9.234 | P34: 9.234 | Q34: 9.234 | S34: 59.01 | T34: 226.82 | V34: 2639.35422 | W34: 2639.35422 | X34: 2536.21044 | Y34: 0 | Z34: 184.8377983 | AA34: 0 | AB34: 0 | AC34: 0 | AD34: 0 | AE34: 0 | AF34: 1913.533326 | AG34: 107.1945511 | AH34: 0 | AI34: 0 | AJ34: 0 | AK34: 25.63411993 | AL34: 86.93564507 | AN34: 7.311451564 | AO34: 0 | AP34: 0 | AQ34: 0 | AR34: 0 | AS34: 0 | AT34: 0 | AU34: 0 | AV34: 24.15520751 | AW34: 9.897653826 | AX34: 0 | AY34: 14.5042757 | AZ34: 0 | BB34: 75.93893617 | BC34: 0 | BD34: 43.29370835 | BE34: 2.70434756 | BF34: 31.3575655 | BG34: 153.9721031 | BH34: 24.2346765 | BI34: 0 | BJ34: 0 | BK34: 0 | BL34: 0 | BV34: 2144.86105 | CI34: 2535.1118 | CJ34: -104.27242 | CO34: -12.28122 | CP34: -90.86256 | CQ34: 31 | CR34: -221.2576945 | CS34: 0 | CT34: 0 | CU34: 0 | CV34: 0 | CW34: 0 | CX34: 0 | CY34: 0 | CZ34: 0 | DA34: 0 | DB34: 0 | DC34: -249.1838955 | DD34: -4.08344094 | DE34: -0.3521652069 | DF34: -5.637787831 | DG34: -20.0505358 | DH34: 0 | DI34: -24.78687291 | DK34: 0 | DL34: 0 | DM34: 103.73075 | DN34: 0 | DO34: 2.531967921 | DP34: -0.2773961026 | DQ34: 0 | DR34: -23.13836686 | DV34: 0 | DW34: 24.12841795 | DX34: -0.1062585478 | DY34: -53.37252 | DZ34: -167.87412 | EA34: 41.0913 | EB34: 77.01156 | EC34: 0 | ED34: 67.74876399 | EE34: 1.532816382 | EF34: 0.09574759012 | EG34: 1.110216517 | EH34: 5.451391693 | EI34: 0 | EJ34: 0 | EK34: 0 | EL34: 0 | EM34: 0 | EN34: 0 | EO34: 0 | EP34: 37.50246764 | EQ34: 20.88272634 | ER34: 0 | ES34: -6.382869256 | ET34: 0 | EU34: -0.009951245305 | EV34: 115 | EW34: 0 | EX34: 0 | EY34: 0 | FA34: 0 | FB34: -46.77881411 | FD34: -46.77881411 | FF34: 0 | FG34: 0 | FH34: 0 | FI34: 0
A35: 44 | B35: Regular | C35: Verde | D35: A3a | E35: Industrial | F35: Não se aplica | G35: Não se aplica | H35: Não se aplica | I35: Não se aplica | J35: CATIVO | K35: 2021-07-01 | L35: 13881 | M35: 13881 | N35: 0 | O35: 0 | P35: 0 | Q35: 0 | R35: 35.6 | U35: 494163.6 | W35: 494163.6 | X35: 500548.86 | Y35: 0 | Z35: 0 | AA35: 0 | AB35: 0 | AC35: 3444.658802 | AD35: 1149.04971 | AE35: 393372.4373 | AI35: 0 | AJ35: 0 | AK35: 0 | AL35: 0 | AN35: 0 | AO35: 21312.51689 | AP35: 74920.20206 | AQ35: 0 | AR35: 0 | AU35: 0 | AV35: 0 | AW35: 0 | AZ35: 0 | BB35: 0 | BC35: 12516.92128 | BD35: 0 | BE35: 0 | BG35: 0 | BH35: 0 | BI35: 14625.99 | BJ35: 67372.16 | BK35: 308308.15 | BL35: 93 | BV35: 0 | CI35: 500548.86 | CJ35: 6385.23 | CO35: 6385.26 | CP35: 0 | CQ35: 31 | CR35: -2983.241189 | CS35: 968.285339 | CT35: -765.5133104 | CU35: 0 | CV35: 0 | CZ35: 593.2847818 | DA35: 0 | DB35: 556.5096435 | DE35: 0 | DF35: 0 | DG35: 0 | DH35: 0 | DI35: 0 | DK35: 0 | DL35: 0 | DN35: 0 | DO35: 0 | DP35: 0 | DQ35: 0 | DR35: -4335.807643 | DU35: 393372.4373 | DW35: 0 | DX35: 0 | DY35: -6107.64 | EA35: 12492.9 | EC35: -3246.616074 | EE35: 0 | EF35: 0 | EH35: 0 | EI35: 9746.77317 | EJ35: 2770.148114 | EK35: 0 | EL35: 0 | EO35: 0 | EP35: 0 | ER35: 0 | ET35: 0 | EV35: 115 | FA35: 0 | FB35: -46.77881411 | FD35: -46.77881411 | FF35: 0 | FG35: 0 | FH35: 0 | FI35: 0
A36: 45 | B36: Sistema de Compensação | C36: Verde | D36: A3a | E36: Industrial | F36: Não se aplica | G36: Não se aplica | H36: Não se aplica | I36: Não se aplica | J36: CATIVO | K36: 2021-07-01 | L36: 280 | M36: 280 | N36: 0 | O36: 0 | P36: 0 | Q36: 0 | R36: 35.6 | U36: 9968 | W36: 9968 | X36: 10096.8 | Y36: 0 | Z36: 0 | AA36: 0 | AB36: 0 | AC36: 69.48378823 | AD36: 23.17800726 | AE36: 7934.895356 | AI36: 0 | AJ36: 0 | AK36: 0 | AL36: 0 | AN36: 0 | AO36: 429.9045263 | AP36: 1511.249663 | AQ36: 0 | AR36: 0 | AU36: 0 | AV36: 0 | AW36: 0 | AZ36: 0 | BB36: 0 | BC36: 252.4845443 | BD36: 0 | BE36: 0 | BG36: 0 | BH36: 0 | BI36: 182.81 | BJ36: 842.13 | BK36: 5766.56 | BL36: 2 | BV36: 0 | CI36: 10096.8 | CJ36: 128.77 | CO36: 128.8 | CP36: 0 | CQ36: 31 | CR36: -60.17632252 | CS36: 19.53172646 | CT36: -15.44151912 | CU36: 0 | CV36: 0 | CZ36: 11.96741869 | DA36: 0 | DB36: 11.22561056 | DE36: 0 | DF36: 0 | DG36: 0 | DH36: 0 | DI36: 0 | DK36: 0 | DL36: 0 | DN36: 0 | DO36: 0 | DP36: 0 | DQ36: 0 | DR36: -87.45955912 | DU36: 7934.895356 | DW36: 0 | DX36: 0 | DY36: -123.2 | EA36: 252 | EC36: -65.48897778 | EE36: 0 | EF36: 0 | EH36: 0 | EI36: 196.6066197 | EJ36: 55.87792464 | EK36: 0 | EL36: 0 | EO36: 0 | EP36: 0 | ER36: 0 | ET36: 0 | EV36: 115 | FA36: 0 | FB36: -46.77881411 | FD36: -46.77881411 | FF36: 0 | FG36: 0 | FH36: 0 | FI36: 0
A37: 37 | B37: Regular | C37: Azul | D37: A4 | E37: Industrial | F37: Não se aplica | G37: Não se aplica | H37: Não se aplica | I37: Ponta | J37: CATIVO | K37: 2021-07-01 | L37: 149 | M37: 149 | N37: 1.107 | O37: 1.107 | P37: 1.107 | Q37: 1.107 | R37: 71.05 | S37: 59.01 | T37: 376.03 | U37: 10586.45 | V37: 481.58928 | W37: 11068.03928 | X37: 11040.04987 | Y37: 0 | Z37: 22.15891734 | AA37: 0 | AB37: 0 | AC37: 42.3873526 | AD37: 40.49452495 | AE37: 9415.408668 | AF37: 394.5683337 | AG37: 12.85080876 | AH37: 0 | AI37: 0 | AJ37: 0 | AK37: 3.073096249 | AL37: 10.4221095 | AN37: 0.8765190472 | AO37: 239.7629175 | AP37: 848.5858134 | AQ37: 0 | AR37: 0 | AS37: 0 | AT37: 0 | AU37: 0 | AV37: 2.895799731 | AW37: 1.186560839 | AX37: 0 | AY37: 1.738816677 | AZ37: 0 | BB37: 14.95157864 | BC37: 141.560895 | BD37: 5.190181411 | BE37: 0.3242054092 | BF37: 3.759240308 | BG37: 18.45864394 | BH37: 2.905326714 | BI37: 0 | BJ37: 0 | BK37: 0 | BL37: 0 | BV37: 422.3006048 | CI37: 11041.2751 | CJ37: -26.79418 | CO37: 0.01769 | CP37: -28.0071 | CQ37: 31 | CR37: -112.3832511 | CS37: 10.89307842 | CT37: -8.670608425 | CU37: 0 | CV37: 0 | CW37: 0 | CX37: 0 | CY37: 0 | CZ37: 20.90839517 | DA37: 0 | DB37: 6.847984617 | DC37: -51.38142781 | DD37: -0.4895353174 | DE37: -0.04221863592 | DF37: -0.6758751493 | DG37: -2.403719204 | DH37: 0 | DI37: -2.9715257 | DK37: 0 | DL37: 0 | DM37: 12.43555775 | DN37: 0 | DO37: 0.303540014 | DP37: -0.03325508832 | DQ37: 0 | DR37: -97.10244879 | DU37: 9415.408668 | DV37: 0 | DW37: 2.892588116 | DX37: -0.01273859784 | DY37: -146.45846 | DZ37: -43.08444 | EA37: 146.47615 | EB37: 15.07734 | EC37: -77.70808076 | ED37: 13.9697159 | EE37: 0.1837586891 | EF37: 0.01147851227 | EG37: 0.1330961322 | EH37: 0.6535294135 | EI37: 110.3971053 | EJ37: 31.16378967 | EK37: 0 | EL37: 0 | EM37: 0 | EN37: 0 | EO37: 0 | EP37: 4.495909863 | EQ37: 2.503484737 | ER37: 0 | ES37: -0.7651977763 | ET37: 0 | EU37: -0.001192985548 | EV37: 115 | EW37: 0 | EX37: 0 | EY37: 0 | FA37: 0 | FB37: -46.77881411 | FD37: -46.77881411 | FF37: 0 | FG37: 0 | FH37: 0 | FI37: 0
A38: 38 | B38: Regular | C38: Azul | D38: A4 | E38: Industrial | F38: Não se aplica | G38: Não se aplica | H38: Não se aplica | I38: Fora ponta | J38: CATIVO | K38: 2021-07-01 | L38: 88 | M38: 88 | N38: 16.728 | O38: 16.728 | P38: 16.728 | Q38: 16.728 | R38: 35.6 | S38: 59.01 | T38: 226.82 | U38: 3132.8 | V38: 4781.36424 | W38: 7914.16424 | X38: 7767.79248 | Y38: 0 | Z38: 334.845862 | AA38: 0 | AB38: 0 | AC38: 21.83776202 | AD38: 7.284516566 | AE38: 2493.824255 | AF38: 3466.491821 | AG38: 194.189999 | AH38: 0 | AI38: 0 | AJ38: 0 | AK38: 46.43789888 | AL38: 157.4896546 | AN38: 13.24517671 | AO38: 135.1128511 | AP38: 474.9641799 | AQ38: 0 | AR38: 0 | AS38: 0 | AT38: 0 | AU38: 0 | AV38: 43.75875148 | AW38: 17.93025267 | AX38: 0 | AY38: 26.27545201 | AZ38: 0 | BB38: 137.5683912 | BC38: 79.35228536 | BD38: 78.42940799 | BE38: 4.899103961 | BF38: 56.80629799 | BG38: 278.9306196 | BH38: 43.90271479 | BI38: 0 | BJ38: 0 | BK38: 0 | BL38: 0 | BV38: 3885.557251 | CI38: 7768.3418 | CJ38: -145.85244 | CO38: 18.23176 | CP38: -164.60352 | CQ38: 31 | CR38: -419.7354644 | CS38: 6.1385426 | CT38: -4.853048866 | CU38: 0 | CV38: 0 | CW38: 0 | CX38: 0 | CY38: 0 | CZ38: 3.761188733 | DA38: 0 | DB38: 3.528049033 | DC38: -451.4130608 | DD38: -7.397422574 | DE38: -0.6379704983 | DF38: -10.21322448 | DG38: -36.32286798 | DH38: 0 | DI38: -44.90305502 | DK38: 0 | DL38: 0 | DM38: 187.9150948 | DN38: 0 | DO38: 4.586826877 | DP38: -0.5025213346 | DQ38: 0 | DR38: -69.40396759 | DU38: 2493.824255 | DV38: 0 | DW38: 43.71022043 | DX38: -0.1924943674 | DY38: -135.40784 | DZ38: -304.11504 | EA38: 153.6396 | EB38: 139.51152 | EC38: -20.58225016 | ED38: 122.7313541 | EE38: 2.776797968 | EF38: 0.1734530742 | EG38: 2.011230441 | EH38: 9.875555582 | EI38: 61.7906519 | EJ38: 17.56163346 | EK38: 0 | EL38: 0 | EM38: 0 | EN38: 0 | EO38: 0 | EP38: 67.93819349 | EQ38: 37.83043602 | ER38: 0 | ES38: -11.56298862 | ET38: 0 | EU38: -0.01802733717 | EV38: 115 | EW38: 0 | EX38: 0 | EY38: 0 | FA38: 0 | FB38: -46.77881411 | FD38: -46.77881411 | FF38: 0 | FG38: 0 | FH38: 0 | FI38: 0
A39: 39 | B39: Regular | C39: Azul | D39: A4 | E39: Industrial | F39: Não se aplica | G39: Não se aplica | H39: Não se aplica | I39: Não se aplica | J39: CATIVO | K39: 2021-07-01 | L39: 0 | M39: 0 | N39: 0 | O39: 0 | P39: 0 | Q39: 0 | AA39: 0 | AZ39: 0 | BI39: 219.94 | BJ39: 1013.09 | BK39: 6811.07 | BL39: 1 | CJ39: -0.03 | CO39: 0 | CP39: 0 | CQ39: 31 | DK39: 0 | EV39: 115 | FA39: 0 | FB39: -46.77881411 | FD39: -46.77881411 | FF39: 0 | FG39: 0 | FH39: 0 | FI39: 0
A40: 46 | B40: Regular | C40: Verde | D40: A4 | E40: Industrial | F40: Não se aplica | G40: Não se aplica | H40: Não se aplica | I40: Ponta | J40: CATIVO | K40: 2021-07-01 | L40: 0 | M40: 0 | N40: 93.177 | O40: 93.177 | P40: 93.177 | Q40: 93.177 | S40: 1784.62 | T40: 376.03 | V40: 201322.885 | W40: 201322.885 | X40: 198841.5815 | Y40: 0 | Z40: 1865.132286 | AA40: 0 | AB40: 0 | AC40: 637.4344764 | AD40: 608.8950425 | AE40: 141604.5612 | AF40: 33211.10536 | AG40: 1081.661976 | AH40: 0 | AI40: 0 | AJ40: 0 | AK40: 1826.320092 | AL40: 877.2365823 | AN40: 73.77724956 | AO40: 3605.921313 | AP40: 12762.40341 | AQ40: 0 | AR40: 0 | AS40: 0 | AT40: 0 | AU40: 0 | AV40: 243.7415822 | AW40: 99.87369401 | AX40: 0 | AY40: 146.357472 | AZ40: 0 | BB40: 1258.485315 | BC40: 2129.018607 | BD40: 436.8613671 | BE40: 27.28860652 | BF40: 316.4180074 | BG40: 1553.677567 | BH40: 244.5434754 | BI40: 0 | BJ40: 0 | BK40: 0 | BL40: 0 | BV40: 35545.35091 | CI40: 198847.9836 | CJ40: -2474.93145 | CO40: -123.92541 | CP40: -2357.3781 | CQ40: 31 | CR40: -5124.723198 | CS40: 163.8267671 | CT40: -130.4026072 | CU40: 0 | CV40: 0 | CW40: 0 | CX40: 0 | CY40: 0 | CZ40: 314.3886286 | DA40: 0 | DB40: 102.9821685 | DC40: -4324.812375 | DD40: -41.20454586 | DE40: -3.553573477 | DF40: -56.88890586 | DG40: -202.3228042 | DH40: 0 | DI40: -250.1154925 | DK40: 0 | DL40: 0 | DM40: 1046.709995 | DN40: 0 | DO40: 25.54918508 | DP40: -2.799105117 | DQ40: 0 | DR40: -1765.980119 | DV40: 141604.5612 | DW40: 243.4712583 | DX40: -1.072217101 | DY40: -2667.65751 | DZ40: -3626.44884 | EA40: 2543.7321 | EB40: 1269.07074 | EC40: -1168.703247 | ED40: 1175.841209 | EE40: 15.46710332 | EF40: 0.9661547763 | EG40: 11.20279883 | EH40: 55.00804893 | EI40: 1660.329894 | EJ40: 468.6887135 | EK40: 0 | EL40: 0 | EM40: 0 | EN40: 0 | EO40: 0 | EP40: 378.4240229 | EQ40: 210.7201421 | ER40: 0 | ES40: -64.40725673 | ET40: 0 | EU40: -0.1004144665 | EV40: 115 | EW40: 0 | EX40: 0 | EY40: 0 | FA40: 0 | FB40: -46.77881411 | FD40: -46.77881411 | FF40: 0 | FG40: 0 | FH40: 0 | FI40: 0
A41: 24 | B41: Refaturamento - Regular | C41: Branca | D41: B1 | E41: Residencial | F41: Residencial | G41: Não se aplica | H41: Não se aplica | I41: Não se aplica | J41: CATIVO | K41: 2021-07-01 | L41: 0 | M41: 0 | N41: 0 | O41: 0 | P41: 0 | Q41: 0 | AA41: 0 | AZ41: 0 | BI41: -31.16 | BJ41: -143.54 | BK41: -965.05 | BL41: -1 | CJ41: -0.03 | CO41: 0 | CP41: 0 | CQ41: 31 | DK41: 0 | EV41: 115 | FA41: 0 | FB41: -46.77881411 | FD41: -46.77881411 | FF41: 0 | FG41: 0 | FH41: 0 | FI41: 0
A42: 25 | B42: Sistema de Compensação | C42: Branca | D42: B1 | E42: Residencial | F42: Residencial | G42: Não se aplica | H42: Não se aplica | I42: Não se aplica | J42: CATIVO | K42: 2021-07-01 | L42: 0 | M42: 0 | N42: 0 | O42: 0 | P42: 0 | Q42: 0 | AA42: 0 | AZ42: 0 | BI42: 178.23 | BJ42: 821.22 | BK42: 8379.24 | BL42: 15 | CJ42: -0.03 | CO42: 0 | CP42: 0 | CQ42: 31 | DK42: 0 | EV42: 115 | FA42: 0 | FB42: -46.77881411 | FD42: -46.77881411 | FF42: 0 | FG42: 0 | FH42: 0 | FI42: 0
A43: 26 | B43: Regular | C43: Branca | D43: B1 | E43: Residencial | F43: Residencial | G43: Não se aplica | H43: Não se aplica | I43: Intermediário | J43: CATIVO | K43: 2021-07-01 | L43: 0 | M43: 0 | N43: 6.046 | O43: 6.046 | P43: 6.046 | Q43: 6.046 | S43: 775.62 | T43: 226.82 | V43: 6060.75224 | W43: 6060.75224 | X43: 5969.75994 | Y43: 0 | Z43: 139.1072633 | AA43: 0 | AB43: 0 | AC43: 14.08393595 | AD43: 9.781351484 | AE43: 3741.943071 | AF43: 1252.893923 | AG43: 70.18607927 | AH43: 0 | AI43: 0 | AJ43: 0 | AK43: 59.90901879 | AL43: 56.92147608 | AN43: 7.418999271 | AO43: 82.78410111 | AP43: 291.9731726 | AQ43: 0 | AR43: 0 | AS43: 0 | AT43: 0 | AU43: 0 | AV43: 18.17899176 | AW43: 6.480530109 | AX43: 0 | AY43: 9.496734988 | AZ43: 0 | BB43: 53.91872865 | BC43: 48.74443705 | BD43: 39.09481163 | BE43: 3.631481391 | BF43: 20.53149675 | BG43: 206.7584935 | BH43: 21.88424481 | BI43: 0 | BJ43: 0 | BK43: 0 | BL43: 0 | BV43: 1522.910207 | CI43: 5973.7095 | CJ43: -87.07274 | CO43: -31.49966 | CP43: -59.49264 | CQ43: 31 | CR43: -192.7410959 | CS43: 3.761105824 | CT43: -2.983298814 | CU43: 0 | CV43: 0 | CW43: 0 | CX43: 0 | CY43: 0 | CZ43: 5.050370695 | DA43: 0 | DB43: 2.275362126 | DC43: -163.1541945 | DD43: -2.673649981 | DE43: -0.4728983118 | DF43: -5.090999631 | DG43: -26.92447847 | DH43: 0 | DI43: -18.65437745 | DK43: 0 | DL43: 0 | DM43: 67.91814104 | DN43: 0 | DO43: 1.657816553 | DP43: -0.2814764571 | DQ43: 0 | DR43: -53.16200287 | DV43: 3741.943071 | DW43: 21.78829189 | DX43: -0.09595292411 | DY43: -113.72526 | DZ43: -109.91628 | EA43: 82.2256 | EB43: 50.42364 | EC43: -30.88333439 | ED43: 44.35878569 | EE43: 1.384154188 | EF43: 0.1285728199 | EG43: 0.7269188934 | EH43: 7.32029706 | EI43: 37.9843648 | EJ43: 10.76007225 | EK43: 0 | EL43: 0 | EM43: 0 | EN43: 0 | EO43: 0 | EP43: 28.2240196 | EQ43: 13.67305214 | ER43: 0 | ES43: -4.179210258 | ET43: 0 | EU43: -0.006515619354 | EV43: 115 | EW43: 0 | EX43: 0 | EY43: 0 | FA43: 0 | FB43: -46.77881411 | FD43: -46.77881411 | FF43: 0 | FG43: 0 | FH43: 0 | FI43: 0
A44: 27 | B44: Refaturamento - Regular | C44: Branca | D44: B1 | E44: Residencial | F44: Residencial | G44: Não se aplica | H44: Não se aplica | I44: Intermediário | J44: CATIVO | K44: 2021-07-01 | L44: 0 | M44: 0 | N44: -0.208 | O44: -0.208 | P44: -0.208 | Q44: -0.208 | S44: 775.62 | T44: 226.82 | V44: -208.50752 | W44: -208.50752 | X44: -205.37712 | Y44: 0 | Z44: -4.785694801 | AA44: 0 | AB44: 0 | AC44: -0.4845283952 | AD44: -0.3365069647 | AE44: -128.7337345 | AF44: -43.10319816 | AG44: -2.41460544 | AH44: 0 | AI44: 0 | AJ44: 0 | AK44: -2.061044642 | AL44: -1.958264476 | AN44: -0.2552351718 | AO44: -2.848014064 | AP44: -10.04472708 | AQ44: 0 | AR44: 0 | AS44: 0 | AT44: 0 | AU44: 0 | AV44: -0.6254102357 | AW44: -0.2229491007 | AX44: 0 | AY44: -0.3267153287 | AZ44: 0 | BB44: -1.854961224 | BC44: -1.67695053 | BD44: -1.344975326 | BE44: -0.1249335312 | BF44: -0.7063432557 | BG44: -7.113094054 | BH44: -0.752881727 | BI44: 0 | BJ44: 0 | BK44: 0 | BL44: 0 | BV44: -52.39254432 | CI44: -207.3519 | CJ44: 1.12562 | CO44: 1.08368 | CP44: 2.04672 | CQ44: 31 | CR44: 6.630854771 | CS44: -0.129392989 | CT44: 0.1026341636 | CU44: 0 | CV44: 0 | CW44: 0 | CX44: 0 | CY44: 0 | CZ44: -0.1737474536 | DA44: 0 | DB44: -0.07827908076 | DC44: 5.612979236 | DD44: 0.09198134239 | DE44: 0.01626907854 | DF44: 0.1751452073 | DG44: 0.926280437 | DH44: 0 | DI44: 0.6417648876 | DK44: 0 | DL44: 0 | DM44: -2.336581763 | DN44: 0 | DO44: -0.05703371536 | DP44: 0.009683609507 | DQ44: 0 | DR44: 1.828927654 | DV44: -128.7337345 | DW44: -0.7495806671 | DX44: 0.00330105991 | DY44: 3.91248 | DZ44: 3.78144 | EA44: -2.8288 | EB44: -1.73472 | EC44: 1.062476605 | ED44: -1.526071357 | EE44: -0.04761893336 | EF44: -0.004423279283 | EG44: -0.02500812601 | EH44: -0.2518395284 | EI44: -1.306772722 | EJ44: -0.3701778081 | EK44: 0 | EL44: 0 | EM44: 0 | EN44: 0 | EO44: 0 | EP44: -0.9709884346 | EQ44: -0.4703927961 | ER44: 0 | ES44: 0.1437769986 | ET44: 0 | EU44: 0.0002241562728 | EV44: 115 | EW44: 0 | EX44: 0 | EY44: 0 | FA44: 0 | FB44: -46.77881411 | FD44: -46.77881411 | FF44: 0 | FG44: 0 | FH44: 0 | FI44: 0
A45: 28 | B45: Sistema de Compensação | C45: Branca | D45: B1 | E45: Residencial | F45: Residencial | G45: Não se aplica | H45: Não se aplica | I45: Intermediário | J45: CATIVO | K45: 2021-07-01 | L45: 0 | M45: 0 | N45: 1.222 | O45: 1.222 | P45: 1.222 | Q45: 1.222 | S45: 775.62 | T45: 226.82 | V45: 1224.98168 | W45: 1224.98168 | X45: 1206.59058 | Y45: 0 | Z45: 28.11595696 | AA45: 0 | AB45: 0 | AC45: 2.846604322 | AD45: 1.976978418 | AE45: 756.3106901 | AF45: 253.2312892 | AG45: 14.18580696 | AH45: 0 | AI45: 0 | AJ45: 0 | AK45: 12.10863727 | AL45: 11.5048038 | AN45: 1.499506634 | AO45: 16.73208263 | AP45: 59.01277158 | AQ45: 0 | AR45: 0 | AS45: 0 | AT45: 0 | AU45: 0 | AV45: 3.674285135 | AW45: 1.309825967 | AX45: 0 | AY45: 1.919452556 | AZ45: 0 | BB45: 10.89789719 | BC45: 9.852084365 | BD45: 7.901730039 | BE45: 0.7339844956 | BF45: 4.149766627 | BG45: 41.78942757 | BH45: 4.423180146 | BI45: 0 | BJ45: 0 | BK45: 0 | BL45: 0 | BV45: 307.8061979 | CI45: 1204.6158 | CJ45: -20.39588 | CO45: -6.36662 | CP45: -12.02448 | CQ45: 31 | CR45: -38.95627178 | CS45: 0.7601838103 | CT45: -0.6029757113 | CU45: 0 | CV45: 0 | CW45: 0 | CX45: 0 | CY45: 0 | CZ45: 1.02076629 | DA45: 0 | DB45: 0.4598895994 | DC45: -32.97625301 | DD45: -0.5403903865 | DE45: -0.09558083643 | DF45: -1.028978093 | DG45: -5.441897567 | DH45: 0 | DI45: -3.770368715 | DK45: 0 | DL45: 0 | DM45: 13.72741786 | DN45: 0 | DO45: 0.3350730777 | DP45: -0.05689120585 | DQ45: 0 | DR45: -10.74494997 | DV45: 756.3106901 | DW45: 4.403786419 | DX45: -0.01939372697 | DY45: -22.98582 | DZ45: -22.21596 | EA45: 16.6192 | EB45: 10.19148 | EC45: -6.242050054 | ED45: 8.965669222 | EE45: 0.2797612335 | EF45: 0.02598676579 | EG45: 0.1469227403 | EH45: 1.479557229 | EI45: 7.677289742 | EJ45: 2.174794623 | EK45: 0 | EL45: 0 | EM45: 0 | EN45: 0 | EO45: 0 | EP45: 5.704557053 | EQ45: 2.763557677 | ER45: 0 | ES45: -0.8446898669 | ET45: 0 | EU45: -0.001316918103 | EV45: 115 | EW45: 0 | EX45: 0 | EY45: 0 | FA45: 0 | FB45: -46.77881411 | FD45: -46.77881411 | FF45: 0 | FG45: 0 | FH45: 0 | FI45: 0
A46: 29 | B46: Regular | C46: Convencional | D46: B3 | E46: Industrial | F46: Não se aplica | G46: Não se aplica | H46: Não se aplica | I46: Não se aplica | J46: CATIVO | K46: 2021-07-01 | L46: 0 | M46: 0 | N46: 1202.86 | O46: 1202.86 | P46: 1202.86 | Q46: 1202.86 | S46: 444.24 | T46: 239.26 | V46: 822154.81 | W46: 822154.81 | X46: 803498.4514 | Y46: 0 | Z46: 27675.581 | AA46: 0 | AB46: 0 | AC46: 1459.377468 | AD46: 1013.517682 | AE46: 387742.0615 | AF46: 264220.864 | AG46: 13963.61682 | AH46: 0 | AI46: 0 | AJ46: 0 | AK46: 8030.455331 | AL46: 11324.60581 | AN46: 1476.02009 | AO46: 8578.075464 | AP46: 30254.49412 | AQ46: 0 | AR46: 0 | AS46: 0 | AT46: 0 | AU46: 0 | AV46: 3616.735366 | AW46: 1289.310362 | AX46: 0 | AY46: 1889.388463 | AZ46: 0 | BB46: 11256.71956 | BC46: 5050.927303 | BD46: 7777.966444 | BE46: 722.4882081 | BF46: 4084.769464 | BG46: 41134.88612 | BH46: 4353.900549 | BI46: 6149.15 | BJ46: 28345.88 | BK46: 276436.59 | BL46: 1198 | BV46: 317940.9742 | CI46: 803498.4514 | CJ46: -18656.3886 | CO46: -5256.4982 | CP46: -13399.8604 | CQ46: 31 | CR46: -37700.12637 | CS46: 389.7251906 | CT46: -309.1318137 | CU46: 0 | CV46: 0 | CW46: 0 | CX46: 0 | CY46: 0 | CZ46: 523.306008 | DA46: 0 | DB46: 235.7730275 | DC46: -34407.33604 | DD46: -531.9263341 | DE46: -94.08376834 | DF46: -1012.861366 | DG46: -5356.661954 | DH46: 0 | DI46: -3711.314004 | DK46: 0 | DL46: 0 | DM46: 13512.4074 | DN46: 0 | DO46: 329.8248791 | DP46: -56.00012756 | DQ46: 0 | DR46: -7210.551178 | DV46: 387742.0615 | DW46: 4334.810583 | DX46: -19.08996598 | DY46: -16972.3546 | DZ46: -23960.9712 | EA46: 11715.8564 | EB46: 10561.1108 | EC46: -3200.14696 | ED46: 9354.755788 | EE46: 275.3793758 | EF46: 25.57973903 | EG46: 144.6215118 | EH46: 1456.383149 | EI46: 3935.970319 | EJ46: 1114.956985 | EK46: 0 | EL46: 0 | EM46: 0 | EN46: 0 | EO46: 0 | EP46: 5615.207445 | EQ46: 2720.272494 | ER46: 0 | ES46: -831.4596181 | ET46: 0 | EU46: -1.296291415 | EV46: 115 | EW46: 0 | EX46: 0 | EY46: 0 | FA46: 0 | FB46: -46.77881411 | FD46: -46.77881411 | FF46: 0 | FG46: 0 | FH46: 0 | FI46: 0
A47: 30 | B47: Sistema de Compensação | C47: Convencional | D47: B3 | E47: Industrial | F47: Não se aplica | G47: Não se aplica | H47: Não se aplica | I47: Não se aplica | J47: CATIVO | K47: 2021-07-01 | L47: 0 | M47: 0 | N47: 76.856 | O47: 76.856 | P47: 76.856 | Q47: 76.856 | S47: 444.24 | T47: 239.26 | V47: 52531.076 | W47: 52531.076 | X47: 51339.03944 | Y47: 0 | Z47: 1768.314229 | AA47: 0 | AB47: 0 | AC47: 93.24602587 | AD47: 64.75808901 | AE47: 24774.54058 | AF47: 16882.22962 | AG47: 892.19671 | AH47: 0 | AI47: 0 | AJ47: 0 | AK47: 513.101005 | AL47: 723.578724 | AN47: 94.30939596 | AO47: 548.0908567 | AP47: 1933.092297 | AQ47: 0 | AR47: 0 | AS47: 0 | AT47: 0 | AU47: 0 | AV47: 231.0890821 | AW47: 82.3796927 | AX47: 0 | AY47: 120.721314 | AZ47: 0 | BB47: 719.2411742 | BC47: 322.725894 | BD47: 496.9683829 | BE47: 46.16293976 | BF47: 260.993833 | BG47: 2628.288253 | BH47: 278.1897981 | BI47: 376.18 | BJ47: 1733.72 | BK47: 25227.99 | BL47: 61 | BV47: 20314.64303 | CI47: 51341.7114 | CJ47: -1189.3946 | CO47: -335.86072 | CP47: -856.17584 | CQ47: 31 | CR47: -2408.826391 | CS47: 24.90125139 | CT47: -19.75178714 | CU47: 0 | CV47: 0 | CW47: 0 | CX47: 0 | CY47: 0 | CZ47: 33.43631557 | DA47: 0 | DB47: 15.0645726 | DC47: -2198.435577 | DD47: -33.98710601 | DE47: -6.011424521 | DF47: -64.71615409 | DG47: -342.2606215 | DH47: 0 | DI47: -237.132126 | DK47: 0 | DL47: 0 | DM47: 863.3669613 | DN47: 0 | DO47: 21.07395782 | DP47: -3.578093713 | DQ47: 0 | DR47: -460.7137334 | DV47: 24774.54058 | DW47: 276.9700565 | DX47: -1.219741637 | DY47: -1084.43816 | DZ47: -1530.97152 | EA47: 748.57744 | EB47: 674.79568 | EC47: -204.4714221 | ED47: 597.7163684 | EE47: 17.59519587 | EF47: 1.634401695 | EG47: 9.240502559 | EH47: 93.05470573 | EI47: 251.4864031 | EJ47: 71.23949089 | EK47: 0 | EL47: 0 | EM47: 0 | EN47: 0 | EO47: 0 | EP47: 358.7802266 | EQ47: 173.8101381 | ER47: 0 | ES47: -53.12560099 | ET47: 0 | EU47: -0.08282574281 | EV47: 115 | EW47: 0 | EX47: 0 | EY47: 0 | FA47: 0 | FB47: -46.77881411 | FD47: -46.77881411 | FF47: 0 | FG47: 0 | FH47: 0 | FI47: 0
A48: 64 | B48: Regular | C48: Verde | D48: A3a | E48: Comercial | F48: Não se aplica | G48: Não se aplica | H48: Não se aplica | I48: Ponta | J48: CATIVO | K48: 2021-07-01 | L48: 0 | M48: 0 | N48: 36.531 | O48: 36.531 | P48: 36.531 | Q48: 36.531 | S48: 1784.62 | T48: 376.03 | V48: 78930.70515 | W48: 78930.70515 | X48: 77957.88462 | Y48: 0 | Z48: 731.2442721 | AA48: 0 | AB48: 0 | AC48: 249.9127344 | AD48: 238.7235562 | AE48: 55517.52284 | AF48: 13020.75501 | AG48: 424.076689 | AH48: 0 | AI48: 0 | AJ48: 0 | AK48: 716.0275529 | AL48: 343.9296134 | AN48: 28.92512856 | AO48: 1413.738492 | AP48: 5003.631356 | AQ48: 0 | AR48: 0 | AS48: 0 | AT48: 0 | AU48: 0 | AV48: 95.56139111 | AW48: 39.15650768 | AX48: 0 | AY48: 57.38095035 | AZ48: 0 | BB48: 493.4020952 | BC48: 834.7036151 | BD48: 171.2759866 | BE48: 10.6987785 | BF48: 124.0549302 | BG48: 609.1352502 | BH48: 95.87578157 | BI48: 0 | BJ48: 0 | BK48: 0 | BL48: 0 | BV48: 13935.91996 | CI48: 77955.7506 | CJ48: -974.98455 | CO48: -48.58623 | CP48: -924.2343 | CQ48: 31 | CR48: -2009.200373 | CS48: 64.22996693 | CT48: -51.1256817 | CU48: 0 | CV48: 0 | CW48: 0 | CX48: 0 | CY48: 0 | CZ48: 123.2592914 | DA48: 0 | DB48: 40.37521704 | DC48: -1695.587118 | DD48: -16.15466547 | DE48: -1.393214985 | DF48: -22.30387993 | DG48: -79.32273374 | DH48: 0 | DI48: -98.0603481 | DK48: 0 | DL48: 0 | DM48: 410.3734056 | DN48: 0 | DO48: 10.01682046 | DP48: -1.097417914 | DQ48: 0 | DR48: -692.3706463 | DV48: 55517.52284 | DW48: 95.45540784 | DX48: -0.4203737287 | DY48: -1045.88253 | DZ48: -1421.78652 | EA48: 997.2963 | EB48: 497.55222 | EC48: -458.2021132 | ED48: 461.0006246 | EE48: 6.06403674 | EF48: 0.3787909048 | EG48: 4.392172361 | EH48: 21.56647065 | EI48: 650.9493904 | EJ48: 183.7542247 | EK48: 0 | EL48: 0 | EM48: 0 | EN48: 0 | EO48: 0 | EP48: 148.3650255 | EQ48: 82.61499631 | ER48: 0 | ES48: -25.25152662 | ET48: 0 | EU48: -0.03936852309 | EV48: 115 | EW48: 0 | EX48: 0 | EY48: 0 | FA48: 0 | FB48: -46.77881411 | FD48: -46.77881411 | FF48: 0 | FG48: 0 | FH48: 0 | FI48: 0
A49: 65 | B49: Sistema de Compensação | C49: Verde | D49: A3a | E49: Comercial | F49: Não se aplica | G49: Não se aplica | H49: Não se aplica | I49: Ponta | J49: CATIVO | K49: 2021-07-01 | L49: 0 | M49: 0 | N49: 3 | O49: 3 | P49: 3 | Q49: 3 | S49: 1784.62 | T49: 376.03 | V49: 6481.95 | W49: 6481.95 | X49: 6402.06 | Y49: 0 | Z49: 60.05126649 | AA49: 0 | AB49: 0 | AC49: 20.52334191 | AD49: 19.60446384 | AE49: 4559.211862 | AF49: 1069.290877 | AG49: 34.82604 | AH49: 0 | AI49: 0 | AJ49: 0 | AK49: 58.80163857 | AL49: 28.24419918 | AN49: 2.375390372 | AO49: 116.0990796 | AP49: 410.9083811 | AQ49: 0 | AR49: 0 | AS49: 0 | AT49: 0 | AU49: 0 | AV49: 7.847695747 | AW49: 3.215612029 | AX49: 0 | AY49: 4.712240318 | AZ49: 0 | BB49: 40.51918332 | BC49: 68.54755811 | BD49: 14.06553228 | BE49: 0.878605445 | BF49: 10.18764311 | BG49: 50.02342532 | BH49: 7.873514131 | BI49: 0 | BJ49: 0 | BK49: 0 | BL49: 0 | BV49: 1144.446084 | CI49: 6402.06 | CJ49: -79.92 | CO49: -3.99 | CP49: -75.9 | CQ49: 31 | CR49: -164.99962 | CS49: 5.274695485 | CT49: -4.198544937 | CU49: 0 | CV49: 0 | CW49: 0 | CX49: 0 | CY49: 0 | CZ49: 10.12230364 | DA49: 0 | DB49: 3.31569492 | DC49: -139.2450618 | DD49: -1.326653977 | DE49: -0.1144136475 | DF49: -1.831639971 | DG49: -6.514144185 | DH49: 0 | DI49: -8.052915176 | DK49: 0 | DL49: 0 | DM49: 33.7006985 | DN49: 0 | DO49: 0.8226016638 | DP49: -0.09012219056 | DQ49: 0 | DR49: -56.8588853 | DV49: 4559.211862 | DW49: 7.838992186 | DX49: -0.03452194537 | DY49: -85.89 | DZ49: -116.76 | EA49: 81.9 | EB49: 40.86 | EC49: -37.62848922 | ED49: 37.85830866 | EE49: 0.4979910273 | EF49: 0.03110707931 | EG49: 0.3606941251 | EH49: 1.771082421 | EI49: 53.45728754 | EJ49: 15.09027057 | EK49: 0 | EL49: 0 | EM49: 0 | EN49: 0 | EO49: 0 | EP49: 12.18403757 | EQ49: 6.784511482 | ER49: 0 | ES49: -2.073706711 | ET49: 0 | EU49: -0.003233023166 | EV49: 115 | EW49: 0 | EX49: 0 | EY49: 0 | FA49: 0 | FB49: -46.77881411 | FD49: -46.77881411 | FF49: 0 | FG49: 0 | FH49: 0 | FI49: 0
A50: 66 | B50: Regular | C50: Verde | D50: A3a | E50: Comercial | F50: Não se aplica | G50: Não se aplica | H50: Não se aplica | I50: Fora ponta | J50: CATIVO | K50: 2021-07-01 | L50: 0 | M50: 0 | N50: 849.791 | O50: 849.791 | P50: 849.791 | Q50: 849.791 | S50: 59.01 | T50: 226.82 | V50: 242895.7615 | W50: 242895.7615 | X50: 233403.5961 | Y50: 0 | Z50: 17010.34193 | AA50: 0 | AB50: 0 | AC50: 0 | AD50: 0 | AE50: 0 | AF50: 176099.5667 | AG50: 9864.951785 | AH50: 0 | AI50: 0 | AJ50: 0 | AK50: 2359.069137 | AL50: 8000.555421 | AN50: 672.8617865 | AO50: 0 | AP50: 0 | AQ50: 0 | AR50: 0 | AS50: 0 | AT50: 0 | AU50: 0 | AV50: 2222.967072 | AW50: 910.866054 | AX50: 0 | AY50: 1334.806471 | AZ50: 0 | BB50: 6988.544998 | BC50: 0 | BD50: 3984.254247 | BE50: 248.8769999 | BF50: 2885.789142 | BG50: 14169.81888 | BH50: 2230.280482 | BI50: 0 | BJ50: 0 | BK50: 0 | BL50: 0 | BV50: 197388.3059 | CI50: 233403.3214 | CJ50: -9492.47013 | CO50: -1130.22203 | CP50: -8361.94344 | CQ50: 31 | CR50: -20362.00969 | CS50: 0 | CT50: 0 | CU50: 0 | CV50: 0 | CW50: 0 | CX50: 0 | CY50: 0 | CZ50: 0 | DA50: 0 | DB50: 0 | DC50: -22932.01557 | DD50: -375.7928698 | DE50: -32.4092293 | DF50: -518.8370542 | DG50: -1845.220367 | DH50: 0 | DI50: -2281.09828 | DK50: 0 | DL50: 0 | DM50: 9546.183426 | DN50: 0 | DO50: 233.0131635 | DP50: -25.52834215 | DQ50: 0 | DR50: -2129.388771 | DV50: 0 | DW50: 2220.501669 | DX50: -9.778812825 | DY50: -4911.79198 | DZ50: -15449.20038 | EA50: 3781.56995 | EB50: 7087.25694 | EC50: 0 | ED50: 6234.815887 | EE50: 141.0627644 | EF50: 8.811505345 | EG50: 102.1715404 | EH50: 501.6833006 | EI50: 0 | EJ50: 0 | EK50: 0 | EL50: 0 | EM50: 0 | EN50: 0 | EO50: 0 | EP50: 3451.295157 | EQ50: 1921.805599 | ER50: 0 | ES50: -587.4057665 | ET50: 0 | EU50: -0.9157979964 | EV50: 115 | EW50: 0 | EX50: 0 | EY50: 0 | FA50: 0 | FB50: -46.77881411 | FD50: -46.77881411 | FF50: 0 | FG50: 0 | FH50: 0 | FI50: 0
A51: 67 | B51: Sistema de Compensação | C51: Verde | D51: A3a | E51: Comercial | F51: Não se aplica | G51: Não se aplica | H51: Não se aplica | I51: Fora ponta | J51: CATIVO | K51: 2021-07-01 | L51: 0 | M51: 0 | N51: 7.097 | O51: 7.097 | P51: 7.097 | Q51: 7.097 | S51: 59.01 | T51: 226.82 | V51: 2028.53551 | W51: 2028.53551 | X51: 1949.26202 | Y51: 0 | Z51: 142.0612794 | AA51: 0 | AB51: 0 | AC51: 0 | AD51: 0 | AE51: 0 | AF51: 1470.68941 | AG51: 82.38680195 | AH51: 0 | AI51: 0 | AJ51: 0 | AK51: 19.7016839 | AL51: 66.81636052 | AN51: 5.619381823 | AO51: 0 | AP51: 0 | AQ51: 0 | AR51: 0 | AS51: 0 | AT51: 0 | AU51: 0 | AV51: 18.56503224 | AW51: 7.60706619 | AX51: 0 | AY51: 11.14758985 | AZ51: 0 | BB51: 58.36459065 | BC51: 0 | BD51: 33.27436086 | BE51: 2.078487614 | BF51: 24.10056772 | BG51: 118.3387498 | BH51: 18.62610993 | BI51: 0 | BJ51: 0 | BK51: 0 | BL51: 0 | BV51: 1648.481576 | CI51: 1950.086 | CJ51: -78.47951 | CO51: -9.43901 | CP51: -69.83448 | CQ51: 31 | CR51: -170.0526162 | CS51: 0 | CT51: 0 | CU51: 0 | CV51: 0 | CW51: 0 | CX51: 0 | CY51: 0 | CZ51: 0 | DA51: 0 | DB51: 0 | DC51: -191.5159309 | DD51: -3.138421091 | DE51: -0.270664552 | DF51: -4.333049625 | DG51: -15.41029376 | DH51: 0 | DI51: -19.050513 | DK51: 0 | DL51: 0 | DM51: 79.72461908 | DN51: 0 | DO51: 1.946001336 | DP51: -0.2131990621 | DQ51: 0 | DR51: -17.78351631 | DV51: 0 | DW51: 18.54444251 | DX51: -0.08166741542 | DY51: -41.02066 | DZ51: -129.02346 | EA51: 31.58165 | EB51: 59.18898 | EC51: 0 | ED51: 52.06984817 | EE51: 1.178080774 | EF51: 0.07358898062 | EG51: 0.8532820685 | EH51: 4.189790648 | EI51: 0 | EJ51: 0 | EK51: 0 | EL51: 0 | EM51: 0 | EN51: 0 | EO51: 0 | EP51: 28.82337154 | EQ51: 16.04989266 | ER51: 0 | ES51: -4.905698842 | ET51: 0 | EU51: -0.007648255136 | EV51: 115 | EW51: 0 | EX51: 0 | EY51: 0 | FA51: 0 | FB51: -46.77881411 | FD51: -46.77881411 | FF51: 0 | FG51: 0 | FH51: 0 | FI51: 0
A52: 68 | B52: Regular | C52: Verde | D52: A3a | E52: Comercial | F52: Não se aplica | G52: Não se aplica | H52: Não se aplica | I52: Não se aplica | J52: CATIVO | K52: 2021-07-01 | L52: 6200 | M52: 6200 | N52: 0 | O52: 0 | P52: 0 | Q52: 0 | R52: 35.6 | U52: 220720 | W52: 220720 | X52: 223572 | Y52: 0 | Z52: 0 | AA52: 0 | AB52: 0 | AC52: 1538.569597 | AD52: 513.2273035 | AE52: 175701.2543 | AI52: 0 | AJ52: 0 | AK52: 0 | AL52: 0 | AN52: 0 | AO52: 9519.314512 | AP52: 33463.3854 | AQ52: 0 | AR52: 0 | AU52: 0 | AV52: 0 | AW52: 0 | AZ52: 0 | BB52: 0 | BC52: 5590.729196 | BD52: 0 | BE52: 0 | BG52: 0 | BH52: 0 | BI52: 5956.71 | BJ52: 27438.55 | BK52: 208650 | BL52: 34 | BV52: 0 | CI52: 223572 | CJ52: 2851.97 | CO52: 2852 | CP52: 0 | CQ52: 31 | CR52: -1332.475713 | CS52: 432.4882287 | CT52: -341.9193519 | CU52: 0 | CV52: 0 | CZ52: 264.9928425 | DA52: 0 | DB52: 248.567091 | DE52: 0 | DF52: 0 | DG52: 0 | DH52: 0 | DI52: 0 | DK52: 0 | DL52: 0 | DN52: 0 | DO52: 0 | DP52: 0 | DQ52: 0 | DR52: -1936.604523 | DU52: 175701.2543 | DW52: 0 | DX52: 0 | DY52: -2728 | EA52: 5580 | EC52: -1450.113079 | EE52: 0 | EF52: 0 | EH52: 0 | EI52: 4353.432293 | EJ52: 1237.296903 | EK52: 0 | EL52: 0 | EO52: 0 | EP52: 0 | ER52: 0 | ET52: 0 | EV52: 115 | FA52: 0 | FB52: -46.77881411 | FD52: -46.77881411 | FF52: 0 | FG52: 0 | FH52: 0 | FI52: 0
A53: 69 | B53: Sistema de Compensação | C53: Verde | D53: A3a | E53: Comercial | F53: Não se aplica | G53: Não se aplica | H53: Não se aplica | I53: Não se aplica | J53: CATIVO | K53: 2021-07-01 | L53: 666 | M53: 666 | N53: 0 | O53: 0 | P53: 0 | Q53: 0 | R53: 35.6 | U53: 23709.6 | W53: 23709.6 | X53: 24015.96 | Y53: 0 | Z53: 0 | AA53: 0 | AB53: 0 | AC53: 165.2721534 | AD53: 55.13054583 | AE53: 18873.71538 | AI53: 0 | AJ53: 0 | AK53: 0 | AL53: 0 | AN53: 0 | AO53: 1022.558623 | AP53: 3594.61527 | AQ53: 0 | AR53: 0 | AU53: 0 | AV53: 0 | AW53: 0 | AZ53: 0 | BB53: 0 | BC53: 600.5525233 | BD53: 0 | BE53: 0 | BG53: 0 | BH53: 0 | BI53: 354.57 | BJ53: 1633.23 | BK53: 12200.82 | BL53: 3 | BV53: 0 | CI53: 24015.96 | CJ53: 306.33 | CO53: 306.36 | CP53: 0 | CQ53: 31 | CR53: -143.1336814 | CS53: 46.4576065 | CT53: -36.72875619 | CU53: 0 | CV53: 0 | CZ53: 28.46536018 | DA53: 0 | DB53: 26.70091655 | DE53: 0 | DF53: 0 | DG53: 0 | DH53: 0 | DI53: 0 | DK53: 0 | DL53: 0 | DN53: 0 | DO53: 0 | DP53: 0 | DQ53: 0 | DR53: -208.0288085 | DU53: 18873.71538 | DW53: 0 | DX53: 0 | DY53: -293.04 | EA53: 599.4 | EC53: -155.7702114 | EE53: 0 | EF53: 0 | EH53: 0 | EI53: 467.6428882 | EJ53: 132.909635 | EK53: 0 | EL53: 0 | EO53: 0 | EP53: 0 | ER53: 0 | ET53: 0 | EV53: 115 | FA53: 0 | FB53: -46.77881411 | FD53: -46.77881411 | FF53: 0 | FG53: 0 | FH53: 0 | FI53: 0
A54: 47 | B54: Sistema de Compensação | C54: Verde | D54: A4 | E54: Industrial | F54: Não se aplica | G54: Não se aplica | H54: Não se aplica | I54: Ponta | J54: CATIVO | K54: 2021-07-01 | L54: 0 | M54: 0 | N54: 15.47 | O54: 15.47 | P54: 15.47 | Q54: 15.47 | S54: 1784.62 | T54: 376.03 | V54: 33425.2555 | W54: 33425.2555 | X54: 33013.2894 | Y54: 0 | Z54: 309.6643642 | AA54: 0 | AB54: 0 | AC54: 105.8320331 | AD54: 101.0936852 | AE54: 23510.33583 | AF54: 5513.976624 | AG54: 179.5862796 | AH54: 0 | AI54: 0 | AJ54: 0 | AK54: 303.2204496 | AL54: 145.6459204 | AN54: 12.24909635 | AO54: 598.6842537 | AP54: 2118.917552 | AQ54: 0 | AR54: 0 | AS54: 0 | AT54: 0 | AU54: 0 | AV54: 40.46795107 | AW54: 16.58183936 | AX54: 0 | AY54: 24.29945257 | AZ54: 0 | BB54: 208.943922 | BC54: 353.476908 | BD54: 72.53126145 | BE54: 4.530675411 | BF54: 52.53427964 | BG54: 257.9541299 | BH54: 40.60108787 | BI54: 0 | BJ54: 0 | BK54: 0 | BL54: 0 | BV54: 5901.526971 | CI54: 33013.2894 | CJ54: -411.9961 | CO54: -20.5751 | CP54: -391.391 | CQ54: 31 | CR54: -850.8480405 | CS54: 27.19984639 | CT54: -21.65049673 | CU54: 0 | CV54: 0 | CW54: 0 | CX54: 0 | CY54: 0 | CZ54: 52.19734575 | DA54: 0 | DB54: 17.09793347 | DC54: -718.0403687 | DD54: -6.84111234 | DE54: -0.5899930421 | DF54: -9.445156783 | DG54: -33.59127018 | DH54: 0 | DI54: -41.52619926 | DK54: 0 | DL54: 0 | DM54: 173.7832686 | DN54: 0 | DO54: 4.24188258 | DP54: -0.464730096 | DQ54: 0 | DR54: -293.2023185 | DV54: 23510.33583 | DW54: 40.4230697 | DX54: -0.1780181649 | DY54: -442.9061 | DZ54: -602.0924 | EA54: 422.331 | EB54: 210.7014 | EC54: -194.0375761 | ED54: 195.2226783 | EE54: 2.567973731 | EF54: 0.160408839 | EG54: 1.859979372 | EH54: 9.132881686 | EI54: 275.6614128 | EJ54: 77.81549522 | EK54: 0 | EL54: 0 | EM54: 0 | EN54: 0 | EO54: 0 | EP54: 62.8290204 | EQ54: 34.98546421 | ER54: 0 | ES54: -10.69341427 | ET54: 0 | EU54: -0.01667162279 | EV54: 115 | EW54: 0 | EX54: 0 | EY54: 0 | FA54: 0 | FB54: -46.77881411 | FD54: -46.77881411 | FF54: 0 | FG54: 0 | FH54: 0 | FI54: 0
A55: 48 | B55: Regular | C55: Verde | D55: A4 | E55: Industrial | F55: Não se aplica | G55: Não se aplica | H55: Não se aplica | I55: Fora ponta | J55: CATIVO | K55: 2021-07-01 | L55: 0 | M55: 0 | N55: 2651.378 | O55: 2651.378 | P55: 2651.378 | Q55: 2651.378 | S55: 59.01 | T55: 226.82 | V55: 757843.3737 | W55: 757843.3737 | X55: 728227.4815 | Y55: 0 | Z55: 53072.86895 | AA55: 0 | AB55: 0 | AC55: 0 | AD55: 0 | AE55: 0 | AF55: 549436.8814 | AG55: 30778.99876 | AH55: 0 | AI55: 0 | AJ55: 0 | AK55: 7360.379211 | AL55: 24962.01611 | AN55: 2099.352591 | AO55: 0 | AP55: 0 | AQ55: 0 | AR55: 0 | AS55: 0 | AT55: 0 | AU55: 0 | AV55: 6935.735951 | AW55: 2841.93433 | AX55: 0 | AY55: 4164.643437 | AZ55: 0 | BB55: 21804.50777 | BC55: 0 | BD55: 12431.01428 | BE55: 776.5050492 | BF55: 9003.764272 | BG55: 44210.33646 | BH55: 6958.55405 | BI55: 0 | BJ55: 0 | BK55: 0 | BL55: 0 | BV55: 615858.5014 | CI55: 728228.0308 | CJ55: -29615.37294 | CO55: -3526.33274 | CP55: -26089.55952 | CQ55: 31 | CR55: -63530.19098 | CS55: 0 | CT55: 0 | CU55: 0 | CV55: 0 | CW55: 0 | CX55: 0 | CY55: 0 | CZ55: 0 | DA55: 0 | DB55: 0 | DC55: -71548.70029 | DD55: -1172.487056 | DE55: -101.1179426 | DF55: -1618.789974 | DG55: -5757.15286 | DH55: 0 | DI55: -7117.107378 | DK55: 0 | DL55: 0 | DM55: 29784.4302 | DN55: 0 | DO55: 727.0093181 | DP55: -79.64933112 | DQ55: 0 | DR55: -6643.768339 | DV55: 0 | DW55: 6928.043808 | DX55: -30.51024215 | DY55: -15324.96484 | DZ55: -48202.05204 | EA55: 11798.6321 | EB55: 22112.49252 | EC55: 0 | ED55: 19452.84626 | EE55: 440.120818 | EF55: 27.49220858 | EG55: 318.7788226 | EH55: 1565.269656 | EI55: 0 | EJ55: 0 | EK55: 0 | EL55: 0 | EM55: 0 | EN55: 0 | EO55: 0 | EP55: 10768.16305 | EQ55: 5996.101495 | ER55: 0 | ES55: -1832.726784 | ET55: 0 | EU55: -2.857322165 | EV55: 115 | EW55: 0 | EX55: 0 | EY55: 0 | FA55: 0 | FB55: -46.77881411 | FD55: -46.77881411 | FF55: 0 | FG55: 0 | FH55: 0 | FI55: 0
A56: 49 | B56: Sistema de Compensação | C56: Verde | D56: A4 | E56: Industrial | F56: Não se aplica | G56: Não se aplica | H56: Não se aplica | I56: Fora ponta | J56: CATIVO | K56: 2021-07-01 | L56: 0 | M56: 0 | N56: 56.91 | O56: 56.91 | P56: 56.91 | Q56: 56.91 | S56: 59.01 | T56: 226.82 | V56: 16266.5853 | W56: 16266.5853 | X56: 15630.9006 | Y56: 0 | Z56: 1139.172525 | AA56: 0 | AB56: 0 | AC56: 0 | AD56: 0 | AE56: 0 | AF56: 11793.28369 | AG56: 660.6499787 | AH56: 0 | AI56: 0 | AJ56: 0 | AK56: 157.985463 | AL56: 535.7924584 | AN56: 45.06115535 | AO56: 0 | AP56: 0 | AQ56: 0 | AR56: 0 | AS56: 0 | AT56: 0 | AU56: 0 | AV56: 148.8707883 | AW56: 61.00016019 | AX56: 0 | AY56: 89.39119883 | AZ56: 0 | BB56: 468.0187197 | BC56: 0 | BD56: 266.8231473 | BE56: 16.66714529 | BF56: 193.2595898 | BG56: 948.9443784 | BH56: 149.3605631 | BI56: 0 | BJ56: 0 | BK56: 0 | BL56: 0 | BV56: 13218.97795 | CI56: 15630.9006 | CJ56: -635.7147 | CO56: -75.6903 | CP56: -559.9944 | CQ56: 31 | CR56: -1363.63173 | CS56: 0 | CT56: 0 | CU56: 0 | CV56: 0 | CW56: 0 | CX56: 0 | CY56: 0 | CZ56: 0 | DA56: 0 | DB56: 0 | DC56: -1535.743501 | DD56: -25.16662594 | DE56: -2.170426893 | DF56: -34.74621025 | DG56: -123.5733152 | DH56: 0 | DI56: -152.7638009 | DK56: 0 | DL56: 0 | DM56: 639.3022505 | DN56: 0 | DO56: 15.60475356 | DP56: -1.709617955 | DQ56: 0 | DR56: -142.6039049 | DV56: 0 | DW56: 148.7056818 | DX56: -0.6548813036 | DY56: -328.9398 | DZ56: -1034.6238 | EA56: 253.2495 | EB56: 474.6294 | EC56: 0 | ED56: 417.5419275 | EE56: 9.446889788 | EF56: 0.5901012945 | EG56: 6.842367553 | EH56: 33.59743353 | EI56: 0 | EJ56: 0 | EK56: 0 | EL56: 0 | EM56: 0 | EN56: 0 | EO56: 0 | EP56: 231.1311927 | EQ56: 128.7021828 | ER56: 0 | ES56: -39.3382163 | ET56: 0 | EU56: -0.06133044946 | EV56: 115 | EW56: 0 | EX56: 0 | EY56: 0 | FA56: 0 | FB56: -46.77881411 | FD56: -46.77881411 | FF56: 0 | FG56: 0 | FH56: 0 | FI56: 0
A57: 50 | B57: Regular | C57: Verde | D57: A4 | E57: Industrial | F57: Não se aplica | G57: Não se aplica | H57: Não se aplica | I57: Não se aplica | J57: CATIVO | K57: 2021-07-01 | L57: 16360 | M57: 16360 | N57: 0 | O57: 0 | P57: 0 | Q57: 0 | R57: 35.6 | U57: 582416 | W57: 582416 | X57: 589941.6 | Y57: 0 | Z57: 0 | AA57: 0 | AB57: 0 | AC57: 4059.838484 | AD57: 1354.257853 | AE57: 463624.6001 | AI57: 0 | AJ57: 0 | AK57: 0 | AL57: 0 | AN57: 0 | AO57: 25118.70732 | AP57: 88300.1589 | AQ57: 0 | AR57: 0 | AU57: 0 | AV57: 0 | AW57: 0 | AZ57: 0 | BB57: 0 | BC57: 14752.31123 | BD57: 0 | BE57: 0 | BG57: 0 | BH57: 0 | BI57: 15576.63 | BJ57: 71751.58 | BK57: 445275.11 | BL57: 107 | BV57: 0 | CI57: 589941.6 | CJ57: 7525.57 | CO57: 7525.6 | CP57: 0 | CQ57: 31 | CR57: -3516.016559 | CS57: 1141.210874 | CT57: -902.2259028 | CU57: 0 | CV57: 0 | CZ57: 699.239178 | DA57: 0 | DB57: 655.8963884 | DE57: 0 | DF57: 0 | DG57: 0 | DH57: 0 | DI57: 0 | DK57: 0 | DL57: 0 | DN57: 0 | DO57: 0 | DP57: 0 | DQ57: 0 | DR57: -5110.137097 | DU57: 463624.6001 | DW57: 0 | DX57: 0 | DY57: -7198.4 | EA57: 14724 | EC57: -3826.427416 | EE57: 0 | EF57: 0 | EH57: 0 | EI57: 11487.44392 | EJ57: 3264.867311 | EK57: 0 | EL57: 0 | EO57: 0 | EP57: 0 | ER57: 0 | ET57: 0 | EV57: 115 | FA57: 0 | FB57: -46.77881411 | FD57: -46.77881411 | FF57: 0 | FG57: 0 | FH57: 0 | FI57: 0
A58: 51 | B58: Refaturamento - Regular | C58: Verde | D58: A4 | E58: Industrial | F58: Não se aplica | G58: Não se aplica | H58: Não se aplica | I58: Não se aplica | J58: CATIVO | K58: 2021-07-01 | L58: 0 | M58: 0 | N58: 0 | O58: 0 | P58: 0 | Q58: 0 | AA58: 0 | AZ58: 0 | BI58: -9.65 | BJ58: -44.41 | BK58: 13542.98 | BL58: 0 | CJ58: -0.03 | CO58: 0 | CP58: 0 | CQ58: 31 | DK58: 0 | EV58: 115 | FA58: 0 | FB58: -46.77881411 | FD58: -46.77881411 | FF58: 0 | FG58: 0 | FH58: 0 | FI58: 0
A59: 52 | B59: Sistema de Compensação | C59: Verde | D59: A4 | E59: Industrial | F59: Não se aplica | G59: Não se aplica | H59: Não se aplica | I59: Não se aplica | J59: CATIVO | K59: 2021-07-01 | L59: 811 | M59: 811 | N59: 0 | O59: 0 | P59: 0 | Q59: 0 | R59: 35.6 | U59: 28871.6 | W59: 28871.6 | X59: 29244.66 | Y59: 0 | Z59: 0 | AA59: 0 | AB59: 0 | AC59: 201.2548295 | AD59: 67.13344245 | AE59: 22982.85762 | AI59: 0 | AJ59: 0 | AK59: 0 | AL59: 0 | AN59: 0 | AO59: 1245.187753 | AP59: 4377.226703 | AQ59: 0 | AR59: 0 | AU59: 0 | AV59: 0 | AW59: 0 | AZ59: 0 | BB59: 0 | BC59: 731.303448 | BD59: 0 | BE59: 0 | BG59: 0 | BH59: 0 | BI59: 927.34 | BJ59: 4271.48 | BK59: 29094.4 | BL59: 3 | BV59: 0 | CI59: 29244.66 | CJ59: 373.03 | CO59: 373.06 | CP59: 0 | CQ59: 31 | CR59: -174.2964199 | CS59: 56.57225056 | CT59: -44.72525716 | CU59: 0 | CV59: 0 | CZ59: 34.66277343 | DA59: 0 | DB59: 32.51417916 | DE59: 0 | DF59: 0 | DG59: 0 | DH59: 0 | DI59: 0 | DK59: 0 | DL59: 0 | DN59: 0 | DO59: 0 | DP59: 0 | DQ59: 0 | DR59: -253.3203659 | DU59: 22982.85762 | DW59: 0 | DX59: 0 | DY59: -356.84 | EA59: 729.9 | EC59: -189.6841464 | EE59: 0 | EF59: 0 | EH59: 0 | EI59: 569.4570306 | EJ59: 161.8464174 | EK59: 0 | EL59: 0 | EO59: 0 | EP59: 0 | ER59: 0 | ET59: 0 | EV59: 115 | FA59: 0 | FB59: -46.77881411 | FD59: -46.77881411 | FF59: 0 | FG59: 0 | FH59: 0 | FI59: 0
A60: 61 | B60: Regular | C60: Azul | D60: A4 | E60: Comercial | F60: Não se aplica | G60: Não se aplica | H60: Não se aplica | I60: Ponta | J60: CATIVO | K60: 2021-07-01 | L60: 84 | M60: 84 | N60: 4.346 | O60: 4.346 | P60: 4.346 | Q60: 4.346 | R60: 71.05 | S60: 59.01 | T60: 376.03 | U60: 5968.2 | V60: 1890.68384 | W60: 7858.88384 | X60: 7743.98986 | Y60: 0 | Z60: 86.99426806 | AA60: 0 | AB60: 0 | AC60: 23.89622563 | AD60: 22.82912816 | AE60: 5308.015625 | AF60: 1549.046051 | AG60: 50.45132327 | AH60: 0 | AI60: 0 | AJ60: 0 | AK60: 12.06474824 | AL60: 40.91642988 | AN60: 3.441148852 | AO60: 135.1683562 | AP60: 478.3973713 | AQ60: 0 | AR60: 0 | AS60: 0 | AT60: 0 | AU60: 0 | AV60: 11.36869524 | AW60: 4.65834996 | AX60: 0 | AY60: 6.826465474 | AZ60: 0 | BB60: 58.69879023 | BC60: 79.80614215 | BD60: 20.37626776 | BE60: 1.272806421 | BF60: 14.75849899 | BG60: 72.46726882 | BH60: 11.40609747 | BI60: 0 | BJ60: 0 | BK60: 0 | BL60: 0 | BV60: 1657.920893 | CI60: 7745.6235 | CJ60: -113.29034 | CO60: -4.94018 | CP60: -109.9538 | CQ60: 31 | CR60: -229.7211142 | CS60: 6.141064345 | CT60: -4.888128239 | CU60: 0 | CV60: 0 | CW60: 0 | CX60: 0 | CY60: 0 | CZ60: 11.78728318 | DA60: 0 | DB60: 3.860608777 | DC60: -201.7196795 | DD60: -1.921879394 | DE60: -0.1657472373 | DF60: -2.653435771 | DG60: -9.436823543 | DH60: 0 | DI60: -11.66598979 | DK60: 0 | DL60: 0 | DM60: 48.82107856 | DN60: 0 | DO60: 1.19167561 | DP60: -0.1305570134 | DQ60: 0 | DR60: -68.93590056 | DU60: 5308.015625 | DV60: 0 | DW60: 11.35608668 | DX60: -0.05001079152 | DY60: -104.07988 | DZ60: -169.14632 | EA60: 99.1397 | EB60: 59.19252 | EC60: -43.80858244 | ED60: 54.84406982 | EE60: 0.7214230016 | EF60: 0.0450637889 | EG60: 0.5225255559 | EH60: 2.565708068 | EI60: 62.23729429 | EJ60: 17.56884787 | EK60: 0 | EL60: 0 | EM60: 0 | EN60: 0 | EO60: 0 | EP60: 17.65060909 | EQ60: 9.828495633 | ER60: 0 | ES60: -3.004109788 | ET60: 0 | EU60: -0.004683572893 | EV60: 115 | EW60: 0 | EX60: 0 | EY60: 0 | FA60: 0 | FB60: -46.77881411 | FD60: -46.77881411 | FF60: 0 | FG60: 0 | FH60: 0 | FI60: 0
A61: 62 | B61: Regular | C61: Azul | D61: A4 | E61: Comercial | F61: Não se aplica | G61: Não se aplica | H61: Não se aplica | I61: Fora ponta | J61: CATIVO | K61: 2021-07-01 | L61: 86 | M61: 86 | N61: 23.411 | O61: 23.411 | P61: 23.411 | Q61: 23.411 | R61: 35.6 | S61: 59.01 | T61: 226.82 | U61: 3061.6 | V61: 6691.56613 | W61: 9753.16613 | X61: 9531.22526 | Y61: 0 | Z61: 468.6200666 | AA61: 0 | AB61: 0 | AC61: 21.34144924 | AD61: 7.118959372 | AE61: 2437.146431 | AF61: 4851.389289 | AG61: 271.7708075 | AH61: 0 | AI61: 0 | AJ61: 0 | AK61: 64.99029475 | AL61: 220.4083157 | AN61: 18.53675466 | AO61: 132.0421045 | AP61: 464.1695394 | AQ61: 0 | AR61: 0 | AS61: 0 | AT61: 0 | AU61: 0 | AV61: 61.24080171 | AW61: 25.0935644 | AX61: 0 | AY61: 36.7727527 | AZ61: 0 | BB61: 192.5283122 | BC61: 77.54882433 | BD61: 109.7627254 | BE61: 6.856344024 | BF61: 79.50097096 | BG61: 390.3661367 | BH61: 61.44227977 | BI61: 0 | BJ61: 0 | BK61: 0 | BL61: 0 | BV61: 5437.875466 | CI61: 9530.9506 | CJ61: -222.24553 | CO61: 8.42337 | CP61: -230.36424 | CQ61: 31 | CR61: -579.4383141 | CS61: 5.999030269 | CT61: -4.742752301 | CU61: 0 | CV61: 0 | CW61: 0 | CX61: 0 | CY61: 0 | CZ61: 3.675707171 | DA61: 0 | DB61: 3.4478661 | DC61: -631.7570043 | DD61: -10.35276542 | DE61: -0.892845967 | DF61: -14.29350779 | DG61: -50.83420984 | DH61: 0 | DI61: -62.84226573 | DK61: 0 | DL61: 0 | DM61: 262.9890175 | DN61: 0 | DO61: 6.419309184 | DP61: -0.7032835344 | DQ61: 0 | DR61: -85.52538009 | DU61: 2437.146431 | DV61: 0 | DW61: 61.17288202 | DX61: -0.2693977543 | DY61: -173.15558 | DZ61: -425.61198 | EA61: 181.57895 | EB61: 195.24774 | EC61: -20.11447175 | ED61: 171.7637334 | EE61: 3.88615598 | EF61: 0.2427492779 | EG61: 2.814736721 | EH61: 13.82093686 | EI61: 60.3863189 | EJ61: 17.16250543 | EK61: 0 | EL61: 0 | EM61: 0 | EN61: 0 | EO61: 0 | EP61: 95.08016784 | EQ61: 52.9440661 | ER61: 0 | ES61: -16.18251594 | ET61: 0 | EU61: -0.02522943511 | EV61: 115 | EW61: 0 | EX61: 0 | EY61: 0 | FA61: 0 | FB61: -46.77881411 | FD61: -46.77881411 | FF61: 0 | FG61: 0 | FH61: 0 | FI61: 0
A62: 63 | B62: Regular | C62: Azul | D62: A4 | E62: Comercial | F62: Não se aplica | G62: Não se aplica | H62: Não se aplica | I62: Não se aplica | J62: CATIVO | K62: 2021-07-01 | L62: 0 | M62: 0 | N62: 0 | O62: 0 | P62: 0 | Q62: 0 | AA62: 0 | AZ62: 0 | BI62: 176.08 | BJ62: 811.06 | BK62: 8797.95 | BL62: 1 | CJ62: -0.03 | CO62: 0 | CP62: 0 | CQ62: 31 | DK62: 0 | EV62: 115 | FA62: 0 | FB62: -46.77881411 | FD62: -46.77881411 | FF62: 0 | FG62: 0 | FH62: 0 | FI62: 0
A63: 53 | B63: Regular | C63: Branca | D63: B3 | E63: Industrial | F63: Não se aplica | G63: Não se aplica | H63: Não se aplica | I63: Ponta | J63: CATIVO | K63: 2021-07-01 | L63: 0 | M63: 0 | N63: 0.082 | O63: 0.082 | P63: 0.082 | Q63: 0.082 | S63: 1308.73 | T63: 376.03 | V63: 138.15032 | W63: 138.15032 | X63: 135.53534 | Y63: 0 | Z63: 1.886668143 | AA63: 0 | AB63: 0 | AC63: 0.338262836 | AD63: 0.2349140629 | AE63: 89.87120185 | AF63: 29.22728398 | AG63: 0.9519117599 | AH63: 0 | AI63: 0 | AJ63: 0 | AK63: 1.238966841 | AL63: 0.7720081109 | AN63: 0.1006215581 | AO63: 1.988239153 | AP63: 7.012395777 | AQ63: 0 | AR63: 0 | AS63: 0 | AT63: 0 | AU63: 0 | AV63: 0.2465559583 | AW63: 0.08789339546 | AX63: 0 | AY63: 0.1288012354 | AZ63: 0 | BB63: 1.164452275 | BC63: 1.170706785 | BD63: 0.5302306573 | BE63: 0.04925264209 | BF63: 0.278462245 | BG63: 2.80420054 | BH63: 0.2968091424 | BI63: 0 | BJ63: 0 | BK63: 0 | BL63: 0 | BV63: 32.88943007 | CI63: 132.2296 | CJ63: -5.95072 | CO63: -0.54038 | CP63: -2.0746 | CQ63: 31 | CR63: -4.613350702 | CS63: 0.09033108721 | CT63: -0.07165066508 | CU63: 0 | CV63: 0 | CW63: 0 | CX63: 0 | CY63: 0 | CZ63: 0.1212923491 | DA63: 0 | DB63: 0.05464881752 | DC63: -3.806031689 | DD63: -0.03626187536 | DE63: -0.006413771348 | DF63: -0.0690476298 | DG63: -0.3651682492 | DH63: 0 | DI63: -0.2530034653 | DK63: 0 | DL63: 0 | DM63: 0.9211524257 | DN63: 0 | DO63: 0.02248444548 | DP63: -0.003817576825 | DQ63: 0 | DR63: -1.211776536 | DV63: 89.87120185 | DW63: 0.295507763 | DX63: -0.001301379387 | DY63: -2.16562 | DZ63: -3.19144 | EA63: 1.62524 | EB63: 1.11684 | EC63: -0.741732925 | ED63: 1.03479377 | EE63: 0.01877284873 | EF63: 0.001743792794 | EG63: 0.009858972752 | EH63: 0.09928289099 | EI63: 0.9122803883 | EJ63: 0.2584263964 | EK63: 0 | EL63: 0 | EM63: 0 | EN63: 0 | EO63: 0 | EP63: 0.3827935175 | EQ63: 0.1854433138 | ER63: 0 | ES63: -0.05668131676 | ET63: 0 | EU63: -8.836929987e-05 | EV63: 115 | EW63: 0 | EX63: 0 | EY63: 0 | FA63: 0 | FB63: -46.77881411 | FD63: -46.77881411 | FF63: 0 | FG63: 0 | FH63: 0 | FI63: 0
A64: 54 | B64: Regular | C64: Branca | D64: B3 | E64: Industrial | F64: Não se aplica | G64: Não se aplica | H64: Não se aplica | I64: Fora ponta | J64: CATIVO | K64: 2021-07-01 | L64: 0 | M64: 0 | N64: 2.132 | O64: 2.132 | P64: 2.132 | Q64: 2.132 | S64: 328.97 | T64: 226.82 | V64: 1184.94428 | W64: 1184.94428 | X64: 1155.28816 | Y64: 0 | Z64: 49.05337171 | AA64: 0 | AB64: 0 | AC64: 1.759027247 | AD64: 1.22144792 | AE64: 467.3302032 | AF64: 441.8077811 | AG64: 24.74970576 | AH64: 0 | AI64: 0 | AJ64: 0 | AK64: 11.83623413 | AL64: 20.07221088 | AN64: 2.61616051 | AO64: 10.33892873 | AP64: 36.46436045 | AQ64: 0 | AR64: 0 | AS64: 0 | AT64: 0 | AU64: 0 | AV64: 6.410454916 | AW64: 2.285228282 | AX64: 0 | AY64: 3.348832119 | AZ64: 0 | BB64: 19.01335255 | BC64: 6.08767365 | BD64: 13.78599709 | BE64: 1.280568694 | BF64: 7.240018371 | BG64: 72.90921405 | BH64: 7.717037702 | BI64: 0 | BJ64: 0 | BK64: 0 | BL64: 0 | BV64: 537.0235793 | CI64: 1154.2044 | CJ64: -30.76988 | CO64: -8.67724 | CP64: -20.97888 | CQ64: 31 | CR64: -61.45723259 | CS64: 0.4697255214 | CT64: -0.3725824612 | CU64: 0 | CV64: 0 | CW64: 0 | CX64: 0 | CY64: 0 | CZ64: 0.6306658944 | DA64: 0 | DB64: 0.2841836253 | DC64: -57.53303717 | DD64: -0.9428087595 | DE64: -0.1667580551 | DF64: -1.795238375 | DG64: -9.494374479 | DH64: 0 | DI64: -6.578090098 | DK64: 0 | DL64: 0 | DM64: 23.94996307 | DN64: 0 | DO64: 0.5845955824 | DP64: -0.09925699745 | DQ64: 0 | DR64: -10.39192229 | DV64: 467.3302032 | DW64: 7.683201838 | DX64: -0.03383586407 | DY64: -26.58604 | DZ64: -38.75976 | EA64: 17.9088 | EB64: 17.78088 | EC64: -3.857010827 | ED64: 15.64223141 | EE64: 0.4880940669 | EF64: 0.04533861265 | EG64: 0.2563332916 | EH64: 2.581355166 | EI64: 4.743845323 | EJ64: 1.343828327 | EK64: 0 | EL64: 0 | EM64: 0 | EN64: 0 | EO64: 0 | EP64: 9.952631455 | EQ64: 4.82152616 | ER64: 0 | ES64: -1.473714236 | ET64: 0 | EU64: -0.002297601797 | EV64: 115 | EW64: 0 | EX64: 0 | EY64: 0 | FA64: 0 | FB64: -46.77881411 | FD64: -46.77881411 | FF64: 0 | FG64: 0 | FH64: 0 | FI64: 0
A65: 55 | B65: Regular | C65: Branca | D65: B3 | E65: Industrial | F65: Não se aplica | G65: Não se aplica | H65: Não se aplica | I65: Não se aplica | J65: CATIVO | K65: 2021-07-01 | L65: 0 | M65: 0 | N65: 0 | O65: 0 | P65: 0 | Q65: 0 | AA65: 0 | AZ65: 0 | BI65: 10.74 | BJ65: 49.49 | BK65: 536.99 | BL65: 1 | CJ65: -0.03 | CO65: 0 | CP65: 0 | CQ65: 31 | DK65: 0 | EV65: 115 | FA65: 0 | FB65: -46.77881411 | FD65: -46.77881411 | FF65: 0 | FG65: 0 | FH65: 0 | FI65: 0
A66: 56 | B66: Regular | C66: Branca | D66: B3 | E66: Industrial | F66: Não se aplica | G66: Não se aplica | H66: Não se aplica | I66: Intermediário | J66: CATIVO | K66: 2021-07-01 | L66: 0 | M66: 0 | N66: 0.123 | O66: 0.123 | P66: 0.123 | Q66: 0.123 | S66: 818.85 | T66: 226.82 | V66: 128.61741 | W66: 128.61741 | X66: 126.7515 | Y66: 0 | Z66: 2.830002214 | AA66: 0 | AB66: 0 | AC66: 0.3044295717 | AD66: 0.2114196218 | AE66: 80.88408702 | AF66: 25.48891045 | AG66: 1.42786764 | AH66: 0 | AI66: 0 | AJ66: 0 | AK66: 1.270654962 | AL66: 1.158012166 | AN66: 0.1509323371 | AO66: 1.789417693 | AP66: 6.311153384 | AQ66: 0 | AR66: 0 | AS66: 0 | AT66: 0 | AU66: 0 | AV66: 0.3698339375 | AW66: 0.1318400932 | AX66: 0 | AY66: 0.193201853 | AZ66: 0 | BB66: 1.096924185 | BC66: 1.053636059 | BD66: 0.7953459859 | BE66: 0.07387896314 | BF66: 0.4176933676 | BG66: 4.206300811 | BH66: 0.4452137136 | BI66: 0 | BJ66: 0 | BK66: 0 | BL66: 0 | BV66: 30.98212958 | CI66: 123.66 | CJ66: -4.98741 | CO66: -0.65559 | CP66: -1.21032 | CQ66: 31 | CR66: -3.957476791 | CS66: 0.08129809007 | CT66: -0.0644855698 | CU66: 0 | CV66: 0 | CW66: 0 | CX66: 0 | CY66: 0 | CZ66: 0.1091615472 | DA66: 0 | DB66: 0.04918280798 | DC66: -3.319213683 | DD66: -0.05439281305 | DE66: -0.009620657022 | DF66: -0.1035714447 | DG66: -0.5477523738 | DH66: 0 | DI66: -0.379505198 | DK66: 0 | DL66: 0 | DM66: 1.381728638 | DN66: 0 | DO66: 0.03372666822 | DP66: -0.005726365237 | DQ66: 0 | DR66: -1.128173885 | DV66: 80.88408702 | DW66: 0.4432616445 | DX66: -0.001952069081 | DY66: -2.39112 | DZ66: -2.23614 | EA66: 1.73553 | EB66: 1.02582 | EC66: -0.6675596767 | ED66: 0.9024364274 | EE66: 0.02815927309 | EF66: 0.002615689191 | EG66: 0.01478845913 | EH66: 0.1489243365 | EI66: 0.8210519832 | EJ66: 0.232584076 | EK66: 0 | EL66: 0 | EM66: 0 | EN66: 0 | EO66: 0 | EP66: 0.5741902763 | EQ66: 0.2781649708 | ER66: 0 | ES66: -0.08502197514 | ET66: 0 | EU66: -0.0001325539498 | EV66: 115 | EW66: 0 | EX66: 0 | EY66: 0 | FA66: 0 | FB66: -46.77881411 | FD66: -46.77881411 | FF66: 0 | FG66: 0 | FH66: 0 | FI66: 0
A67: 57 | B67: Regular | C67: Convencional | D67: B3 | E67: Comercial | F67: Não se aplica | G67: Não se aplica | H67: Não se aplica | I67: Não se aplica | J67: CATIVO | K67: 2021-07-01 | L67: 0 | M67: 0 | N67: 19916.382 | O67: 19916.382 | P67: 19916.382 | Q67: 19916.382 | S67: 444.24 | T67: 239.26 | V67: 13612847.1 | W67: 13612847.1 | X67: 13303944.01 | Y67: 0 | Z67: 458239.0663 | AA67: 0 | AB67: 0 | AC67: 24163.67585 | AD67: 16781.34223 | AE67: 6420048.064 | AF67: 4374843.007 | AG67: 231202.9054 | AH67: 0 | AI67: 0 | AJ67: 0 | AK67: 132964.4481 | AL67: 187507.42 | AN67: 24439.23644 | AO67: 142031.681 | AP67: 500939.4793 | AQ67: 0 | AR67: 0 | AS67: 0 | AT67: 0 | AU67: 0 | AV67: 59884.17866 | AW67: 21347.78585 | AX67: 0 | AY67: 31283.59275 | AZ67: 0 | BB67: 186383.392 | BC67: 83630.84451 | BD67: 128783.8575 | BE67: 11962.61505 | BF67: 67633.66396 | BG67: 681091.8191 | BH67: 72089.80806 | BI67: 101396.19 | BJ67: 467617.51 | BK67: 5058587.27 | BL67: 30940 | BV67: 5264314.963 | CI67: 13303942.68 | CJ67: -308904.4508 | CO67: -87034.58934 | CP67: -221868.4955 | CQ67: 31 | CR67: -624220.7058 | CS67: 6452.88377 | CT67: -5118.457086 | CU67: 0 | CV67: 0 | CW67: 0 | CX67: 0 | CY67: 0 | CZ67: 8664.651213 | DA67: 0 | DB67: 3903.817303 | DC67: -569700.2545 | DD67: -8807.382461 | DE67: -1557.794149 | DF67: -16770.47526 | DG67: -88693.05299 | DH67: 0 | DI67: -61450.16662 | DK67: 0 | DL67: 0 | DM67: 223731.995 | DN67: 0 | DO67: 5461.08299 | DP67: -927.2233946 | DQ67: 0 | DR67: -119388.8663 | DV67: 6420048.064 | DW67: 71773.72551 | DX67: -316.0825489 | DY67: -281020.15 | DZ67: -396734.3294 | EA67: 193985.5607 | EB67: 174865.834 | EC67: -52986.50659 | ED67: 154891.5832 | EE67: 4559.600323 | EF67: 423.5371148 | EG67: 2394.573993 | EH67: 24114.09735 | EI67: 65169.9187 | EJ67: 18460.92581 | EK67: 0 | EL67: 0 | EM67: 0 | EN67: 0 | EO67: 0 | EP67: 92973.92587 | EQ67: 45040.97412 | ER67: 0 | ES67: -13766.91167 | ET67: 0 | EU67: -21.4633748 | EV67: 115 | EW67: 0 | EX67: 0 | EY67: 0 | FA67: 0 | FB67: -46.77881411 | FD67: -46.77881411 | FF67: 0 | FG67: 0 | FH67: 0 | FI67: 0
A68: 58 | B68: Refaturamento - Regular | C68: Convencional | D68: B3 | E68: Comercial | F68: Não se aplica | G68: Não se aplica | H68: Não se aplica | I68: Não se aplica | J68: CATIVO | K68: 2021-07-01 | L68: 0 | M68: 0 | N68: -2.827 | O68: -2.827 | P68: -2.827 | Q68: -2.827 | S68: 444.24 | T68: 239.26 | V68: -1932.2545 | W68: -1932.2545 | X68: -1888.40773 | Y68: 0 | Z68: -65.04403463 | AA68: 0 | AB68: 0 | AC68: -3.429875548 | AD68: -2.382001634 | AE68: -911.2837802 | AF68: -620.9803157 | AG68: -32.81773836 | AH68: 0 | AI68: 0 | AJ68: 0 | AK68: -18.87343267 | AL68: -26.61545036 | AN68: -3.46898957 | AO68: -20.160467 | AP68: -71.10507862 | AQ68: 0 | AR68: 0 | AS68: 0 | AT68: 0 | AU68: 0 | AV68: -8.500167002 | AW68: -3.030178402 | AX68: 0 | AY68: -4.440501126 | AZ68: 0 | BB68: -26.45590194 | BC68: -11.87085071 | BD68: -18.28002522 | BE68: -1.698014868 | BF68: -9.600155692 | BG68: -96.67652351 | BH68: -10.23267616 | BI68: -21.28 | BJ68: -97.99 | BK68: -628.07 | BL68: -2 | BV68: -747.235035 | CI68: -1890.4117 | CJ68: 41.8128 | CO68: 12.35399 | CP68: 31.49278 | CQ68: 31 | CR68: 88.6040414 | CS68: -0.9159445937 | CT68: 0.7265314645 | CU68: 0 | CV68: 0 | CW68: 0 | CX68: 0 | CY68: 0 | CZ68: -1.229890498 | DA68: 0 | DB68: -0.5541213016 | DC68: 80.86522037 | DD68: 1.250150264 | DE68: 0.2211186781 | DF68: 2.380459139 | DG68: 12.58939805 | DH68: 0 | DI68: 8.722448737 | DK68: 0 | DL68: 0 | DM68: -31.75729155 | DN68: 0 | DO68: -0.7751649679 | DP68: 0.1316132888 | DQ68: 0 | DR68: 16.94646774 | DV68: -911.2837802 | DW68: -10.18781032 | DX68: 0.04486584791 | DY68: 39.88897 | DZ68: 56.31384 | EA68: -27.53498 | EB68: -24.82106 | EC68: 7.521087621 | ED68: -21.98584591 | EE68: -0.6472054067 | EF68: -0.06011831986 | EG68: -0.3398940972 | EH68: -3.422838205 | EI68: -9.250443186 | EJ68: -2.620407525 | EK68: 0 | EL68: 0 | EM68: 0 | EN68: 0 | EO68: 0 | EP68: -13.19703993 | EQ68: -6.39327132 | ER68: 0 | ES68: 1.954122957 | ET68: 0 | EU68: 0.003046585497 | EV68: 115 | EW68: 0 | EX68: 0 | EY68: 0 | FA68: 0 | FB68: -46.77881411 | FD68: -46.77881411 | FF68: 0 | FG68: 0 | FH68: 0 | FI68: 0
A69: 59 | B69: Sistema de Compensação | C69: Convencional | D69: B3 | E69: Comercial | F69: Não se aplica | G69: Não se aplica | H69: Não se aplica | I69: Não se aplica | J69: CATIVO | K69: 2021-07-01 | L69: 0 | M69: 0 | N69: 1123.25 | O69: 1123.25 | P69: 1123.25 | Q69: 1123.25 | S69: 444.24 | T69: 239.26 | V69: 767741.375 | W69: 767741.375 | X69: 750319.7675 | Y69: 0 | Z69: 25843.90233 | AA69: 0 | AB69: 0 | AC69: 1362.790134 | AD69: 946.4391001 | AE69: 362079.7687 | AF69: 246733.6893 | AG69: 13039.44981 | AH69: 0 | AI69: 0 | AJ69: 0 | AK69: 7498.968251 | AL69: 10575.09891 | AN69: 1378.331282 | AO69: 8010.344733 | AP69: 28252.13285 | AQ69: 0 | AR69: 0 | AS69: 0 | AT69: 0 | AU69: 0 | AV69: 3377.365612 | AW69: 1203.978737 | AX69: 0 | AY69: 1764.341312 | AZ69: 0 | BB69: 10511.70564 | BC69: 4716.637093 | BD69: 7263.190071 | BE69: 674.6711003 | BF69: 3814.423375 | BG69: 38412.41777 | BH69: 4065.742307 | BI69: 5404.81 | BJ69: 24929.49 | BK69: 596423.08 | BL69: 1990 | BV69: 296898.3916 | CI69: 750319.7675 | CJ69: -17421.6375 | CO69: -4908.6025 | CP69: -12513.005 | CQ69: 31 | CR69: -35204.98391 | CS69: 363.9316466 | CT69: -288.6722559 | CU69: 0 | CV69: 0 | CW69: 0 | CX69: 0 | CY69: 0 | CZ69: 488.6715607 | DA69: 0 | DB69: 220.1686424 | DC69: -32130.12338 | DD69: -496.7213598 | DE69: -87.85693496 | DF69: -945.8262216 | DG69: -5002.137023 | DH69: 0 | DI69: -3465.684664 | DK69: 0 | DL69: 0 | DM69: 12618.1032 | DN69: 0 | DO69: 307.995773 | DP69: -52.29381913 | DQ69: 0 | DR69: -6733.328576 | DV69: 362079.7687 | DW69: 4047.91579 | DX69: -17.82651704 | DY69: -15849.0575 | DZ69: -22375.14 | EA69: 10940.455 | EB69: 9862.135 | EC69: -2988.348663 | ED69: 8735.621302 | EE69: 257.153687 | EF69: 23.88677141 | EG69: 135.049892 | EH69: 1359.993991 | EI69: 3675.472341 | EJ69: 1041.164752 | EK69: 0 | EL69: 0 | EM69: 0 | EN69: 0 | EO69: 0 | EP69: 5243.570958 | EQ69: 2540.234174 | ER69: 0 | ES69: -776.4303543 | ET69: 0 | EU69: -1.210497757 | EV69: 115 | EW69: 0 | EX69: 0 | EY69: 0 | FA69: 0 | FB69: -46.77881411 | FD69: -46.77881411 | FF69: 0 | FG69: 0 | FH69: 0 | FI69: 0
A70: 60 | B70: Sistema de Compensação | C70: Convencional | D70: B3 | E70: Comercial | F70: Não se aplica | G70: Não se aplica | H70: Não se aplica | I70: Não se aplica | J70: CATIVO | K70: 2021-07-01 | L70: 0 | M70: 0 | N70: -3.693 | O70: -3.693 | P70: -3.693 | Q70: -3.693 | S70: 444.24 | T70: 239.26 | V70: -2524.1655 | W70: -2524.1655 | X70: -2466.88707 | Y70: 0 | Z70: -84.96909087 | AA70: 0 | AB70: 0 | AC70: -4.4805555 | AD70: -3.111684484 | AE70: -1190.438981 | AF70: -811.2063339 | AG70: -42.87085524 | AH70: 0 | AI70: 0 | AJ70: 0 | AK70: -24.65496528 | AL70: -34.76860919 | AN70: -4.531651391 | AO70: -26.33625916 | AP70: -92.88682538 | AQ70: 0 | AR70: 0 | AS70: 0 | AT70: 0 | AU70: 0 | AV70: -11.10403846 | AW70: -3.958418408 | AX70: 0 | AY70: -5.800767831 | AZ70: 0 | BB70: -34.56018602 | BC70: -15.50726978 | BD70: -23.87977826 | BE70: -2.21817082 | BF70: -12.54098867 | BG70: -126.291617 | BH70: -13.36727028 | BI70: -25.04 | BJ70: -115.28 | BK70: -646.95 | BL70: 0 | BV70: -976.1368886 | CI70: -2464.8831 | CJ70: 59.2524 | CO70: 16.13841 | CP70: 41.14002 | CQ70: 31 | CR70: 115.7462769 | CS70: -1.19652755 | CT70: 0.9490911561 | CU70: 0 | CV70: 0 | CW70: 0 | CX70: 0 | CY70: 0 | CZ70: -1.606645069 | DA70: 0 | DB70: -0.7238662776 | DC70: 105.6368089 | DD70: 1.633111045 | DE70: 0.2888543608 | DF70: 3.109669474 | DG70: 16.44593103 | DH70: 0 | DI70: 11.39441216 | DK70: 0 | DL70: 0 | DM70: -41.48555985 | DN70: 0 | DO70: -1.012622648 | DP70: 0.1719306246 | DQ70: 0 | DR70: 22.13770971 | DV70: -1190.438981 | DW70: -13.30866059 | DX70: 0.05860968388 | DY70: 52.10823 | DZ70: 73.56456 | EA70: -35.96982 | EB70: -32.42454 | EC70: 9.825035934 | ED70: -28.72080968 | EE70: -0.8454650042 | EF70: -0.07853447303 | EG70: -0.444014468 | EH70: -4.471362395 | EI70: -12.0841481 | EJ70: -3.42312168 | EK70: 0 | EL70: 0 | EM70: 0 | EN70: 0 | EO70: 0 | EP70: -17.23971293 | EQ70: -8.351733634 | ER70: 0 | ES70: 2.552732961 | ET70: 0 | EU70: 0.003979851517 | EV70: 115 | EW70: 0 | EX70: 0 | EY70: 0 | FA70: 0 | FB70: -46.77881411 | FD70: -46.77881411 | FF70: 0 | FG70: 0 | FH70: 0 | FI70: 0
A71: 91 | B71: Regular | C71: Verde | D71: A3a | E71: Rural | F71: Não se aplica | G71: Não se aplica | H71: Não se aplica | I71: Ponta | J71: CATIVO | K71: 2021-07-01 | L71: 0 | M71: 0 | N71: 64.607 | O71: 62.02272 | P71: 64.607 | Q71: 62.02272 | S71: 1784.62 | T71: 376.03 | V71: 139593.1145 | W71: 139593.1145 | X71: 137872.6301 | Y71: 0 | Z71: 1293.244058 | AA71: 0 | AB71: 0 | AC71: 441.9838503 | AD71: 422.1951985 | AE71: 98185.66692 | AF71: 23027.8919 | AG71: 750.0019887 | AH71: 0 | AI71: 0 | AJ71: 0 | AK71: 1266.332488 | AL71: 608.2576588 | AN71: 51.15561525 | AO71: 2500.271078 | AP71: 8849.185925 | AQ71: 0 | AR71: 0 | AS71: 0 | AT71: 0 | AU71: 0 | AV71: 169.0053597 | AW71: 69.25034879 | AX71: 0 | AY71: 101.4812367 | AZ71: 0 | BB71: 872.6076255 | BC71: 1476.217362 | BD71: 302.9106147 | BE71: 18.92135399 | BF71: 219.3976862 | BG71: 1077.287813 | BH71: 169.5613758 | BI71: 0 | BJ71: 0 | BK71: 0 | BL71: 0 | BR71: 5514.905206 | BV71: 24646.40937 | CI71: 132351.9204 | CJ71: -1657.499568 | CO71: -85.92731 | CP71: -1634.5571 | CQ71: 31 | CR71: -3553.376817 | CS71: 113.5940837 | CT71: -90.41846426 | CU71: 0 | CV71: 0 | CW71: 0 | CX71: 0 | CY71: 0 | CZ71: 217.990557 | DA71: 0 | DB71: 71.40570057 | DC71: -2998.735236 | DD71: -28.57037782 | DE71: -2.463974174 | DF71: -39.44558787 | DG71: -140.2864378 | DH71: 0 | DI71: -173.4248969 | DK71: 0 | DL71: 0 | DM71: 725.7670093 | DN71: 0 | DO71: 17.71527523 | DP71: -1.940841455 | DQ71: 0 | DR71: -1224.494001 | DV71: 98185.66692 | DW71: 168.8179227 | DX71: -0.7434531081 | DY71: -1849.69841 | DZ71: -2514.50444 | EA71: 1763.7711 | EB71: 879.94734 | EC71: -810.3546009 | ED71: 815.3039159 | EE71: 10.72456877 | EF71: 0.669911691 | EG71: 7.767788446 | EH71: 38.14144067 | EI71: 1151.238325 | EJ71: 324.9790368 | EK71: 0 | EL71: 0 | EM71: 0 | EN71: 0 | EO71: 0 | EP71: 262.3913717 | EQ71: 146.1089778 | ER71: 0 | ES71: -44.65865649 | ET71: 0 | EU71: -0.06962530923 | EV71: 115 | EW71: 0 | EX71: 0 | EY71: 0 | FA71: 0 | FB71: -46.77881411 | FD71: -46.77881411 | FF71: 0 | FG71: 0 | FH71: 0 | FI71: 0
A72: 92 | B72: Sistema de Compensação | C72: Verde | D72: A3a | E72: Rural | F72: Não se aplica | G72: Não se aplica | H72: Não se aplica | I72: Ponta | J72: CATIVO | K72: 2021-07-01 | L72: 0 | M72: 0 | N72: 0.246 | O72: 0.23616 | P72: 0.246 | Q72: 0.23616 | S72: 1784.62 | T72: 376.03 | V72: 531.5199 | W72: 531.5199 | X72: 524.96892 | Y72: 0 | Z72: 4.924203852 | AA72: 0 | AB72: 0 | AC72: 1.682914037 | AD72: 1.607566035 | AE72: 373.8553727 | AF72: 87.68185194 | AG72: 2.85573528 | AH72: 0 | AI72: 0 | AJ72: 0 | AK72: 4.821734363 | AL72: 2.316024333 | AN72: 0.1947820105 | AO72: 9.520124526 | AP72: 33.69448725 | AQ72: 0 | AR72: 0 | AS72: 0 | AT72: 0 | AU72: 0 | AV72: 0.6435110512 | AW72: 0.2636801864 | AX72: 0 | AY72: 0.3864037061 | AZ72: 0 | BB72: 3.322573032 | BC72: 5.620899765 | BD72: 1.153373647 | BE72: 0.07204564649 | BF72: 0.8353867351 | BG72: 4.101920876 | BH72: 0.6456281587 | BI72: 0 | BJ72: 0 | BK72: 0 | BL72: 0 | BR72: 20.9987568 | BV72: 93.84457885 | CI72: 512.1648 | CJ72: 1.875696 | CO72: -0.32718 | CP72: -6.2238 | CQ72: 31 | CR72: -13.52996884 | CS72: 0.4325250298 | CT72: -0.3442806849 | CU72: 0 | CV72: 0 | CW72: 0 | CX72: 0 | CY72: 0 | CZ72: 0.8300288981 | DA72: 0 | DB72: 0.2718869834 | DC72: -11.41809507 | DD72: -0.1087856261 | DE72: -0.009381919093 | DF72: -0.1501944776 | DG72: -0.5341598232 | DH72: 0 | DI72: -0.6603390445 | DK72: 0 | DL72: 0 | DM72: 2.763457277 | DN72: 0 | DO72: 0.06745333643 | DP72: -0.007390019626 | DQ72: 0 | DR72: -4.662428595 | DV72: 373.8553727 | DW72: 0.6427973592 | DX72: -0.00283079952 | DY72: -7.04298 | DZ72: -9.57432 | EA72: 6.7158 | EB72: 3.35052 | EC72: -3.085536116 | ED72: 3.10438131 | EE72: 0.04083526424 | EF72: 0.002550780504 | EG72: 0.02957691826 | EH72: 0.1452287586 | EI72: 4.383497579 | EJ72: 1.237402186 | EK72: 0 | EL72: 0 | EM72: 0 | EN72: 0 | EO72: 0 | EP72: 0.9990910807 | EQ72: 0.5563299415 | ER72: 0 | ES72: -0.1700439503 | ET72: 0 | EU72: -0.0002651078996 | EV72: 115 | EW72: 0 | EX72: 0 | EY72: 0 | FA72: 0 | FB72: -46.77881411 | FD72: -46.77881411 | FF72: 0 | FG72: 0 | FH72: 0 | FI72: 0
